Workbook

Sheet Übersicht
D1: Kreisrundenwettkampf | J1: Saison | K1: 2019/2020 | M1: 2. Kreisliga | P1: Schützen
C3: Wettkampftag: | D3: 15.09. | E3: 06.10. | F3: 20.10. | G3: 10.11. | H3: 24.11. | I3: 08.12. | J3: Hinrunde | L3: 19.01. | M3: 02.02. | N3: 16.02. | O3: 01.03. | P3: 15.03. | Q3: 29.03. | R3: Rückrunde | T3: Serie komplett
A4: Pos. | B4: Verein / Gruppe | D4: Breddenb.-Heid. | E4: Ostenwalde | F4: Börgermoor | G4: Lorup | H4: Breddenberg | I4: Werlte | J4: Schnitt | K4: Gesamt | L4: =D4 -> Breddenb.-Heid. | M4: Ostenwalde | N4: Börgermoor | O4: Lorup | P4: Breddenberg | Q4: Werlte | R4: Schnitt | S4: Gesamt | T4: Schnitt | U4: Gesamt | V4: Differenz
A6: 1 | B6: ='Übersicht Gruppen'!B2 -> Ostenwalde II | D6: ='Übersicht Gruppen'!C2 -> 937.2 | E6: ='Übersicht Gruppen'!D2 -> 942.8 | F6: ='Übersicht Gruppen'!E2 -> 945.1 | G6: ='Übersicht Gruppen'!F2 -> 933.7 | H6: ='Übersicht Gruppen'!G2 -> 946.5 | I6: ='Übersicht Gruppen'!H2 -> 941.0 | J6: ='Übersicht Gruppen'!I2 -> 941.05 | K6: =SUM(D6:I6) -> 5,646.3 | L6: ='Übersicht Gruppen'!K2 -> 938.8 | M6: ='Übersicht Gruppen'!L2 -> 938.7 | N6: ='Übersicht Gruppen'!M2 -> 943.5 | O6: ='Übersicht Gruppen'!N2 -> 934.3 | P6: ='Übersicht Gruppen'!O2 -> 940.4 | Q6: ='Übersicht Gruppen'!P2 -> 0.0 | R6: =IF(Formelhilfe!O2=0,0,'Übersicht Gruppen'!Q2) -> 939.14 | S6: =SUM(L6:Q6) -> 4,695.7 | T6: ='Übersicht Gruppen'!S2 -> 940.18 | U6: =SUM(S6+K6) -> 10,342.0
A7: 2 | B7: ='Übersicht Gruppen'!B3 -> Werlte III | D7: ='Übersicht Gruppen'!C3 -> 938.3 | E7: ='Übersicht Gruppen'!D3 -> 938.1 | F7: ='Übersicht Gruppen'!E3 -> 943.1 | G7: ='Übersicht Gruppen'!F3 -> 938.8 | H7: ='Übersicht Gruppen'!G3 -> 938.9 | I7: ='Übersicht Gruppen'!H3 -> 935.6 | J7: ='Übersicht Gruppen'!I3 -> 938.80 | K7: 5,632.8 | L7: ='Übersicht Gruppen'!K3 -> 937.2 | M7: ='Übersicht Gruppen'!L3 -> 942.1 | N7: ='Übersicht Gruppen'!M3 -> 940.5 | O7: ='Übersicht Gruppen'!N3 -> 932.3 | P7: ='Übersicht Gruppen'!O3 -> 936.3 | Q7: ='Übersicht Gruppen'!P3 -> 0.0 | R7: =IF(Formelhilfe!O3=0,0,'Übersicht Gruppen'!Q3) -> 937.68 | S7: 4,688.4 | T7: ='Übersicht Gruppen'!S3 -> 938.29 | U7: =SUM(S7+K7) -> 10,321.2 | V7: =(U6-U7)*-1 -> -20.8
A8: 3 | B8: ='Übersicht Gruppen'!B4 -> Lorup III | D8: ='Übersicht Gruppen'!C4 -> 936.1 | E8: ='Übersicht Gruppen'!D4 -> 933.3 | F8: ='Übersicht Gruppen'!E4 -> 938.5 | G8: ='Übersicht Gruppen'!F4 -> 937.2 | H8: ='Übersicht Gruppen'!G4 -> 931.3 | I8: ='Übersicht Gruppen'!H4 -> 932.1 | J8: ='Übersicht Gruppen'!I4 -> 934.75 | K8: 5,608.5 | L8: ='Übersicht Gruppen'!K4 -> 937.0 | M8: ='Übersicht Gruppen'!L4 -> 932.8 | N8: ='Übersicht Gruppen'!M4 -> 933.9 | O8: ='Übersicht Gruppen'!N4 -> 936.7 | P8: ='Übersicht Gruppen'!O4 -> 936.0 | Q8: ='Übersicht Gruppen'!P4 -> 0.0 | R8: =IF(Formelhilfe!O4=0,0,'Übersicht Gruppen'!Q4) -> 935.28 | S8: 4,676.4 | T8: ='Übersicht Gruppen'!S4 -> 934.99 | U8: 10,284.9 | V8: =(U7-U8)*-1 -> -36.3
A9: 4 | B9: ='Übersicht Gruppen'!B5 -> Breddenb.-Heid. III | D9: ='Übersicht Gruppen'!C5 -> 924.6 | E9: ='Übersicht Gruppen'!D5 -> 933.5 | F9: ='Übersicht Gruppen'!E5 -> 935.2 | G9: ='Übersicht Gruppen'!F5 -> 930.0 | H9: ='Übersicht Gruppen'!G5 -> 932.5 | I9: ='Übersicht Gruppen'!H5 -> 927.6 | J9: ='Übersicht Gruppen'!I5 -> 930.57 | K9: 5,583.4 | L9: ='Übersicht Gruppen'!K5 -> 938.0 | M9: ='Übersicht Gruppen'!L5 -> 930.0 | N9: ='Übersicht Gruppen'!M5 -> 938.2 | O9: ='Übersicht Gruppen'!N5 -> 924.9 | P9: ='Übersicht Gruppen'!O5 -> 934.4 | Q9: ='Übersicht Gruppen'!P5 -> 0.0 | R9: =IF(Formelhilfe!O5=0,0,'Übersicht Gruppen'!Q5) -> 933.10 | S9: 4,665.5 | T9: ='Übersicht Gruppen'!S5 -> 931.72 | U9: 10,248.9 | V9: -36.0
A10: 5 | B10: ='Übersicht Gruppen'!B6 -> Börgermoor II | D10: ='Übersicht Gruppen'!C6 -> 931.7 | E10: ='Übersicht Gruppen'!D6 -> 926.2 | F10: ='Übersicht Gruppen'!E6 -> 936.0 | G10: ='Übersicht Gruppen'!F6 -> 929.4 | H10: ='Übersicht Gruppen'!G6 -> 927.9 | I10: ='Übersicht Gruppen'!H6 -> 929.0 | J10: ='Übersicht Gruppen'!I6 -> 930.03 | K10: 5,580.2 | L10: ='Übersicht Gruppen'!K6 -> 933.2 | M10: ='Übersicht Gruppen'!L6 -> 927.3 | N10: ='Übersicht Gruppen'!M6 -> 934.4 | O10: ='Übersicht Gruppen'!N6 -> 932.2 | P10: ='Übersicht Gruppen'!O6 -> 932.3 | Q10: ='Übersicht Gruppen'!P6 -> 0.0 | R10: =IF(Formelhilfe!O6=0,0,'Übersicht Gruppen'!Q6) -> 931.88 | S10: 4,659.4 | T10: ='Übersicht Gruppen'!S6 -> 930.87 | U10: 10,239.6 | V10: -9.3
A11: 6 | B11: ='Übersicht Gruppen'!B7 -> Breddenb.-Heid. I | D11: ='Übersicht Gruppen'!C7 -> 926.7 | E11: ='Übersicht Gruppen'!D7 -> 928.4 | F11: ='Übersicht Gruppen'!E7 -> 927.7 | G11: ='Übersicht Gruppen'!F7 -> 929.8 | H11: ='Übersicht Gruppen'!G7 -> 924.8 | I11: ='Übersicht Gruppen'!H7 -> 929.2 | J11: ='Übersicht Gruppen'!I7 -> 927.77 | K11: 5,566.6 | L11: ='Übersicht Gruppen'!K7 -> 931.1 | M11: ='Übersicht Gruppen'!L7 -> 927.6 | N11: ='Übersicht Gruppen'!M7 -> 934.3 | O11: ='Übersicht Gruppen'!N7 -> 930.7 | P11: ='Übersicht Gruppen'!O7 -> 930.9 | Q11: ='Übersicht Gruppen'!P7 -> 0.0 | R11: =IF(Formelhilfe!O7=0,0,'Übersicht Gruppen'!Q7) -> 930.92 | S11: 4,654.6 | T11: ='Übersicht Gruppen'!S7 -> 929.20 | U11: 10,221.2 | V11: -18.4
C13: Schnitt: | D13: =AVERAGE(D6:D11) -> 932.4 | E13: =AVERAGE(E6:E11) -> 933.7 | F13: 937.6 | G13: 933.2 | H13: 933.7 | I13: 932.4 | J13: 933.83 | K13: =SUM(K6:K11)/6 -> 5,603.0 | L13: 935.9 | M13: 933.1 | N13: 937.5 | O13: 931.9 | P13: 935.1 | Q13: 0.0 | R13: 934.67 | S13: 4673.3 | T13: 934.21 | U13: 10,276.3
J15: Hinrunde | R15: Rückrunde | T15: Serie komplett | V15: Differenz
A16: Pos. | B16: Vorname Name | C16: Verein / Gruppe | J16: Schnitt | K16: Gesamt | R16: Schnitt | S16: Gesamt | T16: Schnitt | U16: Gesamt
A17: 1 | B17: ='Übersicht Schützen'!A2 -> Philipp Schmidt | C17: ='Übersicht Schützen'!B2 -> Ostenwalde II | D17: ='Übersicht Schützen'!C2 -> 313.2 | E17: ='Übersicht Schützen'!D2 -> 315.9 | F17: ='Übersicht Schützen'!E2 -> 315.4 | G17: ='Übersicht Schützen'!F2 -> 310.2 | H17: ='Übersicht Schützen'!G2 -> 318.3 | I17: ='Übersicht Schützen'!H2 -> 316.5 | J17: ='Übersicht Schützen'!I2 -> 314.92 | K17: =SUM(D17:I17) -> 1,889.5 | L17: ='Übersicht Schützen'!L2 -> 315.8 | M17: ='Übersicht Schützen'!M2 -> 317.1 | N17: ='Übersicht Schützen'!N2 -> 316.9 | O17: ='Übersicht Schützen'!O2 -> 313.6 | P17: ='Übersicht Schützen'!P2 -> 314.1 | Q17: ='Übersicht Schützen'!Q2 -> 0.0 | R17: =IF(Formelhilfe!O9=0,0,'Übersicht Schützen'!R2) -> 315.50 | S17: =SUM(L17:Q17) -> 1,577.5 | T17: ='Übersicht Schützen'!U2 -> 315.18 | U17: =SUM(K17+S17) -> 3,467.0
A18: 2 | B18: ='Übersicht Schützen'!A3 -> Frank Wotte | C18: ='Übersicht Schützen'!B3 -> Lorup III | D18: ='Übersicht Schützen'!C3 -> 312.0 | E18: ='Übersicht Schützen'!D3 -> 313.0 | F18: ='Übersicht Schützen'!E3 -> 314.5 | G18: ='Übersicht Schützen'!F3 -> 314.5 | H18: ='Übersicht Schützen'!G3 -> 314.6 | I18: ='Übersicht Schützen'!H3 -> 311.6 | J18: ='Übersicht Schützen'!I3 -> 313.37 | K18: =SUM(D18:I18) -> 1,880.2 | L18: ='Übersicht Schützen'!L3 -> 313.8 | M18: ='Übersicht Schützen'!M3 -> 313.6 | N18: ='Übersicht Schützen'!N3 -> 314.2 | O18: ='Übersicht Schützen'!O3 -> 314.2 | P18: ='Übersicht Schützen'!P3 -> 314.1 | Q18: ='Übersicht Schützen'!Q3 -> 0.0 | R18: =IF(Formelhilfe!O10=0,0,'Übersicht Schützen'!R3) -> 313.98 | S18: =SUM(L18:Q18) -> 1,569.9 | T18: ='Übersicht Schützen'!U3 -> 313.65 | U18: =SUM(K18+S18) -> 3,450.1 | V18: =(U17-U18)*-1 -> -16.9
A19: 3 | B19: ='Übersicht Schützen'!A4 -> Bernd Thien | C19: ='Übersicht Schützen'!B4 -> Werlte III | D19: ='Übersicht Schützen'!C4 -> 311.9 | E19: ='Übersicht Schützen'!D4 -> 315.1 | F19: ='Übersicht Schützen'!E4 -> 314.4 | G19: ='Übersicht Schützen'!F4 -> 311.9 | H19: ='Übersicht Schützen'!G4 -> 314.3 | I19: ='Übersicht Schützen'!H4 -> 309.0 | J19: ='Übersicht Schützen'!I4 -> 312.77 | K19: =SUM(D19:I19) -> 1,876.6 | L19: ='Übersicht Schützen'!L4 -> 310.7 | M19: ='Übersicht Schützen'!M4 -> 313.7 | N19: ='Übersicht Schützen'!N4 -> 317.7 | O19: ='Übersicht Schützen'!O4 -> 313.2 | P19: ='Übersicht Schützen'!P4 -> 313.9 | Q19: ='Übersicht Schützen'!Q4 -> 0.0 | R19: =IF(Formelhilfe!O11=0,0,'Übersicht Schützen'!R4) -> 313.84 | S19: 1,569.2 | T19: ='Übersicht Schützen'!U4 -> 313.25 | U19: 3,445.8 | V19: =(U18-U19)*-1 -> -4.3
A20: 4 | B20: ='Übersicht Schützen'!A5 -> Hans Plüster | C20: ='Übersicht Schützen'!B5 -> Breddenb.-Heid. III | D20: ='Übersicht Schützen'!C5 -> 310.9 | E20: ='Übersicht Schützen'!D5 -> 309.6 | F20: ='Übersicht Schützen'!E5 -> 314.8 | G20: ='Übersicht Schützen'!F5 -> 312.2 | H20: ='Übersicht Schützen'!G5 -> 312.8 | I20: ='Übersicht Schützen'!H5 -> 311.4 | J20: ='Übersicht Schützen'!I5 -> 311.95 | K20: 1,871.7 | L20: ='Übersicht Schützen'!L5 -> 315.6 | M20: ='Übersicht Schützen'!M5 -> 313.4 | N20: ='Übersicht Schützen'!N5 -> 314.3 | O20: ='Übersicht Schützen'!O5 -> 311.4 | P20: ='Übersicht Schützen'!P5 -> 315.2 | Q20: ='Übersicht Schützen'!Q5 -> 0.0 | R20: =IF(Formelhilfe!O12=0,0,'Übersicht Schützen'!R5) -> 313.98 | S20: 1,569.9 | T20: ='Übersicht Schützen'!U5 -> 312.87 | U20: 3,441.6 | V20: -4.2
A21: 5 | B21: ='Übersicht Schützen'!A6 -> Philipp Scholübbers | C21: ='Übersicht Schützen'!B6 -> Ostenwalde II | D21: ='Übersicht Schützen'!C6 -> 312.2 | E21: ='Übersicht Schützen'!D6 -> 314.1 | F21: ='Übersicht Schützen'!E6 -> 315.4 | G21: ='Übersicht Schützen'!F6 -> 312.4 | H21: ='Übersicht Schützen'!G6 -> 314.6 | I21: ='Übersicht Schützen'!H6 -> 312.7 | J21: ='Übersicht Schützen'!I6 -> 313.57 | K21: 1,881.4 | L21: ='Übersicht Schützen'!L6 -> 314.0 | M21: ='Übersicht Schützen'!M6 -> 311.7 | N21: ='Übersicht Schützen'!N6 -> 316.0 | O21: ='Übersicht Schützen'!O6 -> 303.3 | P21: ='Übersicht Schützen'!P6 -> 313.7 | Q21: ='Übersicht Schützen'!Q6 -> 0.0 | R21: =IF(Formelhilfe!O13=0,0,'Übersicht Schützen'!R6) -> 311.74 | S21: 1,558.7 | T21: ='Übersicht Schützen'!U6 -> 312.74 | U21: 3,440.1 | V21: -1.5
A22: 6 | B22: ='Übersicht Schützen'!A7 -> Andreas Thoben | C22: ='Übersicht Schützen'!B7 -> Werlte III | D22: ='Übersicht Schützen'!C7 -> 314.8 | E22: ='Übersicht Schützen'!D7 -> 311.7 | F22: ='Übersicht Schützen'!E7 -> 313.4 | G22: ='Übersicht Schützen'!F7 -> 313.9 | H22: ='Übersicht Schützen'!G7 -> 314.4 | I22: ='Übersicht Schützen'!H7 -> 312.8 | J22: ='Übersicht Schützen'!I7 -> 313.50 | K22: 1,881.0 | L22: ='Übersicht Schützen'!L7 -> 316.0 | M22: ='Übersicht Schützen'!M7 -> 312.7 | N22: ='Übersicht Schützen'!N7 -> 307.2 | O22: ='Übersicht Schützen'!O7 -> 309.8 | P22: ='Übersicht Schützen'!P7 -> 310.3 | Q22: ='Übersicht Schützen'!Q7 -> 0.0 | R22: =IF(Formelhilfe!O14=0,0,'Übersicht Schützen'!R7) -> 311.20 | S22: 1,556.0 | T22: ='Übersicht Schützen'!U7 -> 312.45 | U22: 3,437.0 | V22: -3.1
A23: 7 | B23: ='Übersicht Schützen'!A8 -> Johannes Jansen | C23: ='Übersicht Schützen'!B8 -> Börgermoor II | D23: ='Übersicht Schützen'!C8 -> 312.1 | E23: ='Übersicht Schützen'!D8 -> 308.3 | F23: ='Übersicht Schützen'!E8 -> 313.6 | G23: ='Übersicht Schützen'!F8 -> 309.0 | H23: ='Übersicht Schützen'!G8 -> 310.1 | I23: ='Übersicht Schützen'!H8 -> 311.5 | J23: ='Übersicht Schützen'!I8 -> 310.77 | K23: 1,864.6 | L23: ='Übersicht Schützen'!L8 -> 313.0 | M23: ='Übersicht Schützen'!M8 -> 314.2 | N23: ='Übersicht Schützen'!N8 -> 310.5 | O23: ='Übersicht Schützen'!O8 -> 311.9 | P23: ='Übersicht Schützen'!P8 -> 311.9 | Q23: ='Übersicht Schützen'!Q8 -> 0.0 | R23: =IF(Formelhilfe!O15=0,0,'Übersicht Schützen'!R8) -> 312.30 | S23: 1,561.5 | T23: ='Übersicht Schützen'!U8 -> 311.46 | U23: 3,426.1 | V23: -10.9
A24: 8 | B24: ='Übersicht Schützen'!A9 -> Thomas Niermann | C24: ='Übersicht Schützen'!B9 -> Werlte III | D24: ='Übersicht Schützen'!C9 -> 313.1 | E24: ='Übersicht Schützen'!D9 -> 311.2 | F24: ='Übersicht Schützen'!E9 -> 313.6 | G24: ='Übersicht Schützen'!F9 -> 310.1 | H24: ='Übersicht Schützen'!G9 -> 308.0 | I24: ='Übersicht Schützen'!H9 -> 310.5 | J24: ='Übersicht Schützen'!I9 -> 311.08 | K24: 1,866.5 | L24: ='Übersicht Schützen'!L9 -> 312.3 | M24: ='Übersicht Schützen'!M9 -> 315.3 | N24: ='Übersicht Schützen'!N9 -> 310.0 | O24: ='Übersicht Schützen'!O9 -> 307.8 | P24: ='Übersicht Schützen'!P9 -> 312.1 | Q24: ='Übersicht Schützen'!Q9 -> 0.0 | R24: =IF(Formelhilfe!O16=0,0,'Übersicht Schützen'!R9) -> 311.50 | S24: 1,557.5 | T24: ='Übersicht Schützen'!U9 -> 311.27 | U24: 3,424.0 | V24: -2.1
A25: 9 | B25: ='Übersicht Schützen'!A10 -> Norbert Grünloh | C25: ='Übersicht Schützen'!B10 -> Werlte III | D25: ='Übersicht Schützen'!C10 -> 311.6 | E25: ='Übersicht Schützen'!D10 -> 311.3 | F25: ='Übersicht Schützen'!E10 -> 315.1 | G25: ='Übersicht Schützen'!F10 -> 313.0 | H25: ='Übersicht Schützen'!G10 -> 310.2 | I25: ='Übersicht Schützen'!H10 -> 313.8 | J25: ='Übersicht Schützen'!I10 -> 312.50 | K25: 1,875.0 | L25: ='Übersicht Schützen'!L10 -> 307.8 | M25: ='Übersicht Schützen'!M10 -> 309.5 | N25: ='Übersicht Schützen'!N10 -> 311.6 | O25: ='Übersicht Schützen'!O10 -> 309.3 | P25: ='Übersicht Schützen'!P10 -> 309.7 | Q25: ='Übersicht Schützen'!Q10 -> 0.0 | R25: =IF(Formelhilfe!O17=0,0,'Übersicht Schützen'!R10) -> 309.58 | S25: 1,547.9 | T25: ='Übersicht Schützen'!U10 -> 311.17 | U25: 3,422.9 | V25: -1.1
A26: 10 | B26: ='Übersicht Schützen'!A11 -> Patrik Krüßel | C26: ='Übersicht Schützen'!B11 -> Ostenwalde II | D26: ='Übersicht Schützen'!C11 -> 311.8 | E26: ='Übersicht Schützen'!D11 -> 312.8 | F26: ='Übersicht Schützen'!E11 -> 314.3 | G26: ='Übersicht Schützen'!F11 -> 311.1 | H26: ='Übersicht Schützen'!G11 -> 313.6 | I26: ='Übersicht Schützen'!H11 -> 311.8 | J26: ='Übersicht Schützen'!I11 -> 312.57 | K26: 1,875.4 | L26: ='Übersicht Schützen'!L11 -> 308.8 | M26: ='Übersicht Schützen'!M11 -> 305.4 | N26: ='Übersicht Schützen'!N11 -> 310.6 | O26: ='Übersicht Schützen'!O11 -> 309.9 | P26: ='Übersicht Schützen'!P11 -> 312.6 | Q26: ='Übersicht Schützen'!Q11 -> 0.0 | R26: =IF(Formelhilfe!O18=0,0,'Übersicht Schützen'!R11) -> 309.46 | S26: 1,547.3 | T26: ='Übersicht Schützen'!U11 -> 311.15 | U26: 3,422.7 | V26: -0.2
A27: 11 | B27: ='Übersicht Schützen'!A12 -> Johannes Wesseln | C27: ='Übersicht Schützen'!B12 -> Lorup III | D27: ='Übersicht Schützen'!C12 -> 310.2 | E27: ='Übersicht Schützen'!D12 -> 308.8 | F27: ='Übersicht Schützen'!E12 -> 311.5 | G27: ='Übersicht Schützen'!F12 -> 310.2 | H27: ='Übersicht Schützen'!G12 -> 311.5 | I27: ='Übersicht Schützen'!H12 -> 312.1 | J27: ='Übersicht Schützen'!I12 -> 310.72 | K27: 1,864.3 | L27: ='Übersicht Schützen'!L12 -> 312.9 | M27: ='Übersicht Schützen'!M12 -> 308.7 | N27: ='Übersicht Schützen'!N12 -> 307.9 | O27: ='Übersicht Schützen'!O12 -> 311.5 | P27: ='Übersicht Schützen'!P12 -> 312.4 | Q27: ='Übersicht Schützen'!Q12 -> 0.0 | R27: =IF(Formelhilfe!O19=0,0,'Übersicht Schützen'!R12) -> 310.68 | S27: 1,553.4 | T27: ='Übersicht Schützen'!U12 -> 310.70 | U27: 3,417.7 | V27: -5.0
A28: 12 | B28: ='Übersicht Schützen'!A13 -> Jürgen Will | C28: ='Übersicht Schützen'!B13 -> Lorup III | D28: ='Übersicht Schützen'!C13 -> 313.9 | E28: ='Übersicht Schützen'!D13 -> 311.5 | F28: ='Übersicht Schützen'!E13 -> 312.5 | G28: ='Übersicht Schützen'!F13 -> 312.5 | H28: ='Übersicht Schützen'!G13 -> 305.2 | I28: ='Übersicht Schützen'!H13 -> 308.4 | J28: ='Übersicht Schützen'!I13 -> 310.67 | K28: 1,864.0 | L28: ='Übersicht Schützen'!L13 -> 310.3 | M28: ='Übersicht Schützen'!M13 -> 310.0 | N28: ='Übersicht Schützen'!N13 -> 310.9 | O28: ='Übersicht Schützen'!O13 -> 311.0 | P28: ='Übersicht Schützen'!P13 -> 308.9 | Q28: ='Übersicht Schützen'!Q13 -> 0.0 | R28: =IF(Formelhilfe!O20=0,0,'Übersicht Schützen'!R13) -> 310.22 | S28: 1,551.1 | T28: ='Übersicht Schützen'!U13 -> 310.46 | U28: 3,415.1 | V28: -2.6
A29: 13 | B29: ='Übersicht Schützen'!A14 -> Hans Ortmann | C29: ='Übersicht Schützen'!B14 -> Börgermoor II | D29: ='Übersicht Schützen'!C14 -> 310.0 | E29: ='Übersicht Schützen'!D14 -> 311.1 | F29: ='Übersicht Schützen'!E14 -> 310.2 | G29: ='Übersicht Schützen'!F14 -> 311.1 | H29: ='Übersicht Schützen'!G14 -> 310.1 | I29: ='Übersicht Schützen'!H14 -> 309.7 | J29: ='Übersicht Schützen'!I14 -> 310.37 | K29: 1,862.2 | L29: ='Übersicht Schützen'!L14 -> 309.6 | M29: ='Übersicht Schützen'!M14 -> 306.7 | N29: ='Übersicht Schützen'!N14 -> 308.8 | O29: ='Übersicht Schützen'!O14 -> 310.1 | P29: ='Übersicht Schützen'!P14 -> 310.4 | Q29: ='Übersicht Schützen'!Q14 -> 0.0 | R29: =IF(Formelhilfe!O21=0,0,'Übersicht Schützen'!R14) -> 309.12 | S29: 1,545.6 | T29: ='Übersicht Schützen'!U14 -> 309.80 | U29: 3,407.8 | V29: -7.3
A30: 14 | B30: ='Übersicht Schützen'!A15 -> Markus Jansen | C30: ='Übersicht Schützen'!B15 -> Ostenwalde II | D30: ='Übersicht Schützen'!C15 -> 309.0 | E30: ='Übersicht Schützen'!D15 -> 311.1 | F30: ='Übersicht Schützen'!E15 -> 310.7 | G30: ='Übersicht Schützen'!F15 -> 308.3 | H30: ='Übersicht Schützen'!G15 -> 311.7 | I30: ='Übersicht Schützen'!H15 -> 308.6 | J30: ='Übersicht Schützen'!I15 -> 309.90 | K30: 1,859.4 | L30: ='Übersicht Schützen'!L15 -> 309.0 | M30: ='Übersicht Schützen'!M15 -> 308.0 | N30: ='Übersicht Schützen'!N15 -> 311.3 | O30: ='Übersicht Schützen'!O15 -> 310.8 | P30: ='Übersicht Schützen'!P15 -> 306.9 | Q30: ='Übersicht Schützen'!Q15 -> 0.0 | R30: =IF(Formelhilfe!O22=0,0,'Übersicht Schützen'!R15) -> 309.20 | S30: 1,546.0 | T30: ='Übersicht Schützen'!U15 -> 309.58 | U30: 3,405.4 | V30: -2.4
A31: 15 | B31: ='Übersicht Schützen'!A16 -> Willi Engbers | C31: ='Übersicht Schützen'!B16 -> Breddenb.-Heid. I | D31: ='Übersicht Schützen'!C16 -> 312.3 | E31: ='Übersicht Schützen'!D16 -> 308.0 | F31: ='Übersicht Schützen'!E16 -> 309.2 | G31: ='Übersicht Schützen'!F16 -> 309.4 | H31: ='Übersicht Schützen'!G16 -> 309.0 | I31: ='Übersicht Schützen'!H16 -> 307.9 | J31: ='Übersicht Schützen'!I16 -> 309.30 | K31: 1,855.8 | L31: ='Übersicht Schützen'!L16 -> 311.1 | M31: ='Übersicht Schützen'!M16 -> 307.2 | N31: ='Übersicht Schützen'!N16 -> 310.6 | O31: ='Übersicht Schützen'!O16 -> 309.7 | P31: ='Übersicht Schützen'!P16 -> 310.1 | Q31: ='Übersicht Schützen'!Q16 -> 0.0 | R31: =IF(Formelhilfe!O23=0,0,'Übersicht Schützen'!R16) -> 309.74 | S31: 1,548.7 | T31: ='Übersicht Schützen'!U16 -> 309.50 | U31: 3,404.5 | V31: -0.9
A32: 16 | B32: ='Übersicht Schützen'!A17 -> Karl-Heinz Ortmann | C32: ='Übersicht Schützen'!B17 -> Börgermoor II | D32: ='Übersicht Schützen'!C17 -> 305.9 | E32: ='Übersicht Schützen'!D17 -> 306.9 | F32: ='Übersicht Schützen'!E17 -> 312.2 | G32: ='Übersicht Schützen'!F17 -> 309.3 | H32: ='Übersicht Schützen'!G17 -> 307.7 | I32: ='Übersicht Schützen'!H17 -> 307.7 | J32: ='Übersicht Schützen'!I17 -> 308.28 | K32: 1,849.7 | L32: ='Übersicht Schützen'!L17 -> 310.6 | M32: ='Übersicht Schützen'!M17 -> 306.4 | N32: ='Übersicht Schützen'!N17 -> 313.0 | O32: ='Übersicht Schützen'!O17 -> 310.2 | P32: ='Übersicht Schützen'!P17 -> 310.0 | Q32: ='Übersicht Schützen'!Q17 -> 0.0 | R32: =IF(Formelhilfe!O24=0,0,'Übersicht Schützen'!R17) -> 310.04 | S32: 1,550.2 | T32: ='Übersicht Schützen'!U17 -> 309.08 | U32: 3,399.9 | V32: -4.6
A33: 17 | B33: ='Übersicht Schützen'!A18 -> Norbert Jansen | C33: ='Übersicht Schützen'!B18 -> Breddenb.-Heid. III | D33: ='Übersicht Schützen'!C18 -> 300.5 | E33: ='Übersicht Schützen'!D18 -> 308.3 | F33: ='Übersicht Schützen'!E18 -> 311.0 | G33: ='Übersicht Schützen'!F18 -> 308.0 | H33: ='Übersicht Schützen'!G18 -> 310.3 | I33: ='Übersicht Schützen'!H18 -> 309.5 | J33: ='Übersicht Schützen'!I18 -> 307.93 | K33: 1,847.6 | L33: ='Übersicht Schützen'!L18 -> 312.3 | M33: ='Übersicht Schützen'!M18 -> 310.3 | N33: ='Übersicht Schützen'!N18 -> 311.3 | O33: ='Übersicht Schützen'!O18 -> 303.6 | P33: ='Übersicht Schützen'!P18 -> 309.7 | Q33: ='Übersicht Schützen'!Q18 -> 0.0 | R33: =IF(Formelhilfe!O25=0,0,'Übersicht Schützen'!R18) -> 309.44 | S33: 1,547.2 | T33: ='Übersicht Schützen'!U18 -> 308.62 | U33: 3,394.8 | V33: -5.1
A34: 18 | B34: ='Übersicht Schützen'!A19 -> Joachim Niermann | C34: ='Übersicht Schützen'!B19 -> Werlte III | D34: ='Übersicht Schützen'!C19 -> 305.0 | E34: ='Übersicht Schützen'!D19 -> 307.9 | F34: ='Übersicht Schützen'!E19 -> 305.3 | G34: ='Übersicht Schützen'!F19 -> 313.4 | H34: ='Übersicht Schützen'!G19 -> 312.3 | I34: ='Übersicht Schützen'!H19 -> 307.9 | J34: ='Übersicht Schützen'!I19 -> 308.63 | K34: 1,851.8 | L34: ='Übersicht Schützen'!L19 -> 310.5 | M34: ='Übersicht Schützen'!M19 -> 306.6 | N34: ='Übersicht Schützen'!N19 -> 306.2 | O34: ='Übersicht Schützen'!O19 -> 308.7 | P34: ='Übersicht Schützen'!P19 -> 309.2 | Q34: ='Übersicht Schützen'!Q19 -> 0.0 | R34: =IF(Formelhilfe!O26=0,0,'Übersicht Schützen'!R19) -> 308.24 | S34: 1,541.2 | T34: ='Übersicht Schützen'!U19 -> 308.45 | U34: 3,393.0 | V34: -1.8
A35: 19 | B35: ='Übersicht Schützen'!A20 -> Heinz Engbers | C35: ='Übersicht Schützen'!B20 -> Breddenb.-Heid. I | D35: ='Übersicht Schützen'!C20 -> 308.1 | E35: ='Übersicht Schützen'!D20 -> 309.5 | F35: ='Übersicht Schützen'!E20 -> 305.4 | G35: ='Übersicht Schützen'!F20 -> 307.8 | H35: ='Übersicht Schützen'!G20 -> 304.5 | I35: ='Übersicht Schützen'!H20 -> 308.3 | J35: ='Übersicht Schützen'!I20 -> 307.27 | K35: 1,843.6 | L35: ='Übersicht Schützen'!L20 -> 307.9 | M35: ='Übersicht Schützen'!M20 -> 311.8 | N35: ='Übersicht Schützen'!N20 -> 308.8 | O35: ='Übersicht Schützen'!O20 -> 310.4 | P35: ='Übersicht Schützen'!P20 -> 310.1 | Q35: ='Übersicht Schützen'!Q20 -> 0.0 | R35: =IF(Formelhilfe!O27=0,0,'Übersicht Schützen'!R20) -> 309.80 | S35: 1,549.0 | T35: ='Übersicht Schützen'!U20 -> 308.42 | U35: 3,392.6 | V35: -0.4
A36: 20 | B36: ='Übersicht Schützen'!A21 -> Josef Wübben | C36: ='Übersicht Schützen'!B21 -> Breddenb.-Heid. III | D36: ='Übersicht Schützen'!C21 -> 309.4 | E36: ='Übersicht Schützen'!D21 -> 314.2 | F36: ='Übersicht Schützen'!E21 -> 306.2 | G36: ='Übersicht Schützen'!F21 -> 309.8 | H36: ='Übersicht Schützen'!G21 -> 309.4 | I36: ='Übersicht Schützen'!H21 -> 303.9 | J36: ='Übersicht Schützen'!I21 -> 308.82 | K36: 1,852.9 | L36: ='Übersicht Schützen'!L21 -> 310.1 | M36: ='Übersicht Schützen'!M21 -> 301.5 | N36: ='Übersicht Schützen'!N21 -> 310.6 | O36: ='Übersicht Schützen'!O21 -> 308.8 | P36: ='Übersicht Schützen'!P21 -> 305.8 | Q36: ='Übersicht Schützen'!Q21 -> 0.0 | R36: =IF(Formelhilfe!O28=0,0,'Übersicht Schützen'!R21) -> 307.36 | S36: 1,536.8 | T36: ='Übersicht Schützen'!U21 -> 308.15 | U36: 3,389.7 | V36: -2.9
A37: 21 | B37: ='Übersicht Schützen'!A22 -> Hermann Krone | C37: ='Übersicht Schützen'!B22 -> Werlte III | D37: ='Übersicht Schützen'!C22 -> 306.8 | E37: ='Übersicht Schützen'!D22 -> 307.4 | F37: ='Übersicht Schützen'!E22 -> 311.6 | G37: ='Übersicht Schützen'!F22 -> 304.3 | H37: ='Übersicht Schützen'!G22 -> 312.2 | I37: ='Übersicht Schützen'!H22 -> 310.3 | J37: ='Übersicht Schützen'!I22 -> 308.77 | K37: 1,852.6 | L37: ='Übersicht Schützen'!L22 -> 307.3 | M37: ='Übersicht Schützen'!M22 -> 306.8 | N37: ='Übersicht Schützen'!N22 -> 311.0 | O37: ='Übersicht Schützen'!O22 -> 307.9 | P37: ='Übersicht Schützen'!P22 -> 303.8 | Q37: ='Übersicht Schützen'!Q22 -> 0.0 | R37: =IF(Formelhilfe!O29=0,0,'Übersicht Schützen'!R22) -> 307.36 | S37: 1,536.8 | T37: ='Übersicht Schützen'!U22 -> 308.13 | U37: 3,389.4 | V37: -0.3
A38: 22 | B38: ='Übersicht Schützen'!A23 -> Heinz Dirksen | C38: ='Übersicht Schützen'!B23 -> Börgermoor II | D38: ='Übersicht Schützen'!C23 -> 309.6 | E38: ='Übersicht Schützen'!D23 -> 306.8 | F38: ='Übersicht Schützen'!E23 -> 307.1 | G38: ='Übersicht Schützen'!F23 -> 307.7 | H38: ='Übersicht Schützen'!G23 -> 304.4 | I38: ='Übersicht Schützen'!H23 -> 307.8 | J38: ='Übersicht Schützen'!I23 -> 307.23 | K38: 1,843.4 | L38: ='Übersicht Schützen'!L23 -> 307.5 | M38: ='Übersicht Schützen'!M23 -> 306.3 | N38: ='Übersicht Schützen'!N23 -> 310.9 | O38: ='Übersicht Schützen'!O23 -> 306.9 | P38: ='Übersicht Schützen'!P23 -> 308.5 | Q38: ='Übersicht Schützen'!Q23 -> 0.0 | R38: 308.02 | S38: 1,540.1 | T38: ='Übersicht Schützen'!U23 -> 307.59 | U38: 3,383.5 | V38: -5.9
A39: 23 | B39: ='Übersicht Schützen'!A24 -> Werner Jansen | C39: ='Übersicht Schützen'!B24 -> Breddenb.-Heid. III | D39: ='Übersicht Schützen'!C24 -> 304.3 | E39: ='Übersicht Schützen'!D24 -> 309.7 | F39: ='Übersicht Schützen'!E24 -> 309.4 | G39: ='Übersicht Schützen'!F24 -> 305.8 | H39: ='Übersicht Schützen'!G24 -> 304.8 | I39: ='Übersicht Schützen'!H24 -> 306.7 | J39: ='Übersicht Schützen'!I24 -> 306.78 | K39: 1,840.7 | L39: ='Übersicht Schützen'!L24 -> 308.5 | M39: ='Übersicht Schützen'!M24 -> 309.0 | N39: ='Übersicht Schützen'!N24 -> 312.6 | O39: ='Übersicht Schützen'!O24 -> 301.2 | P39: ='Übersicht Schützen'!P24 -> 309.5 | Q39: ='Übersicht Schützen'!Q24 -> 0.0 | R39: 308.16 | S39: 1,540.8 | T39: ='Übersicht Schützen'!U24 -> 307.41 | U39: 3,381.5 | V39: -2.0
A40: 24 | B40: ='Übersicht Schützen'!A25 -> Gerd Vogel | C40: ='Übersicht Schützen'!B25 -> Breddenb.-Heid. I | D40: ='Übersicht Schützen'!C25 -> 263.8 | E40: ='Übersicht Schützen'!D25 -> 310.9 | F40: ='Übersicht Schützen'!E25 -> 313.1 | G40: ='Übersicht Schützen'!F25 -> 312.6 | H40: ='Übersicht Schützen'!G25 -> 309.1 | I40: ='Übersicht Schützen'!H25 -> 313.0 | J40: ='Übersicht Schützen'!I25 -> 303.75 | K40: 1,822.5 | L40: ='Übersicht Schützen'!L25 -> 312.1 | M40: ='Übersicht Schützen'!M25 -> 308.6 | N40: ='Übersicht Schützen'!N25 -> 313.2 | O40: ='Übersicht Schützen'!O25 -> 310.1 | P40: ='Übersicht Schützen'!P25 -> 310.7 | Q40: ='Übersicht Schützen'!Q25 -> 0.0 | R40: =IF(Formelhilfe!O32=0,0,'Übersicht Schützen'!R25) -> 310.94 | S40: 1,554.7 | T40: ='Übersicht Schützen'!U25 -> 307.02 | U40: 3,377.2 | V40: -4.3
A41: 25 | B41: ='Übersicht Schützen'!A26 -> Helmut Benten | C41: ='Übersicht Schützen'!B26 -> Ostenwalde II | D41: ='Übersicht Schützen'!C26 -> 309.3 | E41: ='Übersicht Schützen'!D26 -> 313.7 | F41: ='Übersicht Schützen'!E26 -> 306.2 | G41: ='Übersicht Schützen'!F26 -> 303.4 | H41: ='Übersicht Schützen'!G26 -> 304.8 | I41: ='Übersicht Schützen'!H26 -> 304.7 | J41: ='Übersicht Schützen'!I26 -> 307.02 | K41: 1,842.1 | L41: ='Übersicht Schützen'!L26 -> 305.2 | M41: ='Übersicht Schützen'!M26 -> 302.3 | N41: ='Übersicht Schützen'!N26 -> 307.0 | O41: ='Übersicht Schützen'!O26 -> 307.1 | P41: ='Übersicht Schützen'!P26 -> 309.8 | Q41: ='Übersicht Schützen'!Q26 -> 0.0 | R41: =IF(Formelhilfe!O33=0,0,'Übersicht Schützen'!R26) -> 306.28 | S41: 1,531.4 | T41: ='Übersicht Schützen'!U26 -> 306.68 | U41: 3,373.5 | V41: -3.7
A42: 26 | B42: ='Übersicht Schützen'!A27 -> Anton Oldiges | C42: ='Übersicht Schützen'!B27 -> Lorup III | D42: ='Übersicht Schützen'!C27 -> 301.6 | E42: ='Übersicht Schützen'!D27 -> 302.5 | F42: ='Übersicht Schützen'!E27 -> 311.0 | G42: ='Übersicht Schützen'!F27 -> 306.7 | H42: ='Übersicht Schützen'!G27 -> 305.2 | I42: ='Übersicht Schützen'!H27 -> 307.3 | J42: ='Übersicht Schützen'!I27 -> 305.72 | K42: 1,834.3 | L42: ='Übersicht Schützen'!L27 -> 306.3 | M42: ='Übersicht Schützen'!M27 -> 309.2 | N42: ='Übersicht Schützen'!N27 -> 308.8 | O42: ='Übersicht Schützen'!O27 -> 304.0 | P42: ='Übersicht Schützen'!P27 -> 309.5 | Q42: ='Übersicht Schützen'!Q27 -> 0.0 | R42: =IF(Formelhilfe!O34=0,0,'Übersicht Schützen'!R27) -> 307.56 | S42: 1,537.8 | T42: ='Übersicht Schützen'!U27 -> 306.55 | U42: 3,372.1 | V42: -1.4
A43: 27 | B43: ='Übersicht Schützen'!A28 -> Hans Gebken 3 | C43: ='Übersicht Schützen'!B28 -> Breddenb.-Heid. I | D43: ='Übersicht Schützen'!C28 -> 306.3 | E43: ='Übersicht Schützen'!D28 -> 300.7 | F43: ='Übersicht Schützen'!E28 -> 304.1 | G43: ='Übersicht Schützen'!F28 -> 304.5 | H43: ='Übersicht Schützen'!G28 -> 306.7 | I43: ='Übersicht Schützen'!H28 -> 307.9 | J43: ='Übersicht Schützen'!I28 -> 305.03 | K43: 1,830.2 | L43: ='Übersicht Schützen'!L28 -> 303.6 | M43: ='Übersicht Schützen'!M28 -> 306.4 | N43: ='Übersicht Schützen'!N28 -> 310.5 | O43: ='Übersicht Schützen'!O28 -> 310.2 | P43: ='Übersicht Schützen'!P28 -> 308.3 | Q43: ='Übersicht Schützen'!Q28 -> 0.0 | R43: =IF(Formelhilfe!O35=0,0,'Übersicht Schützen'!R28) -> 307.80 | S43: 1,539.0 | T43: ='Übersicht Schützen'!U28 -> 306.29 | U43: 3,369.2 | V43: -2.9
A44: 28 | B44: ='Übersicht Schützen'!A29 -> Johannes Oldiges | C44: ='Übersicht Schützen'!B29 -> Breddenb.-Heid. III | D44: ='Übersicht Schützen'!C29 -> 306.7 | E44: ='Übersicht Schützen'!D29 -> 304.1 | F44: ='Übersicht Schützen'!E29 -> 307.6 | G44: ='Übersicht Schützen'!F29 -> 305.0 | H44: ='Übersicht Schützen'!G29 -> 308.9 | I44: ='Übersicht Schützen'!H29 -> 307.5 | J44: ='Übersicht Schützen'!I29 -> 306.63 | K44: 1,839.8 | L44: ='Übersicht Schützen'!L29 -> 303.8 | M44: ='Übersicht Schützen'!M29 -> 305.8 | N44: ='Übersicht Schützen'!N29 -> 307.5 | O44: ='Übersicht Schützen'!O29 -> 306.1 | P44: ='Übersicht Schützen'!P29 -> 302.6 | Q44: ='Übersicht Schützen'!Q29 -> 0.0 | R44: =IF(Formelhilfe!O36=0,0,'Übersicht Schützen'!R29) -> 305.16 | S44: 1,525.8 | T44: ='Übersicht Schützen'!U29 -> 305.96 | U44: 3,365.6 | V44: -3.6
A45: 29 | B45: ='Übersicht Schützen'!A30 -> Alfons Plüster | C45: ='Übersicht Schützen'!B30 -> Breddenb.-Heid. III | D45: ='Übersicht Schützen'!C30 -> 305.9 | E45: ='Übersicht Schützen'!D30 -> 301.5 | F45: ='Übersicht Schützen'!E30 -> 302.1 | G45: ='Übersicht Schützen'!F30 -> 301.6 | H45: ='Übersicht Schützen'!G30 -> 308.0 | I45: ='Übersicht Schützen'!H30 -> 303.6 | J45: ='Übersicht Schützen'!I30 -> 303.78 | K45: 1,822.7 | L45: ='Übersicht Schützen'!L30 -> 311.8 | M45: ='Übersicht Schützen'!M30 -> 306.3 | N45: ='Übersicht Schützen'!N30 -> 305.1 | O45: ='Übersicht Schützen'!O30 -> 304.7 | P45: ='Übersicht Schützen'!P30 -> 305.1 | Q45: ='Übersicht Schützen'!Q30 -> 0.0 | R45: =IF(Formelhilfe!O37=0,0,'Übersicht Schützen'!R30) -> 306.60 | S45: 1,533.0 | T45: ='Übersicht Schützen'!U30 -> 305.06 | U45: 3,355.7 | V45: -9.9
A46: 30 | B46: ='Übersicht Schützen'!A31 -> Hans Gebken 1 | C46: ='Übersicht Schützen'!B31 -> Breddenb.-Heid. I | D46: ='Übersicht Schützen'!C31 -> 298.3 | E46: ='Übersicht Schützen'!D31 -> 305.0 | F46: ='Übersicht Schützen'!E31 -> 297.1 | G46: ='Übersicht Schützen'!F31 -> 303.4 | H46: ='Übersicht Schützen'!G31 -> 303.6 | I46: ='Übersicht Schützen'!H31 -> 299.8 | J46: ='Übersicht Schützen'!I31 -> 301.20 | K46: 1,807.2 | L46: ='Übersicht Schützen'!L31 -> 306.8 | M46: ='Übersicht Schützen'!M31 -> 306.4 | N46: ='Übersicht Schützen'!N31 -> 307.7 | O46: ='Übersicht Schützen'!O31 -> 306.2 | P46: ='Übersicht Schützen'!P31 -> 305.7 | Q46: ='Übersicht Schützen'!Q31 -> 0.0 | R46: =IF(Formelhilfe!O38=0,0,'Übersicht Schützen'!R31) -> 306.56 | S46: 1,532.8 | T46: ='Übersicht Schützen'!U31 -> 303.64 | U46: 3,340.0 | V46: -15.7
A47: 31 | B47: ='Übersicht Schützen'!A32 -> Michael Freitag | C47: ='Übersicht Schützen'!B32 -> Werlte III | D47: ='Übersicht Schützen'!C32 -> 309.3 | E47: ='Übersicht Schützen'!D32 -> 311.0 | F47: ='Übersicht Schützen'!E32 -> 306.8 | G47: ='Übersicht Schützen'!F32 -> 313.1 | H47: ='Übersicht Schützen'!G32 -> 314.6 | I47: ='Übersicht Schützen'!H32 -> 310.1 | J47: ='Übersicht Schützen'!I32 -> 310.82 | K47: 1,864.9 | L47: ='Übersicht Schützen'!L32 -> 313.9 | M47: ='Übersicht Schützen'!M32 -> 315.7 | N47: ='Übersicht Schützen'!N32 -> 311.2 | O47: ='Übersicht Schützen'!O32 -> 0.0 | P47: ='Übersicht Schützen'!P32 -> 308.6 | Q47: ='Übersicht Schützen'!Q32 -> 0.0 | R47: =IF(Formelhilfe!O39=0,0,'Übersicht Schützen'!R32) -> 312.35 | S47: 1,249.4 | T47: ='Übersicht Schützen'!U32 -> 311.43 | U47: 3,114.3 | V47: =(U46-U47)*-1 -> -225.7
A48: 32 | B48: ='Übersicht Schützen'!A33 -> Matthias Brinkmann | C48: ='Übersicht Schützen'!B33 -> Ostenwalde II | D48: ='Übersicht Schützen'!C33 -> 309.6 | E48: ='Übersicht Schützen'!D33 -> 303.0 | F48: ='Übersicht Schützen'!E33 -> 305.0 | G48: ='Übersicht Schützen'!F33 -> 308.1 | H48: ='Übersicht Schützen'!G33 -> 0.0 | I48: ='Übersicht Schützen'!H33 -> 303.3 | J48: ='Übersicht Schützen'!I33 -> 305.80 | K48: 1,529.0 | L48: ='Übersicht Schützen'!L33 -> 310.3 | M48: ='Übersicht Schützen'!M33 -> 309.9 | N48: ='Übersicht Schützen'!N33 -> 309.0 | O48: ='Übersicht Schützen'!O33 -> 309.8 | P48: ='Übersicht Schützen'!P33 -> 304.1 | Q48: ='Übersicht Schützen'!Q33 -> 0.0 | R48: =IF(Formelhilfe!O40=0,0,'Übersicht Schützen'!R33) -> 308.62 | S48: 1,543.1 | T48: ='Übersicht Schützen'!U33 -> 307.21 | U48: 3,072.1 | V48: -42.2
A49: 33 | B49: ='Übersicht Schützen'!A34 -> Kevin Minnert | C49: ='Übersicht Schützen'!B34 -> Börgermoor II | D49: ='Übersicht Schützen'!C34 -> 306.5 | E49: ='Übersicht Schützen'!D34 -> 302.7 | F49: ='Übersicht Schützen'!E34 -> 305.3 | G49: ='Übersicht Schützen'!F34 -> 294.0 | H49: ='Übersicht Schützen'!G34 -> 297.4 | I49: ='Übersicht Schützen'!H34 -> 294.9 | J49: ='Übersicht Schützen'!I34 -> 300.13 | K49: 1,800.8 | L49: ='Übersicht Schützen'!L34 -> 305.1 | M49: ='Übersicht Schützen'!M34 -> 305.1 | N49: ='Übersicht Schützen'!N34 -> 0.0 | O49: ='Übersicht Schützen'!O34 -> 0.0 | P49: ='Übersicht Schützen'!P34 -> 0.0 | Q49: ='Übersicht Schützen'!Q34 -> 0.0 | R49: =IF(Formelhilfe!O41=0,0,'Übersicht Schützen'!R34) -> 305.10 | S49: 610.2 | T49: ='Übersicht Schützen'!U34 -> 301.38 | U49: 2,411.0 | V49: -661.1
A50: 34 | B50: ='Übersicht Schützen'!A35 -> Daniel Schülke | C50: ='Übersicht Schützen'!B35 -> Börgermoor II | D50: ='Übersicht Schützen'!C35 -> 0.0 | E50: ='Übersicht Schützen'!D35 -> 0.0 | F50: ='Übersicht Schützen'!E35 -> 303.1 | G50: ='Übersicht Schützen'!F35 -> 292.3 | H50: ='Übersicht Schützen'!G35 -> 306.6 | I50: ='Übersicht Schützen'!H35 -> 0.0 | J50: ='Übersicht Schützen'!I35 -> 300.67 | K50: 902.0 | L50: ='Übersicht Schützen'!L35 -> 300.4 | M50: ='Übersicht Schützen'!M35 -> 0.0 | N50: ='Übersicht Schützen'!N35 -> 292.5 | O50: ='Übersicht Schützen'!O35 -> 301.0 | P50: ='Übersicht Schützen'!P35 -> 299.4 | Q50: ='Übersicht Schützen'!Q35 -> 0.0 | R50: =IF(Formelhilfe!O42=0,0,'Übersicht Schützen'!R35) -> 298.33 | S50: 1,193.3 | T50: ='Übersicht Schützen'!U35 -> 299.33 | U50: 2,095.3 | V50: -315.7
A51: 35 | B51: ='Übersicht Schützen'!A36 -> Schütze 22 | C51: ='Übersicht Schützen'!B36 -> Lorup III | D51: ='Übersicht Schützen'!C36 -> 0.0 | E51: ='Übersicht Schützen'!D36 -> 0.0 | F51: ='Übersicht Schützen'!E36 -> 0.0 | G51: ='Übersicht Schützen'!F36 -> 0.0 | H51: ='Übersicht Schützen'!G36 -> 0.0 | I51: ='Übersicht Schützen'!H36 -> 0.0 | J51: 0.00 | K51: 0.0 | L51: ='Übersicht Schützen'!L36 -> 0.0 | M51: ='Übersicht Schützen'!M36 -> 0.0 | N51: ='Übersicht Schützen'!N36 -> 0.0 | O51: ='Übersicht Schützen'!O36 -> 0.0 | P51: ='Übersicht Schützen'!P36 -> 0.0 | Q51: ='Übersicht Schützen'!Q36 -> 0.0 | R51: 0.00 | S51: 0.0 | T51: 0.00 | U51: 0.0 | V51: 0.0
A52: 36 | B52: ='Übersicht Schützen'!A37 -> Schütze 23 | C52: ='Übersicht Schützen'!B37 -> Lorup III | D52: ='Übersicht Schützen'!C37 -> 0.0 | E52: ='Übersicht Schützen'!D37 -> 0.0 | F52: ='Übersicht Schützen'!E37 -> 0.0 | G52: ='Übersicht Schützen'!F37 -> 0.0 | H52: ='Übersicht Schützen'!G37 -> 0.0 | I52: ='Übersicht Schützen'!H37 -> 0.0 | J52: 0.00 | K52: 0.0 | L52: ='Übersicht Schützen'!L37 -> 0.0 | M52: ='Übersicht Schützen'!M37 -> 0.0 | N52: ='Übersicht Schützen'!N37 -> 0.0 | O52: ='Übersicht Schützen'!O37 -> 0.0 | P52: ='Übersicht Schützen'!P37 -> 0.0 | Q52: ='Übersicht Schützen'!Q37 -> 0.0 | R52: 0.00 | S52: 0.0 | T52: 0.00 | U52: 0.0 | V52: =(U51-U52)*-1 -> 0.0
C54: Schnitt: | D54: =SUM(D17:D52)/Formelhilfe!B45 -> 307.5 | E54: =SUM(E17:E52)/Formelhilfe!C45 -> 309.1 | F54: =SUM(F17:F52)/Formelhilfe!D45 -> 309.7 | G54: =SUM(G17:G52)/Formelhilfe!E45 -> 308.3 | H54: =SUM(H17:H52)/Formelhilfe!F45 -> 309.4 | I54: =SUM(I17:I52)/Formelhilfe!G45 -> 308.6 | J54: =AVERAGE(J17:J52) -> 291.45 | K54: =AVERAGE(K17:K52) -> 1715.15 | L54: =SUM(L17:L52)/Formelhilfe!I45 -> 309.8 | M54: =SUM(M17:M52)/Formelhilfe!J45 -> 309.1 | N54: =SUM(N17:N52)/Formelhilfe!K45 -> 310.2 | O54: =SUM(O17:O52)/Formelhilfe!L45 -> 308.6 | P54: =SUM(P17:P52)/Formelhilfe!M45 -> 309.3 | Q54: =SUM(Q17:Q52)/Formelhilfe!N45 ->  | R54: =AVERAGE(R17:R52) -> 292.10 | S54: =AVERAGE(S17:S52) -> 1418.13 | T54: =AVERAGE(T17:T52) -> 291.71 | U54: =(K54+S54) -> 3,133.28

Sheet Wettkampf 1
B1: Verein / Gruppe | D1: Ergebnisse | X1: Austragungsort: | Y1: =Übersicht!D4 -> Breddenb.-Heid.
A2: 1 | B2: Breddenb.-Heid. I | D2: =G46 -> 926.7 | E2: =IF(H46>4,"Es sind zu viele Schützen in Wertung!"," ") ->  | X2: Wettkampftag: | Y2: =Übersicht!D3 -> 15.09.
A3: 2 | B3: Ostenwalde II | D3: =I46 -> 937.2 | E3: =IF(J46>4,"Es sind zu viele Schützen in Wertung!"," ") -> 
A4: 3 | B4: Börgermoor II | D4: =K46 -> 931.7 | E4: =IF(L46>4,"Es sind zu viele Schützen in Wertung!"," ") ->  | Z4: Ansprechpartner für Rückfragen:
A5: 4 | B5: Lorup III | D5: =M46 -> 936.1 | E5: =IF(N46>4,"Es sind zu viele Schützen in Wertung!"," ") ->  | X5: Name: | Y5: Heinz Engbers
A6: 5 | B6: Breddenb.-Heid. III | D6: =O46 -> 924.6 | E6: =IF(P46>4,"Es sind zu viele Schützen in Wertung!"," ") ->  | X6: Tel: | Y6: 01749514192
A7: 6 | B7: Werlte III | D7: =Q46 -> 938.3 | E7: =IF(R46>4,"Es sind zu viele Schützen in Wertung!"," ") ->  | X7: Standaufsicht: | Y7: W. Engbers H.Engbers
B9: Einzelergebnisse: | C9: Verein/Gruppe (per Dropdown-Feld einzutragen) | D9: Ergebnisse | E9: AW? Dann x eintippen | G9: Verein 1 | I9: Verein 2 | K9: Verein 3 | M9: Verein 4 | O9: Verein 5 | Q9: Verein 6 | U9: Geburtsdatum | W9: Proberechnung bei Streifen:
A10: 1 | B10: Hans Gebken 3 | C10: =B2 -> Breddenb.-Heid. I | D10: 306.3 | F10: =IF(E10="x","0",D10) -> 306.3 | G10: =IF(C10=$B$2,F10,0) -> 306.3 | H10: =(IF(AND($E10="",$C10=$B$2),1,0)) -> 1 | I10: =IF($C10=$B$3,F10,0) -> 0 | J10: =(IF(AND($E10="",$C10=$B$3),1,0)) -> 0 | K10: =IF($C10=$B$4,F10,0) -> 0 | L10: =(IF(AND($E10="",$C10=$B$4),1,0)) -> 0 | M10: =IF($C10=$B$5,F10,0) -> 0 | N10: =(IF(AND($E10="",$C10=$B$5),1,0)) -> 0 | O10: =IF($C10=$B$6,F10,0) -> 0 | P10: =(IF(AND($E10="",$C10=$B$6),1,0)) -> 0 | Q10: =IF($C10=$B$7,F10,0) -> 0 | R10: =(IF(AND($E10="",$C10=$B$7),1,0)) -> 0 | Z10: =W10+X10+Y10 -> 0.0 | AA10: =IF(Z10=D10,1,0) -> 0 | AB10: =IF(Z10=0,0,1) -> 0 | AC10: =IF(AA10+AB10=2,"Korrekt","") -> 
A11: 2 | B11: Gerd Vogel | C11: =B2 -> Breddenb.-Heid. I | D11: 263.8 | E11: x | F11: =IF(E11="x","0",D11) -> 0 | G11: =IF(C11=$B$2,F11,0) -> 0 | H11: =(IF(AND($E11="",$C11=$B$2),1,0)) -> 0 | I11: =IF($C11=$B$3,F11,0) -> 0 | J11: =(IF(AND($E11="",$C11=$B$3),1,0)) -> 0 | K11: =IF($C11=$B$4,F11,0) -> 0 | L11: =(IF(AND($E11="",$C11=$B$4),1,0)) -> 0 | M11: =IF($C11=$B$5,F11,0) -> 0 | N11: =(IF(AND($E11="",$C11=$B$5),1,0)) -> 0 | O11: =IF($C11=$B$6,F11,0) -> 0 | P11: =(IF(AND($E11="",$C11=$B$6),1,0)) -> 0 | Q11: =IF($C11=$B$7,F11,0) -> 0 | R11: =(IF(AND($E11="",$C11=$B$7),1,0)) -> 0 | Z11: =W11+X11+Y11 -> 0.0 | AA11: =IF(Z11=D11,1,0) -> 0 | AB11: =IF(Z11=0,0,1) -> 0 | AC11: =IF(AA11+AB11=2,"Korrekt","") -> 
A12: 3 | B12: Heinz Engbers | C12: =B2 -> Breddenb.-Heid. I | D12: 308.1 | F12: 308.1 | G12: 308.1 | H12: 0 | I12: 0 | J12: 0 | K12: 0 | L12: 0 | M12: 0 | N12: 0 | O12: 0 | P12: 0 | Q12: 0 | R12: 0 | Z12: 0.0 | AA12: 0 | AB12: 0
A13: 4 | B13: Willi Engbers | C13: =B2 -> Breddenb.-Heid. I | D13: 312.3 | F13: 312.3 | G13: 312.3 | H13: 1 | I13: 0 | J13: 0 | K13: 0 | L13: 0 | M13: 0 | N13: 0 | O13: 0 | P13: 0 | Q13: 0 | R13: 0 | Z13: 0.0 | AA13: 0 | AB13: 0
A14: 5 | B14: Hans Gebken 1 | C14: =B2 -> Breddenb.-Heid. I | D14: 298.3 | E14: x | F14: 0 | G14: 0 | H14: 0 | I14: 0 | J14: 0 | K14: 0 | L14: 0 | M14: 0 | N14: 0 | O14: 0 | P14: 0 | Q14: 0 | R14: 0 | Z14: 0.0 | AA14: 0 | AB14: 0
A15: 6 | B15: Philipp Schmidt | C15: Ostenwalde II | D15: 313.2 | F15: 313.2 | G15: 0 | H15: 0 | I15: 313.2 | J15: 1 | K15: 0 | L15: 0 | M15: 0 | N15: 0 | O15: 0 | P15: 0 | Q15: 0 | R15: 0 | Z15: 0.0 | AA15: 0 | AB15: 0
A16: 7 | B16: Philipp Scholübbers | C16: =B3 -> Ostenwalde II | D16: 312.2 | F16: 312.2 | G16: 0 | H16: 0 | I16: 312.2 | J16: 1 | K16: 0 | L16: 0 | M16: 0 | N16: 0 | O16: 0 | P16: 0 | Q16: 0 | R16: 0 | Z16: 0.0 | AA16: 0 | AB16: 0
A17: 8 | B17: Matthias Brinkmann | C17: =B3 -> Ostenwalde II | D17: 309.6 | F17: 309.6 | G17: 0 | H17: 0 | I17: 309.6 | J17: 1 | K17: 0 | L17: 0 | M17: 0 | N17: 0 | O17: 0 | P17: 0 | Q17: 0 | R17: 0 | Z17: 0.0 | AA17: 0 | AB17: 0
A18: 9 | B18: Patrik Krüßel | C18: =B3 -> Ostenwalde II | D18: 311.8 | F18: 311.8 | G18: 0 | H18: 0 | I18: 311.8 | J18: 1 | K18: 0 | L18: 0 | M18: 0 | N18: 0 | O18: 0 | P18: 0 | Q18: 0 | R18: 0 | Z18: 0.0 | AA18: 0 | AB18: 0
A19: 10 | B19: Markus Jansen | C19: =B3 -> Ostenwalde II | D19: 309.0 | E19: x | F19: 0 | G19: 0 | H19: 0 | I19: 0 | J19: 0 | K19: 0 | L19: 0 | M19: 0 | N19: 0 | O19: 0 | P19: 0 | Q19: 0 | R19: 0 | Z19: 0.0 | AA19: 0 | AB19: 0
A20: 11 | B20: Helmut Benten | C20: =B3 -> Ostenwalde II | D20: 309.3 | E20: x | F20: 0 | G20: 0 | H20: 0 | I20: 0 | J20: 0 | K20: 0 | L20: 0 | M20: 0 | N20: 0 | O20: 0 | P20: 0 | Q20: 0 | R20: 0 | Z20: 0.0 | AA20: 0 | AB20: 0
A21: 12 | B21: Heinz Dirksen | C21: Börgermoor II | D21: 309.6 | F21: 309.6 | G21: 0 | H21: 0 | I21: 0 | J21: 0 | K21: 309.6 | L21: 1 | M21: 0 | N21: 0 | O21: 0 | P21: 0 | Q21: 0 | R21: 0 | Z21: 0.0 | AA21: 0 | AB21: 0
A22: 13 | B22: Hans Ortmann | C22: =B4 -> Börgermoor II | D22: 310.0 | F22: 310 | G22: 0 | H22: 0 | I22: 0 | J22: 0 | K22: 310 | L22: 1 | M22: 0 | N22: 0 | O22: 0 | P22: 0 | Q22: 0 | R22: 0 | Z22: 0.0 | AA22: 0 | AB22: 0
A23: 14 | B23: Karl-Heinz Ortmann | C23: =B4 -> Börgermoor II | D23: 305.9 | F23: 305.9 | G23: 0 | H23: 0 | I23: 0 | J23: 0 | K23: 305.9 | L23: 1 | M23: 0 | N23: 0 | O23: 0 | P23: 0 | Q23: 0 | R23: 0 | Z23: 0.0 | AA23: 0 | AB23: 0
A24: 15 | B24: Johannes Jansen | C24: =B4 -> Börgermoor II | D24: 312.1 | F24: 312.1 | G24: 0 | H24: 0 | I24: 0 | J24: 0 | K24: 312.1 | L24: 1 | M24: 0 | N24: 0 | O24: 0 | P24: 0 | Q24: 0 | R24: 0 | Z24: 0.0 | AA24: 0 | AB24: 0
A25: 16 | B25: Kevin Minnert | C25: =B4 -> Börgermoor II | D25: 306.5 | E25: x | F25: 0 | G25: 0 | H25: 0 | I25: 0 | J25: 0 | K25: 0 | L25: 0 | M25: 0 | N25: 0 | O25: 0 | P25: 0 | Q25: 0 | R25: 0 | Z25: 0.0 | AA25: 0 | AB25: 0
A26: 17 | B26: Daniel Schülke | C26: =B4 -> Börgermoor II | E26: x | F26: 0 | G26: 0 | H26: 0 | I26: 0 | J26: 0 | K26: 0 | L26: 0 | M26: 0 | N26: 0 | O26: 0 | P26: 0 | Q26: 0 | R26: 0 | Z26: 0.0 | AA26: 1 | AB26: 0
A27: 18 | B27: Frank Wotte | C27: Lorup III | D27: 312.0 | F27: 312 | G27: 0 | H27: 0 | I27: 0 | J27: 0 | K27: 0 | L27: 0 | M27: 312 | N27: 1 | O27: 0 | P27: 0 | Q27: 0 | R27: 0 | Z27: 0.0 | AA27: 0 | AB27: 0
A28: 19 | B28: Johannes Wesseln | C28: =B5 -> Lorup III | D28: 310.2 | F28: 310.2 | G28: 0 | H28: 0 | I28: 0 | J28: 0 | K28: 0 | L28: 0 | M28: 310.2 | N28: 1 | O28: 0 | P28: 0 | Q28: 0 | R28: 0 | Z28: 0.0 | AA28: 0 | AB28: 0
A29: 20 | B29: Anton Oldiges | C29: =B5 -> Lorup III | D29: 301.6 | F29: 301.6 | G29: 0 | H29: 0 | I29: 0 | J29: 0 | K29: 0 | L29: 0 | M29: 301.6 | N29: 1 | O29: 0 | P29: 0 | Q29: 0 | R29: 0 | Z29: 0.0 | AA29: 0 | AB29: 0
A30: 21 | B30: Jürgen Will | C30: =B5 -> Lorup III | D30: 313.9 | F30: 313.9 | G30: 0 | H30: 0 | I30: 0 | J30: 0 | K30: 0 | L30: 0 | M30: 313.9 | N30: 1 | O30: 0 | P30: 0 | Q30: 0 | R30: 0 | Z30: 0.0 | AA30: 0 | AB30: 0
A31: 22 | B31: Schütze 22 | C31: =B5 -> Lorup III | E31: x | F31: 0 | G31: 0 | H31: 0 | I31: 0 | J31: 0 | K31: 0 | L31: 0 | M31: 0 | N31: 0 | O31: 0 | P31: 0 | Q31: 0 | R31: 0 | Z31: 0.0 | AA31: 1 | AB31: 0
A32: 23 | B32: Schütze 23 | C32: =B5 -> Lorup III | E32: x | F32: 0 | G32: 0 | H32: 0 | I32: 0 | J32: 0 | K32: 0 | L32: 0 | M32: 0 | N32: 0 | O32: 0 | P32: 0 | Q32: 0 | R32: 0 | Z32: 0.0 | AA32: 1 | AB32: 0
A33: 24 | B33: Norbert Jansen | C33: Breddenb.-Heid. III | D33: 300.5 | E33: x | F33: 0 | G33: 0 | H33: 0 | I33: 0 | J33: 0 | K33: 0 | L33: 0 | M33: 0 | N33: 0 | O33: 0 | P33: 0 | Q33: 0 | R33: 0 | Z33: 0.0 | AA33: 0 | AB33: 0
A34: 25 | B34: Werner Jansen | C34: =B6 -> Breddenb.-Heid. III | D34: 304.3 | F34: 304.3 | G34: 0 | H34: 0 | I34: 0 | J34: 0 | K34: 0 | L34: 0 | M34: 0 | N34: 0 | O34: 304.3 | P34: 1 | Q34: 0 | R34: 0 | Z34: 0.0 | AA34: 0 | AB34: 0
A35: 26 | B35: Alfons Plüster | C35: =B6 -> Breddenb.-Heid. III | D35: 305.9 | E35: x | F35: 0 | G35: 0 | H35: 0 | I35: 0 | J35: 0 | K35: 0 | L35: 0 | M35: 0 | N35: 0 | O35: 0 | P35: 0 | Q35: 0 | R35: 0 | Z35: 0.0 | AA35: 0 | AB35: 0
A36: 27 | B36: Johannes Oldiges | C36: =B6 -> Breddenb.-Heid. III | D36: 306.7 | E36: x | F36: 0 | G36: 0 | H36: 0 | I36: 0 | J36: 0 | K36: 0 | L36: 0 | M36: 0 | N36: 0 | O36: 0 | P36: 0 | Q36: 0 | R36: 0 | Z36: 0.0 | AA36: 0 | AB36: 0
A37: 28 | B37: Hans Plüster | C37: =B6 -> Breddenb.-Heid. III | D37: 310.9 | F37: 310.9 | G37: 0 | H37: 0 | I37: 0 | J37: 0 | K37: 0 | L37: 0 | M37: 0 | N37: 0 | O37: 310.9 | P37: 1 | Q37: 0 | R37: 0 | Z37: 0.0 | AA37: 0 | AB37: 0
A38: 29 | B38: Josef Wübben | C38: =B6 -> Breddenb.-Heid. III | D38: 309.4 | F38: 309.4 | G38: 0 | H38: 0 | I38: 0 | J38: 0 | K38: 0 | L38: 0 | M38: 0 | N38: 0 | O38: 309.4 | P38: 0 | Q38: 0 | R38: 0 | Z38: 0.0 | AA38: 0 | AB38: 0
A39: 30 | B39: Thomas Niermann | C39: Werlte III | D39: 313.1 | E39: x | F39: 0 | G39: 0 | H39: 0 | I39: 0 | J39: 0 | K39: 0 | L39: 0 | M39: 0 | N39: 0 | O39: 0 | P39: 0 | Q39: 0 | R39: 0 | Z39: 0.0 | AA39: 0 | AB39: 0
A40: 31 | B40: Bernd Thien | C40: =B7 -> Werlte III | D40: 311.9 | F40: 311.9 | G40: 0 | H40: 0 | I40: 0 | J40: 0 | K40: 0 | L40: 0 | M40: 0 | N40: 0 | O40: 0 | P40: 0 | Q40: 311.9 | R40: 1 | Z40: =W40+X40+Y40 -> 0.0 | AA40: =IF(Z40=D40,1,0) -> 0 | AB40: =IF(Z40=0,0,1) -> 0 | AC40: =IF(AA40+AB40=2,"Korrekt","") -> 
A41: 32 | B41: Norbert Grünloh | C41: =B7 -> Werlte III | D41: 311.6 | F41: 311.6 | G41: 0 | H41: 0 | I41: 0 | J41: 0 | K41: 0 | L41: 0 | M41: 0 | N41: 0 | O41: 0 | P41: 0 | Q41: 311.6 | R41: 1 | Z41: 0.0 | AA41: 0 | AB41: 0
A42: 33 | B42: Andreas Thoben | C42: =B7 -> Werlte III | D42: 314.8 | F42: 314.8 | G42: 0 | H42: 0 | I42: 0 | J42: 0 | K42: 0 | L42: 0 | M42: 0 | N42: 0 | O42: 0 | P42: 0 | Q42: 314.8 | R42: 1 | Z42: 0.0 | AA42: 0 | AB42: 0
A43: 34 | B43: Hermann Krone | C43: =B7 -> Werlte III | D43: 306.8 | E43: x | F43: 0 | G43: 0 | H43: 0 | I43: 0 | J43: 0 | K43: 0 | L43: 0 | M43: 0 | N43: 0 | O43: 0 | P43: 0 | Q43: 0 | R43: 0 | Z43: 0.0 | AA43: 0 | AB43: 0
A44: 35 | B44: Michael Freitag | C44: =B7 -> Werlte III | D44: 309.3 | E44: x | F44: 0 | G44: 0 | H44: 0 | I44: 0 | J44: 0 | K44: 0 | L44: 0 | M44: 0 | N44: 0 | O44: 0 | P44: 0 | Q44: 0 | R44: 0 | Z44: 0.0 | AA44: 0 | AB44: 0
A45: 36 | B45: Joachim Niermann | C45: =B7 -> Werlte III | D45: 305.0 | E45: x | F45: 0 | G45: 0 | H45: 0 | I45: 0 | J45: 0 | K45: 0 | L45: 0 | M45: 0 | N45: 0 | O45: 0 | P45: 0 | Q45: 0 | R45: 0 | Z45: =W45+X45+Y45 -> 0.0 | AA45: =IF(Z45=D45,1,0) -> 0 | AB45: =IF(Z45=0,0,1) -> 0 | AC45: =IF(AA45+AB45=2,"Korrekt","") -> 
G46: =LARGE(G10:G45,1)+LARGE(G10:G45,2)+LARGE(G10:G45,3) -> 926.7 | H46: =SUM(H10:H45) -> 2 | I46: =LARGE(I10:I45,1)+LARGE(I10:I45,2)+LARGE(I10:I45,3) -> 937.2 | J46: =SUM(J10:J45) -> 4 | K46: =LARGE(K10:K45,1)+LARGE(K10:K45,2)+LARGE(K10:K45,3) -> 931.7 | L46: =SUM(L10:L45) -> 4 | M46: =LARGE(M10:M45,1)+LARGE(M10:M45,2)+LARGE(M10:M45,3) -> 936.1 | N46: =SUM(N10:N45) -> 4 | O46: =LARGE(O10:O45,1)+LARGE(O10:O45,2)+LARGE(O10:O45,3) -> 924.6 | P46: =SUM(P10:P45) -> 2 | Q46: =LARGE(Q10:Q45,1)+LARGE(Q10:Q45,2)+LARGE(Q10:Q45,3) -> 938.3 | R46: =SUM(R10:S45) -> 3
C47: per Email an: sk-huemmling@gmx.de

Sheet 2
B1: Verein / Gruppe | D1: Ergebnisse | V1: Austragungsort: | W1: =Übersicht!E4 -> Ostenwalde
A2: 1 | B2: ='Wettkampf 1'!B2 -> Breddenb.-Heid. I | D2: =G46 -> 928.4 | E2: =IF(H46>4,"Es sind zu viele Schützen in Wertung!"," ") ->  | V2: Wettkampftag: | W2: =Übersicht!E3 -> 06.10.
A3: 2 | B3: ='Wettkampf 1'!B3 -> Ostenwalde II | D3: =I46 -> 942.8 | E3: =IF(J46>4,"Es sind zu viele Schützen in Wertung!"," ") -> 
A4: 3 | B4: ='Wettkampf 1'!B4 -> Börgermoor II | D4: =K46 -> 926.2 | E4: =IF(L46>4,"Es sind zu viele Schützen in Wertung!"," ") ->  | X4: Ansprechpartner für Rückfragen:
A5: 4 | B5: ='Wettkampf 1'!B5 -> Lorup III | D5: =M46 -> 933.3 | E5: =IF(N46>4,"Es sind zu viele Schützen in Wertung!"," ") ->  | V5: Name: | W5: Markus Jansen
A6: 5 | B6: ='Wettkampf 1'!B6 -> Breddenb.-Heid. III | D6: =O46 -> 933.5 | E6: =IF(P46>4,"Es sind zu viele Schützen in Wertung!"," ") ->  | V6: Tel:
A7: 6 | B7: ='Wettkampf 1'!B7 -> Werlte III | D7: =Q46 -> 938.1 | E7: =IF(R46>4,"Es sind zu viele Schützen in Wertung!"," ") ->  | V7: Standaufsicht: | W7: Philipp Schmidt
B9: Einzelergebnisse: | C9: Verein / Gruppe | D9: Ergebnisse (mindestens 0 eintragen) | E9: AW? Dann x eintippen | G9: Verein 1 | I9: Verein 2 | K9: Verein 3 | M9: Verein 4 | O9: Verein 5 | Q9: Verein 6 | U9: Proberechnung bei Streifen:
A10: 1 | B10: ='Wettkampf 1'!B10 -> Hans Gebken 3 | C10: ='Wettkampf 1'!C10 -> Breddenb.-Heid. I | D10: 300.7 | F10: =IF(E10="x","0",D10) -> 300.7 | G10: =IF(C10=$B$2,F10,0) -> 300.7 | H10: =(IF(AND($E10="",$C10=$B$2),1,0)) -> 1 | I10: =IF($C10=$B$3,F10,0) -> 0 | J10: =(IF(AND($E10="",$C10=$B$3),1,0)) -> 0 | K10: =IF($C10=$B$4,F10,0) -> 0 | L10: =(IF(AND($E10="",$C10=$B$4),1,0)) -> 0 | M10: =IF($C10=$B$5,F10,0) -> 0 | N10: =(IF(AND($E10="",$C10=$B$5),1,0)) -> 0 | O10: =IF($C10=$B$6,F10,0) -> 0 | P10: =(IF(AND($E10="",$C10=$B$6),1,0)) -> 0 | Q10: =IF($C10=$B$7,F10,0) -> 0 | R10: =(IF(AND($E10="",$C10=$B$7),1,0)) -> 0 | U10: 100.3 | V10: 100.1 | W10: 100.3 | X10: =U10+V10+W10 -> 300.7 | Y10: =IF(X10=D10,1,0) -> 1 | Z10: =IF(X10=0,0,1) -> 1 | AA10: =IF(Y10+Z10=2,"Korrekt","") -> Korrekt
A11: 2 | B11: ='Wettkampf 1'!B11 -> Gerd Vogel | C11: ='Wettkampf 1'!C11 -> Breddenb.-Heid. I | D11: 310.9 | F11: =IF(E11="x","0",D11) -> 310.9 | G11: =IF(C11=$B$2,F11,0) -> 310.9 | H11: =(IF(AND($E11="",$C11=$B$2),1,0)) -> 1 | I11: =IF($C11=$B$3,F11,0) -> 0 | J11: =(IF(AND($E11="",$C11=$B$3),1,0)) -> 0 | K11: =IF($C11=$B$4,F11,0) -> 0 | L11: =(IF(AND($E11="",$C11=$B$4),1,0)) -> 0 | M11: =IF($C11=$B$5,F11,0) -> 0 | N11: =(IF(AND($E11="",$C11=$B$5),1,0)) -> 0 | O11: =IF($C11=$B$6,F11,0) -> 0 | P11: =(IF(AND($E11="",$C11=$B$6),1,0)) -> 0 | Q11: =IF($C11=$B$7,F11,0) -> 0 | R11: =(IF(AND($E11="",$C11=$B$7),1,0)) -> 0 | U11: 103.5 | V11: 105.0 | W11: 102.4 | X11: =U11+V11+W11 -> 310.9 | Y11: =IF(X11=D11,1,0) -> 1 | Z11: =IF(X11=0,0,1) -> 1 | AA11: =IF(Y11+Z11=2,"Korrekt","") -> Korrekt
A12: 3 | B12: ='Wettkampf 1'!B12 -> Heinz Engbers | C12: ='Wettkampf 1'!C12 -> Breddenb.-Heid. I | D12: 309.5 | F12: 309.5 | G12: 309.5 | H12: 1 | I12: 0 | J12: 0 | K12: 0 | L12: 0 | M12: 0 | N12: 0 | O12: 0 | P12: 0 | Q12: 0 | R12: 0 | U12: 101.9 | V12: 103.0 | W12: 104.6 | X12: 309.5 | Y12: 1 | Z12: 1 | AA12: Korrekt
A13: 4 | B13: ='Wettkampf 1'!B13 -> Willi Engbers | C13: ='Wettkampf 1'!C13 -> Breddenb.-Heid. I | D13: 308.0 | F13: 308.0 | G13: 308 | H13: 1 | I13: 0 | J13: 0 | K13: 0 | L13: 0 | M13: 0 | N13: 0 | O13: 0 | P13: 0 | Q13: 0 | R13: 0 | U13: 102.5 | V13: 103.1 | W13: 102.4 | X13: 308.0 | Y13: 1 | Z13: 1 | AA13: Korrekt
A14: 5 | B14: ='Wettkampf 1'!B14 -> Hans Gebken 1 | C14: ='Wettkampf 1'!C14 -> Breddenb.-Heid. I | D14: 305.0 | E14: x | F14: 0 | G14: 0 | H14: 0 | I14: 0 | J14: 0 | K14: 0 | L14: 0 | M14: 0 | N14: 0 | O14: 0 | P14: 0 | Q14: 0 | R14: 0 | U14: 102.2 | V14: 101.5 | W14: 101.3 | X14: 305.0 | Y14: 1 | Z14: 1 | AA14: Korrekt
A15: 6 | B15: ='Wettkampf 1'!B15 -> Philipp Schmidt | C15: ='Wettkampf 1'!C15 -> Ostenwalde II | D15: 315.9 | F15: 315.9 | G15: 0 | H15: 0 | I15: 315.9 | J15: 1 | K15: 0 | L15: 0 | M15: 0 | N15: 0 | O15: 0 | P15: 0 | Q15: 0 | R15: 0 | U15: 105.2 | V15: 105.4 | W15: 105.3 | X15: 315.9 | Y15: 1 | Z15: 1 | AA15: Korrekt
A16: 7 | B16: ='Wettkampf 1'!B16 -> Philipp Scholübbers | C16: ='Wettkampf 1'!C16 -> Ostenwalde II | D16: 314.1 | F16: 314.1 | G16: 0 | H16: 0 | I16: 314.1 | J16: 1 | K16: 0 | L16: 0 | M16: 0 | N16: 0 | O16: 0 | P16: 0 | Q16: 0 | R16: 0 | U16: 104.3 | V16: 104.5 | W16: 105.3 | X16: 314.1 | Y16: 1 | Z16: 1 | AA16: Korrekt
A17: 8 | B17: ='Wettkampf 1'!B17 -> Matthias Brinkmann | C17: ='Wettkampf 1'!C17 -> Ostenwalde II | D17: 303.0 | F17: 303.0 | G17: 0 | H17: 0 | I17: 303 | J17: 1 | K17: 0 | L17: 0 | M17: 0 | N17: 0 | O17: 0 | P17: 0 | Q17: 0 | R17: 0 | U17: 100.1 | V17: 99.2 | W17: 103.7 | X17: 303.0 | Y17: 1 | Z17: 1 | AA17: Korrekt
A18: 9 | B18: ='Wettkampf 1'!B18 -> Patrik Krüßel | C18: ='Wettkampf 1'!C18 -> Ostenwalde II | D18: 312.8 | F18: 312.8 | G18: 0 | H18: 0 | I18: 312.8 | J18: 1 | K18: 0 | L18: 0 | M18: 0 | N18: 0 | O18: 0 | P18: 0 | Q18: 0 | R18: 0 | U18: 102.6 | V18: 104.1 | W18: 106.1 | X18: 312.8 | Y18: 1 | Z18: 1 | AA18: Korrekt
A19: 10 | B19: ='Wettkampf 1'!B19 -> Markus Jansen | C19: ='Wettkampf 1'!C19 -> Ostenwalde II | D19: 311.1 | E19: x | F19: 0 | G19: 0 | H19: 0 | I19: 0 | J19: 0 | K19: 0 | L19: 0 | M19: 0 | N19: 0 | O19: 0 | P19: 0 | Q19: 0 | R19: 0 | U19: 103.6 | V19: 103.7 | W19: 103.8 | X19: 311.1 | Y19: 1 | Z19: 1 | AA19: Korrekt
A20: 11 | B20: ='Wettkampf 1'!B20 -> Helmut Benten | C20: ='Wettkampf 1'!C20 -> Ostenwalde II | D20: 313.7 | E20: x | F20: 0 | G20: 0 | H20: 0 | I20: 0 | J20: 0 | K20: 0 | L20: 0 | M20: 0 | N20: 0 | O20: 0 | P20: 0 | Q20: 0 | R20: 0 | U20: 105.8 | V20: 104.3 | W20: 103.6 | X20: 313.7 | Y20: 1 | Z20: 1 | AA20: Korrekt
A21: 12 | B21: ='Wettkampf 1'!B21 -> Heinz Dirksen | C21: ='Wettkampf 1'!C21 -> Börgermoor II | D21: 306.8 | F21: 306.8 | G21: 0 | H21: 0 | I21: 0 | J21: 0 | K21: 306.8 | L21: 1 | M21: 0 | N21: 0 | O21: 0 | P21: 0 | Q21: 0 | R21: 0 | U21: 101.0 | V21: 103.4 | W21: 102.4 | X21: 306.8 | Y21: 1 | Z21: 1 | AA21: Korrekt
A22: 13 | B22: ='Wettkampf 1'!B22 -> Hans Ortmann | C22: ='Wettkampf 1'!C22 -> Börgermoor II | D22: 311.1 | F22: 311.1 | G22: 0 | H22: 0 | I22: 0 | J22: 0 | K22: 311.1 | L22: 1 | M22: 0 | N22: 0 | O22: 0 | P22: 0 | Q22: 0 | R22: 0 | U22: 103.4 | V22: 102.5 | W22: 105.2 | X22: 311.1 | Y22: 1 | Z22: 1 | AA22: Korrekt
A23: 14 | B23: ='Wettkampf 1'!B23 -> Karl-Heinz Ortmann | C23: ='Wettkampf 1'!C23 -> Börgermoor II | D23: 306.9 | E23: x | F23: 0 | G23: 0 | H23: 0 | I23: 0 | J23: 0 | K23: 0 | L23: 0 | M23: 0 | N23: 0 | O23: 0 | P23: 0 | Q23: 0 | R23: 0 | U23: 103.6 | V23: 102.6 | W23: 100.7 | X23: 306.9 | Y23: 1 | Z23: 1 | AA23: Korrekt
A24: 15 | B24: ='Wettkampf 1'!B24 -> Johannes Jansen | C24: ='Wettkampf 1'!C24 -> Börgermoor II | D24: 308.3 | F24: 308.3 | G24: 0 | H24: 0 | I24: 0 | J24: 0 | K24: 308.3 | L24: 1 | M24: 0 | N24: 0 | O24: 0 | P24: 0 | Q24: 0 | R24: 0 | U24: 101.6 | V24: 102.9 | W24: 103.8 | X24: 308.3 | Y24: 1 | Z24: 1 | AA24: Korrekt
A25: 16 | B25: ='Wettkampf 1'!B25 -> Kevin Minnert | C25: ='Wettkampf 1'!C25 -> Börgermoor II | D25: 302.7 | F25: 302.7 | G25: 0 | H25: 0 | I25: 0 | J25: 0 | K25: 302.7 | L25: 1 | M25: 0 | N25: 0 | O25: 0 | P25: 0 | Q25: 0 | R25: 0 | U25: 99.8 | V25: 101.9 | W25: 101.0 | X25: 302.7 | Y25: 1 | Z25: 1 | AA25: Korrekt
A26: 17 | B26: ='Wettkampf 1'!B26 -> Daniel Schülke | C26: ='Wettkampf 1'!C26 -> Börgermoor II | E26: x | F26: 0 | G26: 0 | H26: 0 | I26: 0 | J26: 0 | K26: 0 | L26: 0 | M26: 0 | N26: 0 | O26: 0 | P26: 0 | Q26: 0 | R26: 0 | X26: 0.0 | Y26: 1 | Z26: 0
A27: 18 | B27: ='Wettkampf 1'!B27 -> Frank Wotte | C27: ='Wettkampf 1'!C27 -> Lorup III | D27: 313.0 | F27: 313.0 | G27: 0 | H27: 0 | I27: 0 | J27: 0 | K27: 0 | L27: 0 | M27: 313 | N27: 1 | O27: 0 | P27: 0 | Q27: 0 | R27: 0 | U27: 103.6 | V27: 104.1 | W27: 105.3 | X27: 313.0 | Y27: 1 | Z27: 1 | AA27: Korrekt
A28: 19 | B28: ='Wettkampf 1'!B28 -> Johannes Wesseln | C28: ='Wettkampf 1'!C28 -> Lorup III | D28: 308.8 | F28: 308.8 | G28: 0 | H28: 0 | I28: 0 | J28: 0 | K28: 0 | L28: 0 | M28: 308.8 | N28: 1 | O28: 0 | P28: 0 | Q28: 0 | R28: 0 | U28: 103.7 | V28: 103.2 | W28: 101.9 | X28: 308.8 | Y28: 1 | Z28: 1 | AA28: Korrekt
A29: 20 | B29: ='Wettkampf 1'!B29 -> Anton Oldiges | C29: ='Wettkampf 1'!C29 -> Lorup III | D29: 302.5 | F29: 302.5 | G29: 0 | H29: 0 | I29: 0 | J29: 0 | K29: 0 | L29: 0 | M29: 302.5 | N29: 1 | O29: 0 | P29: 0 | Q29: 0 | R29: 0 | U29: 99.9 | V29: 100.4 | W29: 102.2 | X29: 302.5 | Y29: 1 | Z29: 1 | AA29: Korrekt
A30: 21 | B30: ='Wettkampf 1'!B30 -> Jürgen Will | C30: ='Wettkampf 1'!C30 -> Lorup III | D30: 311.5 | F30: 311.5 | G30: 0 | H30: 0 | I30: 0 | J30: 0 | K30: 0 | L30: 0 | M30: 311.5 | N30: 1 | O30: 0 | P30: 0 | Q30: 0 | R30: 0 | U30: 104.6 | V30: 102.4 | W30: 104.5 | X30: 311.5 | Y30: 1 | Z30: 1 | AA30: Korrekt
A31: 22 | B31: ='Wettkampf 1'!B31 -> Schütze 22 | C31: ='Wettkampf 1'!C31 -> Lorup III | E31: x | F31: 0 | G31: 0 | H31: 0 | I31: 0 | J31: 0 | K31: 0 | L31: 0 | M31: 0 | N31: 0 | O31: 0 | P31: 0 | Q31: 0 | R31: 0 | X31: 0.0 | Y31: 1 | Z31: 0
A32: 23 | B32: ='Wettkampf 1'!B32 -> Schütze 23 | C32: ='Wettkampf 1'!C32 -> Lorup III | E32: x | F32: 0 | G32: 0 | H32: 0 | I32: 0 | J32: 0 | K32: 0 | L32: 0 | M32: 0 | N32: 0 | O32: 0 | P32: 0 | Q32: 0 | R32: 0 | X32: 0.0 | Y32: 1 | Z32: 0
A33: 24 | B33: ='Wettkampf 1'!B33 -> Norbert Jansen | C33: ='Wettkampf 1'!C33 -> Breddenb.-Heid. III | D33: 308.3 | F33: 308.3 | G33: 0 | H33: 0 | I33: 0 | J33: 0 | K33: 0 | L33: 0 | M33: 0 | N33: 0 | O33: 308.3 | P33: 1 | Q33: 0 | R33: 0 | U33: 102.2 | V33: 103.0 | W33: 103.1 | X33: 308.3 | Y33: 1 | Z33: 1 | AA33: Korrekt
A34: 25 | B34: ='Wettkampf 1'!B34 -> Werner Jansen | C34: ='Wettkampf 1'!C34 -> Breddenb.-Heid. III | D34: 309.7 | F34: 309.7 | G34: 0 | H34: 0 | I34: 0 | J34: 0 | K34: 0 | L34: 0 | M34: 0 | N34: 0 | O34: 309.7 | P34: 1 | Q34: 0 | R34: 0 | U34: 102.8 | V34: 103.4 | W34: 103.5 | X34: 309.7 | Y34: 1 | Z34: 1 | AA34: Korrekt
A35: 26 | B35: ='Wettkampf 1'!B35 -> Alfons Plüster | C35: ='Wettkampf 1'!C35 -> Breddenb.-Heid. III | D35: 301.5 | E35: x | F35: 0 | G35: 0 | H35: 0 | I35: 0 | J35: 0 | K35: 0 | L35: 0 | M35: 0 | N35: 0 | O35: 0 | P35: 0 | Q35: 0 | R35: 0 | U35: 99.3 | V35: 100.8 | W35: 101.4 | X35: 301.5 | Y35: 1 | Z35: 1 | AA35: Korrekt
A36: 27 | B36: ='Wettkampf 1'!B36 -> Johannes Oldiges | C36: ='Wettkampf 1'!C36 -> Breddenb.-Heid. III | D36: 304.1 | E36: x | F36: 0 | G36: 0 | H36: 0 | I36: 0 | J36: 0 | K36: 0 | L36: 0 | M36: 0 | N36: 0 | O36: 0 | P36: 0 | Q36: 0 | R36: 0 | U36: 98.6 | V36: 103.1 | W36: 102.4 | X36: 304.1 | Y36: 1 | Z36: 1 | AA36: Korrekt
A37: 28 | B37: ='Wettkampf 1'!B37 -> Hans Plüster | C37: ='Wettkampf 1'!C37 -> Breddenb.-Heid. III | D37: 309.6 | F37: 309.6 | G37: 0 | H37: 0 | I37: 0 | J37: 0 | K37: 0 | L37: 0 | M37: 0 | N37: 0 | O37: 309.6 | P37: 1 | Q37: 0 | R37: 0 | U37: 103.9 | V37: 102.5 | W37: 103.2 | X37: 309.6 | Y37: 1 | Z37: 1 | AA37: Korrekt
A38: 29 | B38: ='Wettkampf 1'!B38 -> Josef Wübben | C38: ='Wettkampf 1'!C38 -> Breddenb.-Heid. III | D38: 314.2 | F38: 314.2 | G38: 0 | H38: 0 | I38: 0 | J38: 0 | K38: 0 | L38: 0 | M38: 0 | N38: 0 | O38: 314.2 | P38: 1 | Q38: 0 | R38: 0 | U38: 105.8 | V38: 104.4 | W38: 104.0 | X38: 314.2 | Y38: 1 | Z38: 1 | AA38: Korrekt
A39: 30 | B39: ='Wettkampf 1'!B39 -> Thomas Niermann | C39: ='Wettkampf 1'!C39 -> Werlte III | D39: 311.2 | F39: 311.2 | G39: 0 | H39: 0 | I39: 0 | J39: 0 | K39: 0 | L39: 0 | M39: 0 | N39: 0 | O39: 0 | P39: 0 | Q39: 311.2 | R39: 1 | U39: 103.6 | V39: 104.6 | W39: 103.0 | X39: 311.2 | Y39: 1 | Z39: 1 | AA39: Korrekt
A40: 31 | B40: ='Wettkampf 1'!B40 -> Bernd Thien | C40: ='Wettkampf 1'!C40 -> Werlte III | D40: 315.1 | F40: 315.1 | G40: 0 | H40: 0 | I40: 0 | J40: 0 | K40: 0 | L40: 0 | M40: 0 | N40: 0 | O40: 0 | P40: 0 | Q40: 315.1 | R40: 1 | U40: 105.9 | V40: 104.5 | W40: 104.7 | X40: =U40+V40+W40 -> 315.1 | Y40: =IF(X40=D40,1,0) -> 1 | Z40: =IF(X40=0,0,1) -> 1 | AA40: =IF(Y40+Z40=2,"Korrekt","") -> Korrekt
A41: 32 | B41: ='Wettkampf 1'!B41 -> Norbert Grünloh | C41: ='Wettkampf 1'!C41 -> Werlte III | D41: 311.3 | F41: 311.3 | G41: 0 | H41: 0 | I41: 0 | J41: 0 | K41: 0 | L41: 0 | M41: 0 | N41: 0 | O41: 0 | P41: 0 | Q41: 311.3 | R41: 1 | U41: 103.4 | V41: 102.6 | W41: 105.3 | X41: 311.3 | Y41: 1 | Z41: 1 | AA41: Korrekt
A42: 33 | B42: ='Wettkampf 1'!B42 -> Andreas Thoben | C42: ='Wettkampf 1'!C42 -> Werlte III | D42: 311.7 | F42: 311.7 | G42: 0 | H42: 0 | I42: 0 | J42: 0 | K42: 0 | L42: 0 | M42: 0 | N42: 0 | O42: 0 | P42: 0 | Q42: 311.7 | R42: 1 | U42: 104.1 | V42: 102.6 | W42: 105.0 | X42: 311.7 | Y42: 1 | Z42: 1 | AA42: Korrekt
A43: 34 | B43: ='Wettkampf 1'!B43 -> Hermann Krone | C43: ='Wettkampf 1'!C43 -> Werlte III | D43: 307.4 | E43: x | F43: 0 | G43: 0 | H43: 0 | I43: 0 | J43: 0 | K43: 0 | L43: 0 | M43: 0 | N43: 0 | O43: 0 | P43: 0 | Q43: 0 | R43: 0 | U43: 100.3 | V43: 103.9 | W43: 103.2 | X43: 307.4 | Y43: 1 | Z43: 1 | AA43: Korrekt
A44: 35 | B44: ='Wettkampf 1'!B44 -> Michael Freitag | C44: ='Wettkampf 1'!C44 -> Werlte III | D44: 311.0 | E44: x | F44: 0 | G44: 0 | H44: 0 | I44: 0 | J44: 0 | K44: 0 | L44: 0 | M44: 0 | N44: 0 | O44: 0 | P44: 0 | Q44: 0 | R44: 0 | U44: 103.2 | V44: 103.7 | W44: 104.1 | X44: 311.0 | Y44: 1 | Z44: 1 | AA44: Korrekt
A45: 36 | B45: ='Wettkampf 1'!B45 -> Joachim Niermann | C45: ='Wettkampf 1'!C45 -> Werlte III | D45: 307.9 | E45: x | F45: 0 | G45: 0 | H45: 0 | I45: 0 | J45: 0 | K45: 0 | L45: 0 | M45: 0 | N45: 0 | O45: 0 | P45: 0 | Q45: 0 | R45: 0 | U45: 101.9 | V45: 103.4 | W45: 102.6 | X45: =U45+V45+W45 -> 307.9 | Y45: =IF(X45=D45,1,0) -> 1 | Z45: =IF(X45=0,0,1) -> 1 | AA45: =IF(Y45+Z45=2,"Korrekt","") -> Korrekt
G46: =LARGE(G10:G45,1)+LARGE(G10:G45,2)+LARGE(G10:G45,3) -> 928.4 | H46: =SUM(H10:H45) -> 4 | I46: =LARGE(I10:I45,1)+LARGE(I10:I45,2)+LARGE(I10:I45,3) -> 942.8 | J46: =SUM(J10:J45) -> 4 | K46: =LARGE(K10:K45,1)+LARGE(K10:K45,2)+LARGE(K10:K45,3) -> 926.2 | L46: =SUM(L10:L45) -> 4 | M46: =LARGE(M10:M45,1)+LARGE(M10:M45,2)+LARGE(M10:M45,3) -> 933.3 | N46: =SUM(N10:N45) -> 4 | O46: =LARGE(O10:O45,1)+LARGE(O10:O45,2)+LARGE(O10:O45,3) -> 933.5 | P46: =SUM(P10:P45) -> 4 | Q46: =LARGE(Q10:Q45,1)+LARGE(Q10:Q45,2)+LARGE(Q10:Q45,3) -> 938.1 | R46: =SUM(R10:S45) -> 4
C47: per Email an: sk-huemmling@gmx.de

Sheet 3
B1: Verein / Gruppe | D1: Ergebnisse | V1: Austragungsort: | W1: =Übersicht!F4 -> Börgermoor
A2: 1 | B2: ='Wettkampf 1'!B2 -> Breddenb.-Heid. I | D2: =G46 -> 927.7 | E2: =IF(H46>4,"Es sind zu viele Schützen in Wertung!"," ") ->  | V2: Wettkampftag: | W2: =Übersicht!F3 -> 20.10.
A3: 2 | B3: ='Wettkampf 1'!B3 -> Ostenwalde II | D3: =I46 -> 945.1 | E3: =IF(J46>4,"Es sind zu viele Schützen in Wertung!"," ") -> 
A4: 3 | B4: ='Wettkampf 1'!B4 -> Börgermoor II | D4: =K46 -> 936.0 | E4: =IF(L46>4,"Es sind zu viele Schützen in Wertung!"," ") ->  | X4: Ansprechpartner für Rückfragen:
A5: 4 | B5: ='Wettkampf 1'!B5 -> Lorup III | D5: =M46 -> 938.5 | E5: =IF(N46>4,"Es sind zu viele Schützen in Wertung!"," ") ->  | V5: Name: | W5: Hans Jansen
A6: 5 | B6: ='Wettkampf 1'!B6 -> Breddenb.-Heid. III | D6: =O46 -> 935.2 | E6: =IF(P46>4,"Es sind zu viele Schützen in Wertung!"," ") ->  | V6: Tel:
A7: 6 | B7: ='Wettkampf 1'!B7 -> Werlte III | D7: =Q46 -> 943.1 | E7: =IF(R46>4,"Es sind zu viele Schützen in Wertung!"," ") ->  | V7: Standaufsicht: | W7: Hans Jansen
B9: Einzelergebnisse: | C9: Verein / Gruppe | D9: Ergebnisse (mindestens 0 eintragen) | E9: AW? Dann x eintippen | G9: Verein 1 | I9: Verein 2 | K9: Verein 3 | M9: Verein 4 | O9: Verein 5 | Q9: Verein 6 | U9: Proberechnung bei Streifen:
A10: 1 | B10: ='Wettkampf 1'!B10 -> Hans Gebken 3 | C10: ='Wettkampf 1'!C10 -> Breddenb.-Heid. I | D10: 304.1 | F10: =IF(E10="x","0",D10) -> 304.1 | G10: =IF(C10=$B$2,F10,0) -> 304.1 | H10: =(IF(AND($E10="",$C10=$B$2),1,0)) -> 1 | I10: =IF($C10=$B$3,F10,0) -> 0 | J10: =(IF(AND($E10="",$C10=$B$3),1,0)) -> 0 | K10: =IF($C10=$B$4,F10,0) -> 0 | L10: =(IF(AND($E10="",$C10=$B$4),1,0)) -> 0 | M10: =IF($C10=$B$5,F10,0) -> 0 | N10: =(IF(AND($E10="",$C10=$B$5),1,0)) -> 0 | O10: =IF($C10=$B$6,F10,0) -> 0 | P10: =(IF(AND($E10="",$C10=$B$6),1,0)) -> 0 | Q10: =IF($C10=$B$7,F10,0) -> 0 | R10: =(IF(AND($E10="",$C10=$B$7),1,0)) -> 0 | U10: 101.2 | V10: 102.3 | W10: 100.6 | X10: =U10+V10+W10 -> 304.1 | Y10: =IF(X10=D10,1,0) -> 1 | Z10: =IF(X10=0,0,1) -> 1 | AA10: =IF(Y10+Z10=2,"Korrekt","") -> Korrekt
A11: 2 | B11: ='Wettkampf 1'!B11 -> Gerd Vogel | C11: ='Wettkampf 1'!C11 -> Breddenb.-Heid. I | D11: 313.1 | F11: =IF(E11="x","0",D11) -> 313.1 | G11: =IF(C11=$B$2,F11,0) -> 313.1 | H11: =(IF(AND($E11="",$C11=$B$2),1,0)) -> 1 | I11: =IF($C11=$B$3,F11,0) -> 0 | J11: =(IF(AND($E11="",$C11=$B$3),1,0)) -> 0 | K11: =IF($C11=$B$4,F11,0) -> 0 | L11: =(IF(AND($E11="",$C11=$B$4),1,0)) -> 0 | M11: =IF($C11=$B$5,F11,0) -> 0 | N11: =(IF(AND($E11="",$C11=$B$5),1,0)) -> 0 | O11: =IF($C11=$B$6,F11,0) -> 0 | P11: =(IF(AND($E11="",$C11=$B$6),1,0)) -> 0 | Q11: =IF($C11=$B$7,F11,0) -> 0 | R11: =(IF(AND($E11="",$C11=$B$7),1,0)) -> 0 | U11: 104.5 | V11: 104.3 | W11: 104.3 | X11: =U11+V11+W11 -> 313.1 | Y11: =IF(X11=D11,1,0) -> 1 | Z11: =IF(X11=0,0,1) -> 1 | AA11: =IF(Y11+Z11=2,"Korrekt","") -> Korrekt
A12: 3 | B12: ='Wettkampf 1'!B12 -> Heinz Engbers | C12: ='Wettkampf 1'!C12 -> Breddenb.-Heid. I | D12: 305.4 | F12: 305.4 | G12: 305.4 | H12: 1 | I12: 0 | J12: 0 | K12: 0 | L12: 0 | M12: 0 | N12: 0 | O12: 0 | P12: 0 | Q12: 0 | R12: 0 | U12: 101.5 | V12: 104.4 | W12: 99.5 | X12: 305.4 | Y12: 1 | Z12: 1 | AA12: Korrekt
A13: 4 | B13: ='Wettkampf 1'!B13 -> Willi Engbers | C13: ='Wettkampf 1'!C13 -> Breddenb.-Heid. I | D13: 309.2 | F13: 309.2 | G13: 309.2 | H13: 1 | I13: 0 | J13: 0 | K13: 0 | L13: 0 | M13: 0 | N13: 0 | O13: 0 | P13: 0 | Q13: 0 | R13: 0 | U13: 102.2 | V13: 103.8 | W13: 103.2 | X13: 309.2 | Y13: 1 | Z13: 1 | AA13: Korrekt
A14: 5 | B14: ='Wettkampf 1'!B14 -> Hans Gebken 1 | C14: ='Wettkampf 1'!C14 -> Breddenb.-Heid. I | D14: 297.1 | E14: x | F14: 0 | G14: 0 | H14: 0 | I14: 0 | J14: 0 | K14: 0 | L14: 0 | M14: 0 | N14: 0 | O14: 0 | P14: 0 | Q14: 0 | R14: 0 | U14: 97.4 | V14: 97.0 | W14: 102.7 | X14: 297.1 | Y14: 1 | Z14: 1 | AA14: Korrekt
A15: 6 | B15: ='Wettkampf 1'!B15 -> Philipp Schmidt | C15: ='Wettkampf 1'!C15 -> Ostenwalde II | D15: 315.4 | F15: 315.4 | G15: 0 | H15: 0 | I15: 315.4 | J15: 1 | K15: 0 | L15: 0 | M15: 0 | N15: 0 | O15: 0 | P15: 0 | Q15: 0 | R15: 0 | U15: 105.8 | V15: 104.2 | W15: 105.4 | X15: 315.4 | Y15: 1 | Z15: 1 | AA15: Korrekt
A16: 7 | B16: ='Wettkampf 1'!B16 -> Philipp Scholübbers | C16: ='Wettkampf 1'!C16 -> Ostenwalde II | D16: 315.4 | F16: 315.4 | G16: 0 | H16: 0 | I16: 315.4 | J16: 1 | K16: 0 | L16: 0 | M16: 0 | N16: 0 | O16: 0 | P16: 0 | Q16: 0 | R16: 0 | U16: 104.9 | V16: 105.2 | W16: 105.3 | X16: 315.4 | Y16: 1 | Z16: 1 | AA16: Korrekt
A17: 8 | B17: ='Wettkampf 1'!B17 -> Matthias Brinkmann | C17: ='Wettkampf 1'!C17 -> Ostenwalde II | D17: 305.0 | E17: x | F17: 0 | G17: 0 | H17: 0 | I17: 0 | J17: 0 | K17: 0 | L17: 0 | M17: 0 | N17: 0 | O17: 0 | P17: 0 | Q17: 0 | R17: 0 | U17: 100.7 | V17: 102.1 | W17: 102.2 | X17: 305.0 | Y17: 1 | Z17: 1 | AA17: Korrekt
A18: 9 | B18: ='Wettkampf 1'!B18 -> Patrik Krüßel | C18: ='Wettkampf 1'!C18 -> Ostenwalde II | D18: 314.3 | F18: 314.3 | G18: 0 | H18: 0 | I18: 314.3 | J18: 1 | K18: 0 | L18: 0 | M18: 0 | N18: 0 | O18: 0 | P18: 0 | Q18: 0 | R18: 0 | U18: 104.3 | V18: 105.6 | W18: 104.4 | X18: 314.3 | Y18: 1 | Z18: 1 | AA18: Korrekt
A19: 10 | B19: ='Wettkampf 1'!B19 -> Markus Jansen | C19: ='Wettkampf 1'!C19 -> Ostenwalde II | D19: 310.7 | E19: x | F19: 0 | G19: 0 | H19: 0 | I19: 0 | J19: 0 | K19: 0 | L19: 0 | M19: 0 | N19: 0 | O19: 0 | P19: 0 | Q19: 0 | R19: 0 | U19: 103.0 | V19: 104.3 | W19: 103.4 | X19: 310.7 | Y19: 1 | Z19: 1 | AA19: Korrekt
A20: 11 | B20: ='Wettkampf 1'!B20 -> Helmut Benten | C20: ='Wettkampf 1'!C20 -> Ostenwalde II | D20: 306.2 | F20: 306.2 | G20: 0 | H20: 0 | I20: 306.2 | J20: 1 | K20: 0 | L20: 0 | M20: 0 | N20: 0 | O20: 0 | P20: 0 | Q20: 0 | R20: 0 | U20: 103.0 | V20: 100.9 | W20: 102.3 | X20: 306.2 | Y20: 1 | Z20: 1 | AA20: Korrekt
A21: 12 | B21: ='Wettkampf 1'!B21 -> Heinz Dirksen | C21: ='Wettkampf 1'!C21 -> Börgermoor II | D21: 307.1 | F21: 307.1 | G21: 0 | H21: 0 | I21: 0 | J21: 0 | K21: 307.1 | L21: 1 | M21: 0 | N21: 0 | O21: 0 | P21: 0 | Q21: 0 | R21: 0 | U21: 101.8 | V21: 102.2 | W21: 103.1 | X21: 307.1 | Y21: 1 | Z21: 1 | AA21: Korrekt
A22: 13 | B22: ='Wettkampf 1'!B22 -> Hans Ortmann | C22: ='Wettkampf 1'!C22 -> Börgermoor II | D22: 310.2 | F22: 310.2 | G22: 0 | H22: 0 | I22: 0 | J22: 0 | K22: 310.2 | L22: 1 | M22: 0 | N22: 0 | O22: 0 | P22: 0 | Q22: 0 | R22: 0 | U22: 102.8 | V22: 103.2 | W22: 104.2 | X22: 310.2 | Y22: 1 | Z22: 1 | AA22: Korrekt
A23: 14 | B23: ='Wettkampf 1'!B23 -> Karl-Heinz Ortmann | C23: ='Wettkampf 1'!C23 -> Börgermoor II | D23: 312.2 | F23: 312.2 | G23: 0 | H23: 0 | I23: 0 | J23: 0 | K23: 312.2 | L23: 1 | M23: 0 | N23: 0 | O23: 0 | P23: 0 | Q23: 0 | R23: 0 | U23: 102.0 | V23: 104.5 | W23: 105.7 | X23: 312.2 | Y23: 1 | Z23: 1 | AA23: Korrekt
A24: 15 | B24: ='Wettkampf 1'!B24 -> Johannes Jansen | C24: ='Wettkampf 1'!C24 -> Börgermoor II | D24: 313.6 | F24: 313.6 | G24: 0 | H24: 0 | I24: 0 | J24: 0 | K24: 313.6 | L24: 1 | M24: 0 | N24: 0 | O24: 0 | P24: 0 | Q24: 0 | R24: 0 | U24: 104.0 | V24: 105.2 | W24: 104.4 | X24: 313.6 | Y24: 1 | Z24: 1 | AA24: Korrekt
A25: 16 | B25: ='Wettkampf 1'!B25 -> Kevin Minnert | C25: ='Wettkampf 1'!C25 -> Börgermoor II | D25: 305.3 | E25: x | F25: 0 | G25: 0 | H25: 0 | I25: 0 | J25: 0 | K25: 0 | L25: 0 | M25: 0 | N25: 0 | O25: 0 | P25: 0 | Q25: 0 | R25: 0 | U25: 100.9 | V25: 103.7 | W25: 100.7 | X25: 305.3 | Y25: 1 | Z25: 1 | AA25: Korrekt
A26: 17 | B26: ='Wettkampf 1'!B26 -> Daniel Schülke | C26: ='Wettkampf 1'!C26 -> Börgermoor II | D26: 303.1 | E26: x | F26: 0 | G26: 0 | H26: 0 | I26: 0 | J26: 0 | K26: 0 | L26: 0 | M26: 0 | N26: 0 | O26: 0 | P26: 0 | Q26: 0 | R26: 0 | U26: 99.1 | V26: 101.5 | W26: 102.5 | X26: 303.1 | Y26: 1 | Z26: 1 | AA26: Korrekt
A27: 18 | B27: ='Wettkampf 1'!B27 -> Frank Wotte | C27: ='Wettkampf 1'!C27 -> Lorup III | D27: 314.5 | F27: 314.5 | G27: 0 | H27: 0 | I27: 0 | J27: 0 | K27: 0 | L27: 0 | M27: 314.5 | N27: 1 | O27: 0 | P27: 0 | Q27: 0 | R27: 0 | U27: 104.8 | V27: 104.8 | W27: 104.9 | X27: 314.5 | Y27: 1 | Z27: 1 | AA27: Korrekt
A28: 19 | B28: ='Wettkampf 1'!B28 -> Johannes Wesseln | C28: ='Wettkampf 1'!C28 -> Lorup III | D28: 311.5 | F28: 311.5 | G28: 0 | H28: 0 | I28: 0 | J28: 0 | K28: 0 | L28: 0 | M28: 311.5 | N28: 1 | O28: 0 | P28: 0 | Q28: 0 | R28: 0 | U28: 102.5 | V28: 104.4 | W28: 104.6 | X28: 311.5 | Y28: 1 | Z28: 1 | AA28: Korrekt
A29: 20 | B29: ='Wettkampf 1'!B29 -> Anton Oldiges | C29: ='Wettkampf 1'!C29 -> Lorup III | D29: 311.0 | F29: 311.0 | G29: 0 | H29: 0 | I29: 0 | J29: 0 | K29: 0 | L29: 0 | M29: 311 | N29: 1 | O29: 0 | P29: 0 | Q29: 0 | R29: 0 | U29: 104.0 | V29: 103.9 | W29: 103.1 | X29: 311.0 | Y29: 1 | Z29: 1 | AA29: Korrekt
A30: 21 | B30: ='Wettkampf 1'!B30 -> Jürgen Will | C30: ='Wettkampf 1'!C30 -> Lorup III | D30: 312.5 | F30: 312.5 | G30: 0 | H30: 0 | I30: 0 | J30: 0 | K30: 0 | L30: 0 | M30: 312.5 | N30: 1 | O30: 0 | P30: 0 | Q30: 0 | R30: 0 | U30: 105.6 | V30: 103.2 | W30: 103.7 | X30: 312.5 | Y30: 1 | Z30: 1 | AA30: Korrekt
A31: 22 | B31: ='Wettkampf 1'!B31 -> Schütze 22 | C31: ='Wettkampf 1'!C31 -> Lorup III | E31: x | F31: 0 | G31: 0 | H31: 0 | I31: 0 | J31: 0 | K31: 0 | L31: 0 | M31: 0 | N31: 0 | O31: 0 | P31: 0 | Q31: 0 | R31: 0 | X31: 0.0 | Y31: 1 | Z31: 0
A32: 23 | B32: ='Wettkampf 1'!B32 -> Schütze 23 | C32: ='Wettkampf 1'!C32 -> Lorup III | E32: x | F32: 0 | G32: 0 | H32: 0 | I32: 0 | J32: 0 | K32: 0 | L32: 0 | M32: 0 | N32: 0 | O32: 0 | P32: 0 | Q32: 0 | R32: 0 | X32: 0.0 | Y32: 1 | Z32: 0
A33: 24 | B33: ='Wettkampf 1'!B33 -> Norbert Jansen | C33: ='Wettkampf 1'!C33 -> Breddenb.-Heid. III | D33: 311.0 | F33: 311.0 | G33: 0 | H33: 0 | I33: 0 | J33: 0 | K33: 0 | L33: 0 | M33: 0 | N33: 0 | O33: 311 | P33: 1 | Q33: 0 | R33: 0 | U33: 103.2 | V33: 103.2 | W33: 104.6 | X33: 311.0 | Y33: 1 | Z33: 1 | AA33: Korrekt
A34: 25 | B34: ='Wettkampf 1'!B34 -> Werner Jansen | C34: ='Wettkampf 1'!C34 -> Breddenb.-Heid. III | D34: 309.4 | F34: 309.4 | G34: 0 | H34: 0 | I34: 0 | J34: 0 | K34: 0 | L34: 0 | M34: 0 | N34: 0 | O34: 309.4 | P34: 1 | Q34: 0 | R34: 0 | U34: 102.8 | V34: 103.1 | W34: 103.5 | X34: 309.4 | Y34: 1 | Z34: 1 | AA34: Korrekt
A35: 26 | B35: ='Wettkampf 1'!B35 -> Alfons Plüster | C35: ='Wettkampf 1'!C35 -> Breddenb.-Heid. III | D35: 302.1 | E35: x | F35: 0 | G35: 0 | H35: 0 | I35: 0 | J35: 0 | K35: 0 | L35: 0 | M35: 0 | N35: 0 | O35: 0 | P35: 0 | Q35: 0 | R35: 0 | U35: 98.4 | V35: 101.3 | W35: 102.4 | X35: 302.1 | Y35: 1 | Z35: 1 | AA35: Korrekt
A36: 27 | B36: ='Wettkampf 1'!B36 -> Johannes Oldiges | C36: ='Wettkampf 1'!C36 -> Breddenb.-Heid. III | D36: 307.6 | E36: x | F36: 0 | G36: 0 | H36: 0 | I36: 0 | J36: 0 | K36: 0 | L36: 0 | M36: 0 | N36: 0 | O36: 0 | P36: 0 | Q36: 0 | R36: 0 | U36: 102.3 | V36: 101.8 | W36: 103.5 | X36: 307.6 | Y36: 1 | Z36: 1 | AA36: Korrekt
A37: 28 | B37: ='Wettkampf 1'!B37 -> Hans Plüster | C37: ='Wettkampf 1'!C37 -> Breddenb.-Heid. III | D37: 314.8 | F37: 314.8 | G37: 0 | H37: 0 | I37: 0 | J37: 0 | K37: 0 | L37: 0 | M37: 0 | N37: 0 | O37: 314.8 | P37: 1 | Q37: 0 | R37: 0 | U37: 104.7 | V37: 104.0 | W37: 106.1 | X37: 314.8 | Y37: 1 | Z37: 1 | AA37: Korrekt
A38: 29 | B38: ='Wettkampf 1'!B38 -> Josef Wübben | C38: ='Wettkampf 1'!C38 -> Breddenb.-Heid. III | D38: 306.2 | F38: 306.2 | G38: 0 | H38: 0 | I38: 0 | J38: 0 | K38: 0 | L38: 0 | M38: 0 | N38: 0 | O38: 306.2 | P38: 1 | Q38: 0 | R38: 0 | U38: 102.3 | V38: 102.8 | W38: 101.1 | X38: 306.2 | Y38: 1 | Z38: 1 | AA38: Korrekt
A39: 30 | B39: ='Wettkampf 1'!B39 -> Thomas Niermann | C39: ='Wettkampf 1'!C39 -> Werlte III | D39: 313.6 | F39: 313.6 | G39: 0 | H39: 0 | I39: 0 | J39: 0 | K39: 0 | L39: 0 | M39: 0 | N39: 0 | O39: 0 | P39: 0 | Q39: 313.6 | R39: 1 | U39: 103.7 | V39: 104.3 | W39: 105.6 | X39: 313.6 | Y39: 1 | Z39: 1 | AA39: Korrekt
A40: 31 | B40: ='Wettkampf 1'!B40 -> Bernd Thien | C40: ='Wettkampf 1'!C40 -> Werlte III | D40: 314.4 | F40: 314.4 | G40: 0 | H40: 0 | I40: 0 | J40: 0 | K40: 0 | L40: 0 | M40: 0 | N40: 0 | O40: 0 | P40: 0 | Q40: 314.4 | R40: 1 | U40: 105.5 | V40: 105.1 | W40: 103.8 | X40: 314.4 | Y40: 1 | Z40: 1 | AA40: Korrekt
A41: 32 | B41: ='Wettkampf 1'!B41 -> Norbert Grünloh | C41: ='Wettkampf 1'!C41 -> Werlte III | D41: 315.1 | F41: 315.1 | G41: 0 | H41: 0 | I41: 0 | J41: 0 | K41: 0 | L41: 0 | M41: 0 | N41: 0 | O41: 0 | P41: 0 | Q41: 315.1 | R41: 1 | U41: 104.9 | V41: 104.7 | W41: 105.5 | X41: 315.1 | Y41: 1 | Z41: 1 | AA41: Korrekt
A42: 33 | B42: ='Wettkampf 1'!B42 -> Andreas Thoben | C42: ='Wettkampf 1'!C42 -> Werlte III | D42: 313.4 | E42: x | F42: 0 | G42: 0 | H42: 0 | I42: 0 | J42: 0 | K42: 0 | L42: 0 | M42: 0 | N42: 0 | O42: 0 | P42: 0 | Q42: 0 | R42: 0 | U42: 103.9 | V42: 105.4 | W42: 104.1 | X42: 313.4 | Y42: 1 | Z42: 1 | AA42: Korrekt
A43: 34 | B43: ='Wettkampf 1'!B43 -> Hermann Krone | C43: ='Wettkampf 1'!C43 -> Werlte III | D43: 311.6 | E43: x | F43: 0 | G43: 0 | H43: 0 | I43: 0 | J43: 0 | K43: 0 | L43: 0 | M43: 0 | N43: 0 | O43: 0 | P43: 0 | Q43: 0 | R43: 0 | U43: 105.4 | V43: 103.9 | W43: 102.3 | X43: 311.6 | Y43: 1 | Z43: 1 | AA43: Korrekt
A44: 35 | B44: ='Wettkampf 1'!B44 -> Michael Freitag | C44: ='Wettkampf 1'!C44 -> Werlte III | D44: 306.8 | E44: x | F44: 0 | G44: 0 | H44: 0 | I44: 0 | J44: 0 | K44: 0 | L44: 0 | M44: 0 | N44: 0 | O44: 0 | P44: 0 | Q44: 0 | R44: 0 | U44: 99.9 | V44: 102.9 | W44: 104.0 | X44: 306.8 | Y44: 1 | Z44: 1 | AA44: Korrekt
A45: 36 | B45: ='Wettkampf 1'!B45 -> Joachim Niermann | C45: ='Wettkampf 1'!C45 -> Werlte III | D45: 305.3 | E45: x | F45: 0 | G45: 0 | H45: 0 | I45: 0 | J45: 0 | K45: 0 | L45: 0 | M45: 0 | N45: 0 | O45: 0 | P45: 0 | Q45: 0 | R45: 0 | U45: 101.4 | V45: 101.2 | W45: 102.7 | X45: 305.3 | Y45: 1 | Z45: 1 | AA45: Korrekt
G46: =LARGE(G10:G45,1)+LARGE(G10:G45,2)+LARGE(G10:G45,3) -> 927.7 | H46: =SUM(H10:H45) -> 4 | I46: =LARGE(I10:I45,1)+LARGE(I10:I45,2)+LARGE(I10:I45,3) -> 945.1 | J46: =SUM(J10:J45) -> 4 | K46: =LARGE(K10:K45,1)+LARGE(K10:K45,2)+LARGE(K10:K45,3) -> 936 | L46: =SUM(L10:L45) -> 4 | M46: =LARGE(M10:M45,1)+LARGE(M10:M45,2)+LARGE(M10:M45,3) -> 938.5 | N46: =SUM(N10:N45) -> 4 | O46: =LARGE(O10:O45,1)+LARGE(O10:O45,2)+LARGE(O10:O45,3) -> 935.2 | P46: =SUM(P10:P45) -> 4 | Q46: =LARGE(Q10:Q45,1)+LARGE(Q10:Q45,2)+LARGE(Q10:Q45,3) -> 943.1 | R46: =SUM(R10:S45) -> 3
C47: per Email an: sk-huemmling@gmx.de

Sheet 4
B1: Verein / Gruppe | D1: Ergebnisse | V1: Austragungsort: | W1: =Übersicht!G4 -> Lorup
A2: 1 | B2: ='Wettkampf 1'!B2 -> Breddenb.-Heid. I | D2: =G46 -> 929.8 | E2: =IF(H46>4,"Es sind zu viele Schützen in Wertung!"," ") ->  | V2: Wettkampftag: | W2: =Übersicht!G3 -> 10.11.
A3: 2 | B3: ='Wettkampf 1'!B3 -> Ostenwalde II | D3: =I46 -> 933.7 | E3: =IF(J46>4,"Es sind zu viele Schützen in Wertung!"," ") -> 
A4: 3 | B4: ='Wettkampf 1'!B4 -> Börgermoor II | D4: =K46 -> 929.4 | E4: =IF(L46>4,"Es sind zu viele Schützen in Wertung!"," ") ->  | X4: Ansprechpartner für Rückfragen:
A5: 4 | B5: ='Wettkampf 1'!B5 -> Lorup III | D5: =M46 -> 937.2 | E5: =IF(N46>4,"Es sind zu viele Schützen in Wertung!"," ") ->  | V5: Name:
A6: 5 | B6: ='Wettkampf 1'!B6 -> Breddenb.-Heid. III | D6: =O46 -> 930.0 | E6: =IF(P46>4,"Es sind zu viele Schützen in Wertung!"," ") ->  | V6: Tel:
A7: 6 | B7: ='Wettkampf 1'!B7 -> Werlte III | D7: =Q46 -> 938.8 | E7: =IF(R46>4,"Es sind zu viele Schützen in Wertung!"," ") ->  | V7: Standaufsicht: | W7: Wesseln Johannes
B9: Einzelergebnisse: | C9: Verein / Gruppe | D9: Ergebnisse (mindestens 0 eintragen) | E9: AW? Dann x eintippen | G9: Verein 1 | I9: Verein 2 | K9: Verein 3 | M9: Verein 4 | O9: Verein 5 | Q9: Verein 6 | U9: Proberechnung bei Streifen:
A10: 1 | B10: ='Wettkampf 1'!B10 -> Hans Gebken 3 | C10: ='Wettkampf 1'!C10 -> Breddenb.-Heid. I | D10: 304.5 | F10: =IF(E10="x","0",D10) -> 304.5 | G10: =IF(C10=$B$2,F10,0) -> 304.5 | H10: =(IF(AND($E10="",$C10=$B$2),1,0)) -> 1 | I10: =IF($C10=$B$3,F10,0) -> 0 | J10: =(IF(AND($E10="",$C10=$B$3),1,0)) -> 0 | K10: =IF($C10=$B$4,F10,0) -> 0 | L10: =(IF(AND($E10="",$C10=$B$4),1,0)) -> 0 | M10: =IF($C10=$B$5,F10,0) -> 0 | N10: =(IF(AND($E10="",$C10=$B$5),1,0)) -> 0 | O10: =IF($C10=$B$6,F10,0) -> 0 | P10: =(IF(AND($E10="",$C10=$B$6),1,0)) -> 0 | Q10: =IF($C10=$B$7,F10,0) -> 0 | R10: =(IF(AND($E10="",$C10=$B$7),1,0)) -> 0 | X10: =U10+V10+W10 -> 0.0 | Y10: =IF(X10=D10,1,0) -> 0 | Z10: =IF(X10=0,0,1) -> 0 | AA10: =IF(Y10+Z10=2,"Korrekt","") -> 
A11: 2 | B11: ='Wettkampf 1'!B11 -> Gerd Vogel | C11: ='Wettkampf 1'!C11 -> Breddenb.-Heid. I | D11: 312.6 | F11: =IF(E11="x","0",D11) -> 312.6 | G11: =IF(C11=$B$2,F11,0) -> 312.6 | H11: =(IF(AND($E11="",$C11=$B$2),1,0)) -> 1 | I11: =IF($C11=$B$3,F11,0) -> 0 | J11: =(IF(AND($E11="",$C11=$B$3),1,0)) -> 0 | K11: =IF($C11=$B$4,F11,0) -> 0 | L11: =(IF(AND($E11="",$C11=$B$4),1,0)) -> 0 | M11: =IF($C11=$B$5,F11,0) -> 0 | N11: =(IF(AND($E11="",$C11=$B$5),1,0)) -> 0 | O11: =IF($C11=$B$6,F11,0) -> 0 | P11: =(IF(AND($E11="",$C11=$B$6),1,0)) -> 0 | Q11: =IF($C11=$B$7,F11,0) -> 0 | R11: =(IF(AND($E11="",$C11=$B$7),1,0)) -> 0 | X11: =U11+V11+W11 -> 0.0 | Y11: =IF(X11=D11,1,0) -> 0 | Z11: =IF(X11=0,0,1) -> 0 | AA11: =IF(Y11+Z11=2,"Korrekt","") -> 
A12: 3 | B12: ='Wettkampf 1'!B12 -> Heinz Engbers | C12: ='Wettkampf 1'!C12 -> Breddenb.-Heid. I | D12: 307.8 | F12: 307.8 | G12: 307.8 | H12: 1 | I12: 0 | J12: 0 | K12: 0 | L12: 0 | M12: 0 | N12: 0 | O12: 0 | P12: 0 | Q12: 0 | R12: 0 | X12: 0.0 | Y12: 0 | Z12: 0
A13: 4 | B13: ='Wettkampf 1'!B13 -> Willi Engbers | C13: ='Wettkampf 1'!C13 -> Breddenb.-Heid. I | D13: 309.4 | F13: 309.4 | G13: 309.4 | H13: 1 | I13: 0 | J13: 0 | K13: 0 | L13: 0 | M13: 0 | N13: 0 | O13: 0 | P13: 0 | Q13: 0 | R13: 0 | X13: 0.0 | Y13: 0 | Z13: 0
A14: 5 | B14: ='Wettkampf 1'!B14 -> Hans Gebken 1 | C14: ='Wettkampf 1'!C14 -> Breddenb.-Heid. I | D14: 303.4 | E14: x | F14: 0 | G14: 0 | H14: 0 | I14: 0 | J14: 0 | K14: 0 | L14: 0 | M14: 0 | N14: 0 | O14: 0 | P14: 0 | Q14: 0 | R14: 0 | X14: 0.0 | Y14: 0 | Z14: 0
A15: 6 | B15: ='Wettkampf 1'!B15 -> Philipp Schmidt | C15: ='Wettkampf 1'!C15 -> Ostenwalde II | D15: 310.2 | F15: 310.2 | G15: 0 | H15: 0 | I15: 310.2 | J15: 1 | K15: 0 | L15: 0 | M15: 0 | N15: 0 | O15: 0 | P15: 0 | Q15: 0 | R15: 0 | X15: 0.0 | Y15: 0 | Z15: 0
A16: 7 | B16: ='Wettkampf 1'!B16 -> Philipp Scholübbers | C16: ='Wettkampf 1'!C16 -> Ostenwalde II | D16: 312.4 | F16: 312.4 | G16: 0 | H16: 0 | I16: 312.4 | J16: 1 | K16: 0 | L16: 0 | M16: 0 | N16: 0 | O16: 0 | P16: 0 | Q16: 0 | R16: 0 | X16: 0.0 | Y16: 0 | Z16: 0
A17: 8 | B17: ='Wettkampf 1'!B17 -> Matthias Brinkmann | C17: ='Wettkampf 1'!C17 -> Ostenwalde II | D17: 308.1 | E17: x | F17: 0 | G17: 0 | H17: 0 | I17: 0 | J17: 0 | K17: 0 | L17: 0 | M17: 0 | N17: 0 | O17: 0 | P17: 0 | Q17: 0 | R17: 0 | X17: 0.0 | Y17: 0 | Z17: 0
A18: 9 | B18: ='Wettkampf 1'!B18 -> Patrik Krüßel | C18: ='Wettkampf 1'!C18 -> Ostenwalde II | D18: 311.1 | F18: 311.1 | G18: 0 | H18: 0 | I18: 311.1 | J18: 1 | K18: 0 | L18: 0 | M18: 0 | N18: 0 | O18: 0 | P18: 0 | Q18: 0 | R18: 0 | X18: 0.0 | Y18: 0 | Z18: 0
A19: 10 | B19: ='Wettkampf 1'!B19 -> Markus Jansen | C19: ='Wettkampf 1'!C19 -> Ostenwalde II | D19: 308.3 | F19: 308.3 | G19: 0 | H19: 0 | I19: 308.3 | J19: 1 | K19: 0 | L19: 0 | M19: 0 | N19: 0 | O19: 0 | P19: 0 | Q19: 0 | R19: 0 | X19: 0.0 | Y19: 0 | Z19: 0
A20: 11 | B20: ='Wettkampf 1'!B20 -> Helmut Benten | C20: ='Wettkampf 1'!C20 -> Ostenwalde II | D20: 303.4 | E20: x | F20: 0 | G20: 0 | H20: 0 | I20: 0 | J20: 0 | K20: 0 | L20: 0 | M20: 0 | N20: 0 | O20: 0 | P20: 0 | Q20: 0 | R20: 0 | X20: 0.0 | Y20: 0 | Z20: 0
A21: 12 | B21: ='Wettkampf 1'!B21 -> Heinz Dirksen | C21: ='Wettkampf 1'!C21 -> Börgermoor II | D21: 307.7 | F21: 307.7 | G21: 0 | H21: 0 | I21: 0 | J21: 0 | K21: 307.7 | L21: 1 | M21: 0 | N21: 0 | O21: 0 | P21: 0 | Q21: 0 | R21: 0 | X21: 0.0 | Y21: 0 | Z21: 0
A22: 13 | B22: ='Wettkampf 1'!B22 -> Hans Ortmann | C22: ='Wettkampf 1'!C22 -> Börgermoor II | D22: 311.1 | F22: 311.1 | G22: 0 | H22: 0 | I22: 0 | J22: 0 | K22: 311.1 | L22: 1 | M22: 0 | N22: 0 | O22: 0 | P22: 0 | Q22: 0 | R22: 0 | X22: 0.0 | Y22: 0 | Z22: 0
A23: 14 | B23: ='Wettkampf 1'!B23 -> Karl-Heinz Ortmann | C23: ='Wettkampf 1'!C23 -> Börgermoor II | D23: 309.3 | F23: 309.3 | G23: 0 | H23: 0 | I23: 0 | J23: 0 | K23: 309.3 | L23: 1 | M23: 0 | N23: 0 | O23: 0 | P23: 0 | Q23: 0 | R23: 0 | X23: 0.0 | Y23: 0 | Z23: 0
A24: 15 | B24: ='Wettkampf 1'!B24 -> Johannes Jansen | C24: ='Wettkampf 1'!C24 -> Börgermoor II | D24: 309.0 | F24: 309.0 | G24: 0 | H24: 0 | I24: 0 | J24: 0 | K24: 309 | L24: 1 | M24: 0 | N24: 0 | O24: 0 | P24: 0 | Q24: 0 | R24: 0 | X24: 0.0 | Y24: 0 | Z24: 0
A25: 16 | B25: ='Wettkampf 1'!B25 -> Kevin Minnert | C25: ='Wettkampf 1'!C25 -> Börgermoor II | D25: 294.0 | E25: x | F25: 0 | G25: 0 | H25: 0 | I25: 0 | J25: 0 | K25: 0 | L25: 0 | M25: 0 | N25: 0 | O25: 0 | P25: 0 | Q25: 0 | R25: 0 | X25: 0.0 | Y25: 0 | Z25: 0
A26: 17 | B26: ='Wettkampf 1'!B26 -> Daniel Schülke | C26: ='Wettkampf 1'!C26 -> Börgermoor II | D26: 292.3 | E26: x | F26: 0 | G26: 0 | H26: 0 | I26: 0 | J26: 0 | K26: 0 | L26: 0 | M26: 0 | N26: 0 | O26: 0 | P26: 0 | Q26: 0 | R26: 0 | X26: 0.0 | Y26: 0 | Z26: 0
A27: 18 | B27: ='Wettkampf 1'!B27 -> Frank Wotte | C27: ='Wettkampf 1'!C27 -> Lorup III | D27: 314.5 | F27: 314.5 | G27: 0 | H27: 0 | I27: 0 | J27: 0 | K27: 0 | L27: 0 | M27: 314.5 | N27: 1 | O27: 0 | P27: 0 | Q27: 0 | R27: 0 | X27: 0.0 | Y27: 0 | Z27: 0
A28: 19 | B28: ='Wettkampf 1'!B28 -> Johannes Wesseln | C28: ='Wettkampf 1'!C28 -> Lorup III | D28: 310.2 | F28: 310.2 | G28: 0 | H28: 0 | I28: 0 | J28: 0 | K28: 0 | L28: 0 | M28: 310.2 | N28: 1 | O28: 0 | P28: 0 | Q28: 0 | R28: 0 | X28: 0.0 | Y28: 0 | Z28: 0
A29: 20 | B29: ='Wettkampf 1'!B29 -> Anton Oldiges | C29: ='Wettkampf 1'!C29 -> Lorup III | D29: 306.7 | F29: 306.7 | G29: 0 | H29: 0 | I29: 0 | J29: 0 | K29: 0 | L29: 0 | M29: 306.7 | N29: 1 | O29: 0 | P29: 0 | Q29: 0 | R29: 0 | X29: 0.0 | Y29: 0 | Z29: 0
A30: 21 | B30: ='Wettkampf 1'!B30 -> Jürgen Will | C30: ='Wettkampf 1'!C30 -> Lorup III | D30: 312.5 | F30: 312.5 | G30: 0 | H30: 0 | I30: 0 | J30: 0 | K30: 0 | L30: 0 | M30: 312.5 | N30: 1 | O30: 0 | P30: 0 | Q30: 0 | R30: 0 | X30: 0.0 | Y30: 0 | Z30: 0
A31: 22 | B31: ='Wettkampf 1'!B31 -> Schütze 22 | C31: ='Wettkampf 1'!C31 -> Lorup III | E31: x | F31: 0 | G31: 0 | H31: 0 | I31: 0 | J31: 0 | K31: 0 | L31: 0 | M31: 0 | N31: 0 | O31: 0 | P31: 0 | Q31: 0 | R31: 0 | X31: 0.0 | Y31: 1 | Z31: 0
A32: 23 | B32: ='Wettkampf 1'!B32 -> Schütze 23 | C32: ='Wettkampf 1'!C32 -> Lorup III | E32: x | F32: 0 | G32: 0 | H32: 0 | I32: 0 | J32: 0 | K32: 0 | L32: 0 | M32: 0 | N32: 0 | O32: 0 | P32: 0 | Q32: 0 | R32: 0 | X32: 0.0 | Y32: 1 | Z32: 0
A33: 24 | B33: ='Wettkampf 1'!B33 -> Norbert Jansen | C33: ='Wettkampf 1'!C33 -> Breddenb.-Heid. III | D33: 308.0 | F33: 308.0 | G33: 0 | H33: 0 | I33: 0 | J33: 0 | K33: 0 | L33: 0 | M33: 0 | N33: 0 | O33: 308 | P33: 1 | Q33: 0 | R33: 0 | X33: 0.0 | Y33: 0 | Z33: 0
A34: 25 | B34: ='Wettkampf 1'!B34 -> Werner Jansen | C34: ='Wettkampf 1'!C34 -> Breddenb.-Heid. III | D34: 305.8 | F34: 305.8 | G34: 0 | H34: 0 | I34: 0 | J34: 0 | K34: 0 | L34: 0 | M34: 0 | N34: 0 | O34: 305.8 | P34: 1 | Q34: 0 | R34: 0 | X34: 0.0 | Y34: 0 | Z34: 0
A35: 26 | B35: ='Wettkampf 1'!B35 -> Alfons Plüster | C35: ='Wettkampf 1'!C35 -> Breddenb.-Heid. III | D35: 301.6 | E35: x | F35: 0 | G35: 0 | H35: 0 | I35: 0 | J35: 0 | K35: 0 | L35: 0 | M35: 0 | N35: 0 | O35: 0 | P35: 0 | Q35: 0 | R35: 0 | X35: 0.0 | Y35: 0 | Z35: 0
A36: 27 | B36: ='Wettkampf 1'!B36 -> Johannes Oldiges | C36: ='Wettkampf 1'!C36 -> Breddenb.-Heid. III | D36: 305.0 | E36: x | F36: 0 | G36: 0 | H36: 0 | I36: 0 | J36: 0 | K36: 0 | L36: 0 | M36: 0 | N36: 0 | O36: 0 | P36: 0 | Q36: 0 | R36: 0 | X36: 0.0 | Y36: 0 | Z36: 0
A37: 28 | B37: ='Wettkampf 1'!B37 -> Hans Plüster | C37: ='Wettkampf 1'!C37 -> Breddenb.-Heid. III | D37: 312.2 | F37: 312.2 | G37: 0 | H37: 0 | I37: 0 | J37: 0 | K37: 0 | L37: 0 | M37: 0 | N37: 0 | O37: 312.2 | P37: 1 | Q37: 0 | R37: 0 | X37: 0.0 | Y37: 0 | Z37: 0
A38: 29 | B38: ='Wettkampf 1'!B38 -> Josef Wübben | C38: ='Wettkampf 1'!C38 -> Breddenb.-Heid. III | D38: 309.8 | F38: 309.8 | G38: 0 | H38: 0 | I38: 0 | J38: 0 | K38: 0 | L38: 0 | M38: 0 | N38: 0 | O38: 309.8 | P38: 1 | Q38: 0 | R38: 0 | X38: 0.0 | Y38: 0 | Z38: 0
A39: 30 | B39: ='Wettkampf 1'!B39 -> Thomas Niermann | C39: ='Wettkampf 1'!C39 -> Werlte III | D39: 310.1 | E39: x | F39: 0 | G39: 0 | H39: 0 | I39: 0 | J39: 0 | K39: 0 | L39: 0 | M39: 0 | N39: 0 | O39: 0 | P39: 0 | Q39: 0 | R39: 0 | X39: 0.0 | Y39: 0 | Z39: 0
A40: 31 | B40: ='Wettkampf 1'!B40 -> Bernd Thien | C40: ='Wettkampf 1'!C40 -> Werlte III | D40: 311.9 | F40: 311.9 | G40: 0 | H40: 0 | I40: 0 | J40: 0 | K40: 0 | L40: 0 | M40: 0 | N40: 0 | O40: 0 | P40: 0 | Q40: 311.9 | R40: 1 | X40: 0.0 | Y40: 0 | Z40: 0
A41: 32 | B41: ='Wettkampf 1'!B41 -> Norbert Grünloh | C41: ='Wettkampf 1'!C41 -> Werlte III | D41: 313.0 | F41: 313.0 | G41: 0 | H41: 0 | I41: 0 | J41: 0 | K41: 0 | L41: 0 | M41: 0 | N41: 0 | O41: 0 | P41: 0 | Q41: 313 | R41: 1 | X41: 0.0 | Y41: 0 | Z41: 0
A42: 33 | B42: ='Wettkampf 1'!B42 -> Andreas Thoben | C42: ='Wettkampf 1'!C42 -> Werlte III | D42: 313.9 | F42: 313.9 | G42: 0 | H42: 0 | I42: 0 | J42: 0 | K42: 0 | L42: 0 | M42: 0 | N42: 0 | O42: 0 | P42: 0 | Q42: 313.9 | R42: 1 | X42: 0.0 | Y42: 0 | Z42: 0
A43: 34 | B43: ='Wettkampf 1'!B43 -> Hermann Krone | C43: ='Wettkampf 1'!C43 -> Werlte III | D43: 304.3 | F43: 304.3 | G43: 0 | H43: 0 | I43: 0 | J43: 0 | K43: 0 | L43: 0 | M43: 0 | N43: 0 | O43: 0 | P43: 0 | Q43: 304.3 | R43: 1 | X43: 0.0 | Y43: 0 | Z43: 0
A44: 35 | B44: ='Wettkampf 1'!B44 -> Michael Freitag | C44: ='Wettkampf 1'!C44 -> Werlte III | D44: 313.1 | E44: x | F44: 0 | G44: 0 | H44: 0 | I44: 0 | J44: 0 | K44: 0 | L44: 0 | M44: 0 | N44: 0 | O44: 0 | P44: 0 | Q44: 0 | R44: 0 | X44: 0.0 | Y44: 0 | Z44: 0
A45: 36 | B45: ='Wettkampf 1'!B45 -> Joachim Niermann | C45: ='Wettkampf 1'!C45 -> Werlte III | D45: 313.4 | E45: x | F45: 0 | G45: 0 | H45: 0 | I45: 0 | J45: 0 | K45: 0 | L45: 0 | M45: 0 | N45: 0 | O45: 0 | P45: 0 | Q45: 0 | R45: 0 | X45: 0.0 | Y45: 0 | Z45: 0
G46: =LARGE(G10:G45,1)+LARGE(G10:G45,2)+LARGE(G10:G45,3) -> 929.8 | H46: =SUM(H10:H45) -> 4 | I46: =LARGE(I10:I45,1)+LARGE(I10:I45,2)+LARGE(I10:I45,3) -> 933.7 | J46: =SUM(J10:J45) -> 4 | K46: =LARGE(K10:K45,1)+LARGE(K10:K45,2)+LARGE(K10:K45,3) -> 929.4 | L46: =SUM(L10:L45) -> 4 | M46: =LARGE(M10:M45,1)+LARGE(M10:M45,2)+LARGE(M10:M45,3) -> 937.2 | N46: =SUM(N10:N45) -> 4 | O46: =LARGE(O10:O45,1)+LARGE(O10:O45,2)+LARGE(O10:O45,3) -> 930 | P46: =SUM(P10:P45) -> 4 | Q46: =LARGE(Q10:Q45,1)+LARGE(Q10:Q45,2)+LARGE(Q10:Q45,3) -> 938.8 | R46: =SUM(R10:S45) -> 4
C47: per Email an: sk-huemmling@gmx.de

Sheet 5
B1: Verein / Gruppe | D1: Ergebnisse | V1: Austragungsort: | W1: =Übersicht!H4 -> Breddenberg
A2: 1 | B2: ='Wettkampf 1'!B2 -> Breddenb.-Heid. I | D2: =G46 -> 924.8 | E2: =IF(H46>4,"Es sind zu viele Schützen in Wertung!"," ") ->  | V2: Wettkampftag: | W2: =Übersicht!H3 -> 24.11.
A3: 2 | B3: ='Wettkampf 1'!B3 -> Ostenwalde II | D3: =I46 -> 946.5 | E3: =IF(J46>4,"Es sind zu viele Schützen in Wertung!"," ") -> 
A4: 3 | B4: ='Wettkampf 1'!B4 -> Börgermoor II | D4: =K46 -> 927.9 | E4: =IF(L46>4,"Es sind zu viele Schützen in Wertung!"," ") ->  | X4: Ansprechpartner für Rückfragen:
A5: 4 | B5: ='Wettkampf 1'!B5 -> Lorup III | D5: =M46 -> 931.3 | E5: =IF(N46>4,"Es sind zu viele Schützen in Wertung!"," ") ->  | V5: Name: | W5: Oldiges Johannes
A6: 5 | B6: ='Wettkampf 1'!B6 -> Breddenb.-Heid. III | D6: =O46 -> 932.5 | E6: =IF(P46>4,"Es sind zu viele Schützen in Wertung!"," ") ->  | V6: Tel: | W6: 015209409594
A7: 6 | B7: ='Wettkampf 1'!B7 -> Werlte III | D7: =Q46 -> 938.9 | E7: =IF(R46>4,"Es sind zu viele Schützen in Wertung!"," ") ->  | V7: Standaufsicht: | W7: Jansen
B9: Einzelergebnisse: | C9: Verein / Gruppe | D9: Ergebnisse (mindestens 0 eintragen) | E9: AW? Dann x eintippen | G9: Verein 1 | I9: Verein 2 | K9: Verein 3 | M9: Verein 4 | O9: Verein 5 | Q9: Verein 6 | U9: Proberechnung bei Streifen:
A10: 1 | B10: ='Wettkampf 1'!B10 -> Hans Gebken 3 | C10: ='Wettkampf 1'!C10 -> Breddenb.-Heid. I | D10: 306.7 | F10: =IF(E10="x","0",D10) -> 306.7 | G10: =IF(C10=$B$2,F10,0) -> 306.7 | H10: =(IF(AND($E10="",$C10=$B$2),1,0)) -> 1 | I10: =IF($C10=$B$3,F10,0) -> 0 | J10: =(IF(AND($E10="",$C10=$B$3),1,0)) -> 0 | K10: =IF($C10=$B$4,F10,0) -> 0 | L10: =(IF(AND($E10="",$C10=$B$4),1,0)) -> 0 | M10: =IF($C10=$B$5,F10,0) -> 0 | N10: =(IF(AND($E10="",$C10=$B$5),1,0)) -> 0 | O10: =IF($C10=$B$6,F10,0) -> 0 | P10: =(IF(AND($E10="",$C10=$B$6),1,0)) -> 0 | Q10: =IF($C10=$B$7,F10,0) -> 0 | R10: =(IF(AND($E10="",$C10=$B$7),1,0)) -> 0 | X10: =U10+V10+W10 -> 0.0 | Y10: =IF(X10=D10,1,0) -> 0 | Z10: =IF(X10=0,0,1) -> 0 | AA10: =IF(Y10+Z10=2,"Korrekt","") -> 
A11: 2 | B11: ='Wettkampf 1'!B11 -> Gerd Vogel | C11: ='Wettkampf 1'!C11 -> Breddenb.-Heid. I | D11: 309.1 | F11: =IF(E11="x","0",D11) -> 309.1 | G11: =IF(C11=$B$2,F11,0) -> 309.1 | H11: =(IF(AND($E11="",$C11=$B$2),1,0)) -> 1 | I11: =IF($C11=$B$3,F11,0) -> 0 | J11: =(IF(AND($E11="",$C11=$B$3),1,0)) -> 0 | K11: =IF($C11=$B$4,F11,0) -> 0 | L11: =(IF(AND($E11="",$C11=$B$4),1,0)) -> 0 | M11: =IF($C11=$B$5,F11,0) -> 0 | N11: =(IF(AND($E11="",$C11=$B$5),1,0)) -> 0 | O11: =IF($C11=$B$6,F11,0) -> 0 | P11: =(IF(AND($E11="",$C11=$B$6),1,0)) -> 0 | Q11: =IF($C11=$B$7,F11,0) -> 0 | R11: =(IF(AND($E11="",$C11=$B$7),1,0)) -> 0 | X11: =U11+V11+W11 -> 0.0 | Y11: =IF(X11=D11,1,0) -> 0 | Z11: =IF(X11=0,0,1) -> 0 | AA11: =IF(Y11+Z11=2,"Korrekt","") -> 
A12: 3 | B12: ='Wettkampf 1'!B12 -> Heinz Engbers | C12: ='Wettkampf 1'!C12 -> Breddenb.-Heid. I | D12: 304.5 | F12: 304.5 | G12: 304.5 | H12: 1 | I12: 0 | J12: 0 | K12: 0 | L12: 0 | M12: 0 | N12: 0 | O12: 0 | P12: 0 | Q12: 0 | R12: 0 | X12: 0.0 | Y12: 0 | Z12: 0
A13: 4 | B13: ='Wettkampf 1'!B13 -> Willi Engbers | C13: ='Wettkampf 1'!C13 -> Breddenb.-Heid. I | D13: 309.0 | F13: 309.0 | G13: 309 | H13: 1 | I13: 0 | J13: 0 | K13: 0 | L13: 0 | M13: 0 | N13: 0 | O13: 0 | P13: 0 | Q13: 0 | R13: 0 | X13: 0.0 | Y13: 0 | Z13: 0
A14: 5 | B14: ='Wettkampf 1'!B14 -> Hans Gebken 1 | C14: ='Wettkampf 1'!C14 -> Breddenb.-Heid. I | D14: 303.6 | E14: x | F14: 0 | G14: 0 | H14: 0 | I14: 0 | J14: 0 | K14: 0 | L14: 0 | M14: 0 | N14: 0 | O14: 0 | P14: 0 | Q14: 0 | R14: 0 | X14: 0.0 | Y14: 0 | Z14: 0
A15: 6 | B15: ='Wettkampf 1'!B15 -> Philipp Schmidt | C15: ='Wettkampf 1'!C15 -> Ostenwalde II | D15: 318.3 | F15: 318.3 | G15: 0 | H15: 0 | I15: 318.3 | J15: 1 | K15: 0 | L15: 0 | M15: 0 | N15: 0 | O15: 0 | P15: 0 | Q15: 0 | R15: 0 | X15: 0.0 | Y15: 0 | Z15: 0
A16: 7 | B16: ='Wettkampf 1'!B16 -> Philipp Scholübbers | C16: ='Wettkampf 1'!C16 -> Ostenwalde II | D16: 314.6 | F16: 314.6 | G16: 0 | H16: 0 | I16: 314.6 | J16: 1 | K16: 0 | L16: 0 | M16: 0 | N16: 0 | O16: 0 | P16: 0 | Q16: 0 | R16: 0 | X16: 0.0 | Y16: 0 | Z16: 0
A17: 8 | B17: ='Wettkampf 1'!B17 -> Matthias Brinkmann | C17: ='Wettkampf 1'!C17 -> Ostenwalde II | E17: x | F17: 0 | G17: 0 | H17: 0 | I17: 0 | J17: 0 | K17: 0 | L17: 0 | M17: 0 | N17: 0 | O17: 0 | P17: 0 | Q17: 0 | R17: 0 | X17: 0.0 | Y17: 1 | Z17: 0
A18: 9 | B18: ='Wettkampf 1'!B18 -> Patrik Krüßel | C18: ='Wettkampf 1'!C18 -> Ostenwalde II | D18: 313.6 | F18: 313.6 | G18: 0 | H18: 0 | I18: 313.6 | J18: 1 | K18: 0 | L18: 0 | M18: 0 | N18: 0 | O18: 0 | P18: 0 | Q18: 0 | R18: 0 | X18: 0.0 | Y18: 0 | Z18: 0
A19: 10 | B19: ='Wettkampf 1'!B19 -> Markus Jansen | C19: ='Wettkampf 1'!C19 -> Ostenwalde II | D19: 311.7 | F19: 311.7 | G19: 0 | H19: 0 | I19: 311.7 | J19: 1 | K19: 0 | L19: 0 | M19: 0 | N19: 0 | O19: 0 | P19: 0 | Q19: 0 | R19: 0 | X19: 0.0 | Y19: 0 | Z19: 0
A20: 11 | B20: ='Wettkampf 1'!B20 -> Helmut Benten | C20: ='Wettkampf 1'!C20 -> Ostenwalde II | D20: 304.8 | E20: x | F20: 0 | G20: 0 | H20: 0 | I20: 0 | J20: 0 | K20: 0 | L20: 0 | M20: 0 | N20: 0 | O20: 0 | P20: 0 | Q20: 0 | R20: 0 | X20: 0.0 | Y20: 0 | Z20: 0
A21: 12 | B21: ='Wettkampf 1'!B21 -> Heinz Dirksen | C21: ='Wettkampf 1'!C21 -> Börgermoor II | D21: 304.4 | F21: 304.4 | G21: 0 | H21: 0 | I21: 0 | J21: 0 | K21: 304.4 | L21: 1 | M21: 0 | N21: 0 | O21: 0 | P21: 0 | Q21: 0 | R21: 0 | X21: 0.0 | Y21: 0 | Z21: 0
A22: 13 | B22: ='Wettkampf 1'!B22 -> Hans Ortmann | C22: ='Wettkampf 1'!C22 -> Börgermoor II | D22: 310.1 | F22: 310.1 | G22: 0 | H22: 0 | I22: 0 | J22: 0 | K22: 310.1 | L22: 1 | M22: 0 | N22: 0 | O22: 0 | P22: 0 | Q22: 0 | R22: 0 | X22: 0.0 | Y22: 0 | Z22: 0
A23: 14 | B23: ='Wettkampf 1'!B23 -> Karl-Heinz Ortmann | C23: ='Wettkampf 1'!C23 -> Börgermoor II | D23: 307.7 | F23: 307.7 | G23: 0 | H23: 0 | I23: 0 | J23: 0 | K23: 307.7 | L23: 1 | M23: 0 | N23: 0 | O23: 0 | P23: 0 | Q23: 0 | R23: 0 | X23: 0.0 | Y23: 0 | Z23: 0
A24: 15 | B24: ='Wettkampf 1'!B24 -> Johannes Jansen | C24: ='Wettkampf 1'!C24 -> Börgermoor II | D24: 310.1 | F24: 310.1 | G24: 0 | H24: 0 | I24: 0 | J24: 0 | K24: 310.1 | L24: 1 | M24: 0 | N24: 0 | O24: 0 | P24: 0 | Q24: 0 | R24: 0 | X24: 0.0 | Y24: 0 | Z24: 0
A25: 16 | B25: ='Wettkampf 1'!B25 -> Kevin Minnert | C25: ='Wettkampf 1'!C25 -> Börgermoor II | D25: 297.4 | E25: x | F25: 0 | G25: 0 | H25: 0 | I25: 0 | J25: 0 | K25: 0 | L25: 0 | M25: 0 | N25: 0 | O25: 0 | P25: 0 | Q25: 0 | R25: 0 | X25: 0.0 | Y25: 0 | Z25: 0
A26: 17 | B26: ='Wettkampf 1'!B26 -> Daniel Schülke | C26: ='Wettkampf 1'!C26 -> Börgermoor II | D26: 306.6 | E26: x | F26: 0 | G26: 0 | H26: 0 | I26: 0 | J26: 0 | K26: 0 | L26: 0 | M26: 0 | N26: 0 | O26: 0 | P26: 0 | Q26: 0 | R26: 0 | X26: 0.0 | Y26: 0 | Z26: 0
A27: 18 | B27: ='Wettkampf 1'!B27 -> Frank Wotte | C27: ='Wettkampf 1'!C27 -> Lorup III | D27: 314.6 | F27: 314.6 | G27: 0 | H27: 0 | I27: 0 | J27: 0 | K27: 0 | L27: 0 | M27: 314.6 | N27: 1 | O27: 0 | P27: 0 | Q27: 0 | R27: 0 | X27: 0.0 | Y27: 0 | Z27: 0
A28: 19 | B28: ='Wettkampf 1'!B28 -> Johannes Wesseln | C28: ='Wettkampf 1'!C28 -> Lorup III | D28: 311.5 | F28: 311.5 | G28: 0 | H28: 0 | I28: 0 | J28: 0 | K28: 0 | L28: 0 | M28: 311.5 | N28: 1 | O28: 0 | P28: 0 | Q28: 0 | R28: 0 | X28: 0.0 | Y28: 0 | Z28: 0
A29: 20 | B29: ='Wettkampf 1'!B29 -> Anton Oldiges | C29: ='Wettkampf 1'!C29 -> Lorup III | D29: 305.2 | F29: 305.2 | G29: 0 | H29: 0 | I29: 0 | J29: 0 | K29: 0 | L29: 0 | M29: 305.2 | N29: 1 | O29: 0 | P29: 0 | Q29: 0 | R29: 0 | X29: 0.0 | Y29: 0 | Z29: 0
A30: 21 | B30: ='Wettkampf 1'!B30 -> Jürgen Will | C30: ='Wettkampf 1'!C30 -> Lorup III | D30: 305.2 | F30: 305.2 | G30: 0 | H30: 0 | I30: 0 | J30: 0 | K30: 0 | L30: 0 | M30: 305.2 | N30: 1 | O30: 0 | P30: 0 | Q30: 0 | R30: 0 | X30: 0.0 | Y30: 0 | Z30: 0
A31: 22 | B31: ='Wettkampf 1'!B31 -> Schütze 22 | C31: ='Wettkampf 1'!C31 -> Lorup III | E31: x | F31: 0 | G31: 0 | H31: 0 | I31: 0 | J31: 0 | K31: 0 | L31: 0 | M31: 0 | N31: 0 | O31: 0 | P31: 0 | Q31: 0 | R31: 0 | X31: 0.0 | Y31: 1 | Z31: 0
A32: 23 | B32: ='Wettkampf 1'!B32 -> Schütze 23 | C32: ='Wettkampf 1'!C32 -> Lorup III | E32: x | F32: 0 | G32: 0 | H32: 0 | I32: 0 | J32: 0 | K32: 0 | L32: 0 | M32: 0 | N32: 0 | O32: 0 | P32: 0 | Q32: 0 | R32: 0 | X32: 0.0 | Y32: 1 | Z32: 0
A33: 24 | B33: ='Wettkampf 1'!B33 -> Norbert Jansen | C33: ='Wettkampf 1'!C33 -> Breddenb.-Heid. III | D33: 310.3 | F33: 310.3 | G33: 0 | H33: 0 | I33: 0 | J33: 0 | K33: 0 | L33: 0 | M33: 0 | N33: 0 | O33: 310.3 | P33: 1 | Q33: 0 | R33: 0 | X33: 0.0 | Y33: 0 | Z33: 0
A34: 25 | B34: ='Wettkampf 1'!B34 -> Werner Jansen | C34: ='Wettkampf 1'!C34 -> Breddenb.-Heid. III | D34: 304.8 | F34: 304.8 | G34: 0 | H34: 0 | I34: 0 | J34: 0 | K34: 0 | L34: 0 | M34: 0 | N34: 0 | O34: 304.8 | P34: 1 | Q34: 0 | R34: 0 | X34: 0.0 | Y34: 0 | Z34: 0
A35: 26 | B35: ='Wettkampf 1'!B35 -> Alfons Plüster | C35: ='Wettkampf 1'!C35 -> Breddenb.-Heid. III | D35: 308.0 | E35: x | F35: 0 | G35: 0 | H35: 0 | I35: 0 | J35: 0 | K35: 0 | L35: 0 | M35: 0 | N35: 0 | O35: 0 | P35: 0 | Q35: 0 | R35: 0 | X35: 0.0 | Y35: 0 | Z35: 0
A36: 27 | B36: ='Wettkampf 1'!B36 -> Johannes Oldiges | C36: ='Wettkampf 1'!C36 -> Breddenb.-Heid. III | D36: 308.9 | E36: x | F36: 0 | G36: 0 | H36: 0 | I36: 0 | J36: 0 | K36: 0 | L36: 0 | M36: 0 | N36: 0 | O36: 0 | P36: 0 | Q36: 0 | R36: 0 | X36: 0.0 | Y36: 0 | Z36: 0
A37: 28 | B37: ='Wettkampf 1'!B37 -> Hans Plüster | C37: ='Wettkampf 1'!C37 -> Breddenb.-Heid. III | D37: 312.8 | F37: 312.8 | G37: 0 | H37: 0 | I37: 0 | J37: 0 | K37: 0 | L37: 0 | M37: 0 | N37: 0 | O37: 312.8 | P37: 1 | Q37: 0 | R37: 0 | X37: 0.0 | Y37: 0 | Z37: 0
A38: 29 | B38: ='Wettkampf 1'!B38 -> Josef Wübben | C38: ='Wettkampf 1'!C38 -> Breddenb.-Heid. III | D38: 309.4 | F38: 309.4 | G38: 0 | H38: 0 | I38: 0 | J38: 0 | K38: 0 | L38: 0 | M38: 0 | N38: 0 | O38: 309.4 | P38: 1 | Q38: 0 | R38: 0 | X38: 0.0 | Y38: 0 | Z38: 0
A39: 30 | B39: ='Wettkampf 1'!B39 -> Thomas Niermann | C39: ='Wettkampf 1'!C39 -> Werlte III | D39: 308.0 | F39: 308.0 | G39: 0 | H39: 0 | I39: 0 | J39: 0 | K39: 0 | L39: 0 | M39: 0 | N39: 0 | O39: 0 | P39: 0 | Q39: 308 | R39: 1 | X39: 0.0 | Y39: 0 | Z39: 0
A40: 31 | B40: ='Wettkampf 1'!B40 -> Bernd Thien | C40: ='Wettkampf 1'!C40 -> Werlte III | D40: 314.3 | F40: 314.3 | G40: 0 | H40: 0 | I40: 0 | J40: 0 | K40: 0 | L40: 0 | M40: 0 | N40: 0 | O40: 0 | P40: 0 | Q40: 314.3 | R40: 1 | X40: 0.0 | Y40: 0 | Z40: 0
A41: 32 | B41: ='Wettkampf 1'!B41 -> Norbert Grünloh | C41: ='Wettkampf 1'!C41 -> Werlte III | D41: 310.2 | F41: 310.2 | G41: 0 | H41: 0 | I41: 0 | J41: 0 | K41: 0 | L41: 0 | M41: 0 | N41: 0 | O41: 0 | P41: 0 | Q41: 310.2 | R41: 1 | X41: 0.0 | Y41: 0 | Z41: 0
A42: 33 | B42: ='Wettkampf 1'!B42 -> Andreas Thoben | C42: ='Wettkampf 1'!C42 -> Werlte III | D42: 314.4 | F42: 314.4 | G42: 0 | H42: 0 | I42: 0 | J42: 0 | K42: 0 | L42: 0 | M42: 0 | N42: 0 | O42: 0 | P42: 0 | Q42: 314.4 | R42: 1 | X42: 0.0 | Y42: 0 | Z42: 0
A43: 34 | B43: ='Wettkampf 1'!B43 -> Hermann Krone | C43: ='Wettkampf 1'!C43 -> Werlte III | D43: 312.2 | E43: x | F43: 0 | G43: 0 | H43: 0 | I43: 0 | J43: 0 | K43: 0 | L43: 0 | M43: 0 | N43: 0 | O43: 0 | P43: 0 | Q43: 0 | R43: 0 | X43: 0.0 | Y43: 0 | Z43: 0
A44: 35 | B44: ='Wettkampf 1'!B44 -> Michael Freitag | C44: ='Wettkampf 1'!C44 -> Werlte III | D44: 314.6 | E44: x | F44: 0 | G44: 0 | H44: 0 | I44: 0 | J44: 0 | K44: 0 | L44: 0 | M44: 0 | N44: 0 | O44: 0 | P44: 0 | Q44: 0 | R44: 0 | X44: 0.0 | Y44: 0 | Z44: 0
A45: 36 | B45: ='Wettkampf 1'!B45 -> Joachim Niermann | C45: ='Wettkampf 1'!C45 -> Werlte III | D45: 312.3 | E45: x | F45: 0 | G45: 0 | H45: 0 | I45: 0 | J45: 0 | K45: 0 | L45: 0 | M45: 0 | N45: 0 | O45: 0 | P45: 0 | Q45: 0 | R45: 0 | X45: 0.0 | Y45: 0 | Z45: 0
G46: =LARGE(G10:G45,1)+LARGE(G10:G45,2)+LARGE(G10:G45,3) -> 924.8 | H46: =SUM(H10:H45) -> 4 | I46: =LARGE(I10:I45,1)+LARGE(I10:I45,2)+LARGE(I10:I45,3) -> 946.5 | J46: =SUM(J10:J45) -> 4 | K46: =LARGE(K10:K45,1)+LARGE(K10:K45,2)+LARGE(K10:K45,3) -> 927.9 | L46: =SUM(L10:L45) -> 4 | M46: =LARGE(M10:M45,1)+LARGE(M10:M45,2)+LARGE(M10:M45,3) -> 931.3 | N46: =SUM(N10:N45) -> 4 | O46: =LARGE(O10:O45,1)+LARGE(O10:O45,2)+LARGE(O10:O45,3) -> 932.5 | P46: =SUM(P10:P45) -> 4 | Q46: =LARGE(Q10:Q45,1)+LARGE(Q10:Q45,2)+LARGE(Q10:Q45,3) -> 938.9 | R46: =SUM(R10:S45) -> 4
C47: per Email an: sk-huemmling@gmx.de

Sheet 6
B1: Verein / Gruppe | D1: Ergebnisse | V1: Austragungsort: | W1: =Übersicht!I4 -> Werlte
A2: 1 | B2: ='Wettkampf 1'!B2 -> Breddenb.-Heid. I | D2: =G46 -> 929.2 | E2: =IF(H46>4,"Es sind zu viele Schützen in Wertung!"," ") ->  | V2: Wettkampftag: | W2: =Übersicht!I3 -> 08.12.
A3: 2 | B3: ='Wettkampf 1'!B3 -> Ostenwalde II | D3: =I46 -> 941.0 | E3: =IF(J46>4,"Es sind zu viele Schützen in Wertung!"," ") -> 
A4: 3 | B4: ='Wettkampf 1'!B4 -> Börgermoor II | D4: =K46 -> 929.0 | E4: =IF(L46>4,"Es sind zu viele Schützen in Wertung!"," ") ->  | X4: Ansprechpartner für Rückfragen:
A5: 4 | B5: ='Wettkampf 1'!B5 -> Lorup III | D5: =M46 -> 932.1 | E5: =IF(N46>4,"Es sind zu viele Schützen in Wertung!"," ") ->  | V5: Name: | W5: Bernd Thien
A6: 5 | B6: ='Wettkampf 1'!B6 -> Breddenb.-Heid. III | D6: =O46 -> 927.6 | E6: =IF(P46>4,"Es sind zu viele Schützen in Wertung!"," ") ->  | V6: Tel: | W6: 05951/995774
A7: 6 | B7: ='Wettkampf 1'!B7 -> Werlte III | D7: =Q46 -> 935.6 | E7: =IF(R46>4,"Es sind zu viele Schützen in Wertung!"," ") ->  | V7: Standaufsicht: | W7: Bernd Thien
B9: Einzelergebnisse: | C9: Verein / Gruppe | D9: Ergebnisse (mindestens 0 eintragen) | E9: AW? Dann x eintippen | G9: Verein 1 | I9: Verein 2 | K9: Verein 3 | M9: Verein 4 | O9: Verein 5 | Q9: Verein 6 | U9: Proberechnung bei Streifen:
A10: 1 | B10: ='Wettkampf 1'!B10 -> Hans Gebken 3 | C10: ='Wettkampf 1'!C10 -> Breddenb.-Heid. I | D10: 307.9 | F10: =IF(E10="x","0",D10) -> 307.9 | G10: =IF(C10=$B$2,F10,0) -> 307.9 | H10: =(IF(AND($E10="",$C10=$B$2),1,0)) -> 1 | I10: =IF($C10=$B$3,F10,0) -> 0 | J10: =(IF(AND($E10="",$C10=$B$3),1,0)) -> 0 | K10: =IF($C10=$B$4,F10,0) -> 0 | L10: =(IF(AND($E10="",$C10=$B$4),1,0)) -> 0 | M10: =IF($C10=$B$5,F10,0) -> 0 | N10: =(IF(AND($E10="",$C10=$B$5),1,0)) -> 0 | O10: =IF($C10=$B$6,F10,0) -> 0 | P10: =(IF(AND($E10="",$C10=$B$6),1,0)) -> 0 | Q10: =IF($C10=$B$7,F10,0) -> 0 | R10: =(IF(AND($E10="",$C10=$B$7),1,0)) -> 0 | U10: 103.9 | V10: 103.9 | W10: 100.1 | X10: =U10+V10+W10 -> 307.9 | Y10: =IF(X10=D10,1,0) -> 1 | Z10: =IF(X10=0,0,1) -> 1 | AA10: =IF(Y10+Z10=2,"Korrekt","") -> Korrekt
A11: 2 | B11: ='Wettkampf 1'!B11 -> Gerd Vogel | C11: ='Wettkampf 1'!C11 -> Breddenb.-Heid. I | D11: 313.0 | F11: =IF(E11="x","0",D11) -> 313.0 | G11: =IF(C11=$B$2,F11,0) -> 313 | H11: =(IF(AND($E11="",$C11=$B$2),1,0)) -> 1 | I11: =IF($C11=$B$3,F11,0) -> 0 | J11: =(IF(AND($E11="",$C11=$B$3),1,0)) -> 0 | K11: =IF($C11=$B$4,F11,0) -> 0 | L11: =(IF(AND($E11="",$C11=$B$4),1,0)) -> 0 | M11: =IF($C11=$B$5,F11,0) -> 0 | N11: =(IF(AND($E11="",$C11=$B$5),1,0)) -> 0 | O11: =IF($C11=$B$6,F11,0) -> 0 | P11: =(IF(AND($E11="",$C11=$B$6),1,0)) -> 0 | Q11: =IF($C11=$B$7,F11,0) -> 0 | R11: =(IF(AND($E11="",$C11=$B$7),1,0)) -> 0 | U11: 103.5 | V11: 104.9 | W11: 104.6 | X11: =U11+V11+W11 -> 313.0 | Y11: =IF(X11=D11,1,0) -> 1 | Z11: =IF(X11=0,0,1) -> 1 | AA11: =IF(Y11+Z11=2,"Korrekt","") -> Korrekt
A12: 3 | B12: ='Wettkampf 1'!B12 -> Heinz Engbers | C12: ='Wettkampf 1'!C12 -> Breddenb.-Heid. I | D12: 308.3 | F12: 308.3 | G12: 308.3 | H12: 1 | I12: 0 | J12: 0 | K12: 0 | L12: 0 | M12: 0 | N12: 0 | O12: 0 | P12: 0 | Q12: 0 | R12: 0 | U12: 103.5 | V12: 102.9 | W12: 101.9 | X12: 308.3 | Y12: 1 | Z12: 1 | AA12: Korrekt
A13: 4 | B13: ='Wettkampf 1'!B13 -> Willi Engbers | C13: ='Wettkampf 1'!C13 -> Breddenb.-Heid. I | D13: 307.9 | F13: 307.9 | G13: 307.9 | H13: 1 | I13: 0 | J13: 0 | K13: 0 | L13: 0 | M13: 0 | N13: 0 | O13: 0 | P13: 0 | Q13: 0 | R13: 0 | U13: 100.3 | V13: 103.4 | W13: 104.2 | X13: 307.9 | Y13: 1 | Z13: 1 | AA13: Korrekt
A14: 5 | B14: ='Wettkampf 1'!B14 -> Hans Gebken 1 | C14: ='Wettkampf 1'!C14 -> Breddenb.-Heid. I | D14: 299.8 | E14: x | F14: 0 | G14: 0 | H14: 0 | I14: 0 | J14: 0 | K14: 0 | L14: 0 | M14: 0 | N14: 0 | O14: 0 | P14: 0 | Q14: 0 | R14: 0 | U14: 97.1 | V14: 101.2 | W14: 101.5 | X14: 299.8 | Y14: 1 | Z14: 1 | AA14: Korrekt
A15: 6 | B15: ='Wettkampf 1'!B15 -> Philipp Schmidt | C15: ='Wettkampf 1'!C15 -> Ostenwalde II | D15: 316.5 | F15: 316.5 | G15: 0 | H15: 0 | I15: 316.5 | J15: 1 | K15: 0 | L15: 0 | M15: 0 | N15: 0 | O15: 0 | P15: 0 | Q15: 0 | R15: 0 | U15: 104.3 | V15: 106.2 | W15: 106.0 | X15: 316.5 | Y15: 1 | Z15: 1 | AA15: Korrekt
A16: 7 | B16: ='Wettkampf 1'!B16 -> Philipp Scholübbers | C16: ='Wettkampf 1'!C16 -> Ostenwalde II | D16: 312.7 | F16: 312.7 | G16: 0 | H16: 0 | I16: 312.7 | J16: 1 | K16: 0 | L16: 0 | M16: 0 | N16: 0 | O16: 0 | P16: 0 | Q16: 0 | R16: 0 | U16: 104.1 | V16: 104.1 | W16: 104.5 | X16: 312.7 | Y16: 1 | Z16: 1 | AA16: Korrekt
A17: 8 | B17: ='Wettkampf 1'!B17 -> Matthias Brinkmann | C17: ='Wettkampf 1'!C17 -> Ostenwalde II | D17: 303.3 | E17: x | F17: 0 | G17: 0 | H17: 0 | I17: 0 | J17: 0 | K17: 0 | L17: 0 | M17: 0 | N17: 0 | O17: 0 | P17: 0 | Q17: 0 | R17: 0 | U17: 101.4 | V17: 100.9 | W17: 101.0 | X17: 303.3 | Y17: 1 | Z17: 1 | AA17: Korrekt
A18: 9 | B18: ='Wettkampf 1'!B18 -> Patrik Krüßel | C18: ='Wettkampf 1'!C18 -> Ostenwalde II | D18: 311.8 | F18: 311.8 | G18: 0 | H18: 0 | I18: 311.8 | J18: 1 | K18: 0 | L18: 0 | M18: 0 | N18: 0 | O18: 0 | P18: 0 | Q18: 0 | R18: 0 | U18: 104.3 | V18: 102.2 | W18: 105.3 | X18: 311.8 | Y18: 1 | Z18: 1 | AA18: Korrekt
A19: 10 | B19: ='Wettkampf 1'!B19 -> Markus Jansen | C19: ='Wettkampf 1'!C19 -> Ostenwalde II | D19: 308.6 | F19: 308.6 | G19: 0 | H19: 0 | I19: 308.6 | J19: 1 | K19: 0 | L19: 0 | M19: 0 | N19: 0 | O19: 0 | P19: 0 | Q19: 0 | R19: 0 | U19: 102.8 | V19: 104.9 | W19: 100.9 | X19: 308.6 | Y19: 1 | Z19: 1 | AA19: Korrekt
A20: 11 | B20: ='Wettkampf 1'!B20 -> Helmut Benten | C20: ='Wettkampf 1'!C20 -> Ostenwalde II | D20: 304.7 | E20: x | F20: 0 | G20: 0 | H20: 0 | I20: 0 | J20: 0 | K20: 0 | L20: 0 | M20: 0 | N20: 0 | O20: 0 | P20: 0 | Q20: 0 | R20: 0 | U20: 102.0 | V20: 102.0 | W20: 100.7 | X20: 304.7 | Y20: 1 | Z20: 1 | AA20: Korrekt
A21: 12 | B21: ='Wettkampf 1'!B21 -> Heinz Dirksen | C21: ='Wettkampf 1'!C21 -> Börgermoor II | D21: 307.8 | F21: 307.8 | G21: 0 | H21: 0 | I21: 0 | J21: 0 | K21: 307.8 | L21: 1 | M21: 0 | N21: 0 | O21: 0 | P21: 0 | Q21: 0 | R21: 0 | U21: 105.3 | V21: 103.3 | W21: 99.2 | X21: 307.8 | Y21: 1 | Z21: 1 | AA21: Korrekt
A22: 13 | B22: ='Wettkampf 1'!B22 -> Hans Ortmann | C22: ='Wettkampf 1'!C22 -> Börgermoor II | D22: 309.7 | F22: 309.7 | G22: 0 | H22: 0 | I22: 0 | J22: 0 | K22: 309.7 | L22: 1 | M22: 0 | N22: 0 | O22: 0 | P22: 0 | Q22: 0 | R22: 0 | U22: 103.6 | V22: 102.0 | W22: 104.1 | X22: 309.7 | Y22: 1 | Z22: 1 | AA22: Korrekt
A23: 14 | B23: ='Wettkampf 1'!B23 -> Karl-Heinz Ortmann | C23: ='Wettkampf 1'!C23 -> Börgermoor II | D23: 307.7 | F23: 307.7 | G23: 0 | H23: 0 | I23: 0 | J23: 0 | K23: 307.7 | L23: 1 | M23: 0 | N23: 0 | O23: 0 | P23: 0 | Q23: 0 | R23: 0 | U23: 100.8 | V23: 104.1 | W23: 102.8 | X23: 307.7 | Y23: 1 | Z23: 1 | AA23: Korrekt
A24: 15 | B24: ='Wettkampf 1'!B24 -> Johannes Jansen | C24: ='Wettkampf 1'!C24 -> Börgermoor II | D24: 311.5 | F24: 311.5 | G24: 0 | H24: 0 | I24: 0 | J24: 0 | K24: 311.5 | L24: 1 | M24: 0 | N24: 0 | O24: 0 | P24: 0 | Q24: 0 | R24: 0 | U24: 105.4 | V24: 104.1 | W24: 102.0 | X24: 311.5 | Y24: 1 | Z24: 1 | AA24: Korrekt
A25: 16 | B25: ='Wettkampf 1'!B25 -> Kevin Minnert | C25: ='Wettkampf 1'!C25 -> Börgermoor II | D25: 294.9 | E25: x | F25: 0 | G25: 0 | H25: 0 | I25: 0 | J25: 0 | K25: 0 | L25: 0 | M25: 0 | N25: 0 | O25: 0 | P25: 0 | Q25: 0 | R25: 0 | U25: 98.0 | V25: 98.2 | W25: 98.7 | X25: 294.9 | Y25: 1 | Z25: 1 | AA25: Korrekt
A26: 17 | B26: ='Wettkampf 1'!B26 -> Daniel Schülke | C26: ='Wettkampf 1'!C26 -> Börgermoor II | E26: x | F26: 0 | G26: 0 | H26: 0 | I26: 0 | J26: 0 | K26: 0 | L26: 0 | M26: 0 | N26: 0 | O26: 0 | P26: 0 | Q26: 0 | R26: 0 | X26: 0.0 | Y26: 1 | Z26: 0
A27: 18 | B27: ='Wettkampf 1'!B27 -> Frank Wotte | C27: ='Wettkampf 1'!C27 -> Lorup III | D27: 311.6 | F27: 311.6 | G27: 0 | H27: 0 | I27: 0 | J27: 0 | K27: 0 | L27: 0 | M27: 311.6 | N27: 1 | O27: 0 | P27: 0 | Q27: 0 | R27: 0 | U27: 104.5 | V27: 101.9 | W27: 105.2 | X27: 311.6 | Y27: 1 | Z27: 1 | AA27: Korrekt
A28: 19 | B28: ='Wettkampf 1'!B28 -> Johannes Wesseln | C28: ='Wettkampf 1'!C28 -> Lorup III | D28: 312.1 | F28: 312.1 | G28: 0 | H28: 0 | I28: 0 | J28: 0 | K28: 0 | L28: 0 | M28: 312.1 | N28: 1 | O28: 0 | P28: 0 | Q28: 0 | R28: 0 | U28: 103.5 | V28: 105.1 | W28: 103.5 | X28: 312.1 | Y28: 1 | Z28: 1 | AA28: Korrekt
A29: 20 | B29: ='Wettkampf 1'!B29 -> Anton Oldiges | C29: ='Wettkampf 1'!C29 -> Lorup III | D29: 307.3 | F29: 307.3 | G29: 0 | H29: 0 | I29: 0 | J29: 0 | K29: 0 | L29: 0 | M29: 307.3 | N29: 1 | O29: 0 | P29: 0 | Q29: 0 | R29: 0 | U29: 101.6 | V29: 102.6 | W29: 103.1 | X29: 307.3 | Y29: 1 | Z29: 1 | AA29: Korrekt
A30: 21 | B30: ='Wettkampf 1'!B30 -> Jürgen Will | C30: ='Wettkampf 1'!C30 -> Lorup III | D30: 308.4 | F30: 308.4 | G30: 0 | H30: 0 | I30: 0 | J30: 0 | K30: 0 | L30: 0 | M30: 308.4 | N30: 1 | O30: 0 | P30: 0 | Q30: 0 | R30: 0 | U30: 103.8 | V30: 101.7 | W30: 102.9 | X30: 308.4 | Y30: 1 | Z30: 1 | AA30: Korrekt
A31: 22 | B31: ='Wettkampf 1'!B31 -> Schütze 22 | C31: ='Wettkampf 1'!C31 -> Lorup III | E31: x | F31: 0 | G31: 0 | H31: 0 | I31: 0 | J31: 0 | K31: 0 | L31: 0 | M31: 0 | N31: 0 | O31: 0 | P31: 0 | Q31: 0 | R31: 0 | X31: 0.0 | Y31: 1 | Z31: 0
A32: 23 | B32: ='Wettkampf 1'!B32 -> Schütze 23 | C32: ='Wettkampf 1'!C32 -> Lorup III | E32: x | F32: 0 | G32: 0 | H32: 0 | I32: 0 | J32: 0 | K32: 0 | L32: 0 | M32: 0 | N32: 0 | O32: 0 | P32: 0 | Q32: 0 | R32: 0 | X32: 0.0 | Y32: 1 | Z32: 0
A33: 24 | B33: ='Wettkampf 1'!B33 -> Norbert Jansen | C33: ='Wettkampf 1'!C33 -> Breddenb.-Heid. III | D33: 309.5 | F33: 309.5 | G33: 0 | H33: 0 | I33: 0 | J33: 0 | K33: 0 | L33: 0 | M33: 0 | N33: 0 | O33: 309.5 | P33: 1 | Q33: 0 | R33: 0 | U33: 103.9 | V33: 102.9 | W33: 102.7 | X33: 309.5 | Y33: 1 | Z33: 1 | AA33: Korrekt
A34: 25 | B34: ='Wettkampf 1'!B34 -> Werner Jansen | C34: ='Wettkampf 1'!C34 -> Breddenb.-Heid. III | D34: 306.7 | F34: 306.7 | G34: 0 | H34: 0 | I34: 0 | J34: 0 | K34: 0 | L34: 0 | M34: 0 | N34: 0 | O34: 306.7 | P34: 1 | Q34: 0 | R34: 0 | U34: 104.7 | V34: 99.7 | W34: 102.3 | X34: 306.7 | Y34: 1 | Z34: 1 | AA34: Korrekt
A35: 26 | B35: ='Wettkampf 1'!B35 -> Alfons Plüster | C35: ='Wettkampf 1'!C35 -> Breddenb.-Heid. III | D35: 303.6 | E35: x | F35: 0 | G35: 0 | H35: 0 | I35: 0 | J35: 0 | K35: 0 | L35: 0 | M35: 0 | N35: 0 | O35: 0 | P35: 0 | Q35: 0 | R35: 0 | U35: 101.4 | V35: 101.4 | W35: 100.8 | X35: 303.6 | Y35: 1 | Z35: 1 | AA35: Korrekt
A36: 27 | B36: ='Wettkampf 1'!B36 -> Johannes Oldiges | C36: ='Wettkampf 1'!C36 -> Breddenb.-Heid. III | D36: 307.5 | E36: x | F36: 0 | G36: 0 | H36: 0 | I36: 0 | J36: 0 | K36: 0 | L36: 0 | M36: 0 | N36: 0 | O36: 0 | P36: 0 | Q36: 0 | R36: 0 | U36: 102.3 | V36: 101.4 | W36: 103.8 | X36: 307.5 | Y36: 1 | Z36: 1 | AA36: Korrekt
A37: 28 | B37: ='Wettkampf 1'!B37 -> Hans Plüster | C37: ='Wettkampf 1'!C37 -> Breddenb.-Heid. III | D37: 311.4 | F37: 311.4 | G37: 0 | H37: 0 | I37: 0 | J37: 0 | K37: 0 | L37: 0 | M37: 0 | N37: 0 | O37: 311.4 | P37: 1 | Q37: 0 | R37: 0 | U37: 104.0 | V37: 103.6 | W37: 103.8 | X37: 311.4 | Y37: 1 | Z37: 1 | AA37: Korrekt
A38: 29 | B38: ='Wettkampf 1'!B38 -> Josef Wübben | C38: ='Wettkampf 1'!C38 -> Breddenb.-Heid. III | D38: 303.9 | F38: 303.9 | G38: 0 | H38: 0 | I38: 0 | J38: 0 | K38: 0 | L38: 0 | M38: 0 | N38: 0 | O38: 303.9 | P38: 1 | Q38: 0 | R38: 0 | U38: 99.8 | V38: 101.8 | W38: 102.3 | X38: 303.9 | Y38: 1 | Z38: 1 | AA38: Korrekt
A39: 30 | B39: ='Wettkampf 1'!B39 -> Thomas Niermann | C39: ='Wettkampf 1'!C39 -> Werlte III | D39: 310.5 | E39: x | F39: 0 | G39: 0 | H39: 0 | I39: 0 | J39: 0 | K39: 0 | L39: 0 | M39: 0 | N39: 0 | O39: 0 | P39: 0 | Q39: 0 | R39: 0 | U39: 104.9 | V39: 103.1 | W39: 102.5 | X39: 310.5 | Y39: 1 | Z39: 1 | AA39: Korrekt
A40: 31 | B40: ='Wettkampf 1'!B40 -> Bernd Thien | C40: ='Wettkampf 1'!C40 -> Werlte III | D40: 309.0 | F40: 309.0 | G40: 0 | H40: 0 | I40: 0 | J40: 0 | K40: 0 | L40: 0 | M40: 0 | N40: 0 | O40: 0 | P40: 0 | Q40: 309 | R40: 1 | U40: 103.6 | V40: 104.4 | W40: 101.0 | X40: 309.0 | Y40: 1 | Z40: 1 | AA40: Korrekt
A41: 32 | B41: ='Wettkampf 1'!B41 -> Norbert Grünloh | C41: ='Wettkampf 1'!C41 -> Werlte III | D41: 313.8 | F41: 313.8 | G41: 0 | H41: 0 | I41: 0 | J41: 0 | K41: 0 | L41: 0 | M41: 0 | N41: 0 | O41: 0 | P41: 0 | Q41: 313.8 | R41: 1 | U41: 104.9 | V41: 103.7 | W41: 105.2 | X41: 313.8 | Y41: 1 | Z41: 1 | AA41: Korrekt
A42: 33 | B42: ='Wettkampf 1'!B42 -> Andreas Thoben | C42: ='Wettkampf 1'!C42 -> Werlte III | D42: 312.8 | F42: 312.8 | G42: 0 | H42: 0 | I42: 0 | J42: 0 | K42: 0 | L42: 0 | M42: 0 | N42: 0 | O42: 0 | P42: 0 | Q42: 312.8 | R42: 1 | U42: 105.0 | V42: 103.7 | W42: 104.1 | X42: 312.8 | Y42: 1 | Z42: 1 | AA42: Korrekt
A43: 34 | B43: ='Wettkampf 1'!B43 -> Hermann Krone | C43: ='Wettkampf 1'!C43 -> Werlte III | D43: 310.3 | E43: x | F43: 0 | G43: 0 | H43: 0 | I43: 0 | J43: 0 | K43: 0 | L43: 0 | M43: 0 | N43: 0 | O43: 0 | P43: 0 | Q43: 0 | R43: 0 | U43: 102.0 | V43: 102.4 | W43: 105.9 | X43: 310.3 | Y43: 1 | Z43: 1 | AA43: Korrekt
A44: 35 | B44: ='Wettkampf 1'!B44 -> Michael Freitag | C44: ='Wettkampf 1'!C44 -> Werlte III | D44: 310.1 | E44: x | F44: 0 | G44: 0 | H44: 0 | I44: 0 | J44: 0 | K44: 0 | L44: 0 | M44: 0 | N44: 0 | O44: 0 | P44: 0 | Q44: 0 | R44: 0 | U44: 106.5 | V44: 103.4 | W44: 100.2 | X44: 310.1 | Y44: 1 | Z44: 1 | AA44: Korrekt
A45: 36 | B45: ='Wettkampf 1'!B45 -> Joachim Niermann | C45: ='Wettkampf 1'!C45 -> Werlte III | D45: 307.9 | F45: 307.9 | G45: 0 | H45: 0 | I45: 0 | J45: 0 | K45: 0 | L45: 0 | M45: 0 | N45: 0 | O45: 0 | P45: 0 | Q45: 307.9 | R45: 1 | U45: 101.4 | V45: 103.6 | W45: 102.9 | X45: 307.9 | Y45: 1 | Z45: 1 | AA45: Korrekt
G46: =LARGE(G10:G45,1)+LARGE(G10:G45,2)+LARGE(G10:G45,3) -> 929.2 | H46: =SUM(H10:H45) -> 4 | I46: =LARGE(I10:I45,1)+LARGE(I10:I45,2)+LARGE(I10:I45,3) -> 941 | J46: =SUM(J10:J45) -> 4 | K46: =LARGE(K10:K45,1)+LARGE(K10:K45,2)+LARGE(K10:K45,3) -> 929 | L46: =SUM(L10:L45) -> 4 | M46: =LARGE(M10:M45,1)+LARGE(M10:M45,2)+LARGE(M10:M45,3) -> 932.1 | N46: =SUM(N10:N45) -> 4 | O46: =LARGE(O10:O45,1)+LARGE(O10:O45,2)+LARGE(O10:O45,3) -> 927.6 | P46: =SUM(P10:P45) -> 4 | Q46: =LARGE(Q10:Q45,1)+LARGE(Q10:Q45,2)+LARGE(Q10:Q45,3) -> 935.6 | R46: =SUM(R10:S45) -> 4
C47: per Email an: sk-huemmling@gmx.de

Sheet 7
B1: Verein / Gruppe | D1: Ergebnisse | V1: Austragungsort: | W1: =Übersicht!L4 -> Breddenb.-Heid.
A2: 1 | B2: ='Wettkampf 1'!B2 -> Breddenb.-Heid. I | D2: =G46 -> 931.1 | E2: =IF(H46>4,"Es sind zu viele Schützen in Wertung!"," ") ->  | V2: Wettkampftag: | W2: =Übersicht!L3 -> 19.01.
A3: 2 | B3: ='Wettkampf 1'!B3 -> Ostenwalde II | D3: =I46 -> 938.8 | E3: =IF(J46>4,"Es sind zu viele Schützen in Wertung!"," ") -> 
A4: 3 | B4: ='Wettkampf 1'!B4 -> Börgermoor II | D4: =K46 -> 933.2 | E4: =IF(L46>4,"Es sind zu viele Schützen in Wertung!"," ") ->  | X4: Ansprechpartner für Rückfragen:
A5: 4 | B5: ='Wettkampf 1'!B5 -> Lorup III | D5: =M46 -> 937.0 | E5: =IF(N46>4,"Es sind zu viele Schützen in Wertung!"," ") ->  | V5: Name: | W5: heinz engbers
A6: 5 | B6: ='Wettkampf 1'!B6 -> Breddenb.-Heid. III | D6: =O46 -> 938.0 | E6: =IF(P46>4,"Es sind zu viele Schützen in Wertung!"," ") ->  | V6: Tel: | W6: 01749514192
A7: 6 | B7: ='Wettkampf 1'!B7 -> Werlte III | D7: =Q46 -> 937.2 | E7: =IF(R46>4,"Es sind zu viele Schützen in Wertung!"," ") ->  | V7: Standaufsicht: | W7: willi engbers
B9: Einzelergebnisse: | C9: Verein / Gruppe | D9: Ergebnisse (mindestens 0 eintragen) | E9: AW? Dann x eintippen | G9: Verein 1 | I9: Verein 2 | K9: Verein 3 | M9: Verein 4 | O9: Verein 5 | Q9: Verein 6 | U9: Proberechnung bei Streifen:
A10: 1 | B10: ='Wettkampf 1'!B10 -> Hans Gebken 3 | C10: ='Wettkampf 1'!C10 -> Breddenb.-Heid. I | D10: 303.6 | F10: =IF(E10="x","0",D10) -> 303.6 | G10: =IF(C10=$B$2,F10,0) -> 303.6 | H10: =(IF(AND($E10="",$C10=$B$2),1,0)) -> 0 | I10: =IF($C10=$B$3,F10,0) -> 0 | J10: =(IF(AND($E10="",$C10=$B$3),1,0)) -> 0 | K10: =IF($C10=$B$4,F10,0) -> 0 | L10: =(IF(AND($E10="",$C10=$B$4),1,0)) -> 0 | M10: =IF($C10=$B$5,F10,0) -> 0 | N10: =(IF(AND($E10="",$C10=$B$5),1,0)) -> 0 | O10: =IF($C10=$B$6,F10,0) -> 0 | P10: =(IF(AND($E10="",$C10=$B$6),1,0)) -> 0 | Q10: =IF($C10=$B$7,F10,0) -> 0 | R10: =(IF(AND($E10="",$C10=$B$7),1,0)) -> 0 | X10: =U10+V10+W10 -> 0.0 | Y10: =IF(X10=D10,1,0) -> 0 | Z10: =IF(X10=0,0,1) -> 0 | AA10: =IF(Y10+Z10=2,"Korrekt","") -> 
A11: 2 | B11: ='Wettkampf 1'!B11 -> Gerd Vogel | C11: ='Wettkampf 1'!C11 -> Breddenb.-Heid. I | D11: 312.1 | F11: =IF(E11="x","0",D11) -> 312.1 | G11: =IF(C11=$B$2,F11,0) -> 312.1 | H11: =(IF(AND($E11="",$C11=$B$2),1,0)) -> 1 | I11: =IF($C11=$B$3,F11,0) -> 0 | J11: =(IF(AND($E11="",$C11=$B$3),1,0)) -> 0 | K11: =IF($C11=$B$4,F11,0) -> 0 | L11: =(IF(AND($E11="",$C11=$B$4),1,0)) -> 0 | M11: =IF($C11=$B$5,F11,0) -> 0 | N11: =(IF(AND($E11="",$C11=$B$5),1,0)) -> 0 | O11: =IF($C11=$B$6,F11,0) -> 0 | P11: =(IF(AND($E11="",$C11=$B$6),1,0)) -> 0 | Q11: =IF($C11=$B$7,F11,0) -> 0 | R11: =(IF(AND($E11="",$C11=$B$7),1,0)) -> 0 | X11: =U11+V11+W11 -> 0.0 | Y11: =IF(X11=D11,1,0) -> 0 | Z11: =IF(X11=0,0,1) -> 0 | AA11: =IF(Y11+Z11=2,"Korrekt","") -> 
A12: 3 | B12: ='Wettkampf 1'!B12 -> Heinz Engbers | C12: ='Wettkampf 1'!C12 -> Breddenb.-Heid. I | D12: 307.9 | F12: 307.9 | G12: 307.9 | H12: 1 | I12: 0 | J12: 0 | K12: 0 | L12: 0 | M12: 0 | N12: 0 | O12: 0 | P12: 0 | Q12: 0 | R12: 0 | X12: 0.0 | Y12: 0 | Z12: 0
A13: 4 | B13: ='Wettkampf 1'!B13 -> Willi Engbers | C13: ='Wettkampf 1'!C13 -> Breddenb.-Heid. I | D13: 311.1 | F13: 311.1 | G13: 311.1 | H13: 1 | I13: 0 | J13: 0 | K13: 0 | L13: 0 | M13: 0 | N13: 0 | O13: 0 | P13: 0 | Q13: 0 | R13: 0 | X13: 0.0 | Y13: 0 | Z13: 0
A14: 5 | B14: ='Wettkampf 1'!B14 -> Hans Gebken 1 | C14: ='Wettkampf 1'!C14 -> Breddenb.-Heid. I | D14: 306.8 | E14: x | F14: 0 | G14: 0 | H14: 0 | I14: 0 | J14: 0 | K14: 0 | L14: 0 | M14: 0 | N14: 0 | O14: 0 | P14: 0 | Q14: 0 | R14: 0 | X14: 0.0 | Y14: 0 | Z14: 0
A15: 6 | B15: ='Wettkampf 1'!B15 -> Philipp Schmidt | C15: ='Wettkampf 1'!C15 -> Ostenwalde II | D15: 315.8 | F15: 315.8 | G15: 0 | H15: 0 | I15: 315.8 | J15: 0 | K15: 0 | L15: 0 | M15: 0 | N15: 0 | O15: 0 | P15: 0 | Q15: 0 | R15: 0 | X15: 0.0 | Y15: 0 | Z15: 0
A16: 7 | B16: ='Wettkampf 1'!B16 -> Philipp Scholübbers | C16: ='Wettkampf 1'!C16 -> Ostenwalde II | D16: 314.0 | F16: 314.0 | G16: 0 | H16: 0 | I16: 314 | J16: 1 | K16: 0 | L16: 0 | M16: 0 | N16: 0 | O16: 0 | P16: 0 | Q16: 0 | R16: 0 | X16: 0.0 | Y16: 0 | Z16: 0
A17: 8 | B17: ='Wettkampf 1'!B17 -> Matthias Brinkmann | C17: ='Wettkampf 1'!C17 -> Ostenwalde II | D17: 310.3 | E17: x | F17: 0 | G17: 0 | H17: 0 | I17: 0 | J17: 0 | K17: 0 | L17: 0 | M17: 0 | N17: 0 | O17: 0 | P17: 0 | Q17: 0 | R17: 0 | X17: 0.0 | Y17: 0 | Z17: 0
A18: 9 | B18: ='Wettkampf 1'!B18 -> Patrik Krüßel | C18: ='Wettkampf 1'!C18 -> Ostenwalde II | D18: 308.8 | F18: 308.8 | G18: 0 | H18: 0 | I18: 308.8 | J18: 1 | K18: 0 | L18: 0 | M18: 0 | N18: 0 | O18: 0 | P18: 0 | Q18: 0 | R18: 0 | X18: 0.0 | Y18: 0 | Z18: 0
A19: 10 | B19: ='Wettkampf 1'!B19 -> Markus Jansen | C19: ='Wettkampf 1'!C19 -> Ostenwalde II | D19: 309.0 | F19: 309.0 | G19: 0 | H19: 0 | I19: 309 | J19: 1 | K19: 0 | L19: 0 | M19: 0 | N19: 0 | O19: 0 | P19: 0 | Q19: 0 | R19: 0 | X19: 0.0 | Y19: 0 | Z19: 0
A20: 11 | B20: ='Wettkampf 1'!B20 -> Helmut Benten | C20: ='Wettkampf 1'!C20 -> Ostenwalde II | D20: 305.2 | E20: x | F20: 0 | G20: 0 | H20: 0 | I20: 0 | J20: 0 | K20: 0 | L20: 0 | M20: 0 | N20: 0 | O20: 0 | P20: 0 | Q20: 0 | R20: 0 | X20: 0.0 | Y20: 0 | Z20: 0
A21: 12 | B21: ='Wettkampf 1'!B21 -> Heinz Dirksen | C21: ='Wettkampf 1'!C21 -> Börgermoor II | D21: 307.5 | F21: 307.5 | G21: 0 | H21: 0 | I21: 0 | J21: 0 | K21: 307.5 | L21: 0 | M21: 0 | N21: 0 | O21: 0 | P21: 0 | Q21: 0 | R21: 0 | X21: 0.0 | Y21: 0 | Z21: 0
A22: 13 | B22: ='Wettkampf 1'!B22 -> Hans Ortmann | C22: ='Wettkampf 1'!C22 -> Börgermoor II | D22: 309.6 | F22: 309.6 | G22: 0 | H22: 0 | I22: 0 | J22: 0 | K22: 309.6 | L22: 1 | M22: 0 | N22: 0 | O22: 0 | P22: 0 | Q22: 0 | R22: 0 | X22: 0.0 | Y22: 0 | Z22: 0
A23: 14 | B23: ='Wettkampf 1'!B23 -> Karl-Heinz Ortmann | C23: ='Wettkampf 1'!C23 -> Börgermoor II | D23: 310.6 | F23: 310.6 | G23: 0 | H23: 0 | I23: 0 | J23: 0 | K23: 310.6 | L23: 1 | M23: 0 | N23: 0 | O23: 0 | P23: 0 | Q23: 0 | R23: 0 | X23: 0.0 | Y23: 0 | Z23: 0
A24: 15 | B24: ='Wettkampf 1'!B24 -> Johannes Jansen | C24: ='Wettkampf 1'!C24 -> Börgermoor II | D24: 313.0 | F24: 313.0 | G24: 0 | H24: 0 | I24: 0 | J24: 0 | K24: 313 | L24: 1 | M24: 0 | N24: 0 | O24: 0 | P24: 0 | Q24: 0 | R24: 0 | X24: 0.0 | Y24: 0 | Z24: 0
A25: 16 | B25: ='Wettkampf 1'!B25 -> Kevin Minnert | C25: ='Wettkampf 1'!C25 -> Börgermoor II | D25: 305.1 | E25: x | F25: 0 | G25: 0 | H25: 0 | I25: 0 | J25: 0 | K25: 0 | L25: 0 | M25: 0 | N25: 0 | O25: 0 | P25: 0 | Q25: 0 | R25: 0 | X25: 0.0 | Y25: 0 | Z25: 0
A26: 17 | B26: ='Wettkampf 1'!B26 -> Daniel Schülke | C26: ='Wettkampf 1'!C26 -> Börgermoor II | D26: 300.4 | E26: x | F26: 0 | G26: 0 | H26: 0 | I26: 0 | J26: 0 | K26: 0 | L26: 0 | M26: 0 | N26: 0 | O26: 0 | P26: 0 | Q26: 0 | R26: 0 | X26: 0.0 | Y26: 0 | Z26: 0
A27: 18 | B27: ='Wettkampf 1'!B27 -> Frank Wotte | C27: ='Wettkampf 1'!C27 -> Lorup III | D27: 313.8 | F27: 313.8 | G27: 0 | H27: 0 | I27: 0 | J27: 0 | K27: 0 | L27: 0 | M27: 313.8 | N27: 0 | O27: 0 | P27: 0 | Q27: 0 | R27: 0 | X27: 0.0 | Y27: 0 | Z27: 0
A28: 19 | B28: ='Wettkampf 1'!B28 -> Johannes Wesseln | C28: ='Wettkampf 1'!C28 -> Lorup III | D28: 312.9 | F28: 312.9 | G28: 0 | H28: 0 | I28: 0 | J28: 0 | K28: 0 | L28: 0 | M28: 312.9 | N28: 1 | O28: 0 | P28: 0 | Q28: 0 | R28: 0 | X28: 0.0 | Y28: 0 | Z28: 0
A29: 20 | B29: ='Wettkampf 1'!B29 -> Anton Oldiges | C29: ='Wettkampf 1'!C29 -> Lorup III | D29: 306.3 | F29: 306.3 | G29: 0 | H29: 0 | I29: 0 | J29: 0 | K29: 0 | L29: 0 | M29: 306.3 | N29: 1 | O29: 0 | P29: 0 | Q29: 0 | R29: 0 | X29: 0.0 | Y29: 0 | Z29: 0
A30: 21 | B30: ='Wettkampf 1'!B30 -> Jürgen Will | C30: ='Wettkampf 1'!C30 -> Lorup III | D30: 310.3 | F30: 310.3 | G30: 0 | H30: 0 | I30: 0 | J30: 0 | K30: 0 | L30: 0 | M30: 310.3 | N30: 1 | O30: 0 | P30: 0 | Q30: 0 | R30: 0 | X30: 0.0 | Y30: 0 | Z30: 0
A31: 22 | B31: ='Wettkampf 1'!B31 -> Schütze 22 | C31: ='Wettkampf 1'!C31 -> Lorup III | E31: x | F31: 0 | G31: 0 | H31: 0 | I31: 0 | J31: 0 | K31: 0 | L31: 0 | M31: 0 | N31: 0 | O31: 0 | P31: 0 | Q31: 0 | R31: 0 | X31: 0.0 | Y31: 1 | Z31: 0
A32: 23 | B32: ='Wettkampf 1'!B32 -> Schütze 23 | C32: ='Wettkampf 1'!C32 -> Lorup III | E32: x | F32: 0 | G32: 0 | H32: 0 | I32: 0 | J32: 0 | K32: 0 | L32: 0 | M32: 0 | N32: 0 | O32: 0 | P32: 0 | Q32: 0 | R32: 0 | X32: 0.0 | Y32: 1 | Z32: 0
A33: 24 | B33: ='Wettkampf 1'!B33 -> Norbert Jansen | C33: ='Wettkampf 1'!C33 -> Breddenb.-Heid. III | D33: 312.3 | F33: 312.3 | G33: 0 | H33: 0 | I33: 0 | J33: 0 | K33: 0 | L33: 0 | M33: 0 | N33: 0 | O33: 312.3 | P33: 0 | Q33: 0 | R33: 0 | X33: 0.0 | Y33: 0 | Z33: 0
A34: 25 | B34: ='Wettkampf 1'!B34 -> Werner Jansen | C34: ='Wettkampf 1'!C34 -> Breddenb.-Heid. III | D34: 308.5 | F34: 308.5 | G34: 0 | H34: 0 | I34: 0 | J34: 0 | K34: 0 | L34: 0 | M34: 0 | N34: 0 | O34: 308.5 | P34: 0 | Q34: 0 | R34: 0 | X34: 0.0 | Y34: 0 | Z34: 0
A35: 26 | B35: ='Wettkampf 1'!B35 -> Alfons Plüster | C35: ='Wettkampf 1'!C35 -> Breddenb.-Heid. III | D35: 311.8 | E35: x | F35: 0 | G35: 0 | H35: 0 | I35: 0 | J35: 0 | K35: 0 | L35: 0 | M35: 0 | N35: 0 | O35: 0 | P35: 0 | Q35: 0 | R35: 0 | X35: 0.0 | Y35: 0 | Z35: 0
A36: 27 | B36: ='Wettkampf 1'!B36 -> Johannes Oldiges | C36: ='Wettkampf 1'!C36 -> Breddenb.-Heid. III | D36: 303.8 | E36: x | F36: 0 | G36: 0 | H36: 0 | I36: 0 | J36: 0 | K36: 0 | L36: 0 | M36: 0 | N36: 0 | O36: 0 | P36: 0 | Q36: 0 | R36: 0 | X36: 0.0 | Y36: 0 | Z36: 0
A37: 28 | B37: ='Wettkampf 1'!B37 -> Hans Plüster | C37: ='Wettkampf 1'!C37 -> Breddenb.-Heid. III | D37: 315.6 | F37: 315.6 | G37: 0 | H37: 0 | I37: 0 | J37: 0 | K37: 0 | L37: 0 | M37: 0 | N37: 0 | O37: 315.6 | P37: 1 | Q37: 0 | R37: 0 | X37: 0.0 | Y37: 0 | Z37: 0
A38: 29 | B38: ='Wettkampf 1'!B38 -> Josef Wübben | C38: ='Wettkampf 1'!C38 -> Breddenb.-Heid. III | D38: 310.1 | F38: 310.1 | G38: 0 | H38: 0 | I38: 0 | J38: 0 | K38: 0 | L38: 0 | M38: 0 | N38: 0 | O38: 310.1 | P38: 0 | Q38: 0 | R38: 0 | X38: 0.0 | Y38: 0 | Z38: 0
A39: 30 | B39: ='Wettkampf 1'!B39 -> Thomas Niermann | C39: ='Wettkampf 1'!C39 -> Werlte III | D39: 312.3 | E39: x | F39: 0 | G39: 0 | H39: 0 | I39: 0 | J39: 0 | K39: 0 | L39: 0 | M39: 0 | N39: 0 | O39: 0 | P39: 0 | Q39: 0 | R39: 0 | X39: 0.0 | Y39: 0 | Z39: 0
A40: 31 | B40: ='Wettkampf 1'!B40 -> Bernd Thien | C40: ='Wettkampf 1'!C40 -> Werlte III | D40: 310.7 | F40: 310.7 | G40: 0 | H40: 0 | I40: 0 | J40: 0 | K40: 0 | L40: 0 | M40: 0 | N40: 0 | O40: 0 | P40: 0 | Q40: 310.7 | R40: 1 | X40: 0.0 | Y40: 0 | Z40: 0
A41: 32 | B41: ='Wettkampf 1'!B41 -> Norbert Grünloh | C41: ='Wettkampf 1'!C41 -> Werlte III | D41: 307.8 | F41: 307.8 | G41: 0 | H41: 0 | I41: 0 | J41: 0 | K41: 0 | L41: 0 | M41: 0 | N41: 0 | O41: 0 | P41: 0 | Q41: 307.8 | R41: 1 | X41: 0.0 | Y41: 0 | Z41: 0
A42: 33 | B42: ='Wettkampf 1'!B42 -> Andreas Thoben | C42: ='Wettkampf 1'!C42 -> Werlte III | D42: 316.0 | F42: 316.0 | G42: 0 | H42: 0 | I42: 0 | J42: 0 | K42: 0 | L42: 0 | M42: 0 | N42: 0 | O42: 0 | P42: 0 | Q42: 316 | R42: 1 | X42: 0.0 | Y42: 0 | Z42: 0
A43: 34 | B43: ='Wettkampf 1'!B43 -> Hermann Krone | C43: ='Wettkampf 1'!C43 -> Werlte III | D43: 307.3 | E43: x | F43: 0 | G43: 0 | H43: 0 | I43: 0 | J43: 0 | K43: 0 | L43: 0 | M43: 0 | N43: 0 | O43: 0 | P43: 0 | Q43: 0 | R43: 0 | X43: 0.0 | Y43: 0 | Z43: 0
A44: 35 | B44: ='Wettkampf 1'!B44 -> Michael Freitag | C44: ='Wettkampf 1'!C44 -> Werlte III | D44: 313.9 | E44: x | F44: 0 | G44: 0 | H44: 0 | I44: 0 | J44: 0 | K44: 0 | L44: 0 | M44: 0 | N44: 0 | O44: 0 | P44: 0 | Q44: 0 | R44: 0 | X44: 0.0 | Y44: 0 | Z44: 0
A45: 36 | B45: ='Wettkampf 1'!B45 -> Joachim Niermann | C45: ='Wettkampf 1'!C45 -> Werlte III | D45: 310.5 | F45: 310.5 | G45: 0 | H45: 0 | I45: 0 | J45: 0 | K45: 0 | L45: 0 | M45: 0 | N45: 0 | O45: 0 | P45: 0 | Q45: 310.5 | R45: 0 | X45: 0.0 | Y45: 0 | Z45: 0
G46: =LARGE(G10:G45,1)+LARGE(G10:G45,2)+LARGE(G10:G45,3) -> 931.1 | H46: =SUM(H10:H45) -> 3 | I46: =LARGE(I10:I45,1)+LARGE(I10:I45,2)+LARGE(I10:I45,3) -> 938.8 | J46: =SUM(J10:J45) -> 3 | K46: =LARGE(K10:K45,1)+LARGE(K10:K45,2)+LARGE(K10:K45,3) -> 933.2 | L46: =SUM(L10:L45) -> 3 | M46: =LARGE(M10:M45,1)+LARGE(M10:M45,2)+LARGE(M10:M45,3) -> 937 | N46: =SUM(N10:N45) -> 3 | O46: =LARGE(O10:O45,1)+LARGE(O10:O45,2)+LARGE(O10:O45,3) -> 938 | P46: =SUM(P10:P45) -> 1 | Q46: =LARGE(Q10:Q45,1)+LARGE(Q10:Q45,2)+LARGE(Q10:Q45,3) -> 937.2 | R46: =SUM(R10:S45) -> 3
C47: per Email an: sk-huemmling@gmx.de

Sheet 8
B1: Verein / Gruppe | D1: Ergebnisse | V1: Austragungsort: | W1: =Übersicht!M4 -> Ostenwalde
A2: 1 | B2: ='Wettkampf 1'!B2 -> Breddenb.-Heid. I | D2: =G46 -> 927.6 | E2: =IF(H46>4,"Es sind zu viele Schützen in Wertung!"," ") ->  | V2: Wettkampftag: | W2: =Übersicht!M3 -> 02.02.
A3: 2 | B3: ='Wettkampf 1'!B3 -> Ostenwalde II | D3: =I46 -> 938.7 | E3: =IF(J46>4,"Es sind zu viele Schützen in Wertung!"," ") -> 
A4: 3 | B4: ='Wettkampf 1'!B4 -> Börgermoor II | D4: =K46 -> 927.3 | E4: =IF(L46>4,"Es sind zu viele Schützen in Wertung!"," ") ->  | X4: Ansprechpartner für Rückfragen:
A5: 4 | B5: ='Wettkampf 1'!B5 -> Lorup III | D5: =M46 -> 932.8 | E5: =IF(N46>4,"Es sind zu viele Schützen in Wertung!"," ") ->  | V5: Name: | W5: Markus Jansen
A6: 5 | B6: ='Wettkampf 1'!B6 -> Breddenb.-Heid. III | D6: =O46 -> 930.0 | E6: =IF(P46>4,"Es sind zu viele Schützen in Wertung!"," ") ->  | V6: Tel:
A7: 6 | B7: ='Wettkampf 1'!B7 -> Werlte III | D7: =Q46 -> 942.1 | E7: =IF(R46>4,"Es sind zu viele Schützen in Wertung!"," ") ->  | V7: Standaufsicht: | W7: Philipp Schmidt
B9: Einzelergebnisse: | C9: Verein / Gruppe | D9: Ergebnisse (mindestens 0 eintragen) | E9: AW? Dann x eintippen | G9: Verein 1 | I9: Verein 2 | K9: Verein 3 | M9: Verein 4 | O9: Verein 5 | Q9: Verein 6 | U9: Proberechnung bei Streifen:
A10: 1 | B10: ='Wettkampf 1'!B10 -> Hans Gebken 3 | C10: ='Wettkampf 1'!C10 -> Breddenb.-Heid. I | D10: =X10 -> 306.4 | F10: =IF(E10="x","0",D10) -> 306.4 | G10: =IF(C10=$B$2,F10,0) -> 306.4 | H10: =(IF(AND($E10="",$C10=$B$2),1,0)) -> 1 | I10: =IF($C10=$B$3,F10,0) -> 0 | J10: =(IF(AND($E10="",$C10=$B$3),1,0)) -> 0 | K10: =IF($C10=$B$4,F10,0) -> 0 | L10: =(IF(AND($E10="",$C10=$B$4),1,0)) -> 0 | M10: =IF($C10=$B$5,F10,0) -> 0 | N10: =(IF(AND($E10="",$C10=$B$5),1,0)) -> 0 | O10: =IF($C10=$B$6,F10,0) -> 0 | P10: =(IF(AND($E10="",$C10=$B$6),1,0)) -> 0 | Q10: =IF($C10=$B$7,F10,0) -> 0 | R10: =(IF(AND($E10="",$C10=$B$7),1,0)) -> 0 | U10: 102.5 | V10: 101.9 | W10: 102.0 | X10: =U10+V10+W10 -> 306.4 | Y10: =IF(X10=D10,1,0) -> 1 | Z10: =IF(X10=0,0,1) -> 1 | AA10: =IF(Y10+Z10=2,"Korrekt","") -> Korrekt
A11: 2 | B11: ='Wettkampf 1'!B11 -> Gerd Vogel | C11: ='Wettkampf 1'!C11 -> Breddenb.-Heid. I | D11: =X11 -> 308.6 | F11: =IF(E11="x","0",D11) -> 308.6 | G11: =IF(C11=$B$2,F11,0) -> 308.6 | H11: =(IF(AND($E11="",$C11=$B$2),1,0)) -> 1 | I11: =IF($C11=$B$3,F11,0) -> 0 | J11: =(IF(AND($E11="",$C11=$B$3),1,0)) -> 0 | K11: =IF($C11=$B$4,F11,0) -> 0 | L11: =(IF(AND($E11="",$C11=$B$4),1,0)) -> 0 | M11: =IF($C11=$B$5,F11,0) -> 0 | N11: =(IF(AND($E11="",$C11=$B$5),1,0)) -> 0 | O11: =IF($C11=$B$6,F11,0) -> 0 | P11: =(IF(AND($E11="",$C11=$B$6),1,0)) -> 0 | Q11: =IF($C11=$B$7,F11,0) -> 0 | R11: =(IF(AND($E11="",$C11=$B$7),1,0)) -> 0 | U11: 101.8 | V11: 103.3 | W11: 103.5 | X11: =U11+V11+W11 -> 308.6 | Y11: =IF(X11=D11,1,0) -> 1 | Z11: =IF(X11=0,0,1) -> 1 | AA11: =IF(Y11+Z11=2,"Korrekt","") -> Korrekt
A12: 3 | B12: ='Wettkampf 1'!B12 -> Heinz Engbers | C12: ='Wettkampf 1'!C12 -> Breddenb.-Heid. I | D12: 311.8 | F12: 311.8 | G12: 311.8 | H12: 1 | I12: 0 | J12: 0 | K12: 0 | L12: 0 | M12: 0 | N12: 0 | O12: 0 | P12: 0 | Q12: 0 | R12: 0 | U12: 104.4 | V12: 102.7 | W12: 104.7 | X12: 311.8 | Y12: 1 | Z12: 1 | AA12: Korrekt
A13: 4 | B13: ='Wettkampf 1'!B13 -> Willi Engbers | C13: ='Wettkampf 1'!C13 -> Breddenb.-Heid. I | D13: 307.2 | F13: 307.2 | G13: 307.2 | H13: 1 | I13: 0 | J13: 0 | K13: 0 | L13: 0 | M13: 0 | N13: 0 | O13: 0 | P13: 0 | Q13: 0 | R13: 0 | U13: 103.4 | V13: 101.4 | W13: 102.4 | X13: 307.2 | Y13: 1 | Z13: 1 | AA13: Korrekt
A14: 5 | B14: ='Wettkampf 1'!B14 -> Hans Gebken 1 | C14: ='Wettkampf 1'!C14 -> Breddenb.-Heid. I | D14: 306.4 | E14: x | F14: 0 | G14: 0 | H14: 0 | I14: 0 | J14: 0 | K14: 0 | L14: 0 | M14: 0 | N14: 0 | O14: 0 | P14: 0 | Q14: 0 | R14: 0 | U14: 101.4 | V14: 102.4 | W14: 102.6 | X14: 306.4 | Y14: 1 | Z14: 1 | AA14: Korrekt
A15: 6 | B15: ='Wettkampf 1'!B15 -> Philipp Schmidt | C15: ='Wettkampf 1'!C15 -> Ostenwalde II | D15: 317.1 | F15: 317.1 | G15: 0 | H15: 0 | I15: 317.1 | J15: 1 | K15: 0 | L15: 0 | M15: 0 | N15: 0 | O15: 0 | P15: 0 | Q15: 0 | R15: 0 | U15: 105.4 | V15: 105.5 | W15: 106.2 | X15: 317.1 | Y15: 1 | Z15: 1 | AA15: Korrekt
A16: 7 | B16: ='Wettkampf 1'!B16 -> Philipp Scholübbers | C16: ='Wettkampf 1'!C16 -> Ostenwalde II | D16: 311.7 | F16: 311.7 | G16: 0 | H16: 0 | I16: 311.7 | J16: 1 | K16: 0 | L16: 0 | M16: 0 | N16: 0 | O16: 0 | P16: 0 | Q16: 0 | R16: 0 | U16: 102.2 | V16: 105.1 | W16: 104.4 | X16: 311.7 | Y16: 1 | Z16: 1 | AA16: Korrekt
A17: 8 | B17: ='Wettkampf 1'!B17 -> Matthias Brinkmann | C17: ='Wettkampf 1'!C17 -> Ostenwalde II | D17: 309.9 | F17: 309.9 | G17: 0 | H17: 0 | I17: 309.9 | J17: 1 | K17: 0 | L17: 0 | M17: 0 | N17: 0 | O17: 0 | P17: 0 | Q17: 0 | R17: 0 | U17: 104.3 | V17: 103.8 | W17: 101.8 | X17: 309.9 | Y17: 1 | Z17: 1 | AA17: Korrekt
A18: 9 | B18: ='Wettkampf 1'!B18 -> Patrik Krüßel | C18: ='Wettkampf 1'!C18 -> Ostenwalde II | D18: 305.4 | E18: x | F18: 0 | G18: 0 | H18: 0 | I18: 0 | J18: 0 | K18: 0 | L18: 0 | M18: 0 | N18: 0 | O18: 0 | P18: 0 | Q18: 0 | R18: 0 | U18: 101.5 | V18: 102.5 | W18: 101.4 | X18: 305.4 | Y18: 1 | Z18: 1 | AA18: Korrekt
A19: 10 | B19: ='Wettkampf 1'!B19 -> Markus Jansen | C19: ='Wettkampf 1'!C19 -> Ostenwalde II | D19: 308.0 | F19: 308.0 | G19: 0 | H19: 0 | I19: 308 | J19: 1 | K19: 0 | L19: 0 | M19: 0 | N19: 0 | O19: 0 | P19: 0 | Q19: 0 | R19: 0 | U19: 101.5 | V19: 103.3 | W19: 103.2 | X19: 308.0 | Y19: 1 | Z19: 1 | AA19: Korrekt
A20: 11 | B20: ='Wettkampf 1'!B20 -> Helmut Benten | C20: ='Wettkampf 1'!C20 -> Ostenwalde II | D20: 302.3 | E20: x | F20: 0 | G20: 0 | H20: 0 | I20: 0 | J20: 0 | K20: 0 | L20: 0 | M20: 0 | N20: 0 | O20: 0 | P20: 0 | Q20: 0 | R20: 0 | U20: 98.7 | V20: 99.9 | W20: 103.7 | X20: 302.3 | Y20: 1 | Z20: 1 | AA20: Korrekt
A21: 12 | B21: ='Wettkampf 1'!B21 -> Heinz Dirksen | C21: ='Wettkampf 1'!C21 -> Börgermoor II | D21: 306.3 | F21: 306.3 | G21: 0 | H21: 0 | I21: 0 | J21: 0 | K21: 306.3 | L21: 1 | M21: 0 | N21: 0 | O21: 0 | P21: 0 | Q21: 0 | R21: 0 | U21: 100.7 | V21: 101.5 | W21: 104.1 | X21: 306.3 | Y21: 1 | Z21: 1 | AA21: Korrekt
A22: 13 | B22: ='Wettkampf 1'!B22 -> Hans Ortmann | C22: ='Wettkampf 1'!C22 -> Börgermoor II | D22: 306.7 | F22: 306.7 | G22: 0 | H22: 0 | I22: 0 | J22: 0 | K22: 306.7 | L22: 1 | M22: 0 | N22: 0 | O22: 0 | P22: 0 | Q22: 0 | R22: 0 | U22: 102.7 | V22: 102.0 | W22: 102.0 | X22: 306.7 | Y22: 1 | Z22: 1 | AA22: Korrekt
A23: 14 | B23: ='Wettkampf 1'!B23 -> Karl-Heinz Ortmann | C23: ='Wettkampf 1'!C23 -> Börgermoor II | D23: 306.4 | F23: 306.4 | G23: 0 | H23: 0 | I23: 0 | J23: 0 | K23: 306.4 | L23: 1 | M23: 0 | N23: 0 | O23: 0 | P23: 0 | Q23: 0 | R23: 0 | U23: 100.4 | V23: 102.8 | W23: 103.2 | X23: 306.4 | Y23: 1 | Z23: 1 | AA23: Korrekt
A24: 15 | B24: ='Wettkampf 1'!B24 -> Johannes Jansen | C24: ='Wettkampf 1'!C24 -> Börgermoor II | D24: 314.2 | F24: 314.2 | G24: 0 | H24: 0 | I24: 0 | J24: 0 | K24: 314.2 | L24: 1 | M24: 0 | N24: 0 | O24: 0 | P24: 0 | Q24: 0 | R24: 0 | U24: 103.6 | V24: 104.7 | W24: 105.9 | X24: 314.2 | Y24: 1 | Z24: 1 | AA24: Korrekt
A25: 16 | B25: ='Wettkampf 1'!B25 -> Kevin Minnert | C25: ='Wettkampf 1'!C25 -> Börgermoor II | D25: 305.1 | E25: x | F25: 0 | G25: 0 | H25: 0 | I25: 0 | J25: 0 | K25: 0 | L25: 0 | M25: 0 | N25: 0 | O25: 0 | P25: 0 | Q25: 0 | R25: 0 | U25: 101.4 | V25: 103.1 | W25: 100.6 | X25: 305.1 | Y25: 1 | Z25: 1 | AA25: Korrekt
A26: 17 | B26: ='Wettkampf 1'!B26 -> Daniel Schülke | C26: ='Wettkampf 1'!C26 -> Börgermoor II | D26: 0.0 | E26: x | F26: 0 | G26: 0 | H26: 0 | I26: 0 | J26: 0 | K26: 0 | L26: 0 | M26: 0 | N26: 0 | O26: 0 | P26: 0 | Q26: 0 | R26: 0 | X26: 0.0 | Y26: 1 | Z26: 0
A27: 18 | B27: ='Wettkampf 1'!B27 -> Frank Wotte | C27: ='Wettkampf 1'!C27 -> Lorup III | D27: 313.6 | F27: 313.6 | G27: 0 | H27: 0 | I27: 0 | J27: 0 | K27: 0 | L27: 0 | M27: 313.6 | N27: 1 | O27: 0 | P27: 0 | Q27: 0 | R27: 0 | U27: 104.6 | V27: 104.0 | W27: 105.0 | X27: 313.6 | Y27: 1 | Z27: 1 | AA27: Korrekt
A28: 19 | B28: ='Wettkampf 1'!B28 -> Johannes Wesseln | C28: ='Wettkampf 1'!C28 -> Lorup III | D28: 308.7 | F28: 308.7 | G28: 0 | H28: 0 | I28: 0 | J28: 0 | K28: 0 | L28: 0 | M28: 308.7 | N28: 1 | O28: 0 | P28: 0 | Q28: 0 | R28: 0 | U28: 103.3 | V28: 104.0 | W28: 101.4 | X28: 308.7 | Y28: 1 | Z28: 1 | AA28: Korrekt
A29: 20 | B29: ='Wettkampf 1'!B29 -> Anton Oldiges | C29: ='Wettkampf 1'!C29 -> Lorup III | D29: 309.2 | F29: 309.2 | G29: 0 | H29: 0 | I29: 0 | J29: 0 | K29: 0 | L29: 0 | M29: 309.2 | N29: 1 | O29: 0 | P29: 0 | Q29: 0 | R29: 0 | U29: 103.2 | V29: 103.8 | W29: 102.2 | X29: 309.2 | Y29: 1 | Z29: 1 | AA29: Korrekt
A30: 21 | B30: ='Wettkampf 1'!B30 -> Jürgen Will | C30: ='Wettkampf 1'!C30 -> Lorup III | D30: 310.0 | F30: 310.0 | G30: 0 | H30: 0 | I30: 0 | J30: 0 | K30: 0 | L30: 0 | M30: 310 | N30: 1 | O30: 0 | P30: 0 | Q30: 0 | R30: 0 | U30: 103.7 | V30: 103.5 | W30: 102.8 | X30: 310.0 | Y30: 1 | Z30: 1 | AA30: Korrekt
A31: 22 | B31: ='Wettkampf 1'!B31 -> Schütze 22 | C31: ='Wettkampf 1'!C31 -> Lorup III | D31: 0.0 | E31: x | F31: 0 | G31: 0 | H31: 0 | I31: 0 | J31: 0 | K31: 0 | L31: 0 | M31: 0 | N31: 0 | O31: 0 | P31: 0 | Q31: 0 | R31: 0 | X31: 0.0 | Y31: 1 | Z31: 0
A32: 23 | B32: ='Wettkampf 1'!B32 -> Schütze 23 | C32: ='Wettkampf 1'!C32 -> Lorup III | D32: 0.0 | E32: x | F32: 0 | G32: 0 | H32: 0 | I32: 0 | J32: 0 | K32: 0 | L32: 0 | M32: 0 | N32: 0 | O32: 0 | P32: 0 | Q32: 0 | R32: 0 | X32: 0.0 | Y32: 1 | Z32: 0
A33: 24 | B33: ='Wettkampf 1'!B33 -> Norbert Jansen | C33: ='Wettkampf 1'!C33 -> Breddenb.-Heid. III | D33: 310.3 | F33: 310.3 | G33: 0 | H33: 0 | I33: 0 | J33: 0 | K33: 0 | L33: 0 | M33: 0 | N33: 0 | O33: 310.3 | P33: 1 | Q33: 0 | R33: 0 | U33: 103.4 | V33: 102.7 | W33: 104.2 | X33: 310.3 | Y33: 1 | Z33: 1 | AA33: Korrekt
A34: 25 | B34: ='Wettkampf 1'!B34 -> Werner Jansen | C34: ='Wettkampf 1'!C34 -> Breddenb.-Heid. III | D34: 309.0 | E34: x | F34: 0 | G34: 0 | H34: 0 | I34: 0 | J34: 0 | K34: 0 | L34: 0 | M34: 0 | N34: 0 | O34: 0 | P34: 0 | Q34: 0 | R34: 0 | U34: 103.7 | V34: 103.3 | W34: 102.0 | X34: 309.0 | Y34: 1 | Z34: 1 | AA34: Korrekt
A35: 26 | B35: ='Wettkampf 1'!B35 -> Alfons Plüster | C35: ='Wettkampf 1'!C35 -> Breddenb.-Heid. III | D35: 306.3 | F35: 306.3 | G35: 0 | H35: 0 | I35: 0 | J35: 0 | K35: 0 | L35: 0 | M35: 0 | N35: 0 | O35: 306.3 | P35: 1 | Q35: 0 | R35: 0 | U35: 101.2 | V35: 102.5 | W35: 102.6 | X35: 306.3 | Y35: 1 | Z35: 1 | AA35: Korrekt
A36: 27 | B36: ='Wettkampf 1'!B36 -> Johannes Oldiges | C36: ='Wettkampf 1'!C36 -> Breddenb.-Heid. III | D36: 305.8 | E36: x | F36: 0 | G36: 0 | H36: 0 | I36: 0 | J36: 0 | K36: 0 | L36: 0 | M36: 0 | N36: 0 | O36: 0 | P36: 0 | Q36: 0 | R36: 0 | U36: 101.8 | V36: 100.4 | W36: 103.6 | X36: 305.8 | Y36: 1 | Z36: 1 | AA36: Korrekt
A37: 28 | B37: ='Wettkampf 1'!B37 -> Hans Plüster | C37: ='Wettkampf 1'!C37 -> Breddenb.-Heid. III | D37: 313.4 | F37: 313.4 | G37: 0 | H37: 0 | I37: 0 | J37: 0 | K37: 0 | L37: 0 | M37: 0 | N37: 0 | O37: 313.4 | P37: 1 | Q37: 0 | R37: 0 | U37: 103.6 | V37: 105.7 | W37: 104.1 | X37: 313.4 | Y37: 1 | Z37: 1 | AA37: Korrekt
A38: 29 | B38: ='Wettkampf 1'!B38 -> Josef Wübben | C38: ='Wettkampf 1'!C38 -> Breddenb.-Heid. III | D38: 301.5 | F38: 301.5 | G38: 0 | H38: 0 | I38: 0 | J38: 0 | K38: 0 | L38: 0 | M38: 0 | N38: 0 | O38: 301.5 | P38: 1 | Q38: 0 | R38: 0 | U38: 102.3 | V38: 99.6 | W38: 99.6 | X38: 301.5 | Y38: 1 | Z38: 1 | AA38: Korrekt
A39: 30 | B39: ='Wettkampf 1'!B39 -> Thomas Niermann | C39: ='Wettkampf 1'!C39 -> Werlte III | D39: 315.3 | E39: x | F39: 0 | G39: 0 | H39: 0 | I39: 0 | J39: 0 | K39: 0 | L39: 0 | M39: 0 | N39: 0 | O39: 0 | P39: 0 | Q39: 0 | R39: 0 | U39: 105.1 | V39: 104.9 | W39: 105.3 | X39: 315.3 | Y39: 1 | Z39: 1 | AA39: Korrekt
A40: 31 | B40: ='Wettkampf 1'!B40 -> Bernd Thien | C40: ='Wettkampf 1'!C40 -> Werlte III | D40: 313.7 | F40: 313.7 | G40: 0 | H40: 0 | I40: 0 | J40: 0 | K40: 0 | L40: 0 | M40: 0 | N40: 0 | O40: 0 | P40: 0 | Q40: 313.7 | R40: 1 | U40: 105.2 | V40: 103.8 | W40: 104.7 | X40: 313.7 | Y40: 1 | Z40: 1 | AA40: Korrekt
A41: 32 | B41: ='Wettkampf 1'!B41 -> Norbert Grünloh | C41: ='Wettkampf 1'!C41 -> Werlte III | D41: 309.5 | F41: 309.5 | G41: 0 | H41: 0 | I41: 0 | J41: 0 | K41: 0 | L41: 0 | M41: 0 | N41: 0 | O41: 0 | P41: 0 | Q41: 309.5 | R41: 1 | U41: 104.2 | V41: 101.8 | W41: 103.5 | X41: 309.5 | Y41: 1 | Z41: 1 | AA41: Korrekt
A42: 33 | B42: ='Wettkampf 1'!B42 -> Andreas Thoben | C42: ='Wettkampf 1'!C42 -> Werlte III | D42: 312.7 | F42: 312.7 | G42: 0 | H42: 0 | I42: 0 | J42: 0 | K42: 0 | L42: 0 | M42: 0 | N42: 0 | O42: 0 | P42: 0 | Q42: 312.7 | R42: 1 | U42: 105.4 | V42: 102.5 | W42: 104.8 | X42: 312.7 | Y42: 1 | Z42: 1 | AA42: Korrekt
A43: 34 | B43: ='Wettkampf 1'!B43 -> Hermann Krone | C43: ='Wettkampf 1'!C43 -> Werlte III | D43: 306.8 | E43: x | F43: 0 | G43: 0 | H43: 0 | I43: 0 | J43: 0 | K43: 0 | L43: 0 | M43: 0 | N43: 0 | O43: 0 | P43: 0 | Q43: 0 | R43: 0 | U43: 102.9 | V43: 100.6 | W43: 103.3 | X43: 306.8 | Y43: 1 | Z43: 1 | AA43: Korrekt
A44: 35 | B44: ='Wettkampf 1'!B44 -> Michael Freitag | C44: ='Wettkampf 1'!C44 -> Werlte III | D44: 315.7 | F44: 315.7 | G44: 0 | H44: 0 | I44: 0 | J44: 0 | K44: 0 | L44: 0 | M44: 0 | N44: 0 | O44: 0 | P44: 0 | Q44: 315.7 | R44: 1 | U44: 106.7 | V44: 105.0 | W44: 104.0 | X44: 315.7 | Y44: 1 | Z44: 1 | AA44: Korrekt
A45: 36 | B45: ='Wettkampf 1'!B45 -> Joachim Niermann | C45: ='Wettkampf 1'!C45 -> Werlte III | D45: 306.6 | E45: x | F45: 0 | G45: 0 | H45: 0 | I45: 0 | J45: 0 | K45: 0 | L45: 0 | M45: 0 | N45: 0 | O45: 0 | P45: 0 | Q45: 0 | R45: 0 | U45: 102.1 | V45: 102.2 | W45: 102.3 | X45: 306.6 | Y45: 1 | Z45: 1 | AA45: Korrekt
G46: =LARGE(G10:G45,1)+LARGE(G10:G45,2)+LARGE(G10:G45,3) -> 927.6 | H46: =SUM(H10:H45) -> 4 | I46: =LARGE(I10:I45,1)+LARGE(I10:I45,2)+LARGE(I10:I45,3) -> 938.7 | J46: =SUM(J10:J45) -> 4 | K46: =LARGE(K10:K45,1)+LARGE(K10:K45,2)+LARGE(K10:K45,3) -> 927.3 | L46: =SUM(L10:L45) -> 4 | M46: =LARGE(M10:M45,1)+LARGE(M10:M45,2)+LARGE(M10:M45,3) -> 932.8 | N46: =SUM(N10:N45) -> 4 | O46: =LARGE(O10:O45,1)+LARGE(O10:O45,2)+LARGE(O10:O45,3) -> 930 | P46: =SUM(P10:P45) -> 4 | Q46: =LARGE(Q10:Q45,1)+LARGE(Q10:Q45,2)+LARGE(Q10:Q45,3) -> 942.1 | R46: =SUM(R10:S45) -> 4
C47: per Email an: sk-huemmling@gmx.de

Sheet 9
B1: Verein / Gruppe | D1: Ergebnisse | V1: Austragungsort: | W1: =Übersicht!N4 -> Börgermoor
A2: 1 | B2: ='Wettkampf 1'!B2 -> Breddenb.-Heid. I | D2: =G46 -> 934.3 | E2: =IF(H46>4,"Es sind zu viele Schützen in Wertung!"," ") ->  | V2: Wettkampftag: | W2: =Übersicht!N3 -> 16.02.
A3: 2 | B3: ='Wettkampf 1'!B3 -> Ostenwalde II | D3: =I46 -> 943.5 | E3: =IF(J46>4,"Es sind zu viele Schützen in Wertung!"," ") -> 
A4: 3 | B4: ='Wettkampf 1'!B4 -> Börgermoor II | D4: =K46 -> 934.4 | E4: =IF(L46>4,"Es sind zu viele Schützen in Wertung!"," ") ->  | X4: Ansprechpartner für Rückfragen:
A5: 4 | B5: ='Wettkampf 1'!B5 -> Lorup III | D5: =M46 -> 933.9 | E5: =IF(N46>4,"Es sind zu viele Schützen in Wertung!"," ") ->  | V5: Name: | W5: Joh. Jansen
A6: 5 | B6: ='Wettkampf 1'!B6 -> Breddenb.-Heid. III | D6: =O46 -> 938.2 | E6: =IF(P46>4,"Es sind zu viele Schützen in Wertung!"," ") ->  | V6: Tel: | W6: 0496171298
A7: 6 | B7: ='Wettkampf 1'!B7 -> Werlte III | D7: =Q46 -> 940.5 | E7: =IF(R46>4,"Es sind zu viele Schützen in Wertung!"," ") ->  | V7: Standaufsicht: | W7: H. Dirksen
B9: Einzelergebnisse: | C9: Verein / Gruppe | D9: Ergebnisse (mindestens 0 eintragen) | E9: AW? Dann x eintippen | G9: Verein 1 | I9: Verein 2 | K9: Verein 3 | M9: Verein 4 | O9: Verein 5 | Q9: Verein 6 | U9: Proberechnung bei Streifen:
A10: 1 | B10: ='Wettkampf 1'!B10 -> Hans Gebken 3 | C10: ='Wettkampf 1'!C10 -> Breddenb.-Heid. I | D10: 310.5 | F10: =IF(E10="x","0",D10) -> 310.5 | G10: =IF(C10=$B$2,F10,0) -> 310.5 | H10: =(IF(AND($E10="",$C10=$B$2),1,0)) -> 1 | I10: =IF($C10=$B$3,F10,0) -> 0 | J10: =(IF(AND($E10="",$C10=$B$3),1,0)) -> 0 | K10: =IF($C10=$B$4,F10,0) -> 0 | L10: =(IF(AND($E10="",$C10=$B$4),1,0)) -> 0 | M10: =IF($C10=$B$5,F10,0) -> 0 | N10: =(IF(AND($E10="",$C10=$B$5),1,0)) -> 0 | O10: =IF($C10=$B$6,F10,0) -> 0 | P10: =(IF(AND($E10="",$C10=$B$6),1,0)) -> 0 | Q10: =IF($C10=$B$7,F10,0) -> 0 | R10: =(IF(AND($E10="",$C10=$B$7),1,0)) -> 0 | U10: 104.3 | V10: 103.4 | W10: 102.8 | X10: =U10+V10+W10 -> 310.5 | Y10: =IF(X10=D10,1,0) -> 1 | Z10: =IF(X10=0,0,1) -> 1 | AA10: =IF(Y10+Z10=2,"Korrekt","") -> Korrekt
A11: 2 | B11: ='Wettkampf 1'!B11 -> Gerd Vogel | C11: ='Wettkampf 1'!C11 -> Breddenb.-Heid. I | D11: 313.2 | F11: =IF(E11="x","0",D11) -> 313.2 | G11: =IF(C11=$B$2,F11,0) -> 313.2 | H11: =(IF(AND($E11="",$C11=$B$2),1,0)) -> 1 | I11: =IF($C11=$B$3,F11,0) -> 0 | J11: =(IF(AND($E11="",$C11=$B$3),1,0)) -> 0 | K11: =IF($C11=$B$4,F11,0) -> 0 | L11: =(IF(AND($E11="",$C11=$B$4),1,0)) -> 0 | M11: =IF($C11=$B$5,F11,0) -> 0 | N11: =(IF(AND($E11="",$C11=$B$5),1,0)) -> 0 | O11: =IF($C11=$B$6,F11,0) -> 0 | P11: =(IF(AND($E11="",$C11=$B$6),1,0)) -> 0 | Q11: =IF($C11=$B$7,F11,0) -> 0 | R11: =(IF(AND($E11="",$C11=$B$7),1,0)) -> 0 | U11: 104.1 | V11: 104.1 | W11: 105.0 | X11: =U11+V11+W11 -> 313.2 | Y11: =IF(X11=D11,1,0) -> 1 | Z11: =IF(X11=0,0,1) -> 1 | AA11: =IF(Y11+Z11=2,"Korrekt","") -> Korrekt
A12: 3 | B12: ='Wettkampf 1'!B12 -> Heinz Engbers | C12: ='Wettkampf 1'!C12 -> Breddenb.-Heid. I | D12: 308.8 | E12: x | F12: 0 | G12: 0 | H12: 0 | I12: 0 | J12: 0 | K12: 0 | L12: 0 | M12: 0 | N12: 0 | O12: 0 | P12: 0 | Q12: 0 | R12: 0 | U12: 103.3 | V12: 102.1 | W12: 103.4 | X12: 308.8 | Y12: 1 | Z12: 1 | AA12: Korrekt
A13: 4 | B13: ='Wettkampf 1'!B13 -> Willi Engbers | C13: ='Wettkampf 1'!C13 -> Breddenb.-Heid. I | D13: 310.6 | F13: 310.6 | G13: 310.6 | H13: 1 | I13: 0 | J13: 0 | K13: 0 | L13: 0 | M13: 0 | N13: 0 | O13: 0 | P13: 0 | Q13: 0 | R13: 0 | U13: 105.0 | V13: 102.2 | W13: 103.4 | X13: 310.6 | Y13: 1 | Z13: 1 | AA13: Korrekt
A14: 5 | B14: ='Wettkampf 1'!B14 -> Hans Gebken 1 | C14: ='Wettkampf 1'!C14 -> Breddenb.-Heid. I | D14: 307.7 | E14: x | F14: 0 | G14: 0 | H14: 0 | I14: 0 | J14: 0 | K14: 0 | L14: 0 | M14: 0 | N14: 0 | O14: 0 | P14: 0 | Q14: 0 | R14: 0 | U14: 102.0 | V14: 103.4 | W14: 102.3 | X14: 307.7 | Y14: 1 | Z14: 1 | AA14: Korrekt
A15: 6 | B15: ='Wettkampf 1'!B15 -> Philipp Schmidt | C15: ='Wettkampf 1'!C15 -> Ostenwalde II | D15: 316.9 | F15: 316.9 | G15: 0 | H15: 0 | I15: 316.9 | J15: 1 | K15: 0 | L15: 0 | M15: 0 | N15: 0 | O15: 0 | P15: 0 | Q15: 0 | R15: 0 | U15: 105.8 | V15: 106.0 | W15: 105.1 | X15: 316.9 | Y15: 1 | Z15: 1 | AA15: Korrekt
A16: 7 | B16: ='Wettkampf 1'!B16 -> Philipp Scholübbers | C16: ='Wettkampf 1'!C16 -> Ostenwalde II | D16: 316.0 | F16: 316.0 | G16: 0 | H16: 0 | I16: 316 | J16: 1 | K16: 0 | L16: 0 | M16: 0 | N16: 0 | O16: 0 | P16: 0 | Q16: 0 | R16: 0 | U16: 104.6 | V16: 104.9 | W16: 106.5 | X16: 316.0 | Y16: 1 | Z16: 1 | AA16: Korrekt
A17: 8 | B17: ='Wettkampf 1'!B17 -> Matthias Brinkmann | C17: ='Wettkampf 1'!C17 -> Ostenwalde II | D17: 309.0 | F17: 309.0 | G17: 0 | H17: 0 | I17: 309 | J17: 1 | K17: 0 | L17: 0 | M17: 0 | N17: 0 | O17: 0 | P17: 0 | Q17: 0 | R17: 0 | U17: 103.8 | V17: 102.3 | W17: 102.9 | X17: 309.0 | Y17: 1 | Z17: 1 | AA17: Korrekt
A18: 9 | B18: ='Wettkampf 1'!B18 -> Patrik Krüßel | C18: ='Wettkampf 1'!C18 -> Ostenwalde II | D18: 310.6 | F18: 310.6 | G18: 0 | H18: 0 | I18: 310.6 | J18: 1 | K18: 0 | L18: 0 | M18: 0 | N18: 0 | O18: 0 | P18: 0 | Q18: 0 | R18: 0 | U18: 103.9 | V18: 103.1 | W18: 103.6 | X18: 310.6 | Y18: 1 | Z18: 1 | AA18: Korrekt
A19: 10 | B19: ='Wettkampf 1'!B19 -> Markus Jansen | C19: ='Wettkampf 1'!C19 -> Ostenwalde II | D19: 311.3 | E19: x | F19: 0 | G19: 0 | H19: 0 | I19: 0 | J19: 0 | K19: 0 | L19: 0 | M19: 0 | N19: 0 | O19: 0 | P19: 0 | Q19: 0 | R19: 0 | U19: 102.6 | V19: 103.8 | W19: 104.9 | X19: 311.3 | Y19: 1 | Z19: 1 | AA19: Korrekt
A20: 11 | B20: ='Wettkampf 1'!B20 -> Helmut Benten | C20: ='Wettkampf 1'!C20 -> Ostenwalde II | D20: 307.0 | E20: x | F20: 0 | G20: 0 | H20: 0 | I20: 0 | J20: 0 | K20: 0 | L20: 0 | M20: 0 | N20: 0 | O20: 0 | P20: 0 | Q20: 0 | R20: 0 | U20: 103.5 | V20: 102.4 | W20: 101.1 | X20: 307.0 | Y20: 1 | Z20: 1 | AA20: Korrekt
A21: 12 | B21: ='Wettkampf 1'!B21 -> Heinz Dirksen | C21: ='Wettkampf 1'!C21 -> Börgermoor II | D21: 310.9 | F21: 310.9 | G21: 0 | H21: 0 | I21: 0 | J21: 0 | K21: 310.9 | L21: 1 | M21: 0 | N21: 0 | O21: 0 | P21: 0 | Q21: 0 | R21: 0 | U21: 104.6 | V21: 102.8 | W21: 103.5 | X21: 310.9 | Y21: 1 | Z21: 1 | AA21: Korrekt
A22: 13 | B22: ='Wettkampf 1'!B22 -> Hans Ortmann | C22: ='Wettkampf 1'!C22 -> Börgermoor II | D22: 308.8 | F22: 308.8 | G22: 0 | H22: 0 | I22: 0 | J22: 0 | K22: 308.8 | L22: 1 | M22: 0 | N22: 0 | O22: 0 | P22: 0 | Q22: 0 | R22: 0 | U22: 104.0 | V22: 101.9 | W22: 102.9 | X22: 308.8 | Y22: 1 | Z22: 1 | AA22: Korrekt
A23: 14 | B23: ='Wettkampf 1'!B23 -> Karl-Heinz Ortmann | C23: ='Wettkampf 1'!C23 -> Börgermoor II | D23: 313.0 | F23: 313.0 | G23: 0 | H23: 0 | I23: 0 | J23: 0 | K23: 313 | L23: 1 | M23: 0 | N23: 0 | O23: 0 | P23: 0 | Q23: 0 | R23: 0 | U23: 104.5 | V23: 103.2 | W23: 105.3 | X23: 313.0 | Y23: 1 | Z23: 1 | AA23: Korrekt
A24: 15 | B24: ='Wettkampf 1'!B24 -> Johannes Jansen | C24: ='Wettkampf 1'!C24 -> Börgermoor II | D24: 310.5 | F24: 310.5 | G24: 0 | H24: 0 | I24: 0 | J24: 0 | K24: 310.5 | L24: 1 | M24: 0 | N24: 0 | O24: 0 | P24: 0 | Q24: 0 | R24: 0 | U24: 103.0 | V24: 102.2 | W24: 105.3 | X24: 310.5 | Y24: 1 | Z24: 1 | AA24: Korrekt
A25: 16 | B25: ='Wettkampf 1'!B25 -> Kevin Minnert | C25: ='Wettkampf 1'!C25 -> Börgermoor II | E25: x | F25: 0 | G25: 0 | H25: 0 | I25: 0 | J25: 0 | K25: 0 | L25: 0 | M25: 0 | N25: 0 | O25: 0 | P25: 0 | Q25: 0 | R25: 0 | X25: 0.0 | Y25: 1 | Z25: 0
A26: 17 | B26: ='Wettkampf 1'!B26 -> Daniel Schülke | C26: ='Wettkampf 1'!C26 -> Börgermoor II | D26: 292.5 | E26: x | F26: 0 | G26: 0 | H26: 0 | I26: 0 | J26: 0 | K26: 0 | L26: 0 | M26: 0 | N26: 0 | O26: 0 | P26: 0 | Q26: 0 | R26: 0 | U26: 98.2 | V26: 96.2 | W26: 98.1 | X26: 292.5 | Y26: 1 | Z26: 1 | AA26: Korrekt
A27: 18 | B27: ='Wettkampf 1'!B27 -> Frank Wotte | C27: ='Wettkampf 1'!C27 -> Lorup III | D27: 314.2 | F27: 314.2 | G27: 0 | H27: 0 | I27: 0 | J27: 0 | K27: 0 | L27: 0 | M27: 314.2 | N27: 1 | O27: 0 | P27: 0 | Q27: 0 | R27: 0 | U27: 104.9 | V27: 105.0 | W27: 104.3 | X27: 314.2 | Y27: 1 | Z27: 1 | AA27: Korrekt
A28: 19 | B28: ='Wettkampf 1'!B28 -> Johannes Wesseln | C28: ='Wettkampf 1'!C28 -> Lorup III | D28: 307.9 | E28: x | F28: 0 | G28: 0 | H28: 0 | I28: 0 | J28: 0 | K28: 0 | L28: 0 | M28: 0 | N28: 0 | O28: 0 | P28: 0 | Q28: 0 | R28: 0 | U28: 102.9 | V28: 102.4 | W28: 102.6 | X28: 307.9 | Y28: 1 | Z28: 1 | AA28: Korrekt
A29: 20 | B29: ='Wettkampf 1'!B29 -> Anton Oldiges | C29: ='Wettkampf 1'!C29 -> Lorup III | D29: 308.8 | F29: 308.8 | G29: 0 | H29: 0 | I29: 0 | J29: 0 | K29: 0 | L29: 0 | M29: 308.8 | N29: 1 | O29: 0 | P29: 0 | Q29: 0 | R29: 0 | U29: 101.7 | V29: 102.6 | W29: 104.5 | X29: 308.8 | Y29: 1 | Z29: 1 | AA29: Korrekt
A30: 21 | B30: ='Wettkampf 1'!B30 -> Jürgen Will | C30: ='Wettkampf 1'!C30 -> Lorup III | D30: 310.9 | F30: 310.9 | G30: 0 | H30: 0 | I30: 0 | J30: 0 | K30: 0 | L30: 0 | M30: 310.9 | N30: 1 | O30: 0 | P30: 0 | Q30: 0 | R30: 0 | U30: 104.5 | V30: 103.4 | W30: 103.0 | X30: 310.9 | Y30: 1 | Z30: 1 | AA30: Korrekt
A31: 22 | B31: ='Wettkampf 1'!B31 -> Schütze 22 | C31: ='Wettkampf 1'!C31 -> Lorup III | E31: x | F31: 0 | G31: 0 | H31: 0 | I31: 0 | J31: 0 | K31: 0 | L31: 0 | M31: 0 | N31: 0 | O31: 0 | P31: 0 | Q31: 0 | R31: 0 | X31: 0.0 | Y31: 1 | Z31: 0
A32: 23 | B32: ='Wettkampf 1'!B32 -> Schütze 23 | C32: ='Wettkampf 1'!C32 -> Lorup III | E32: x | F32: 0 | G32: 0 | H32: 0 | I32: 0 | J32: 0 | K32: 0 | L32: 0 | M32: 0 | N32: 0 | O32: 0 | P32: 0 | Q32: 0 | R32: 0 | X32: 0.0 | Y32: 1 | Z32: 0
A33: 24 | B33: ='Wettkampf 1'!B33 -> Norbert Jansen | C33: ='Wettkampf 1'!C33 -> Breddenb.-Heid. III | D33: 311.3 | F33: 311.3 | G33: 0 | H33: 0 | I33: 0 | J33: 0 | K33: 0 | L33: 0 | M33: 0 | N33: 0 | O33: 311.3 | P33: 1 | Q33: 0 | R33: 0 | U33: 104.2 | V33: 104.1 | W33: 103.0 | X33: 311.3 | Y33: 1 | Z33: 1 | AA33: Korrekt
A34: 25 | B34: ='Wettkampf 1'!B34 -> Werner Jansen | C34: ='Wettkampf 1'!C34 -> Breddenb.-Heid. III | D34: 312.6 | F34: 312.6 | G34: 0 | H34: 0 | I34: 0 | J34: 0 | K34: 0 | L34: 0 | M34: 0 | N34: 0 | O34: 312.6 | P34: 1 | Q34: 0 | R34: 0 | U34: 104.0 | V34: 104.3 | W34: 104.3 | X34: 312.6 | Y34: 1 | Z34: 1 | AA34: Korrekt
A35: 26 | B35: ='Wettkampf 1'!B35 -> Alfons Plüster | C35: ='Wettkampf 1'!C35 -> Breddenb.-Heid. III | D35: 305.1 | E35: x | F35: 0 | G35: 0 | H35: 0 | I35: 0 | J35: 0 | K35: 0 | L35: 0 | M35: 0 | N35: 0 | O35: 0 | P35: 0 | Q35: 0 | R35: 0 | U35: 103.0 | V35: 98.5 | W35: 103.6 | X35: 305.1 | Y35: 1 | Z35: 1 | AA35: Korrekt
A36: 27 | B36: ='Wettkampf 1'!B36 -> Johannes Oldiges | C36: ='Wettkampf 1'!C36 -> Breddenb.-Heid. III | D36: 307.5 | E36: x | F36: 0 | G36: 0 | H36: 0 | I36: 0 | J36: 0 | K36: 0 | L36: 0 | M36: 0 | N36: 0 | O36: 0 | P36: 0 | Q36: 0 | R36: 0 | U36: 102.0 | V36: 102.3 | W36: 103.2 | X36: 307.5 | Y36: 1 | Z36: 1 | AA36: Korrekt
A37: 28 | B37: ='Wettkampf 1'!B37 -> Hans Plüster | C37: ='Wettkampf 1'!C37 -> Breddenb.-Heid. III | D37: 314.3 | F37: 314.3 | G37: 0 | H37: 0 | I37: 0 | J37: 0 | K37: 0 | L37: 0 | M37: 0 | N37: 0 | O37: 314.3 | P37: 1 | Q37: 0 | R37: 0 | U37: 103.7 | V37: 105.0 | W37: 105.6 | X37: 314.3 | Y37: 1 | Z37: 1 | AA37: Korrekt
A38: 29 | B38: ='Wettkampf 1'!B38 -> Josef Wübben | C38: ='Wettkampf 1'!C38 -> Breddenb.-Heid. III | D38: 310.6 | F38: 310.6 | G38: 0 | H38: 0 | I38: 0 | J38: 0 | K38: 0 | L38: 0 | M38: 0 | N38: 0 | O38: 310.6 | P38: 1 | Q38: 0 | R38: 0 | U38: 103.6 | V38: 105.8 | W38: 101.2 | X38: 310.6 | Y38: 1 | Z38: 1 | AA38: Korrekt
A39: 30 | B39: ='Wettkampf 1'!B39 -> Thomas Niermann | C39: ='Wettkampf 1'!C39 -> Werlte III | D39: 310.0 | E39: x | F39: 0 | G39: 0 | H39: 0 | I39: 0 | J39: 0 | K39: 0 | L39: 0 | M39: 0 | N39: 0 | O39: 0 | P39: 0 | Q39: 0 | R39: 0 | U39: 105.0 | V39: 104.1 | W39: 100.9 | X39: 310.0 | Y39: 1 | Z39: 1 | AA39: Korrekt
A40: 31 | B40: ='Wettkampf 1'!B40 -> Bernd Thien | C40: ='Wettkampf 1'!C40 -> Werlte III | D40: 317.7 | F40: 317.7 | G40: 0 | H40: 0 | I40: 0 | J40: 0 | K40: 0 | L40: 0 | M40: 0 | N40: 0 | O40: 0 | P40: 0 | Q40: 317.7 | R40: 1 | U40: 105.1 | V40: 107.2 | W40: 105.4 | X40: 317.7 | Y40: 1 | Z40: 1 | AA40: Korrekt
A41: 32 | B41: ='Wettkampf 1'!B41 -> Norbert Grünloh | C41: ='Wettkampf 1'!C41 -> Werlte III | D41: 311.6 | F41: 311.6 | G41: 0 | H41: 0 | I41: 0 | J41: 0 | K41: 0 | L41: 0 | M41: 0 | N41: 0 | O41: 0 | P41: 0 | Q41: 311.6 | R41: 1 | U41: 104.2 | V41: 104.8 | W41: 102.6 | X41: 311.6 | Y41: 1 | Z41: 1 | AA41: Korrekt
A42: 33 | B42: ='Wettkampf 1'!B42 -> Andreas Thoben | C42: ='Wettkampf 1'!C42 -> Werlte III | D42: 307.2 | E42: x | F42: 0 | G42: 0 | H42: 0 | I42: 0 | J42: 0 | K42: 0 | L42: 0 | M42: 0 | N42: 0 | O42: 0 | P42: 0 | Q42: 0 | R42: 0 | U42: 101.8 | V42: 102.7 | W42: 102.7 | X42: 307.2 | Y42: 1 | Z42: 1 | AA42: Korrekt
A43: 34 | B43: ='Wettkampf 1'!B43 -> Hermann Krone | C43: ='Wettkampf 1'!C43 -> Werlte III | D43: 311.0 | F43: 311.0 | G43: 0 | H43: 0 | I43: 0 | J43: 0 | K43: 0 | L43: 0 | M43: 0 | N43: 0 | O43: 0 | P43: 0 | Q43: 311 | R43: 1 | U43: 102.6 | V43: 103.5 | W43: 104.9 | X43: 311.0 | Y43: 1 | Z43: 1 | AA43: Korrekt
A44: 35 | B44: ='Wettkampf 1'!B44 -> Michael Freitag | C44: ='Wettkampf 1'!C44 -> Werlte III | D44: 311.2 | F44: 311.2 | G44: 0 | H44: 0 | I44: 0 | J44: 0 | K44: 0 | L44: 0 | M44: 0 | N44: 0 | O44: 0 | P44: 0 | Q44: 311.2 | R44: 1 | U44: 103.1 | V44: 103.3 | W44: 104.8 | X44: 311.2 | Y44: 1 | Z44: 1 | AA44: Korrekt
A45: 36 | B45: ='Wettkampf 1'!B45 -> Joachim Niermann | C45: ='Wettkampf 1'!C45 -> Werlte III | D45: 306.2 | E45: x | F45: 0 | G45: 0 | H45: 0 | I45: 0 | J45: 0 | K45: 0 | L45: 0 | M45: 0 | N45: 0 | O45: 0 | P45: 0 | Q45: 0 | R45: 0 | U45: 103.2 | V45: 101.3 | W45: 101.7 | X45: 306.2 | Y45: 1 | Z45: 1 | AA45: Korrekt
G46: =LARGE(G10:G45,1)+LARGE(G10:G45,2)+LARGE(G10:G45,3) -> 934.3 | H46: =SUM(H10:H45) -> 3 | I46: =LARGE(I10:I45,1)+LARGE(I10:I45,2)+LARGE(I10:I45,3) -> 943.5 | J46: =SUM(J10:J45) -> 4 | K46: =LARGE(K10:K45,1)+LARGE(K10:K45,2)+LARGE(K10:K45,3) -> 934.4 | L46: =SUM(L10:L45) -> 4 | M46: =LARGE(M10:M45,1)+LARGE(M10:M45,2)+LARGE(M10:M45,3) -> 933.9 | N46: =SUM(N10:N45) -> 3 | O46: =LARGE(O10:O45,1)+LARGE(O10:O45,2)+LARGE(O10:O45,3) -> 938.2 | P46: =SUM(P10:P45) -> 4 | Q46: =LARGE(Q10:Q45,1)+LARGE(Q10:Q45,2)+LARGE(Q10:Q45,3) -> 940.5 | R46: =SUM(R10:S45) -> 4
C47: per Email an: sk-huemmling@gmx.de

Sheet 10
B1: Verein / Gruppe | D1: Ergebnisse | V1: Austragungsort: | W1: =Übersicht!O4 -> Lorup
A2: 1 | B2: ='Wettkampf 1'!B2 -> Breddenb.-Heid. I | D2: =G46 -> 930.7 | E2: =IF(H46>4,"Es sind zu viele Schützen in Wertung!"," ") ->  | V2: Wettkampftag: | W2: =Übersicht!O3 -> 01.03.
A3: 2 | B3: ='Wettkampf 1'!B3 -> Ostenwalde II | D3: =I46 -> 934.3 | E3: =IF(J46>4,"Es sind zu viele Schützen in Wertung!"," ") -> 
A4: 3 | B4: ='Wettkampf 1'!B4 -> Börgermoor II | D4: =K46 -> 932.2 | E4: =IF(L46>4,"Es sind zu viele Schützen in Wertung!"," ") ->  | X4: Ansprechpartner für Rückfragen:
A5: 4 | B5: ='Wettkampf 1'!B5 -> Lorup III | D5: =M46 -> 936.7 | E5: =IF(N46>4,"Es sind zu viele Schützen in Wertung!"," ") ->  | V5: Name:
A6: 5 | B6: ='Wettkampf 1'!B6 -> Breddenb.-Heid. III | D6: =O46 -> 924.9 | E6: =IF(P46>4,"Es sind zu viele Schützen in Wertung!"," ") ->  | V6: Tel:
A7: 6 | B7: ='Wettkampf 1'!B7 -> Werlte III | D7: =Q46 -> 932.3 | E7: =IF(R46>4,"Es sind zu viele Schützen in Wertung!"," ") ->  | V7: Standaufsicht: | W7: Wesseln Johannes
B9: Einzelergebnisse: | C9: Verein / Gruppe | D9: Ergebnisse (mindestens 0 eintragen) | E9: AW? Dann x eintippen | G9: Verein 1 | I9: Verein 2 | K9: Verein 3 | M9: Verein 4 | O9: Verein 5 | Q9: Verein 6 | U9: Proberechnung bei Streifen:
A10: 1 | B10: ='Wettkampf 1'!B10 -> Hans Gebken 3 | C10: ='Wettkampf 1'!C10 -> Breddenb.-Heid. I | D10: 310.2 | F10: =IF(E10="x","0",D10) -> 310.2 | G10: =IF(C10=$B$2,F10,0) -> 310.2 | H10: =(IF(AND($E10="",$C10=$B$2),1,0)) -> 1 | I10: =IF($C10=$B$3,F10,0) -> 0 | J10: =(IF(AND($E10="",$C10=$B$3),1,0)) -> 0 | K10: =IF($C10=$B$4,F10,0) -> 0 | L10: =(IF(AND($E10="",$C10=$B$4),1,0)) -> 0 | M10: =IF($C10=$B$5,F10,0) -> 0 | N10: =(IF(AND($E10="",$C10=$B$5),1,0)) -> 0 | O10: =IF($C10=$B$6,F10,0) -> 0 | P10: =(IF(AND($E10="",$C10=$B$6),1,0)) -> 0 | Q10: =IF($C10=$B$7,F10,0) -> 0 | R10: =(IF(AND($E10="",$C10=$B$7),1,0)) -> 0 | U10: 104.3 | V10: 102.9 | W10: 103.0 | X10: =U10+V10+W10 -> 310.2 | Y10: =IF(X10=D10,1,0) -> 1 | Z10: =IF(X10=0,0,1) -> 1 | AA10: =IF(Y10+Z10=2,"Korrekt","") -> Korrekt
A11: 2 | B11: ='Wettkampf 1'!B11 -> Gerd Vogel | C11: ='Wettkampf 1'!C11 -> Breddenb.-Heid. I | D11: 310.1 | F11: =IF(E11="x","0",D11) -> 310.1 | G11: =IF(C11=$B$2,F11,0) -> 310.1 | H11: =(IF(AND($E11="",$C11=$B$2),1,0)) -> 1 | I11: =IF($C11=$B$3,F11,0) -> 0 | J11: =(IF(AND($E11="",$C11=$B$3),1,0)) -> 0 | K11: =IF($C11=$B$4,F11,0) -> 0 | L11: =(IF(AND($E11="",$C11=$B$4),1,0)) -> 0 | M11: =IF($C11=$B$5,F11,0) -> 0 | N11: =(IF(AND($E11="",$C11=$B$5),1,0)) -> 0 | O11: =IF($C11=$B$6,F11,0) -> 0 | P11: =(IF(AND($E11="",$C11=$B$6),1,0)) -> 0 | Q11: =IF($C11=$B$7,F11,0) -> 0 | R11: =(IF(AND($E11="",$C11=$B$7),1,0)) -> 0 | U11: 100.9 | V11: 103.5 | W11: 105.7 | X11: =U11+V11+W11 -> 310.1 | Y11: =IF(X11=D11,1,0) -> 1 | Z11: =IF(X11=0,0,1) -> 1 | AA11: =IF(Y11+Z11=2,"Korrekt","") -> Korrekt
A12: 3 | B12: ='Wettkampf 1'!B12 -> Heinz Engbers | C12: ='Wettkampf 1'!C12 -> Breddenb.-Heid. I | D12: 310.4 | F12: 310.4 | G12: 310.4 | H12: 1 | I12: 0 | J12: 0 | K12: 0 | L12: 0 | M12: 0 | N12: 0 | O12: 0 | P12: 0 | Q12: 0 | R12: 0 | U12: 103.4 | V12: 102.4 | W12: 104.6 | X12: 310.4 | Y12: 1 | Z12: 1 | AA12: Korrekt
A13: 4 | B13: ='Wettkampf 1'!B13 -> Willi Engbers | C13: ='Wettkampf 1'!C13 -> Breddenb.-Heid. I | D13: 309.7 | F13: 309.7 | G13: 309.7 | H13: 1 | I13: 0 | J13: 0 | K13: 0 | L13: 0 | M13: 0 | N13: 0 | O13: 0 | P13: 0 | Q13: 0 | R13: 0 | U13: 102.6 | V13: 104.2 | W13: 102.9 | X13: 309.7 | Y13: 1 | Z13: 1 | AA13: Korrekt
A14: 5 | B14: ='Wettkampf 1'!B14 -> Hans Gebken 1 | C14: ='Wettkampf 1'!C14 -> Breddenb.-Heid. I | D14: 306.2 | E14: x | F14: 0 | G14: 0 | H14: 0 | I14: 0 | J14: 0 | K14: 0 | L14: 0 | M14: 0 | N14: 0 | O14: 0 | P14: 0 | Q14: 0 | R14: 0 | U14: 101.3 | V14: 103.2 | W14: 101.7 | X14: 306.2 | Y14: 1 | Z14: 1 | AA14: Korrekt
A15: 6 | B15: ='Wettkampf 1'!B15 -> Philipp Schmidt | C15: ='Wettkampf 1'!C15 -> Ostenwalde II | D15: 313.6 | F15: 313.6 | G15: 0 | H15: 0 | I15: 313.6 | J15: 1 | K15: 0 | L15: 0 | M15: 0 | N15: 0 | O15: 0 | P15: 0 | Q15: 0 | R15: 0 | U15: 104.7 | V15: 104.5 | W15: 104.4 | X15: 313.6 | Y15: 1 | Z15: 1 | AA15: Korrekt
A16: 7 | B16: ='Wettkampf 1'!B16 -> Philipp Scholübbers | C16: ='Wettkampf 1'!C16 -> Ostenwalde II | D16: 303.3 | F16: 303.3 | G16: 0 | H16: 0 | I16: 303.3 | J16: 1 | K16: 0 | L16: 0 | M16: 0 | N16: 0 | O16: 0 | P16: 0 | Q16: 0 | R16: 0 | U16: 103.1 | V16: 95.9 | W16: 104.3 | X16: 303.3 | Y16: 1 | Z16: 1 | AA16: Korrekt
A17: 8 | B17: ='Wettkampf 1'!B17 -> Matthias Brinkmann | C17: ='Wettkampf 1'!C17 -> Ostenwalde II | D17: 309.8 | E17: x | F17: 0 | G17: 0 | H17: 0 | I17: 0 | J17: 0 | K17: 0 | L17: 0 | M17: 0 | N17: 0 | O17: 0 | P17: 0 | Q17: 0 | R17: 0 | U17: 102.3 | V17: 103.0 | W17: 104.5 | X17: 309.8 | Y17: 1 | Z17: 1 | AA17: Korrekt
A18: 9 | B18: ='Wettkampf 1'!B18 -> Patrik Krüßel | C18: ='Wettkampf 1'!C18 -> Ostenwalde II | D18: 309.9 | F18: 309.9 | G18: 0 | H18: 0 | I18: 309.9 | J18: 1 | K18: 0 | L18: 0 | M18: 0 | N18: 0 | O18: 0 | P18: 0 | Q18: 0 | R18: 0 | U18: 104.4 | V18: 101.7 | W18: 103.8 | X18: 309.9 | Y18: 1 | Z18: 1 | AA18: Korrekt
A19: 10 | B19: ='Wettkampf 1'!B19 -> Markus Jansen | C19: ='Wettkampf 1'!C19 -> Ostenwalde II | D19: 310.8 | F19: 310.8 | G19: 0 | H19: 0 | I19: 310.8 | J19: 1 | K19: 0 | L19: 0 | M19: 0 | N19: 0 | O19: 0 | P19: 0 | Q19: 0 | R19: 0 | U19: 104.2 | V19: 104.7 | W19: 101.9 | X19: 310.8 | Y19: 1 | Z19: 1 | AA19: Korrekt
A20: 11 | B20: ='Wettkampf 1'!B20 -> Helmut Benten | C20: ='Wettkampf 1'!C20 -> Ostenwalde II | D20: 307.1 | E20: x | F20: 0 | G20: 0 | H20: 0 | I20: 0 | J20: 0 | K20: 0 | L20: 0 | M20: 0 | N20: 0 | O20: 0 | P20: 0 | Q20: 0 | R20: 0 | U20: 102.5 | V20: 103.1 | W20: 101.5 | X20: 307.1 | Y20: 1 | Z20: 1 | AA20: Korrekt
A21: 12 | B21: ='Wettkampf 1'!B21 -> Heinz Dirksen | C21: ='Wettkampf 1'!C21 -> Börgermoor II | D21: 306.9 | F21: 306.9 | G21: 0 | H21: 0 | I21: 0 | J21: 0 | K21: 306.9 | L21: 1 | M21: 0 | N21: 0 | O21: 0 | P21: 0 | Q21: 0 | R21: 0 | U21: 103.0 | V21: 101.3 | W21: 102.6 | X21: 306.9 | Y21: 1 | Z21: 1 | AA21: Korrekt
A22: 13 | B22: ='Wettkampf 1'!B22 -> Hans Ortmann | C22: ='Wettkampf 1'!C22 -> Börgermoor II | D22: 310.1 | F22: 310.1 | G22: 0 | H22: 0 | I22: 0 | J22: 0 | K22: 310.1 | L22: 1 | M22: 0 | N22: 0 | O22: 0 | P22: 0 | Q22: 0 | R22: 0 | U22: 104.8 | V22: 101.5 | W22: 103.8 | X22: 310.1 | Y22: 1 | Z22: 1 | AA22: Korrekt
A23: 14 | B23: ='Wettkampf 1'!B23 -> Karl-Heinz Ortmann | C23: ='Wettkampf 1'!C23 -> Börgermoor II | D23: 310.2 | F23: 310.2 | G23: 0 | H23: 0 | I23: 0 | J23: 0 | K23: 310.2 | L23: 1 | M23: 0 | N23: 0 | O23: 0 | P23: 0 | Q23: 0 | R23: 0 | U23: 102.1 | V23: 103.4 | W23: 104.7 | X23: 310.2 | Y23: 1 | Z23: 1 | AA23: Korrekt
A24: 15 | B24: ='Wettkampf 1'!B24 -> Johannes Jansen | C24: ='Wettkampf 1'!C24 -> Börgermoor II | D24: 311.9 | F24: 311.9 | G24: 0 | H24: 0 | I24: 0 | J24: 0 | K24: 311.9 | L24: 1 | M24: 0 | N24: 0 | O24: 0 | P24: 0 | Q24: 0 | R24: 0 | U24: 104.0 | V24: 104.0 | W24: 103.9 | X24: 311.9 | Y24: 1 | Z24: 1 | AA24: Korrekt
A25: 16 | B25: ='Wettkampf 1'!B25 -> Kevin Minnert | C25: ='Wettkampf 1'!C25 -> Börgermoor II | E25: x | F25: 0 | G25: 0 | H25: 0 | I25: 0 | J25: 0 | K25: 0 | L25: 0 | M25: 0 | N25: 0 | O25: 0 | P25: 0 | Q25: 0 | R25: 0 | X25: 0.0 | Y25: 1 | Z25: 0
A26: 17 | B26: ='Wettkampf 1'!B26 -> Daniel Schülke | C26: ='Wettkampf 1'!C26 -> Börgermoor II | D26: 301.0 | E26: x | F26: 0 | G26: 0 | H26: 0 | I26: 0 | J26: 0 | K26: 0 | L26: 0 | M26: 0 | N26: 0 | O26: 0 | P26: 0 | Q26: 0 | R26: 0 | U26: 101.5 | V26: 98.5 | W26: 101.0 | X26: 301.0 | Y26: 1 | Z26: 1 | AA26: Korrekt
A27: 18 | B27: ='Wettkampf 1'!B27 -> Frank Wotte | C27: ='Wettkampf 1'!C27 -> Lorup III | D27: 314.2 | F27: 314.2 | G27: 0 | H27: 0 | I27: 0 | J27: 0 | K27: 0 | L27: 0 | M27: 314.2 | N27: 1 | O27: 0 | P27: 0 | Q27: 0 | R27: 0 | U27: 104.8 | V27: 105.7 | W27: 103.7 | X27: 314.2 | Y27: 1 | Z27: 1 | AA27: Korrekt
A28: 19 | B28: ='Wettkampf 1'!B28 -> Johannes Wesseln | C28: ='Wettkampf 1'!C28 -> Lorup III | D28: 311.5 | F28: 311.5 | G28: 0 | H28: 0 | I28: 0 | J28: 0 | K28: 0 | L28: 0 | M28: 311.5 | N28: 1 | O28: 0 | P28: 0 | Q28: 0 | R28: 0 | U28: 103.5 | V28: 103.9 | W28: 104.1 | X28: 311.5 | Y28: 1 | Z28: 1 | AA28: Korrekt
A29: 20 | B29: ='Wettkampf 1'!B29 -> Anton Oldiges | C29: ='Wettkampf 1'!C29 -> Lorup III | D29: 304.0 | E29: x | F29: 0 | G29: 0 | H29: 0 | I29: 0 | J29: 0 | K29: 0 | L29: 0 | M29: 0 | N29: 0 | O29: 0 | P29: 0 | Q29: 0 | R29: 0 | U29: 100.2 | V29: 101.7 | W29: 102.1 | X29: 304.0 | Y29: 1 | Z29: 1 | AA29: Korrekt
A30: 21 | B30: ='Wettkampf 1'!B30 -> Jürgen Will | C30: ='Wettkampf 1'!C30 -> Lorup III | D30: 311.0 | F30: 311.0 | G30: 0 | H30: 0 | I30: 0 | J30: 0 | K30: 0 | L30: 0 | M30: 311 | N30: 1 | O30: 0 | P30: 0 | Q30: 0 | R30: 0 | U30: 102.6 | V30: 104.2 | W30: 104.2 | X30: 311.0 | Y30: 1 | Z30: 1 | AA30: Korrekt
A31: 22 | B31: ='Wettkampf 1'!B31 -> Schütze 22 | C31: ='Wettkampf 1'!C31 -> Lorup III | F31: 0.0 | G31: 0 | H31: 0 | I31: 0 | J31: 0 | K31: 0 | L31: 0 | M31: 0 | N31: 1 | O31: 0 | P31: 0 | Q31: 0 | R31: 0 | X31: 0.0 | Y31: 1 | Z31: 0
A32: 23 | B32: ='Wettkampf 1'!B32 -> Schütze 23 | C32: ='Wettkampf 1'!C32 -> Lorup III | E32: x | F32: 0 | G32: 0 | H32: 0 | I32: 0 | J32: 0 | K32: 0 | L32: 0 | M32: 0 | N32: 0 | O32: 0 | P32: 0 | Q32: 0 | R32: 0 | X32: 0.0 | Y32: 1 | Z32: 0
A33: 24 | B33: ='Wettkampf 1'!B33 -> Norbert Jansen | C33: ='Wettkampf 1'!C33 -> Breddenb.-Heid. III | D33: 303.6 | F33: 303.6 | G33: 0 | H33: 0 | I33: 0 | J33: 0 | K33: 0 | L33: 0 | M33: 0 | N33: 0 | O33: 303.6 | P33: 1 | Q33: 0 | R33: 0 | U33: 100.9 | V33: 100.5 | W33: 102.2 | X33: 303.6 | Y33: 1 | Z33: 1 | AA33: Korrekt
A34: 25 | B34: ='Wettkampf 1'!B34 -> Werner Jansen | C34: ='Wettkampf 1'!C34 -> Breddenb.-Heid. III | D34: 301.2 | E34: x | F34: 0 | G34: 0 | H34: 0 | I34: 0 | J34: 0 | K34: 0 | L34: 0 | M34: 0 | N34: 0 | O34: 0 | P34: 0 | Q34: 0 | R34: 0 | U34: 101.6 | V34: 98.5 | W34: 101.1 | X34: 301.2 | Y34: 1 | Z34: 1 | AA34: Korrekt
A35: 26 | B35: ='Wettkampf 1'!B35 -> Alfons Plüster | C35: ='Wettkampf 1'!C35 -> Breddenb.-Heid. III | D35: 304.7 | F35: 304.7 | G35: 0 | H35: 0 | I35: 0 | J35: 0 | K35: 0 | L35: 0 | M35: 0 | N35: 0 | O35: 304.7 | P35: 1 | Q35: 0 | R35: 0 | U35: 99.5 | V35: 103.4 | W35: 101.8 | X35: 304.7 | Y35: 1 | Z35: 1 | AA35: Korrekt
A36: 27 | B36: ='Wettkampf 1'!B36 -> Johannes Oldiges | C36: ='Wettkampf 1'!C36 -> Breddenb.-Heid. III | D36: 306.1 | E36: x | F36: 0 | G36: 0 | H36: 0 | I36: 0 | J36: 0 | K36: 0 | L36: 0 | M36: 0 | N36: 0 | O36: 0 | P36: 0 | Q36: 0 | R36: 0 | U36: 102.5 | V36: 103.2 | W36: 100.4 | X36: 306.1 | Y36: 1 | Z36: 1 | AA36: Korrekt
A37: 28 | B37: ='Wettkampf 1'!B37 -> Hans Plüster | C37: ='Wettkampf 1'!C37 -> Breddenb.-Heid. III | D37: 311.4 | F37: 311.4 | G37: 0 | H37: 0 | I37: 0 | J37: 0 | K37: 0 | L37: 0 | M37: 0 | N37: 0 | O37: 311.4 | P37: 1 | Q37: 0 | R37: 0 | U37: 104.9 | V37: 102.3 | W37: 104.2 | X37: 311.4 | Y37: 1 | Z37: 1 | AA37: Korrekt
A38: 29 | B38: ='Wettkampf 1'!B38 -> Josef Wübben | C38: ='Wettkampf 1'!C38 -> Breddenb.-Heid. III | D38: 308.8 | F38: 308.8 | G38: 0 | H38: 0 | I38: 0 | J38: 0 | K38: 0 | L38: 0 | M38: 0 | N38: 0 | O38: 308.8 | P38: 1 | Q38: 0 | R38: 0 | U38: 105.9 | V38: 102.2 | W38: 100.7 | X38: 308.8 | Y38: 1 | Z38: 1 | AA38: Korrekt
A39: 30 | B39: ='Wettkampf 1'!B39 -> Thomas Niermann | C39: ='Wettkampf 1'!C39 -> Werlte III | D39: 307.8 | F39: 307.8 | G39: 0 | H39: 0 | I39: 0 | J39: 0 | K39: 0 | L39: 0 | M39: 0 | N39: 0 | O39: 0 | P39: 0 | Q39: 307.8 | R39: 1 | U39: 103.5 | V39: 100.5 | W39: 103.8 | X39: 307.8 | Y39: 1 | Z39: 1 | AA39: Korrekt
A40: 31 | B40: ='Wettkampf 1'!B40 -> Bernd Thien | C40: ='Wettkampf 1'!C40 -> Werlte III | D40: 313.2 | F40: 313.2 | G40: 0 | H40: 0 | I40: 0 | J40: 0 | K40: 0 | L40: 0 | M40: 0 | N40: 0 | O40: 0 | P40: 0 | Q40: 313.2 | R40: 1 | U40: 105.6 | V40: 104.0 | W40: 103.6 | X40: 313.2 | Y40: 1 | Z40: 1 | AA40: Korrekt
A41: 32 | B41: ='Wettkampf 1'!B41 -> Norbert Grünloh | C41: ='Wettkampf 1'!C41 -> Werlte III | D41: 309.3 | F41: 309.3 | G41: 0 | H41: 0 | I41: 0 | J41: 0 | K41: 0 | L41: 0 | M41: 0 | N41: 0 | O41: 0 | P41: 0 | Q41: 309.3 | R41: 1 | U41: 105.5 | V41: 101.4 | W41: 102.4 | X41: 309.3 | Y41: 1 | Z41: 1 | AA41: Korrekt
A42: 33 | B42: ='Wettkampf 1'!B42 -> Andreas Thoben | C42: ='Wettkampf 1'!C42 -> Werlte III | D42: 309.8 | F42: 309.8 | G42: 0 | H42: 0 | I42: 0 | J42: 0 | K42: 0 | L42: 0 | M42: 0 | N42: 0 | O42: 0 | P42: 0 | Q42: 309.8 | R42: 1 | U42: 102.8 | V42: 103.7 | W42: 103.3 | X42: 309.8 | Y42: 1 | Z42: 1 | AA42: Korrekt
A43: 34 | B43: ='Wettkampf 1'!B43 -> Hermann Krone | C43: ='Wettkampf 1'!C43 -> Werlte III | D43: 307.9 | E43: x | F43: 0 | G43: 0 | H43: 0 | I43: 0 | J43: 0 | K43: 0 | L43: 0 | M43: 0 | N43: 0 | O43: 0 | P43: 0 | Q43: 0 | R43: 0 | U43: 102.3 | V43: 102.7 | W43: 102.9 | X43: 307.9 | Y43: 1 | Z43: 1 | AA43: Korrekt
A44: 35 | B44: ='Wettkampf 1'!B44 -> Michael Freitag | C44: ='Wettkampf 1'!C44 -> Werlte III | E44: x | F44: 0 | G44: 0 | H44: 0 | I44: 0 | J44: 0 | K44: 0 | L44: 0 | M44: 0 | N44: 0 | O44: 0 | P44: 0 | Q44: 0 | R44: 0 | X44: 0.0 | Y44: 1 | Z44: 0
A45: 36 | B45: ='Wettkampf 1'!B45 -> Joachim Niermann | C45: ='Wettkampf 1'!C45 -> Werlte III | D45: 308.7 | E45: x | F45: 0 | G45: 0 | H45: 0 | I45: 0 | J45: 0 | K45: 0 | L45: 0 | M45: 0 | N45: 0 | O45: 0 | P45: 0 | Q45: 0 | R45: 0 | U45: 102.5 | V45: 101.5 | W45: 104.7 | X45: 308.7 | Y45: 1 | Z45: 1 | AA45: Korrekt
G46: =LARGE(G10:G45,1)+LARGE(G10:G45,2)+LARGE(G10:G45,3) -> 930.7 | H46: =SUM(H10:H45) -> 4 | I46: =LARGE(I10:I45,1)+LARGE(I10:I45,2)+LARGE(I10:I45,3) -> 934.3 | J46: =SUM(J10:J45) -> 4 | K46: =LARGE(K10:K45,1)+LARGE(K10:K45,2)+LARGE(K10:K45,3) -> 932.2 | L46: =SUM(L10:L45) -> 4 | M46: =LARGE(M10:M45,1)+LARGE(M10:M45,2)+LARGE(M10:M45,3) -> 936.7 | N46: =SUM(N10:N45) -> 4 | O46: =LARGE(O10:O45,1)+LARGE(O10:O45,2)+LARGE(O10:O45,3) -> 924.9 | P46: =SUM(P10:P45) -> 4 | Q46: =LARGE(Q10:Q45,1)+LARGE(Q10:Q45,2)+LARGE(Q10:Q45,3) -> 932.3 | R46: =SUM(R10:S45) -> 4
C47: per Email an: sk-huemmling@gmx.de

Sheet 11
B1: Verein / Gruppe | D1: Ergebnisse | V1: Austragungsort: | W1: =Übersicht!P4 -> Breddenberg
A2: 1 | B2: ='Wettkampf 1'!B2 -> Breddenb.-Heid. I | D2: =G46 -> 930.9 | E2: =IF(H46>4,"Es sind zu viele Schützen in Wertung!"," ") ->  | V2: Wettkampftag: | W2: =Übersicht!P3 -> 15.03.
A3: 2 | B3: ='Wettkampf 1'!B3 -> Ostenwalde II | D3: =I46 -> 940.4 | E3: =IF(J46>4,"Es sind zu viele Schützen in Wertung!"," ") -> 
A4: 3 | B4: ='Wettkampf 1'!B4 -> Börgermoor II | D4: =K46 -> 932.3 | E4: =IF(L46>4,"Es sind zu viele Schützen in Wertung!"," ") ->  | X4: Ansprechpartner für Rückfragen:
A5: 4 | B5: ='Wettkampf 1'!B5 -> Lorup III | D5: =M46 -> 936.0 | E5: =IF(N46>4,"Es sind zu viele Schützen in Wertung!"," ") ->  | V5: Name: | W5: Oldiges johannes
A6: 5 | B6: ='Wettkampf 1'!B6 -> Breddenb.-Heid. III | D6: =O46 -> 934.4 | E6: =IF(P46>4,"Es sind zu viele Schützen in Wertung!"," ") ->  | V6: Tel: | W6: 015209409594
A7: 6 | B7: ='Wettkampf 1'!B7 -> Werlte III | D7: =Q46 -> 936.3 | E7: =IF(R46>4,"Es sind zu viele Schützen in Wertung!"," ") ->  | V7: Standaufsicht: | W7: N. Jansen
B9: Einzelergebnisse: | C9: Verein / Gruppe | D9: Ergebnisse (mindestens 0 eintragen) | E9: AW? Dann x eintippen | G9: Verein 1 | I9: Verein 2 | K9: Verein 3 | M9: Verein 4 | O9: Verein 5 | Q9: Verein 6 | U9: Proberechnung bei Streifen:
A10: 1 | B10: ='Wettkampf 1'!B10 -> Hans Gebken 3 | C10: ='Wettkampf 1'!C10 -> Breddenb.-Heid. I | D10: 308.3 | F10: =IF(E10="x","0",D10) -> 308.3 | G10: =IF(C10=$B$2,F10,0) -> 308.3 | H10: =(IF(AND($E10="",$C10=$B$2),1,0)) -> 1 | I10: =IF($C10=$B$3,F10,0) -> 0 | J10: =(IF(AND($E10="",$C10=$B$3),1,0)) -> 0 | K10: =IF($C10=$B$4,F10,0) -> 0 | L10: =(IF(AND($E10="",$C10=$B$4),1,0)) -> 0 | M10: =IF($C10=$B$5,F10,0) -> 0 | N10: =(IF(AND($E10="",$C10=$B$5),1,0)) -> 0 | O10: =IF($C10=$B$6,F10,0) -> 0 | P10: =(IF(AND($E10="",$C10=$B$6),1,0)) -> 0 | Q10: =IF($C10=$B$7,F10,0) -> 0 | R10: =(IF(AND($E10="",$C10=$B$7),1,0)) -> 0 | X10: =U10+V10+W10 -> 0.0 | Y10: =IF(X10=D10,1,0) -> 0 | Z10: =IF(X10=0,0,1) -> 0 | AA10: =IF(Y10+Z10=2,"Korrekt","") -> 
A11: 2 | B11: ='Wettkampf 1'!B11 -> Gerd Vogel | C11: ='Wettkampf 1'!C11 -> Breddenb.-Heid. I | D11: 310.7 | F11: =IF(E11="x","0",D11) -> 310.7 | G11: =IF(C11=$B$2,F11,0) -> 310.7 | H11: =(IF(AND($E11="",$C11=$B$2),1,0)) -> 1 | I11: =IF($C11=$B$3,F11,0) -> 0 | J11: =(IF(AND($E11="",$C11=$B$3),1,0)) -> 0 | K11: =IF($C11=$B$4,F11,0) -> 0 | L11: =(IF(AND($E11="",$C11=$B$4),1,0)) -> 0 | M11: =IF($C11=$B$5,F11,0) -> 0 | N11: =(IF(AND($E11="",$C11=$B$5),1,0)) -> 0 | O11: =IF($C11=$B$6,F11,0) -> 0 | P11: =(IF(AND($E11="",$C11=$B$6),1,0)) -> 0 | Q11: =IF($C11=$B$7,F11,0) -> 0 | R11: =(IF(AND($E11="",$C11=$B$7),1,0)) -> 0 | X11: =U11+V11+W11 -> 0.0 | Y11: =IF(X11=D11,1,0) -> 0 | Z11: =IF(X11=0,0,1) -> 0 | AA11: =IF(Y11+Z11=2,"Korrekt","") -> 
A12: 3 | B12: ='Wettkampf 1'!B12 -> Heinz Engbers | C12: ='Wettkampf 1'!C12 -> Breddenb.-Heid. I | D12: 310.1 | F12: 310.1 | G12: 310.1 | H12: 1 | I12: 0 | J12: 0 | K12: 0 | L12: 0 | M12: 0 | N12: 0 | O12: 0 | P12: 0 | Q12: 0 | R12: 0 | X12: 0.0 | Y12: 0 | Z12: 0
A13: 4 | B13: ='Wettkampf 1'!B13 -> Willi Engbers | C13: ='Wettkampf 1'!C13 -> Breddenb.-Heid. I | D13: 310.1 | F13: 310.1 | G13: 310.1 | H13: 1 | I13: 0 | J13: 0 | K13: 0 | L13: 0 | M13: 0 | N13: 0 | O13: 0 | P13: 0 | Q13: 0 | R13: 0 | X13: 0.0 | Y13: 0 | Z13: 0
A14: 5 | B14: ='Wettkampf 1'!B14 -> Hans Gebken 1 | C14: ='Wettkampf 1'!C14 -> Breddenb.-Heid. I | D14: 305.7 | E14: x | F14: 0 | G14: 0 | H14: 0 | I14: 0 | J14: 0 | K14: 0 | L14: 0 | M14: 0 | N14: 0 | O14: 0 | P14: 0 | Q14: 0 | R14: 0 | X14: 0.0 | Y14: 0 | Z14: 0
A15: 6 | B15: ='Wettkampf 1'!B15 -> Philipp Schmidt | C15: ='Wettkampf 1'!C15 -> Ostenwalde II | D15: 314.1 | F15: 314.1 | G15: 0 | H15: 0 | I15: 314.1 | J15: 1 | K15: 0 | L15: 0 | M15: 0 | N15: 0 | O15: 0 | P15: 0 | Q15: 0 | R15: 0 | X15: 0.0 | Y15: 0 | Z15: 0
A16: 7 | B16: ='Wettkampf 1'!B16 -> Philipp Scholübbers | C16: ='Wettkampf 1'!C16 -> Ostenwalde II | D16: 313.7 | F16: 313.7 | G16: 0 | H16: 0 | I16: 313.7 | J16: 1 | K16: 0 | L16: 0 | M16: 0 | N16: 0 | O16: 0 | P16: 0 | Q16: 0 | R16: 0 | X16: 0.0 | Y16: 0 | Z16: 0
A17: 8 | B17: ='Wettkampf 1'!B17 -> Matthias Brinkmann | C17: ='Wettkampf 1'!C17 -> Ostenwalde II | D17: 304.1 | F17: 304.1 | G17: 0 | H17: 0 | I17: 304.1 | J17: 1 | K17: 0 | L17: 0 | M17: 0 | N17: 0 | O17: 0 | P17: 0 | Q17: 0 | R17: 0 | X17: 0.0 | Y17: 0 | Z17: 0
A18: 9 | B18: ='Wettkampf 1'!B18 -> Patrik Krüßel | C18: ='Wettkampf 1'!C18 -> Ostenwalde II | D18: 312.6 | F18: 312.6 | G18: 0 | H18: 0 | I18: 312.6 | J18: 1 | K18: 0 | L18: 0 | M18: 0 | N18: 0 | O18: 0 | P18: 0 | Q18: 0 | R18: 0 | X18: 0.0 | Y18: 0 | Z18: 0
A19: 10 | B19: ='Wettkampf 1'!B19 -> Markus Jansen | C19: ='Wettkampf 1'!C19 -> Ostenwalde II | D19: 306.9 | E19: x | F19: 0 | G19: 0 | H19: 0 | I19: 0 | J19: 0 | K19: 0 | L19: 0 | M19: 0 | N19: 0 | O19: 0 | P19: 0 | Q19: 0 | R19: 0 | X19: 0.0 | Y19: 0 | Z19: 0
A20: 11 | B20: ='Wettkampf 1'!B20 -> Helmut Benten | C20: ='Wettkampf 1'!C20 -> Ostenwalde II | D20: 309.8 | E20: x | F20: 0 | G20: 0 | H20: 0 | I20: 0 | J20: 0 | K20: 0 | L20: 0 | M20: 0 | N20: 0 | O20: 0 | P20: 0 | Q20: 0 | R20: 0 | X20: 0.0 | Y20: 0 | Z20: 0
A21: 12 | B21: ='Wettkampf 1'!B21 -> Heinz Dirksen | C21: ='Wettkampf 1'!C21 -> Börgermoor II | D21: 308.5 | E21: x | F21: 0 | G21: 0 | H21: 0 | I21: 0 | J21: 0 | K21: 0 | L21: 0 | M21: 0 | N21: 0 | O21: 0 | P21: 0 | Q21: 0 | R21: 0 | X21: 0.0 | Y21: 0 | Z21: 0
A22: 13 | B22: ='Wettkampf 1'!B22 -> Hans Ortmann | C22: ='Wettkampf 1'!C22 -> Börgermoor II | D22: 310.4 | F22: 310.4 | G22: 0 | H22: 0 | I22: 0 | J22: 0 | K22: 310.4 | L22: 1 | M22: 0 | N22: 0 | O22: 0 | P22: 0 | Q22: 0 | R22: 0 | X22: 0.0 | Y22: 0 | Z22: 0
A23: 14 | B23: ='Wettkampf 1'!B23 -> Karl-Heinz Ortmann | C23: ='Wettkampf 1'!C23 -> Börgermoor II | D23: 310.0 | F23: 310.0 | G23: 0 | H23: 0 | I23: 0 | J23: 0 | K23: 310 | L23: 1 | M23: 0 | N23: 0 | O23: 0 | P23: 0 | Q23: 0 | R23: 0 | X23: 0.0 | Y23: 0 | Z23: 0
A24: 15 | B24: ='Wettkampf 1'!B24 -> Johannes Jansen | C24: ='Wettkampf 1'!C24 -> Börgermoor II | D24: 311.9 | F24: 311.9 | G24: 0 | H24: 0 | I24: 0 | J24: 0 | K24: 311.9 | L24: 1 | M24: 0 | N24: 0 | O24: 0 | P24: 0 | Q24: 0 | R24: 0 | X24: 0.0 | Y24: 0 | Z24: 0
A25: 16 | B25: ='Wettkampf 1'!B25 -> Kevin Minnert | C25: ='Wettkampf 1'!C25 -> Börgermoor II | F25: 0.0 | G25: 0 | H25: 0 | I25: 0 | J25: 0 | K25: 0 | L25: 1 | M25: 0 | N25: 0 | O25: 0 | P25: 0 | Q25: 0 | R25: 0 | X25: 0.0 | Y25: 1 | Z25: 0
A26: 17 | B26: ='Wettkampf 1'!B26 -> Daniel Schülke | C26: ='Wettkampf 1'!C26 -> Börgermoor II | D26: 299.4 | E26: x | F26: 0 | G26: 0 | H26: 0 | I26: 0 | J26: 0 | K26: 0 | L26: 0 | M26: 0 | N26: 0 | O26: 0 | P26: 0 | Q26: 0 | R26: 0 | X26: 0.0 | Y26: 0 | Z26: 0
A27: 18 | B27: ='Wettkampf 1'!B27 -> Frank Wotte | C27: ='Wettkampf 1'!C27 -> Lorup III | D27: 314.1 | F27: 314.1 | G27: 0 | H27: 0 | I27: 0 | J27: 0 | K27: 0 | L27: 0 | M27: 314.1 | N27: 1 | O27: 0 | P27: 0 | Q27: 0 | R27: 0 | X27: 0.0 | Y27: 0 | Z27: 0
A28: 19 | B28: ='Wettkampf 1'!B28 -> Johannes Wesseln | C28: ='Wettkampf 1'!C28 -> Lorup III | D28: 312.4 | F28: 312.4 | G28: 0 | H28: 0 | I28: 0 | J28: 0 | K28: 0 | L28: 0 | M28: 312.4 | N28: 1 | O28: 0 | P28: 0 | Q28: 0 | R28: 0 | X28: 0.0 | Y28: 0 | Z28: 0
A29: 20 | B29: ='Wettkampf 1'!B29 -> Anton Oldiges | C29: ='Wettkampf 1'!C29 -> Lorup III | D29: 309.5 | F29: 309.5 | G29: 0 | H29: 0 | I29: 0 | J29: 0 | K29: 0 | L29: 0 | M29: 309.5 | N29: 1 | O29: 0 | P29: 0 | Q29: 0 | R29: 0 | X29: 0.0 | Y29: 0 | Z29: 0
A30: 21 | B30: ='Wettkampf 1'!B30 -> Jürgen Will | C30: ='Wettkampf 1'!C30 -> Lorup III | D30: 308.9 | E30: x | F30: 0 | G30: 0 | H30: 0 | I30: 0 | J30: 0 | K30: 0 | L30: 0 | M30: 0 | N30: 0 | O30: 0 | P30: 0 | Q30: 0 | R30: 0 | X30: 0.0 | Y30: 0 | Z30: 0
A31: 22 | B31: ='Wettkampf 1'!B31 -> Schütze 22 | C31: ='Wettkampf 1'!C31 -> Lorup III | E31: x | F31: 0 | G31: 0 | H31: 0 | I31: 0 | J31: 0 | K31: 0 | L31: 0 | M31: 0 | N31: 0 | O31: 0 | P31: 0 | Q31: 0 | R31: 0 | X31: 0.0 | Y31: 1 | Z31: 0
A32: 23 | B32: ='Wettkampf 1'!B32 -> Schütze 23 | C32: ='Wettkampf 1'!C32 -> Lorup III | E32: x | F32: 0 | G32: 0 | H32: 0 | I32: 0 | J32: 0 | K32: 0 | L32: 0 | M32: 0 | N32: 0 | O32: 0 | P32: 0 | Q32: 0 | R32: 0 | X32: 0.0 | Y32: 1 | Z32: 0
A33: 24 | B33: ='Wettkampf 1'!B33 -> Norbert Jansen | C33: ='Wettkampf 1'!C33 -> Breddenb.-Heid. III | D33: 309.7 | F33: 309.7 | G33: 0 | H33: 0 | I33: 0 | J33: 0 | K33: 0 | L33: 0 | M33: 0 | N33: 0 | O33: 309.7 | P33: 1 | Q33: 0 | R33: 0 | X33: 0.0 | Y33: 0 | Z33: 0
A34: 25 | B34: ='Wettkampf 1'!B34 -> Werner Jansen | C34: ='Wettkampf 1'!C34 -> Breddenb.-Heid. III | D34: 309.5 | F34: 309.5 | G34: 0 | H34: 0 | I34: 0 | J34: 0 | K34: 0 | L34: 0 | M34: 0 | N34: 0 | O34: 309.5 | P34: 1 | Q34: 0 | R34: 0 | X34: 0.0 | Y34: 0 | Z34: 0
A35: 26 | B35: ='Wettkampf 1'!B35 -> Alfons Plüster | C35: ='Wettkampf 1'!C35 -> Breddenb.-Heid. III | D35: 305.1 | E35: x | F35: 0 | G35: 0 | H35: 0 | I35: 0 | J35: 0 | K35: 0 | L35: 0 | M35: 0 | N35: 0 | O35: 0 | P35: 0 | Q35: 0 | R35: 0 | X35: 0.0 | Y35: 0 | Z35: 0
A36: 27 | B36: ='Wettkampf 1'!B36 -> Johannes Oldiges | C36: ='Wettkampf 1'!C36 -> Breddenb.-Heid. III | D36: 302.6 | E36: x | F36: 0 | G36: 0 | H36: 0 | I36: 0 | J36: 0 | K36: 0 | L36: 0 | M36: 0 | N36: 0 | O36: 0 | P36: 0 | Q36: 0 | R36: 0 | X36: 0.0 | Y36: 0 | Z36: 0
A37: 28 | B37: ='Wettkampf 1'!B37 -> Hans Plüster | C37: ='Wettkampf 1'!C37 -> Breddenb.-Heid. III | D37: 315.2 | F37: 315.2 | G37: 0 | H37: 0 | I37: 0 | J37: 0 | K37: 0 | L37: 0 | M37: 0 | N37: 0 | O37: 315.2 | P37: 1 | Q37: 0 | R37: 0 | X37: 0.0 | Y37: 0 | Z37: 0
A38: 29 | B38: ='Wettkampf 1'!B38 -> Josef Wübben | C38: ='Wettkampf 1'!C38 -> Breddenb.-Heid. III | D38: 305.8 | F38: 305.8 | G38: 0 | H38: 0 | I38: 0 | J38: 0 | K38: 0 | L38: 0 | M38: 0 | N38: 0 | O38: 305.8 | P38: 1 | Q38: 0 | R38: 0 | X38: 0.0 | Y38: 0 | Z38: 0
A39: 30 | B39: ='Wettkampf 1'!B39 -> Thomas Niermann | C39: ='Wettkampf 1'!C39 -> Werlte III | D39: 312.1 | F39: 312.1 | G39: 0 | H39: 0 | I39: 0 | J39: 0 | K39: 0 | L39: 0 | M39: 0 | N39: 0 | O39: 0 | P39: 0 | Q39: 312.1 | R39: 1 | X39: 0.0 | Y39: 0 | Z39: 0
A40: 31 | B40: ='Wettkampf 1'!B40 -> Bernd Thien | C40: ='Wettkampf 1'!C40 -> Werlte III | D40: 313.9 | F40: 313.9 | G40: 0 | H40: 0 | I40: 0 | J40: 0 | K40: 0 | L40: 0 | M40: 0 | N40: 0 | O40: 0 | P40: 0 | Q40: 313.9 | R40: 1 | X40: 0.0 | Y40: 0 | Z40: 0
A41: 32 | B41: ='Wettkampf 1'!B41 -> Norbert Grünloh | C41: ='Wettkampf 1'!C41 -> Werlte III | D41: 309.7 | F41: 309.7 | G41: 0 | H41: 0 | I41: 0 | J41: 0 | K41: 0 | L41: 0 | M41: 0 | N41: 0 | O41: 0 | P41: 0 | Q41: 309.7 | R41: 1 | X41: 0.0 | Y41: 0 | Z41: 0
A42: 33 | B42: ='Wettkampf 1'!B42 -> Andreas Thoben | C42: ='Wettkampf 1'!C42 -> Werlte III | D42: 310.3 | F42: 310.3 | G42: 0 | H42: 0 | I42: 0 | J42: 0 | K42: 0 | L42: 0 | M42: 0 | N42: 0 | O42: 0 | P42: 0 | Q42: 310.3 | R42: 1 | X42: 0.0 | Y42: 0 | Z42: 0
A43: 34 | B43: ='Wettkampf 1'!B43 -> Hermann Krone | C43: ='Wettkampf 1'!C43 -> Werlte III | D43: 303.8 | E43: x | F43: 0 | G43: 0 | H43: 0 | I43: 0 | J43: 0 | K43: 0 | L43: 0 | M43: 0 | N43: 0 | O43: 0 | P43: 0 | Q43: 0 | R43: 0 | X43: 0.0 | Y43: 0 | Z43: 0
A44: 35 | B44: ='Wettkampf 1'!B44 -> Michael Freitag | C44: ='Wettkampf 1'!C44 -> Werlte III | D44: 308.6 | E44: x | F44: 0 | G44: 0 | H44: 0 | I44: 0 | J44: 0 | K44: 0 | L44: 0 | M44: 0 | N44: 0 | O44: 0 | P44: 0 | Q44: 0 | R44: 0 | X44: 0.0 | Y44: 0 | Z44: 0
A45: 36 | B45: ='Wettkampf 1'!B45 -> Joachim Niermann | C45: ='Wettkampf 1'!C45 -> Werlte III | D45: 309.2 | E45: x | F45: 0 | G45: 0 | H45: 0 | I45: 0 | J45: 0 | K45: 0 | L45: 0 | M45: 0 | N45: 0 | O45: 0 | P45: 0 | Q45: 0 | R45: 0 | X45: 0.0 | Y45: 0 | Z45: 0
G46: =LARGE(G10:G45,1)+LARGE(G10:G45,2)+LARGE(G10:G45,3) -> 930.9 | H46: =SUM(H10:H45) -> 4 | I46: =LARGE(I10:I45,1)+LARGE(I10:I45,2)+LARGE(I10:I45,3) -> 940.4 | J46: =SUM(J10:J45) -> 4 | K46: =LARGE(K10:K45,1)+LARGE(K10:K45,2)+LARGE(K10:K45,3) -> 932.3 | L46: =SUM(L10:L45) -> 4 | M46: =LARGE(M10:M45,1)+LARGE(M10:M45,2)+LARGE(M10:M45,3) -> 936 | N46: =SUM(N10:N45) -> 3 | O46: =LARGE(O10:O45,1)+LARGE(O10:O45,2)+LARGE(O10:O45,3) -> 934.4 | P46: =SUM(P10:P45) -> 4 | Q46: =LARGE(Q10:Q45,1)+LARGE(Q10:Q45,2)+LARGE(Q10:Q45,3) -> 936.3 | R46: =SUM(R10:S45) -> 4
C47: per Email an: sk-huemmling@gmx.de

Sheet 12
B1: Verein / Gruppe | D1: Ergebnisse | V1: Austragungsort: | W1: =Übersicht!Q4 -> Werlte
A2: 1 | B2: ='Wettkampf 1'!B2 -> Breddenb.-Heid. I | D2: =G46 -> 0.0 | E2: =IF(H46>4,"Es sind zu viele Schützen in Wertung!"," ") ->  | V2: Wettkampftag: | W2: =Übersicht!Q3 -> 29.03.
A3: 2 | B3: ='Wettkampf 1'!B3 -> Ostenwalde II | D3: =I46 -> 0.0 | E3: =IF(J46>4,"Es sind zu viele Schützen in Wertung!"," ") -> 
A4: 3 | B4: ='Wettkampf 1'!B4 -> Börgermoor II | D4: =K46 -> 0.0 | E4: =IF(L46>4,"Es sind zu viele Schützen in Wertung!"," ") ->  | X4: Ansprechpartner für Rückfragen:
A5: 4 | B5: ='Wettkampf 1'!B5 -> Lorup III | D5: =M46 -> 0.0 | E5: =IF(N46>4,"Es sind zu viele Schützen in Wertung!"," ") ->  | V5: Name:
A6: 5 | B6: ='Wettkampf 1'!B6 -> Breddenb.-Heid. III | D6: =O46 -> 0.0 | E6: =IF(P46>4,"Es sind zu viele Schützen in Wertung!"," ") ->  | V6: Tel:
A7: 6 | B7: ='Wettkampf 1'!B7 -> Werlte III | D7: =Q46 -> 0.0 | E7: =IF(R46>4,"Es sind zu viele Schützen in Wertung!"," ") ->  | V7: Standaufsicht:
B9: Einzelergebnisse: | C9: Verein / Gruppe | D9: Ergebnisse (mindestens 0 eintragen) | E9: AW? Dann x eintippen | G9: Verein 1 | I9: Verein 2 | K9: Verein 3 | M9: Verein 4 | O9: Verein 5 | Q9: Verein 6 | U9: Proberechnung bei Streifen:
A10: 1 | B10: ='Wettkampf 1'!B10 -> Hans Gebken 3 | C10: ='Wettkampf 1'!C10 -> Breddenb.-Heid. I | F10: =IF(E10="x","0",D10) -> 0.0 | G10: =IF(C10=$B$2,F10,0) -> 0 | H10: =(IF(AND($E10="",$C10=$B$2),1,0)) -> 1 | I10: =IF($C10=$B$3,F10,0) -> 0 | J10: =(IF(AND($E10="",$C10=$B$3),1,0)) -> 0 | K10: =IF($C10=$B$4,F10,0) -> 0 | L10: =(IF(AND($E10="",$C10=$B$4),1,0)) -> 0 | M10: =IF($C10=$B$5,F10,0) -> 0 | N10: =(IF(AND($E10="",$C10=$B$5),1,0)) -> 0 | O10: =IF($C10=$B$6,F10,0) -> 0 | P10: =(IF(AND($E10="",$C10=$B$6),1,0)) -> 0 | Q10: =IF($C10=$B$7,F10,0) -> 0 | R10: =(IF(AND($E10="",$C10=$B$7),1,0)) -> 0 | X10: =U10+V10+W10 -> 0.0 | Y10: =IF(X10=D10,1,0) -> 1 | Z10: =IF(X10=0,0,1) -> 0 | AA10: =IF(Y10+Z10=2,"Korrekt","") -> 
A11: 2 | B11: ='Wettkampf 1'!B11 -> Gerd Vogel | C11: ='Wettkampf 1'!C11 -> Breddenb.-Heid. I | F11: =IF(E11="x","0",D11) -> 0.0 | G11: =IF(C11=$B$2,F11,0) -> 0 | H11: =(IF(AND($E11="",$C11=$B$2),1,0)) -> 1 | I11: =IF($C11=$B$3,F11,0) -> 0 | J11: =(IF(AND($E11="",$C11=$B$3),1,0)) -> 0 | K11: =IF($C11=$B$4,F11,0) -> 0 | L11: =(IF(AND($E11="",$C11=$B$4),1,0)) -> 0 | M11: =IF($C11=$B$5,F11,0) -> 0 | N11: =(IF(AND($E11="",$C11=$B$5),1,0)) -> 0 | O11: =IF($C11=$B$6,F11,0) -> 0 | P11: =(IF(AND($E11="",$C11=$B$6),1,0)) -> 0 | Q11: =IF($C11=$B$7,F11,0) -> 0 | R11: =(IF(AND($E11="",$C11=$B$7),1,0)) -> 0 | X11: =U11+V11+W11 -> 0.0 | Y11: =IF(X11=D11,1,0) -> 1 | Z11: =IF(X11=0,0,1) -> 0 | AA11: =IF(Y11+Z11=2,"Korrekt","") -> 
A12: 3 | B12: ='Wettkampf 1'!B12 -> Heinz Engbers | C12: ='Wettkampf 1'!C12 -> Breddenb.-Heid. I | F12: 0.0 | G12: 0 | H12: 1 | I12: 0 | J12: 0 | K12: 0 | L12: 0 | M12: 0 | N12: 0 | O12: 0 | P12: 0 | Q12: 0 | R12: 0 | X12: 0.0 | Y12: 1 | Z12: 0
A13: 4 | B13: ='Wettkampf 1'!B13 -> Willi Engbers | C13: ='Wettkampf 1'!C13 -> Breddenb.-Heid. I | F13: 0.0 | G13: 0 | H13: 1 | I13: 0 | J13: 0 | K13: 0 | L13: 0 | M13: 0 | N13: 0 | O13: 0 | P13: 0 | Q13: 0 | R13: 0 | X13: 0.0 | Y13: 1 | Z13: 0
A14: 5 | B14: ='Wettkampf 1'!B14 -> Hans Gebken 1 | C14: ='Wettkampf 1'!C14 -> Breddenb.-Heid. I | E14: x | F14: 0 | G14: 0 | H14: 0 | I14: 0 | J14: 0 | K14: 0 | L14: 0 | M14: 0 | N14: 0 | O14: 0 | P14: 0 | Q14: 0 | R14: 0 | X14: 0.0 | Y14: 1 | Z14: 0
A15: 6 | B15: ='Wettkampf 1'!B15 -> Philipp Schmidt | C15: ='Wettkampf 1'!C15 -> Ostenwalde II | E15: x | F15: 0 | G15: 0 | H15: 0 | I15: 0 | J15: 0 | K15: 0 | L15: 0 | M15: 0 | N15: 0 | O15: 0 | P15: 0 | Q15: 0 | R15: 0 | X15: 0.0 | Y15: 1 | Z15: 0
A16: 7 | B16: ='Wettkampf 1'!B16 -> Philipp Scholübbers | C16: ='Wettkampf 1'!C16 -> Ostenwalde II | F16: 0.0 | G16: 0 | H16: 0 | I16: 0 | J16: 1 | K16: 0 | L16: 0 | M16: 0 | N16: 0 | O16: 0 | P16: 0 | Q16: 0 | R16: 0 | X16: 0.0 | Y16: 1 | Z16: 0
A17: 8 | B17: ='Wettkampf 1'!B17 -> Matthias Brinkmann | C17: ='Wettkampf 1'!C17 -> Ostenwalde II | F17: 0.0 | G17: 0 | H17: 0 | I17: 0 | J17: 1 | K17: 0 | L17: 0 | M17: 0 | N17: 0 | O17: 0 | P17: 0 | Q17: 0 | R17: 0 | X17: 0.0 | Y17: 1 | Z17: 0
A18: 9 | B18: ='Wettkampf 1'!B18 -> Patrik Krüßel | C18: ='Wettkampf 1'!C18 -> Ostenwalde II | F18: 0.0 | G18: 0 | H18: 0 | I18: 0 | J18: 1 | K18: 0 | L18: 0 | M18: 0 | N18: 0 | O18: 0 | P18: 0 | Q18: 0 | R18: 0 | X18: 0.0 | Y18: 1 | Z18: 0
A19: 10 | B19: ='Wettkampf 1'!B19 -> Markus Jansen | C19: ='Wettkampf 1'!C19 -> Ostenwalde II | F19: 0.0 | G19: 0 | H19: 0 | I19: 0 | J19: 1 | K19: 0 | L19: 0 | M19: 0 | N19: 0 | O19: 0 | P19: 0 | Q19: 0 | R19: 0 | X19: 0.0 | Y19: 1 | Z19: 0
A20: 11 | B20: ='Wettkampf 1'!B20 -> Helmut Benten | C20: ='Wettkampf 1'!C20 -> Ostenwalde II | E20: x | F20: 0 | G20: 0 | H20: 0 | I20: 0 | J20: 0 | K20: 0 | L20: 0 | M20: 0 | N20: 0 | O20: 0 | P20: 0 | Q20: 0 | R20: 0 | X20: 0.0 | Y20: 1 | Z20: 0
A21: 12 | B21: ='Wettkampf 1'!B21 -> Heinz Dirksen | C21: ='Wettkampf 1'!C21 -> Börgermoor II | E21: x | F21: 0 | G21: 0 | H21: 0 | I21: 0 | J21: 0 | K21: 0 | L21: 0 | M21: 0 | N21: 0 | O21: 0 | P21: 0 | Q21: 0 | R21: 0 | X21: 0.0 | Y21: 1 | Z21: 0
A22: 13 | B22: ='Wettkampf 1'!B22 -> Hans Ortmann | C22: ='Wettkampf 1'!C22 -> Börgermoor II | F22: 0.0 | G22: 0 | H22: 0 | I22: 0 | J22: 0 | K22: 0 | L22: 1 | M22: 0 | N22: 0 | O22: 0 | P22: 0 | Q22: 0 | R22: 0 | X22: 0.0 | Y22: 1 | Z22: 0
A23: 14 | B23: ='Wettkampf 1'!B23 -> Karl-Heinz Ortmann | C23: ='Wettkampf 1'!C23 -> Börgermoor II | F23: 0.0 | G23: 0 | H23: 0 | I23: 0 | J23: 0 | K23: 0 | L23: 1 | M23: 0 | N23: 0 | O23: 0 | P23: 0 | Q23: 0 | R23: 0 | X23: 0.0 | Y23: 1 | Z23: 0
A24: 15 | B24: ='Wettkampf 1'!B24 -> Johannes Jansen | C24: ='Wettkampf 1'!C24 -> Börgermoor II | F24: 0.0 | G24: 0 | H24: 0 | I24: 0 | J24: 0 | K24: 0 | L24: 1 | M24: 0 | N24: 0 | O24: 0 | P24: 0 | Q24: 0 | R24: 0 | X24: 0.0 | Y24: 1 | Z24: 0
A25: 16 | B25: ='Wettkampf 1'!B25 -> Kevin Minnert | C25: ='Wettkampf 1'!C25 -> Börgermoor II | F25: 0.0 | G25: 0 | H25: 0 | I25: 0 | J25: 0 | K25: 0 | L25: 1 | M25: 0 | N25: 0 | O25: 0 | P25: 0 | Q25: 0 | R25: 0 | X25: 0.0 | Y25: 1 | Z25: 0
A26: 17 | B26: ='Wettkampf 1'!B26 -> Daniel Schülke | C26: ='Wettkampf 1'!C26 -> Börgermoor II | E26: x | F26: 0 | G26: 0 | H26: 0 | I26: 0 | J26: 0 | K26: 0 | L26: 0 | M26: 0 | N26: 0 | O26: 0 | P26: 0 | Q26: 0 | R26: 0 | X26: 0.0 | Y26: 1 | Z26: 0
A27: 18 | B27: ='Wettkampf 1'!B27 -> Frank Wotte | C27: ='Wettkampf 1'!C27 -> Lorup III | E27: x | F27: 0 | G27: 0 | H27: 0 | I27: 0 | J27: 0 | K27: 0 | L27: 0 | M27: 0 | N27: 0 | O27: 0 | P27: 0 | Q27: 0 | R27: 0 | X27: 0.0 | Y27: 1 | Z27: 0
A28: 19 | B28: ='Wettkampf 1'!B28 -> Johannes Wesseln | C28: ='Wettkampf 1'!C28 -> Lorup III | F28: 0.0 | G28: 0 | H28: 0 | I28: 0 | J28: 0 | K28: 0 | L28: 0 | M28: 0 | N28: 1 | O28: 0 | P28: 0 | Q28: 0 | R28: 0 | X28: 0.0 | Y28: 1 | Z28: 0
A29: 20 | B29: ='Wettkampf 1'!B29 -> Anton Oldiges | C29: ='Wettkampf 1'!C29 -> Lorup III | F29: 0.0 | G29: 0 | H29: 0 | I29: 0 | J29: 0 | K29: 0 | L29: 0 | M29: 0 | N29: 1 | O29: 0 | P29: 0 | Q29: 0 | R29: 0 | X29: 0.0 | Y29: 1 | Z29: 0
A30: 21 | B30: ='Wettkampf 1'!B30 -> Jürgen Will | C30: ='Wettkampf 1'!C30 -> Lorup III | F30: 0.0 | G30: 0 | H30: 0 | I30: 0 | J30: 0 | K30: 0 | L30: 0 | M30: 0 | N30: 1 | O30: 0 | P30: 0 | Q30: 0 | R30: 0 | X30: 0.0 | Y30: 1 | Z30: 0
A31: 22 | B31: ='Wettkampf 1'!B31 -> Schütze 22 | C31: ='Wettkampf 1'!C31 -> Lorup III | F31: 0.0 | G31: 0 | H31: 0 | I31: 0 | J31: 0 | K31: 0 | L31: 0 | M31: 0 | N31: 1 | O31: 0 | P31: 0 | Q31: 0 | R31: 0 | X31: 0.0 | Y31: 1 | Z31: 0
A32: 23 | B32: ='Wettkampf 1'!B32 -> Schütze 23 | C32: ='Wettkampf 1'!C32 -> Lorup III | E32: x | F32: 0 | G32: 0 | H32: 0 | I32: 0 | J32: 0 | K32: 0 | L32: 0 | M32: 0 | N32: 0 | O32: 0 | P32: 0 | Q32: 0 | R32: 0 | X32: 0.0 | Y32: 1 | Z32: 0
A33: 24 | B33: ='Wettkampf 1'!B33 -> Norbert Jansen | C33: ='Wettkampf 1'!C33 -> Breddenb.-Heid. III | E33: x | F33: 0 | G33: 0 | H33: 0 | I33: 0 | J33: 0 | K33: 0 | L33: 0 | M33: 0 | N33: 0 | O33: 0 | P33: 0 | Q33: 0 | R33: 0 | X33: 0.0 | Y33: 1 | Z33: 0
A34: 25 | B34: ='Wettkampf 1'!B34 -> Werner Jansen | C34: ='Wettkampf 1'!C34 -> Breddenb.-Heid. III | F34: 0.0 | G34: 0 | H34: 0 | I34: 0 | J34: 0 | K34: 0 | L34: 0 | M34: 0 | N34: 0 | O34: 0 | P34: 1 | Q34: 0 | R34: 0 | X34: 0.0 | Y34: 1 | Z34: 0
A35: 26 | B35: ='Wettkampf 1'!B35 -> Alfons Plüster | C35: ='Wettkampf 1'!C35 -> Breddenb.-Heid. III | F35: 0.0 | G35: 0 | H35: 0 | I35: 0 | J35: 0 | K35: 0 | L35: 0 | M35: 0 | N35: 0 | O35: 0 | P35: 1 | Q35: 0 | R35: 0 | X35: 0.0 | Y35: 1 | Z35: 0
A36: 27 | B36: ='Wettkampf 1'!B36 -> Johannes Oldiges | C36: ='Wettkampf 1'!C36 -> Breddenb.-Heid. III | F36: 0.0 | G36: 0 | H36: 0 | I36: 0 | J36: 0 | K36: 0 | L36: 0 | M36: 0 | N36: 0 | O36: 0 | P36: 1 | Q36: 0 | R36: 0 | X36: 0.0 | Y36: 1 | Z36: 0
A37: 28 | B37: ='Wettkampf 1'!B37 -> Hans Plüster | C37: ='Wettkampf 1'!C37 -> Breddenb.-Heid. III | F37: 0.0 | G37: 0 | H37: 0 | I37: 0 | J37: 0 | K37: 0 | L37: 0 | M37: 0 | N37: 0 | O37: 0 | P37: 1 | Q37: 0 | R37: 0 | X37: 0.0 | Y37: 1 | Z37: 0
A38: 29 | B38: ='Wettkampf 1'!B38 -> Josef Wübben | C38: ='Wettkampf 1'!C38 -> Breddenb.-Heid. III | E38: x | F38: 0 | G38: 0 | H38: 0 | I38: 0 | J38: 0 | K38: 0 | L38: 0 | M38: 0 | N38: 0 | O38: 0 | P38: 0 | Q38: 0 | R38: 0 | X38: 0.0 | Y38: 1 | Z38: 0
A39: 30 | B39: ='Wettkampf 1'!B39 -> Thomas Niermann | C39: ='Wettkampf 1'!C39 -> Werlte III | E39: x | F39: 0 | G39: 0 | H39: 0 | I39: 0 | J39: 0 | K39: 0 | L39: 0 | M39: 0 | N39: 0 | O39: 0 | P39: 0 | Q39: 0 | R39: 0 | X39: 0.0 | Y39: 1 | Z39: 0
A40: 31 | B40: ='Wettkampf 1'!B40 -> Bernd Thien | C40: ='Wettkampf 1'!C40 -> Werlte III | F40: 0.0 | G40: 0 | H40: 0 | I40: 0 | J40: 0 | K40: 0 | L40: 0 | M40: 0 | N40: 0 | O40: 0 | P40: 0 | Q40: 0 | R40: 1 | X40: 0.0 | Y40: 1 | Z40: 0
A41: 32 | B41: ='Wettkampf 1'!B41 -> Norbert Grünloh | C41: ='Wettkampf 1'!C41 -> Werlte III | F41: 0.0 | G41: 0 | H41: 0 | I41: 0 | J41: 0 | K41: 0 | L41: 0 | M41: 0 | N41: 0 | O41: 0 | P41: 0 | Q41: 0 | R41: 1 | X41: 0.0 | Y41: 1 | Z41: 0
A42: 33 | B42: ='Wettkampf 1'!B42 -> Andreas Thoben | C42: ='Wettkampf 1'!C42 -> Werlte III | F42: 0.0 | G42: 0 | H42: 0 | I42: 0 | J42: 0 | K42: 0 | L42: 0 | M42: 0 | N42: 0 | O42: 0 | P42: 0 | Q42: 0 | R42: 1 | X42: 0.0 | Y42: 1 | Z42: 0
A43: 34 | B43: ='Wettkampf 1'!B43 -> Hermann Krone | C43: ='Wettkampf 1'!C43 -> Werlte III | F43: 0.0 | G43: 0 | H43: 0 | I43: 0 | J43: 0 | K43: 0 | L43: 0 | M43: 0 | N43: 0 | O43: 0 | P43: 0 | Q43: 0 | R43: 1 | X43: 0.0 | Y43: 1 | Z43: 0
A44: 35 | B44: ='Wettkampf 1'!B44 -> Michael Freitag | C44: ='Wettkampf 1'!C44 -> Werlte III | E44: x | F44: 0 | G44: 0 | H44: 0 | I44: 0 | J44: 0 | K44: 0 | L44: 0 | M44: 0 | N44: 0 | O44: 0 | P44: 0 | Q44: 0 | R44: 0 | X44: 0.0 | Y44: 1 | Z44: 0
A45: 36 | B45: ='Wettkampf 1'!B45 -> Joachim Niermann | C45: ='Wettkampf 1'!C45 -> Werlte III | E45: x | F45: 0 | G45: 0 | H45: 0 | I45: 0 | J45: 0 | K45: 0 | L45: 0 | M45: 0 | N45: 0 | O45: 0 | P45: 0 | Q45: 0 | R45: 0 | X45: 0.0 | Y45: 1 | Z45: 0
G46: =LARGE(G10:G45,1)+LARGE(G10:G45,2)+LARGE(G10:G45,3) -> 0 | H46: =SUM(H10:H45) -> 4 | I46: =LARGE(I10:I45,1)+LARGE(I10:I45,2)+LARGE(I10:I45,3) -> 0 | J46: =SUM(J10:J45) -> 4 | K46: =LARGE(K10:K45,1)+LARGE(K10:K45,2)+LARGE(K10:K45,3) -> 0 | L46: =SUM(L10:L45) -> 4 | M46: =LARGE(M10:M45,1)+LARGE(M10:M45,2)+LARGE(M10:M45,3) -> 0 | N46: =SUM(N10:N45) -> 4 | O46: =LARGE(O10:O45,1)+LARGE(O10:O45,2)+LARGE(O10:O45,3) -> 0 | P46: =SUM(P10:P45) -> 4 | Q46: =LARGE(Q10:Q45,1)+LARGE(Q10:Q45,2)+LARGE(Q10:Q45,3) -> 0 | R46: =SUM(R10:S45) -> 4
C47: per Email an: sk-huemmling@gmx.de

Sheet Ausdruck
B1: Verein / Gruppe | C1: Ergebnisse | D1: =Übersicht!K1 -> 2019/2020 | X1: Austragungsort:
A2: 1 | B2: ='Wettkampf 1'!B2 -> Breddenb.-Heid. I | D2: Klasse: | X2: Wettkampftag:
A3: 2 | B3: ='Wettkampf 1'!B3 -> Ostenwalde II | D3: =Übersicht!M1 -> 2. Kreisliga
A4: 3 | B4: ='Wettkampf 1'!B4 -> Börgermoor II | D4: =Übersicht!P1 -> Schützen | Z4: Ansprechpartner für Rückfragen:
A5: 4 | B5: ='Wettkampf 1'!B5 -> Lorup III | X5: Name:
A6: 5 | B6: ='Wettkampf 1'!B6 -> Breddenb.-Heid. III | X6: Tel:
A7: 6 | B7: ='Wettkampf 1'!B7 -> Werlte III | X7: Standaufsicht:
B9: Name Schütze | C9: Verein/Gruppe | D9: Ergebnis | E9: AW? | G9: Verein 1 | I9: Verein 2 | K9: Verein 3 | M9: Verein 4 | O9: Verein 5 | Q9: Verein 6 | U9: Geburts-datum | W9: Proberechnung bei Streifen:
A10: 1 | B10: ='Wettkampf 1'!B10 -> Hans Gebken 3 | C10: ='Wettkampf 1'!C10 -> Breddenb.-Heid. I | F10: =IF(E10="x","0",D10) -> 0 | G10: =IF(C10=$B$2,F10,0) -> 0 | H10: =(IF(AND($E10="",$C10=$B$2),1,0)) -> 1 | I10: =IF($C10=$B$3,F10,0) -> 0 | J10: =(IF(AND($E10="",$C10=$B$3),1,0)) -> 0 | K10: =IF($C10=$B$4,F10,0) -> 0 | L10: =(IF(AND($E10="",$C10=$B$4),1,0)) -> 0 | M10: =IF($C10=$B$5,F10,0) -> 0 | N10: =(IF(AND($E10="",$C10=$B$5),1,0)) -> 0 | O10: =IF($C10=$B$6,F10,0) -> 0 | P10: =(IF(AND($E10="",$C10=$B$6),1,0)) -> 0 | Q10: =IF($C10=$B$7,F10,0) -> 0 | R10: =(IF(AND($E10="",$C10=$B$7),1,0)) -> 0 | AA10: =IF(Z10=D10,1,0) -> 1 | AB10: =IF(Z10=0,0,1) -> 0 | AC10: =IF(AA10+AB10=2,"Korrekt","") -> 
A11: 2 | B11: ='Wettkampf 1'!B11 -> Gerd Vogel | C11: ='Wettkampf 1'!C11 -> Breddenb.-Heid. I | F11: =IF(E11="x","0",D11) -> 0 | G11: =IF(C11=$B$2,F11,0) -> 0 | H11: =(IF(AND($E11="",$C11=$B$2),1,0)) -> 1 | I11: =IF($C11=$B$3,F11,0) -> 0 | J11: =(IF(AND($E11="",$C11=$B$3),1,0)) -> 0 | K11: =IF($C11=$B$4,F11,0) -> 0 | L11: =(IF(AND($E11="",$C11=$B$4),1,0)) -> 0 | M11: =IF($C11=$B$5,F11,0) -> 0 | N11: =(IF(AND($E11="",$C11=$B$5),1,0)) -> 0 | O11: =IF($C11=$B$6,F11,0) -> 0 | P11: =(IF(AND($E11="",$C11=$B$6),1,0)) -> 0 | Q11: =IF($C11=$B$7,F11,0) -> 0 | R11: =(IF(AND($E11="",$C11=$B$7),1,0)) -> 0 | AA11: =IF(Z11=D11,1,0) -> 1 | AB11: =IF(Z11=0,0,1) -> 0 | AC11: =IF(AA11+AB11=2,"Korrekt","") -> 
A12: 3 | B12: ='Wettkampf 1'!B12 -> Heinz Engbers | C12: ='Wettkampf 1'!C12 -> Breddenb.-Heid. I | F12: 0 | G12: 0 | H12: 1 | I12: 0 | J12: 0 | K12: 0 | L12: 0 | M12: 0 | N12: 0 | O12: 0 | P12: 0 | Q12: 0 | R12: 0 | AA12: 1 | AB12: 0
A13: 4 | B13: ='Wettkampf 1'!B13 -> Willi Engbers | C13: ='Wettkampf 1'!C13 -> Breddenb.-Heid. I | F13: 0 | G13: 0 | H13: 1 | I13: 0 | J13: 0 | K13: 0 | L13: 0 | M13: 0 | N13: 0 | O13: 0 | P13: 0 | Q13: 0 | R13: 0 | AA13: 1 | AB13: 0
A14: 5 | B14: ='Wettkampf 1'!B14 -> Hans Gebken 1 | C14: ='Wettkampf 1'!C14 -> Breddenb.-Heid. I | F14: 0 | G14: 0 | H14: 1 | I14: 0 | J14: 0 | K14: 0 | L14: 0 | M14: 0 | N14: 0 | O14: 0 | P14: 0 | Q14: 0 | R14: 0 | AA14: 1 | AB14: 0
A15: 6 | B15: ='Wettkampf 1'!B15 -> Philipp Schmidt | C15: ='Wettkampf 1'!C15 -> Ostenwalde II | F15: 0 | G15: 0 | H15: 0 | I15: 0 | J15: 1 | K15: 0 | L15: 0 | M15: 0 | N15: 0 | O15: 0 | P15: 0 | Q15: 0 | R15: 0 | AA15: 1 | AB15: 0
A16: 7 | B16: ='Wettkampf 1'!B16 -> Philipp Scholübbers | C16: ='Wettkampf 1'!C16 -> Ostenwalde II | F16: 0 | G16: 0 | H16: 0 | I16: 0 | J16: 1 | K16: 0 | L16: 0 | M16: 0 | N16: 0 | O16: 0 | P16: 0 | Q16: 0 | R16: 0 | AA16: 1 | AB16: 0
A17: 8 | B17: ='Wettkampf 1'!B17 -> Matthias Brinkmann | C17: ='Wettkampf 1'!C17 -> Ostenwalde II | F17: 0 | G17: 0 | H17: 0 | I17: 0 | J17: 1 | K17: 0 | L17: 0 | M17: 0 | N17: 0 | O17: 0 | P17: 0 | Q17: 0 | R17: 0 | AA17: 1 | AB17: 0
A18: 9 | B18: ='Wettkampf 1'!B18 -> Patrik Krüßel | C18: ='Wettkampf 1'!C18 -> Ostenwalde II | F18: 0 | G18: 0 | H18: 0 | I18: 0 | J18: 1 | K18: 0 | L18: 0 | M18: 0 | N18: 0 | O18: 0 | P18: 0 | Q18: 0 | R18: 0 | AA18: 1 | AB18: 0
A19: 10 | B19: ='Wettkampf 1'!B19 -> Markus Jansen | C19: ='Wettkampf 1'!C19 -> Ostenwalde II | F19: 0 | G19: 0 | H19: 0 | I19: 0 | J19: 1 | K19: 0 | L19: 0 | M19: 0 | N19: 0 | O19: 0 | P19: 0 | Q19: 0 | R19: 0 | AA19: 1 | AB19: 0
A20: 11 | B20: ='Wettkampf 1'!B20 -> Helmut Benten | C20: ='Wettkampf 1'!C20 -> Ostenwalde II | F20: 0 | G20: 0 | H20: 0 | I20: 0 | J20: 1 | K20: 0 | L20: 0 | M20: 0 | N20: 0 | O20: 0 | P20: 0 | Q20: 0 | R20: 0 | AA20: 1 | AB20: 0
A21: 12 | B21: ='Wettkampf 1'!B21 -> Heinz Dirksen | C21: ='Wettkampf 1'!C21 -> Börgermoor II | F21: 0 | G21: 0 | H21: 0 | I21: 0 | J21: 0 | K21: 0 | L21: 1 | M21: 0 | N21: 0 | O21: 0 | P21: 0 | Q21: 0 | R21: 0 | AA21: 1 | AB21: 0
A22: 13 | B22: ='Wettkampf 1'!B22 -> Hans Ortmann | C22: ='Wettkampf 1'!C22 -> Börgermoor II | F22: 0 | G22: 0 | H22: 0 | I22: 0 | J22: 0 | K22: 0 | L22: 1 | M22: 0 | N22: 0 | O22: 0 | P22: 0 | Q22: 0 | R22: 0 | AA22: 1 | AB22: 0
A23: 14 | B23: ='Wettkampf 1'!B23 -> Karl-Heinz Ortmann | C23: ='Wettkampf 1'!C23 -> Börgermoor II | F23: 0 | G23: 0 | H23: 0 | I23: 0 | J23: 0 | K23: 0 | L23: 1 | M23: 0 | N23: 0 | O23: 0 | P23: 0 | Q23: 0 | R23: 0 | AA23: 1 | AB23: 0
A24: 15 | B24: ='Wettkampf 1'!B24 -> Johannes Jansen | C24: ='Wettkampf 1'!C24 -> Börgermoor II | F24: 0 | G24: 0 | H24: 0 | I24: 0 | J24: 0 | K24: 0 | L24: 1 | M24: 0 | N24: 0 | O24: 0 | P24: 0 | Q24: 0 | R24: 0 | AA24: 1 | AB24: 0
A25: 16 | B25: ='Wettkampf 1'!B25 -> Kevin Minnert | C25: ='Wettkampf 1'!C25 -> Börgermoor II | F25: 0 | G25: 0 | H25: 0 | I25: 0 | J25: 0 | K25: 0 | L25: 1 | M25: 0 | N25: 0 | O25: 0 | P25: 0 | Q25: 0 | R25: 0 | AA25: 1 | AB25: 0
A26: 17 | B26: ='Wettkampf 1'!B26 -> Daniel Schülke | C26: ='Wettkampf 1'!C26 -> Börgermoor II | F26: 0 | G26: 0 | H26: 0 | I26: 0 | J26: 0 | K26: 0 | L26: 1 | M26: 0 | N26: 0 | O26: 0 | P26: 0 | Q26: 0 | R26: 0 | AA26: 1 | AB26: 0
A27: 18 | B27: ='Wettkampf 1'!B27 -> Frank Wotte | C27: ='Wettkampf 1'!C27 -> Lorup III | F27: 0 | G27: 0 | H27: 0 | I27: 0 | J27: 0 | K27: 0 | L27: 0 | M27: 0 | N27: 1 | O27: 0 | P27: 0 | Q27: 0 | R27: 0 | AA27: 1 | AB27: 0
A28: 19 | B28: ='Wettkampf 1'!B28 -> Johannes Wesseln | C28: ='Wettkampf 1'!C28 -> Lorup III | F28: 0 | G28: 0 | H28: 0 | I28: 0 | J28: 0 | K28: 0 | L28: 0 | M28: 0 | N28: 1 | O28: 0 | P28: 0 | Q28: 0 | R28: 0 | AA28: 1 | AB28: 0
A29: 20 | B29: ='Wettkampf 1'!B29 -> Anton Oldiges | C29: ='Wettkampf 1'!C29 -> Lorup III | F29: 0 | G29: 0 | H29: 0 | I29: 0 | J29: 0 | K29: 0 | L29: 0 | M29: 0 | N29: 1 | O29: 0 | P29: 0 | Q29: 0 | R29: 0 | AA29: 1 | AB29: 0
A30: 21 | B30: ='Wettkampf 1'!B30 -> Jürgen Will | C30: ='Wettkampf 1'!C30 -> Lorup III | F30: 0 | G30: 0 | H30: 0 | I30: 0 | J30: 0 | K30: 0 | L30: 0 | M30: 0 | N30: 1 | O30: 0 | P30: 0 | Q30: 0 | R30: 0 | AA30: 1 | AB30: 0
A31: 22 | B31: ='Wettkampf 1'!B31 -> Schütze 22 | C31: ='Wettkampf 1'!C31 -> Lorup III | F31: 0 | G31: 0 | H31: 0 | I31: 0 | J31: 0 | K31: 0 | L31: 0 | M31: 0 | N31: 1 | O31: 0 | P31: 0 | Q31: 0 | R31: 0 | AA31: 1 | AB31: 0
A32: 23 | B32: ='Wettkampf 1'!B32 -> Schütze 23 | C32: ='Wettkampf 1'!C32 -> Lorup III | F32: 0 | G32: 0 | H32: 0 | I32: 0 | J32: 0 | K32: 0 | L32: 0 | M32: 0 | N32: 1 | O32: 0 | P32: 0 | Q32: 0 | R32: 0 | AA32: 1 | AB32: 0
A33: 24 | B33: ='Wettkampf 1'!B33 -> Norbert Jansen | C33: ='Wettkampf 1'!C33 -> Breddenb.-Heid. III | F33: 0 | G33: 0 | H33: 0 | I33: 0 | J33: 0 | K33: 0 | L33: 0 | M33: 0 | N33: 0 | O33: 0 | P33: 1 | Q33: 0 | R33: 0 | AA33: 1 | AB33: 0
A34: 25 | B34: ='Wettkampf 1'!B34 -> Werner Jansen | C34: ='Wettkampf 1'!C34 -> Breddenb.-Heid. III | F34: 0 | G34: 0 | H34: 0 | I34: 0 | J34: 0 | K34: 0 | L34: 0 | M34: 0 | N34: 0 | O34: 0 | P34: 1 | Q34: 0 | R34: 0 | AA34: 1 | AB34: 0
A35: 26 | B35: ='Wettkampf 1'!B35 -> Alfons Plüster | C35: ='Wettkampf 1'!C35 -> Breddenb.-Heid. III | F35: 0 | G35: 0 | H35: 0 | I35: 0 | J35: 0 | K35: 0 | L35: 0 | M35: 0 | N35: 0 | O35: 0 | P35: 1 | Q35: 0 | R35: 0 | AA35: 1 | AB35: 0
A36: 27 | B36: ='Wettkampf 1'!B36 -> Johannes Oldiges | C36: ='Wettkampf 1'!C36 -> Breddenb.-Heid. III | F36: 0 | G36: 0 | H36: 0 | I36: 0 | J36: 0 | K36: 0 | L36: 0 | M36: 0 | N36: 0 | O36: 0 | P36: 1 | Q36: 0 | R36: 0 | AA36: 1 | AB36: 0
A37: 28 | B37: ='Wettkampf 1'!B37 -> Hans Plüster | C37: ='Wettkampf 1'!C37 -> Breddenb.-Heid. III | F37: 0 | G37: 0 | H37: 0 | I37: 0 | J37: 0 | K37: 0 | L37: 0 | M37: 0 | N37: 0 | O37: 0 | P37: 1 | Q37: 0 | R37: 0 | AA37: 1 | AB37: 0
A38: 29 | B38: ='Wettkampf 1'!B38 -> Josef Wübben | C38: ='Wettkampf 1'!C38 -> Breddenb.-Heid. III | F38: 0 | G38: 0 | H38: 0 | I38: 0 | J38: 0 | K38: 0 | L38: 0 | M38: 0 | N38: 0 | O38: 0 | P38: 1 | Q38: 0 | R38: 0 | AA38: 1 | AB38: 0
A39: 30 | B39: ='Wettkampf 1'!B39 -> Thomas Niermann | C39: ='Wettkampf 1'!C39 -> Werlte III | F39: 0 | G39: 0 | H39: 0 | I39: 0 | J39: 0 | K39: 0 | L39: 0 | M39: 0 | N39: 0 | O39: 0 | P39: 0 | Q39: 0 | R39: 1 | AA39: 1 | AB39: 0
A40: 31 | B40: ='Wettkampf 1'!B40 -> Bernd Thien | C40: ='Wettkampf 1'!C40 -> Werlte III | F40: 0 | G40: 0 | H40: 0 | I40: 0 | J40: 0 | K40: 0 | L40: 0 | M40: 0 | N40: 0 | O40: 0 | P40: 0 | Q40: 0 | R40: 1 | AA40: 1 | AB40: 0
A41: 32 | B41: ='Wettkampf 1'!B41 -> Norbert Grünloh | C41: ='Wettkampf 1'!C41 -> Werlte III | F41: 0 | G41: 0 | H41: 0 | I41: 0 | J41: 0 | K41: 0 | L41: 0 | M41: 0 | N41: 0 | O41: 0 | P41: 0 | Q41: 0 | R41: 1 | AA41: 1 | AB41: 0
A42: 33 | B42: ='Wettkampf 1'!B42 -> Andreas Thoben | C42: ='Wettkampf 1'!C42 -> Werlte III | F42: 0 | G42: 0 | H42: 0 | I42: 0 | J42: 0 | K42: 0 | L42: 0 | M42: 0 | N42: 0 | O42: 0 | P42: 0 | Q42: 0 | R42: 1 | AA42: 1 | AB42: 0
A43: 34 | B43: ='Wettkampf 1'!B43 -> Hermann Krone | C43: ='Wettkampf 1'!C43 -> Werlte III | F43: 0 | G43: 0 | H43: 0 | I43: 0 | J43: 0 | K43: 0 | L43: 0 | M43: 0 | N43: 0 | O43: 0 | P43: 0 | Q43: 0 | R43: 1 | AA43: 1 | AB43: 0
A44: 35 | B44: ='Wettkampf 1'!B44 -> Michael Freitag | C44: ='Wettkampf 1'!C44 -> Werlte III | F44: 0 | G44: 0 | H44: 0 | I44: 0 | J44: 0 | K44: 0 | L44: 0 | M44: 0 | N44: 0 | O44: 0 | P44: 0 | Q44: 0 | R44: 1 | AA44: 1 | AB44: 0
A45: 36 | B45: ='Wettkampf 1'!B45 -> Joachim Niermann | C45: ='Wettkampf 1'!C45 -> Werlte III | F45: 0 | G45: 0 | H45: 0 | I45: 0 | J45: 0 | K45: 0 | L45: 0 | M45: 0 | N45: 0 | O45: 0 | P45: 0 | Q45: 0 | R45: 1 | AA45: 1 | AB45: 0
G46: =LARGE(G10:G45,1)+LARGE(G10:G45,2)+LARGE(G10:G45,3) -> 0 | H46: =SUM(H10:H45) -> 5 | I46: =LARGE(I10:I45,1)+LARGE(I10:I45,2)+LARGE(I10:I45,3) -> 0 | J46: =SUM(J10:J45) -> 6 | K46: =LARGE(K10:K45,1)+LARGE(K10:K45,2)+LARGE(K10:K45,3) -> 0 | L46: =SUM(L10:L45) -> 6 | M46: =LARGE(M10:M45,1)+LARGE(M10:M45,2)+LARGE(M10:M45,3) -> 0 | N46: =SUM(N10:N45) -> 6 | O46: =LARGE(O10:O45,1)+LARGE(O10:O45,2)+LARGE(O10:O45,3) -> 0 | P46: =SUM(P10:P45) -> 6 | Q46: =LARGE(Q10:Q45,1)+LARGE(Q10:Q45,2)+LARGE(Q10:Q45,3) -> 0 | R46: =SUM(R10:S45) -> 7
B48: Bitte beachtet, dass die Standaufsicht benannt werden muss

Sheet Ausdruck blank
B1: Verein / Gruppe | C1: Ergebnisse | D1: =Übersicht!K1 -> 2019/2020 | X1: Austragungsort:
A2: 1 | D2: Klasse: | X2: Wettkampftag:
A3: 2
A4: 3 | Z4: Ansprechpartner für Rückfragen:
A5: 4 | X5: Name:
A6: 5 | X6: Tel:
A7: 6 | X7: Standaufsicht:
B9: Name Schütze | C9: Verein/Gruppe | D9: Ergebnis | E9: AW? | G9: Verein 1 | I9: Verein 2 | K9: Verein 3 | M9: Verein 4 | O9: Verein 5 | Q9: Verein 6 | U9: Geburts-datum | W9: Proberechnung bei Streifen:
A10: 1 | F10: =IF(E10="x","0",D10) -> 0 | G10: =IF(C10=$B$2,F10,0) -> 0 | H10: =(IF(AND($E10="",$C10=$B$2),1,0)) -> 1 | I10: =IF($C10=$B$3,F10,0) -> 0 | J10: =(IF(AND($E10="",$C10=$B$3),1,0)) -> 1 | K10: =IF($C10=$B$4,F10,0) -> 0 | L10: =(IF(AND($E10="",$C10=$B$4),1,0)) -> 1 | M10: =IF($C10=$B$5,F10,0) -> 0 | N10: =(IF(AND($E10="",$C10=$B$5),1,0)) -> 1 | O10: =IF($C10=$B$6,F10,0) -> 0 | P10: =(IF(AND($E10="",$C10=$B$6),1,0)) -> 1 | Q10: =IF($C10=$B$7,F10,0) -> 0 | R10: =(IF(AND($E10="",$C10=$B$7),1,0)) -> 1 | AA10: =IF(Z10=D10,1,0) -> 1 | AB10: =IF(Z10=0,0,1) -> 0 | AC10: =IF(AA10+AB10=2,"Korrekt","") -> 
A11: 2 | F11: =IF(E11="x","0",D11) -> 0 | G11: =IF(C11=$B$2,F11,0) -> 0 | H11: =(IF(AND($E11="",$C11=$B$2),1,0)) -> 1 | I11: =IF($C11=$B$3,F11,0) -> 0 | J11: =(IF(AND($E11="",$C11=$B$3),1,0)) -> 1 | K11: =IF($C11=$B$4,F11,0) -> 0 | L11: =(IF(AND($E11="",$C11=$B$4),1,0)) -> 1 | M11: =IF($C11=$B$5,F11,0) -> 0 | N11: =(IF(AND($E11="",$C11=$B$5),1,0)) -> 1 | O11: =IF($C11=$B$6,F11,0) -> 0 | P11: =(IF(AND($E11="",$C11=$B$6),1,0)) -> 1 | Q11: =IF($C11=$B$7,F11,0) -> 0 | R11: =(IF(AND($E11="",$C11=$B$7),1,0)) -> 1 | AA11: =IF(Z11=D11,1,0) -> 1 | AB11: =IF(Z11=0,0,1) -> 0 | AC11: =IF(AA11+AB11=2,"Korrekt","") -> 
A12: 3 | F12: 0 | G12: 0 | H12: 1 | I12: 0 | J12: 1 | K12: 0 | L12: 1 | M12: 0 | N12: 1 | O12: 0 | P12: 1 | Q12: 0 | R12: 1 | AA12: 1 | AB12: 0
A13: 4 | F13: 0 | G13: 0 | H13: 1 | I13: 0 | J13: 1 | K13: 0 | L13: 1 | M13: 0 | N13: 1 | O13: 0 | P13: 1 | Q13: 0 | R13: 1 | AA13: 1 | AB13: 0
A14: 5 | F14: 0 | G14: 0 | H14: 1 | I14: 0 | J14: 1 | K14: 0 | L14: 1 | M14: 0 | N14: 1 | O14: 0 | P14: 1 | Q14: 0 | R14: 1 | AA14: 1 | AB14: 0
A15: 6 | F15: 0 | G15: 0 | H15: 1 | I15: 0 | J15: 1 | K15: 0 | L15: 1 | M15: 0 | N15: 1 | O15: 0 | P15: 1 | Q15: 0 | R15: 1 | AA15: 1 | AB15: 0
A16: 7 | F16: 0 | G16: 0 | H16: 1 | I16: 0 | J16: 1 | K16: 0 | L16: 1 | M16: 0 | N16: 1 | O16: 0 | P16: 1 | Q16: 0 | R16: 1 | AA16: 1 | AB16: 0
A17: 8 | F17: 0 | G17: 0 | H17: 1 | I17: 0 | J17: 1 | K17: 0 | L17: 1 | M17: 0 | N17: 1 | O17: 0 | P17: 1 | Q17: 0 | R17: 1 | AA17: 1 | AB17: 0
A18: 9 | F18: 0 | G18: 0 | H18: 1 | I18: 0 | J18: 1 | K18: 0 | L18: 1 | M18: 0 | N18: 1 | O18: 0 | P18: 1 | Q18: 0 | R18: 1 | AA18: 1 | AB18: 0
A19: 10 | F19: 0 | G19: 0 | H19: 1 | I19: 0 | J19: 1 | K19: 0 | L19: 1 | M19: 0 | N19: 1 | O19: 0 | P19: 1 | Q19: 0 | R19: 1 | AA19: 1 | AB19: 0
A20: 11 | F20: 0 | G20: 0 | H20: 1 | I20: 0 | J20: 1 | K20: 0 | L20: 1 | M20: 0 | N20: 1 | O20: 0 | P20: 1 | Q20: 0 | R20: 1 | AA20: 1 | AB20: 0
A21: 12 | F21: 0 | G21: 0 | H21: 1 | I21: 0 | J21: 1 | K21: 0 | L21: 1 | M21: 0 | N21: 1 | O21: 0 | P21: 1 | Q21: 0 | R21: 1 | AA21: 1 | AB21: 0
A22: 13 | F22: 0 | G22: 0 | H22: 1 | I22: 0 | J22: 1 | K22: 0 | L22: 1 | M22: 0 | N22: 1 | O22: 0 | P22: 1 | Q22: 0 | R22: 1 | AA22: 1 | AB22: 0
A23: 14 | F23: 0 | G23: 0 | H23: 1 | I23: 0 | J23: 1 | K23: 0 | L23: 1 | M23: 0 | N23: 1 | O23: 0 | P23: 1 | Q23: 0 | R23: 1 | AA23: 1 | AB23: 0
A24: 15 | F24: 0 | G24: 0 | H24: 1 | I24: 0 | J24: 1 | K24: 0 | L24: 1 | M24: 0 | N24: 1 | O24: 0 | P24: 1 | Q24: 0 | R24: 1 | AA24: 1 | AB24: 0
A25: 16 | F25: 0 | G25: 0 | H25: 1 | I25: 0 | J25: 1 | K25: 0 | L25: 1 | M25: 0 | N25: 1 | O25: 0 | P25: 1 | Q25: 0 | R25: 1 | AA25: 1 | AB25: 0
A26: 17 | F26: 0 | G26: 0 | H26: 1 | I26: 0 | J26: 1 | K26: 0 | L26: 1 | M26: 0 | N26: 1 | O26: 0 | P26: 1 | Q26: 0 | R26: 1 | AA26: 1 | AB26: 0
A27: 18 | F27: 0 | G27: 0 | H27: 1 | I27: 0 | J27: 1 | K27: 0 | L27: 1 | M27: 0 | N27: 1 | O27: 0 | P27: 1 | Q27: 0 | R27: 1 | AA27: 1 | AB27: 0
A28: 19 | F28: 0 | G28: 0 | H28: 1 | I28: 0 | J28: 1 | K28: 0 | L28: 1 | M28: 0 | N28: 1 | O28: 0 | P28: 1 | Q28: 0 | R28: 1 | AA28: 1 | AB28: 0
A29: 20 | F29: 0 | G29: 0 | H29: 1 | I29: 0 | J29: 1 | K29: 0 | L29: 1 | M29: 0 | N29: 1 | O29: 0 | P29: 1 | Q29: 0 | R29: 1 | AA29: 1 | AB29: 0
A30: 21 | F30: 0 | G30: 0 | H30: 1 | I30: 0 | J30: 1 | K30: 0 | L30: 1 | M30: 0 | N30: 1 | O30: 0 | P30: 1 | Q30: 0 | R30: 1 | AA30: 1 | AB30: 0
A31: 22 | F31: 0 | G31: 0 | H31: 1 | I31: 0 | J31: 1 | K31: 0 | L31: 1 | M31: 0 | N31: 1 | O31: 0 | P31: 1 | Q31: 0 | R31: 1 | AA31: 1 | AB31: 0
A32: 23 | F32: 0 | G32: 0 | H32: 1 | I32: 0 | J32: 1 | K32: 0 | L32: 1 | M32: 0 | N32: 1 | O32: 0 | P32: 1 | Q32: 0 | R32: 1 | AA32: 1 | AB32: 0
A33: 24 | F33: 0 | G33: 0 | H33: 1 | I33: 0 | J33: 1 | K33: 0 | L33: 1 | M33: 0 | N33: 1 | O33: 0 | P33: 1 | Q33: 0 | R33: 1 | AA33: 1 | AB33: 0
A34: 25 | F34: 0 | G34: 0 | H34: 1 | I34: 0 | J34: 1 | K34: 0 | L34: 1 | M34: 0 | N34: 1 | O34: 0 | P34: 1 | Q34: 0 | R34: 1 | AA34: 1 | AB34: 0
A35: 26 | F35: 0 | G35: 0 | H35: 1 | I35: 0 | J35: 1 | K35: 0 | L35: 1 | M35: 0 | N35: 1 | O35: 0 | P35: 1 | Q35: 0 | R35: 1 | AA35: 1 | AB35: 0
A36: 27 | F36: 0 | G36: 0 | H36: 1 | I36: 0 | J36: 1 | K36: 0 | L36: 1 | M36: 0 | N36: 1 | O36: 0 | P36: 1 | Q36: 0 | R36: 1 | AA36: 1 | AB36: 0
A37: 28 | F37: 0 | G37: 0 | H37: 1 | I37: 0 | J37: 1 | K37: 0 | L37: 1 | M37: 0 | N37: 1 | O37: 0 | P37: 1 | Q37: 0 | R37: 1 | AA37: 1 | AB37: 0
A38: 29 | F38: 0 | G38: 0 | H38: 1 | I38: 0 | J38: 1 | K38: 0 | L38: 1 | M38: 0 | N38: 1 | O38: 0 | P38: 1 | Q38: 0 | R38: 1 | AA38: 1 | AB38: 0
A39: 30 | F39: 0 | G39: 0 | H39: 1 | I39: 0 | J39: 1 | K39: 0 | L39: 1 | M39: 0 | N39: 1 | O39: 0 | P39: 1 | Q39: 0 | R39: 1 | AA39: 1 | AB39: 0
A40: 31 | F40: 0 | G40: 0 | H40: 1 | I40: 0 | J40: 1 | K40: 0 | L40: 1 | M40: 0 | N40: 1 | O40: 0 | P40: 1 | Q40: 0 | R40: 1 | AA40: 1 | AB40: 0
A41: 32 | F41: 0 | G41: 0 | H41: 1 | I41: 0 | J41: 1 | K41: 0 | L41: 1 | M41: 0 | N41: 1 | O41: 0 | P41: 1 | Q41: 0 | R41: 1 | AA41: 1 | AB41: 0
A42: 33 | F42: 0 | G42: 0 | H42: 1 | I42: 0 | J42: 1 | K42: 0 | L42: 1 | M42: 0 | N42: 1 | O42: 0 | P42: 1 | Q42: 0 | R42: 1 | AA42: 1 | AB42: 0
A43: 34 | F43: 0 | G43: 0 | H43: 1 | I43: 0 | J43: 1 | K43: 0 | L43: 1 | M43: 0 | N43: 1 | O43: 0 | P43: 1 | Q43: 0 | R43: 1 | AA43: 1 | AB43: 0
A44: 35 | F44: 0 | G44: 0 | H44: 1 | I44: 0 | J44: 1 | K44: 0 | L44: 1 | M44: 0 | N44: 1 | O44: 0 | P44: 1 | Q44: 0 | R44: 1 | AA44: 1 | AB44: 0
A45: 36 | F45: 0 | G45: 0 | H45: 1 | I45: 0 | J45: 1 | K45: 0 | L45: 1 | M45: 0 | N45: 1 | O45: 0 | P45: 1 | Q45: 0 | R45: 1 | AA45: 1 | AB45: 0
G46: =LARGE(G10:G45,1)+LARGE(G10:G45,2)+LARGE(G10:G45,3) -> 0 | H46: =SUM(H10:H45) -> 36 | I46: =LARGE(I10:I45,1)+LARGE(I10:I45,2)+LARGE(I10:I45,3) -> 0 | J46: =SUM(J10:J45) -> 36 | K46: =LARGE(K10:K45,1)+LARGE(K10:K45,2)+LARGE(K10:K45,3) -> 0 | L46: =SUM(L10:L45) -> 36 | M46: =LARGE(M10:M45,1)+LARGE(M10:M45,2)+LARGE(M10:M45,3) -> 0 | N46: =SUM(N10:N45) -> 36 | O46: =LARGE(O10:O45,1)+LARGE(O10:O45,2)+LARGE(O10:O45,3) -> 0 | P46: =SUM(P10:P45) -> 36 | Q46: =LARGE(Q10:Q45,1)+LARGE(Q10:Q45,2)+LARGE(Q10:Q45,3) -> 0 | R46: =SUM(R10:S45) -> 36
B48: Bitte beachtet, dass die Standaufsicht benannt werden muss

Sheet Übersicht Schützen (hidden)
C1: 1.0 | D1: 2.0 | E1: 3.0 | F1: 4.0 | G1: 5.0 | H1: 6.0 | L1: 7.0 | M1: 8.0 | N1: 9.0 | O1: 10.0 | P1: 11.0 | Q1: 12.0
A2: Philipp Schmidt | B2: =VLOOKUP(A2,'Wettkampf 1'!$B$10:$C$45,2,FALSE) -> Ostenwalde II | C2: =VLOOKUP(A2,'Wettkampf 1'!$B$10:$D$45,3,FALSE) -> 313.2 | D2: =VLOOKUP($A2,'2'!$B$10:$D$45,3,FALSE) -> 315.9 | E2: =VLOOKUP($A2,'3'!$B$10:$D$45,3,FALSE) -> 315.4 | F2: =VLOOKUP($A2,'4'!$B$10:$D$45,3,FALSE) -> 310.2 | G2: =VLOOKUP($A2,' 5'!$B$10:$D$45,3,FALSE) -> 318.3 | H2: =VLOOKUP($A2,' 6'!$B$10:$D$45,3,FALSE) -> 316.5 | I2: =K2/J2 -> 314.9 | J2: =VLOOKUP(A2,Formelhilfe!$A$9:$H$44,8,FALSE) -> 6.0 | K2: =SUM(C2:H2) -> 1,889.5 | L2: =VLOOKUP($A2,'7'!$B$10:$D$45,3,FALSE) -> 315.8 | M2: =VLOOKUP($A2,'8'!$B$10:$D$45,3,FALSE) -> 317.1 | N2: =VLOOKUP($A2,'9'!$B$10:$D$45,3,FALSE) -> 316.9 | O2: =VLOOKUP($A2,' 10'!$B$10:$D$45,3,FALSE) -> 313.6 | P2: =VLOOKUP($A2,'11'!$B$10:$D$45,3,FALSE) -> 314.1 | Q2: =VLOOKUP($A2,'12'!$B$10:$D$45,3,FALSE) -> 0.0 | R2: =T2/S2 -> 315.5 | S2: =VLOOKUP(A2,Formelhilfe!$A$9:$O$44,15,FALSE) -> 5.0 | T2: =SUM(L2:Q2) -> 1,577.5 | U2: =W2/V2 -> 315.2 | V2: =VLOOKUP(A2,Formelhilfe!$A$9:$P$44,16,FALSE) -> 11.0 | W2: =SUM(C2:H2,L2:Q2) -> 3,467.0
A3: Frank Wotte | B3: =VLOOKUP(A3,'Wettkampf 1'!$B$10:$C$45,2,FALSE) -> Lorup III | C3: =VLOOKUP(A3,'Wettkampf 1'!$B$10:$D$45,3,FALSE) -> 312.0 | D3: =VLOOKUP($A3,'2'!$B$10:$D$45,3,FALSE) -> 313.0 | E3: =VLOOKUP($A3,'3'!$B$10:$D$45,3,FALSE) -> 314.5 | F3: =VLOOKUP($A3,'4'!$B$10:$D$45,3,FALSE) -> 314.5 | G3: =VLOOKUP($A3,' 5'!$B$10:$D$45,3,FALSE) -> 314.6 | H3: =VLOOKUP($A3,' 6'!$B$10:$D$45,3,FALSE) -> 311.6 | I3: 313.4 | J3: =VLOOKUP(A3,Formelhilfe!$A$9:$H$44,8,FALSE) -> 6.0 | K3: 1,880.2 | L3: =VLOOKUP($A3,'7'!$B$10:$D$45,3,FALSE) -> 313.8 | M3: =VLOOKUP($A3,'8'!$B$10:$D$45,3,FALSE) -> 313.6 | N3: =VLOOKUP($A3,'9'!$B$10:$D$45,3,FALSE) -> 314.2 | O3: =VLOOKUP($A3,' 10'!$B$10:$D$45,3,FALSE) -> 314.2 | P3: =VLOOKUP($A3,'11'!$B$10:$D$45,3,FALSE) -> 314.1 | Q3: =VLOOKUP($A3,'12'!$B$10:$D$45,3,FALSE) -> 0.0 | R3: 314.0 | S3: =VLOOKUP(A3,Formelhilfe!$A$9:$O$44,15,FALSE) -> 5.0 | T3: 1,569.9 | U3: 313.6 | V3: =VLOOKUP(A3,Formelhilfe!$A$9:$P$44,16,FALSE) -> 11.0 | W3: 3,450.1
A4: Bernd Thien | B4: =VLOOKUP(A4,'Wettkampf 1'!$B$10:$C$45,2,FALSE) -> Werlte III | C4: =VLOOKUP(A4,'Wettkampf 1'!$B$10:$D$45,3,FALSE) -> 311.9 | D4: =VLOOKUP($A4,'2'!$B$10:$D$45,3,FALSE) -> 315.1 | E4: =VLOOKUP($A4,'3'!$B$10:$D$45,3,FALSE) -> 314.4 | F4: =VLOOKUP($A4,'4'!$B$10:$D$45,3,FALSE) -> 311.9 | G4: =VLOOKUP($A4,' 5'!$B$10:$D$45,3,FALSE) -> 314.3 | H4: =VLOOKUP($A4,' 6'!$B$10:$D$45,3,FALSE) -> 309.0 | I4: 312.8 | J4: =VLOOKUP(A4,Formelhilfe!$A$9:$H$44,8,FALSE) -> 6.0 | K4: 1,876.6 | L4: =VLOOKUP($A4,'7'!$B$10:$D$45,3,FALSE) -> 310.7 | M4: =VLOOKUP($A4,'8'!$B$10:$D$45,3,FALSE) -> 313.7 | N4: =VLOOKUP($A4,'9'!$B$10:$D$45,3,FALSE) -> 317.7 | O4: =VLOOKUP($A4,' 10'!$B$10:$D$45,3,FALSE) -> 313.2 | P4: =VLOOKUP($A4,'11'!$B$10:$D$45,3,FALSE) -> 313.9 | Q4: =VLOOKUP($A4,'12'!$B$10:$D$45,3,FALSE) -> 0.0 | R4: 313.8 | S4: =VLOOKUP(A4,Formelhilfe!$A$9:$O$44,15,FALSE) -> 5.0 | T4: 1,569.2 | U4: 313.3 | V4: =VLOOKUP(A4,Formelhilfe!$A$9:$P$44,16,FALSE) -> 11.0 | W4: 3,445.8
A5: Hans Plüster | B5: =VLOOKUP(A5,'Wettkampf 1'!$B$10:$C$45,2,FALSE) -> Breddenb.-Heid. III | C5: =VLOOKUP(A5,'Wettkampf 1'!$B$10:$D$45,3,FALSE) -> 310.9 | D5: =VLOOKUP($A5,'2'!$B$10:$D$45,3,FALSE) -> 309.6 | E5: =VLOOKUP($A5,'3'!$B$10:$D$45,3,FALSE) -> 314.8 | F5: =VLOOKUP($A5,'4'!$B$10:$D$45,3,FALSE) -> 312.2 | G5: =VLOOKUP($A5,' 5'!$B$10:$D$45,3,FALSE) -> 312.8 | H5: =VLOOKUP($A5,' 6'!$B$10:$D$45,3,FALSE) -> 311.4 | I5: 312.0 | J5: =VLOOKUP(A5,Formelhilfe!$A$9:$H$44,8,FALSE) -> 6.0 | K5: 1,871.7 | L5: =VLOOKUP($A5,'7'!$B$10:$D$45,3,FALSE) -> 315.6 | M5: =VLOOKUP($A5,'8'!$B$10:$D$45,3,FALSE) -> 313.4 | N5: =VLOOKUP($A5,'9'!$B$10:$D$45,3,FALSE) -> 314.3 | O5: =VLOOKUP($A5,' 10'!$B$10:$D$45,3,FALSE) -> 311.4 | P5: =VLOOKUP($A5,'11'!$B$10:$D$45,3,FALSE) -> 315.2 | Q5: =VLOOKUP($A5,'12'!$B$10:$D$45,3,FALSE) -> 0.0 | R5: 314.0 | S5: =VLOOKUP(A5,Formelhilfe!$A$9:$O$44,15,FALSE) -> 5.0 | T5: 1,569.9 | U5: 312.9 | V5: =VLOOKUP(A5,Formelhilfe!$A$9:$P$44,16,FALSE) -> 11.0 | W5: 3,441.6
A6: Philipp Scholübbers | B6: =VLOOKUP(A6,'Wettkampf 1'!$B$10:$C$45,2,FALSE) -> Ostenwalde II | C6: =VLOOKUP(A6,'Wettkampf 1'!$B$10:$D$45,3,FALSE) -> 312.2 | D6: =VLOOKUP($A6,'2'!$B$10:$D$45,3,FALSE) -> 314.1 | E6: =VLOOKUP($A6,'3'!$B$10:$D$45,3,FALSE) -> 315.4 | F6: =VLOOKUP($A6,'4'!$B$10:$D$45,3,FALSE) -> 312.4 | G6: =VLOOKUP($A6,' 5'!$B$10:$D$45,3,FALSE) -> 314.6 | H6: =VLOOKUP($A6,' 6'!$B$10:$D$45,3,FALSE) -> 312.7 | I6: 313.6 | J6: =VLOOKUP(A6,Formelhilfe!$A$9:$H$44,8,FALSE) -> 6.0 | K6: 1,881.4 | L6: =VLOOKUP($A6,'7'!$B$10:$D$45,3,FALSE) -> 314.0 | M6: =VLOOKUP($A6,'8'!$B$10:$D$45,3,FALSE) -> 311.7 | N6: =VLOOKUP($A6,'9'!$B$10:$D$45,3,FALSE) -> 316.0 | O6: =VLOOKUP($A6,' 10'!$B$10:$D$45,3,FALSE) -> 303.3 | P6: =VLOOKUP($A6,'11'!$B$10:$D$45,3,FALSE) -> 313.7 | Q6: =VLOOKUP($A6,'12'!$B$10:$D$45,3,FALSE) -> 0.0 | R6: 311.7 | S6: =VLOOKUP(A6,Formelhilfe!$A$9:$O$44,15,FALSE) -> 5.0 | T6: 1,558.7 | U6: 312.7 | V6: =VLOOKUP(A6,Formelhilfe!$A$9:$P$44,16,FALSE) -> 11.0 | W6: 3,440.1
A7: Andreas Thoben | B7: =VLOOKUP(A7,'Wettkampf 1'!$B$10:$C$45,2,FALSE) -> Werlte III | C7: =VLOOKUP(A7,'Wettkampf 1'!$B$10:$D$45,3,FALSE) -> 314.8 | D7: =VLOOKUP($A7,'2'!$B$10:$D$45,3,FALSE) -> 311.7 | E7: =VLOOKUP($A7,'3'!$B$10:$D$45,3,FALSE) -> 313.4 | F7: =VLOOKUP($A7,'4'!$B$10:$D$45,3,FALSE) -> 313.9 | G7: =VLOOKUP($A7,' 5'!$B$10:$D$45,3,FALSE) -> 314.4 | H7: =VLOOKUP($A7,' 6'!$B$10:$D$45,3,FALSE) -> 312.8 | I7: 313.5 | J7: =VLOOKUP(A7,Formelhilfe!$A$9:$H$44,8,FALSE) -> 6.0 | K7: 1,881.0 | L7: =VLOOKUP($A7,'7'!$B$10:$D$45,3,FALSE) -> 316.0 | M7: =VLOOKUP($A7,'8'!$B$10:$D$45,3,FALSE) -> 312.7 | N7: =VLOOKUP($A7,'9'!$B$10:$D$45,3,FALSE) -> 307.2 | O7: =VLOOKUP($A7,' 10'!$B$10:$D$45,3,FALSE) -> 309.8 | P7: =VLOOKUP($A7,'11'!$B$10:$D$45,3,FALSE) -> 310.3 | Q7: =VLOOKUP($A7,'12'!$B$10:$D$45,3,FALSE) -> 0.0 | R7: 311.2 | S7: =VLOOKUP(A7,Formelhilfe!$A$9:$O$44,15,FALSE) -> 5.0 | T7: 1,556.0 | U7: 312.5 | V7: =VLOOKUP(A7,Formelhilfe!$A$9:$P$44,16,FALSE) -> 11.0 | W7: 3,437.0
A8: Johannes Jansen | B8: =VLOOKUP(A8,'Wettkampf 1'!$B$10:$C$45,2,FALSE) -> Börgermoor II | C8: =VLOOKUP(A8,'Wettkampf 1'!$B$10:$D$45,3,FALSE) -> 312.1 | D8: =VLOOKUP($A8,'2'!$B$10:$D$45,3,FALSE) -> 308.3 | E8: =VLOOKUP($A8,'3'!$B$10:$D$45,3,FALSE) -> 313.6 | F8: =VLOOKUP($A8,'4'!$B$10:$D$45,3,FALSE) -> 309.0 | G8: =VLOOKUP($A8,' 5'!$B$10:$D$45,3,FALSE) -> 310.1 | H8: =VLOOKUP($A8,' 6'!$B$10:$D$45,3,FALSE) -> 311.5 | I8: 310.8 | J8: =VLOOKUP(A8,Formelhilfe!$A$9:$H$44,8,FALSE) -> 6.0 | K8: 1,864.6 | L8: =VLOOKUP($A8,'7'!$B$10:$D$45,3,FALSE) -> 313.0 | M8: =VLOOKUP($A8,'8'!$B$10:$D$45,3,FALSE) -> 314.2 | N8: =VLOOKUP($A8,'9'!$B$10:$D$45,3,FALSE) -> 310.5 | O8: =VLOOKUP($A8,' 10'!$B$10:$D$45,3,FALSE) -> 311.9 | P8: =VLOOKUP($A8,'11'!$B$10:$D$45,3,FALSE) -> 311.9 | Q8: =VLOOKUP($A8,'12'!$B$10:$D$45,3,FALSE) -> 0.0 | R8: 312.3 | S8: =VLOOKUP(A8,Formelhilfe!$A$9:$O$44,15,FALSE) -> 5.0 | T8: 1,561.5 | U8: 311.5 | V8: =VLOOKUP(A8,Formelhilfe!$A$9:$P$44,16,FALSE) -> 11.0 | W8: 3,426.1
A9: Thomas Niermann | B9: =VLOOKUP(A9,'Wettkampf 1'!$B$10:$C$45,2,FALSE) -> Werlte III | C9: =VLOOKUP(A9,'Wettkampf 1'!$B$10:$D$45,3,FALSE) -> 313.1 | D9: =VLOOKUP($A9,'2'!$B$10:$D$45,3,FALSE) -> 311.2 | E9: =VLOOKUP($A9,'3'!$B$10:$D$45,3,FALSE) -> 313.6 | F9: =VLOOKUP($A9,'4'!$B$10:$D$45,3,FALSE) -> 310.1 | G9: =VLOOKUP($A9,' 5'!$B$10:$D$45,3,FALSE) -> 308.0 | H9: =VLOOKUP($A9,' 6'!$B$10:$D$45,3,FALSE) -> 310.5 | I9: 311.1 | J9: =VLOOKUP(A9,Formelhilfe!$A$9:$H$44,8,FALSE) -> 6.0 | K9: 1,866.5 | L9: =VLOOKUP($A9,'7'!$B$10:$D$45,3,FALSE) -> 312.3 | M9: =VLOOKUP($A9,'8'!$B$10:$D$45,3,FALSE) -> 315.3 | N9: =VLOOKUP($A9,'9'!$B$10:$D$45,3,FALSE) -> 310.0 | O9: =VLOOKUP($A9,' 10'!$B$10:$D$45,3,FALSE) -> 307.8 | P9: =VLOOKUP($A9,'11'!$B$10:$D$45,3,FALSE) -> 312.1 | Q9: =VLOOKUP($A9,'12'!$B$10:$D$45,3,FALSE) -> 0.0 | R9: 311.5 | S9: =VLOOKUP(A9,Formelhilfe!$A$9:$O$44,15,FALSE) -> 5.0 | T9: 1,557.5 | U9: 311.3 | V9: =VLOOKUP(A9,Formelhilfe!$A$9:$P$44,16,FALSE) -> 11.0 | W9: 3,424.0
A10: Norbert Grünloh | B10: =VLOOKUP(A10,'Wettkampf 1'!$B$10:$C$45,2,FALSE) -> Werlte III | C10: =VLOOKUP(A10,'Wettkampf 1'!$B$10:$D$45,3,FALSE) -> 311.6 | D10: =VLOOKUP($A10,'2'!$B$10:$D$45,3,FALSE) -> 311.3 | E10: =VLOOKUP($A10,'3'!$B$10:$D$45,3,FALSE) -> 315.1 | F10: =VLOOKUP($A10,'4'!$B$10:$D$45,3,FALSE) -> 313.0 | G10: =VLOOKUP($A10,' 5'!$B$10:$D$45,3,FALSE) -> 310.2 | H10: =VLOOKUP($A10,' 6'!$B$10:$D$45,3,FALSE) -> 313.8 | I10: 312.5 | J10: =VLOOKUP(A10,Formelhilfe!$A$9:$H$44,8,FALSE) -> 6.0 | K10: 1,875.0 | L10: =VLOOKUP($A10,'7'!$B$10:$D$45,3,FALSE) -> 307.8 | M10: =VLOOKUP($A10,'8'!$B$10:$D$45,3,FALSE) -> 309.5 | N10: =VLOOKUP($A10,'9'!$B$10:$D$45,3,FALSE) -> 311.6 | O10: =VLOOKUP($A10,' 10'!$B$10:$D$45,3,FALSE) -> 309.3 | P10: =VLOOKUP($A10,'11'!$B$10:$D$45,3,FALSE) -> 309.7 | Q10: =VLOOKUP($A10,'12'!$B$10:$D$45,3,FALSE) -> 0.0 | R10: 309.6 | S10: =VLOOKUP(A10,Formelhilfe!$A$9:$O$44,15,FALSE) -> 5.0 | T10: 1,547.9 | U10: 311.2 | V10: =VLOOKUP(A10,Formelhilfe!$A$9:$P$44,16,FALSE) -> 11.0 | W10: 3,422.9
A11: Patrik Krüßel | B11: =VLOOKUP(A11,'Wettkampf 1'!$B$10:$C$45,2,FALSE) -> Ostenwalde II | C11: =VLOOKUP(A11,'Wettkampf 1'!$B$10:$D$45,3,FALSE) -> 311.8 | D11: =VLOOKUP($A11,'2'!$B$10:$D$45,3,FALSE) -> 312.8 | E11: =VLOOKUP($A11,'3'!$B$10:$D$45,3,FALSE) -> 314.3 | F11: =VLOOKUP($A11,'4'!$B$10:$D$45,3,FALSE) -> 311.1 | G11: =VLOOKUP($A11,' 5'!$B$10:$D$45,3,FALSE) -> 313.6 | H11: =VLOOKUP($A11,' 6'!$B$10:$D$45,3,FALSE) -> 311.8 | I11: 312.6 | J11: =VLOOKUP(A11,Formelhilfe!$A$9:$H$44,8,FALSE) -> 6.0 | K11: 1,875.4 | L11: =VLOOKUP($A11,'7'!$B$10:$D$45,3,FALSE) -> 308.8 | M11: =VLOOKUP($A11,'8'!$B$10:$D$45,3,FALSE) -> 305.4 | N11: =VLOOKUP($A11,'9'!$B$10:$D$45,3,FALSE) -> 310.6 | O11: =VLOOKUP($A11,' 10'!$B$10:$D$45,3,FALSE) -> 309.9 | P11: =VLOOKUP($A11,'11'!$B$10:$D$45,3,FALSE) -> 312.6 | Q11: =VLOOKUP($A11,'12'!$B$10:$D$45,3,FALSE) -> 0.0 | R11: 309.5 | S11: =VLOOKUP(A11,Formelhilfe!$A$9:$O$44,15,FALSE) -> 5.0 | T11: 1,547.3 | U11: 311.2 | V11: =VLOOKUP(A11,Formelhilfe!$A$9:$P$44,16,FALSE) -> 11.0 | W11: 3,422.7
A12: Johannes Wesseln | B12: =VLOOKUP(A12,'Wettkampf 1'!$B$10:$C$45,2,FALSE) -> Lorup III | C12: =VLOOKUP(A12,'Wettkampf 1'!$B$10:$D$45,3,FALSE) -> 310.2 | D12: =VLOOKUP($A12,'2'!$B$10:$D$45,3,FALSE) -> 308.8 | E12: =VLOOKUP($A12,'3'!$B$10:$D$45,3,FALSE) -> 311.5 | F12: =VLOOKUP($A12,'4'!$B$10:$D$45,3,FALSE) -> 310.2 | G12: =VLOOKUP($A12,' 5'!$B$10:$D$45,3,FALSE) -> 311.5 | H12: =VLOOKUP($A12,' 6'!$B$10:$D$45,3,FALSE) -> 312.1 | I12: 310.7 | J12: =VLOOKUP(A12,Formelhilfe!$A$9:$H$44,8,FALSE) -> 6.0 | K12: 1,864.3 | L12: =VLOOKUP($A12,'7'!$B$10:$D$45,3,FALSE) -> 312.9 | M12: =VLOOKUP($A12,'8'!$B$10:$D$45,3,FALSE) -> 308.7 | N12: =VLOOKUP($A12,'9'!$B$10:$D$45,3,FALSE) -> 307.9 | O12: =VLOOKUP($A12,' 10'!$B$10:$D$45,3,FALSE) -> 311.5 | P12: =VLOOKUP($A12,'11'!$B$10:$D$45,3,FALSE) -> 312.4 | Q12: =VLOOKUP($A12,'12'!$B$10:$D$45,3,FALSE) -> 0.0 | R12: 310.7 | S12: =VLOOKUP(A12,Formelhilfe!$A$9:$O$44,15,FALSE) -> 5.0 | T12: 1,553.4 | U12: 310.7 | V12: =VLOOKUP(A12,Formelhilfe!$A$9:$P$44,16,FALSE) -> 11.0 | W12: 3,417.7
A13: Jürgen Will | B13: =VLOOKUP(A13,'Wettkampf 1'!$B$10:$C$45,2,FALSE) -> Lorup III | C13: =VLOOKUP(A13,'Wettkampf 1'!$B$10:$D$45,3,FALSE) -> 313.9 | D13: =VLOOKUP($A13,'2'!$B$10:$D$45,3,FALSE) -> 311.5 | E13: =VLOOKUP($A13,'3'!$B$10:$D$45,3,FALSE) -> 312.5 | F13: =VLOOKUP($A13,'4'!$B$10:$D$45,3,FALSE) -> 312.5 | G13: =VLOOKUP($A13,' 5'!$B$10:$D$45,3,FALSE) -> 305.2 | H13: =VLOOKUP($A13,' 6'!$B$10:$D$45,3,FALSE) -> 308.4 | I13: 310.7 | J13: =VLOOKUP(A13,Formelhilfe!$A$9:$H$44,8,FALSE) -> 6.0 | K13: 1,864.0 | L13: =VLOOKUP($A13,'7'!$B$10:$D$45,3,FALSE) -> 310.3 | M13: =VLOOKUP($A13,'8'!$B$10:$D$45,3,FALSE) -> 310.0 | N13: =VLOOKUP($A13,'9'!$B$10:$D$45,3,FALSE) -> 310.9 | O13: =VLOOKUP($A13,' 10'!$B$10:$D$45,3,FALSE) -> 311.0 | P13: =VLOOKUP($A13,'11'!$B$10:$D$45,3,FALSE) -> 308.9 | Q13: =VLOOKUP($A13,'12'!$B$10:$D$45,3,FALSE) -> 0.0 | R13: 310.2 | S13: =VLOOKUP(A13,Formelhilfe!$A$9:$O$44,15,FALSE) -> 5.0 | T13: 1,551.1 | U13: 310.5 | V13: =VLOOKUP(A13,Formelhilfe!$A$9:$P$44,16,FALSE) -> 11.0 | W13: 3,415.1
A14: Hans Ortmann | B14: =VLOOKUP(A14,'Wettkampf 1'!$B$10:$C$45,2,FALSE) -> Börgermoor II | C14: =VLOOKUP(A14,'Wettkampf 1'!$B$10:$D$45,3,FALSE) -> 310.0 | D14: =VLOOKUP($A14,'2'!$B$10:$D$45,3,FALSE) -> 311.1 | E14: =VLOOKUP($A14,'3'!$B$10:$D$45,3,FALSE) -> 310.2 | F14: =VLOOKUP($A14,'4'!$B$10:$D$45,3,FALSE) -> 311.1 | G14: =VLOOKUP($A14,' 5'!$B$10:$D$45,3,FALSE) -> 310.1 | H14: =VLOOKUP($A14,' 6'!$B$10:$D$45,3,FALSE) -> 309.7 | I14: 310.4 | J14: =VLOOKUP(A14,Formelhilfe!$A$9:$H$44,8,FALSE) -> 6.0 | K14: 1,862.2 | L14: =VLOOKUP($A14,'7'!$B$10:$D$45,3,FALSE) -> 309.6 | M14: =VLOOKUP($A14,'8'!$B$10:$D$45,3,FALSE) -> 306.7 | N14: =VLOOKUP($A14,'9'!$B$10:$D$45,3,FALSE) -> 308.8 | O14: =VLOOKUP($A14,' 10'!$B$10:$D$45,3,FALSE) -> 310.1 | P14: =VLOOKUP($A14,'11'!$B$10:$D$45,3,FALSE) -> 310.4 | Q14: =VLOOKUP($A14,'12'!$B$10:$D$45,3,FALSE) -> 0.0 | R14: 309.1 | S14: =VLOOKUP(A14,Formelhilfe!$A$9:$O$44,15,FALSE) -> 5.0 | T14: 1,545.6 | U14: 309.8 | V14: =VLOOKUP(A14,Formelhilfe!$A$9:$P$44,16,FALSE) -> 11.0 | W14: 3,407.8
A15: Markus Jansen | B15: =VLOOKUP(A15,'Wettkampf 1'!$B$10:$C$45,2,FALSE) -> Ostenwalde II | C15: =VLOOKUP(A15,'Wettkampf 1'!$B$10:$D$45,3,FALSE) -> 309.0 | D15: =VLOOKUP($A15,'2'!$B$10:$D$45,3,FALSE) -> 311.1 | E15: =VLOOKUP($A15,'3'!$B$10:$D$45,3,FALSE) -> 310.7 | F15: =VLOOKUP($A15,'4'!$B$10:$D$45,3,FALSE) -> 308.3 | G15: =VLOOKUP($A15,' 5'!$B$10:$D$45,3,FALSE) -> 311.7 | H15: =VLOOKUP($A15,' 6'!$B$10:$D$45,3,FALSE) -> 308.6 | I15: 309.9 | J15: =VLOOKUP(A15,Formelhilfe!$A$9:$H$44,8,FALSE) -> 6.0 | K15: 1,859.4 | L15: =VLOOKUP($A15,'7'!$B$10:$D$45,3,FALSE) -> 309.0 | M15: =VLOOKUP($A15,'8'!$B$10:$D$45,3,FALSE) -> 308.0 | N15: =VLOOKUP($A15,'9'!$B$10:$D$45,3,FALSE) -> 311.3 | O15: =VLOOKUP($A15,' 10'!$B$10:$D$45,3,FALSE) -> 310.8 | P15: =VLOOKUP($A15,'11'!$B$10:$D$45,3,FALSE) -> 306.9 | Q15: =VLOOKUP($A15,'12'!$B$10:$D$45,3,FALSE) -> 0.0 | R15: 309.2 | S15: =VLOOKUP(A15,Formelhilfe!$A$9:$O$44,15,FALSE) -> 5.0 | T15: 1,546.0 | U15: 309.6 | V15: =VLOOKUP(A15,Formelhilfe!$A$9:$P$44,16,FALSE) -> 11.0 | W15: 3,405.4
A16: Willi Engbers | B16: =VLOOKUP(A16,'Wettkampf 1'!$B$10:$C$45,2,FALSE) -> Breddenb.-Heid. I | C16: =VLOOKUP(A16,'Wettkampf 1'!$B$10:$D$45,3,FALSE) -> 312.3 | D16: =VLOOKUP($A16,'2'!$B$10:$D$45,3,FALSE) -> 308.0 | E16: =VLOOKUP($A16,'3'!$B$10:$D$45,3,FALSE) -> 309.2 | F16: =VLOOKUP($A16,'4'!$B$10:$D$45,3,FALSE) -> 309.4 | G16: =VLOOKUP($A16,' 5'!$B$10:$D$45,3,FALSE) -> 309.0 | H16: =VLOOKUP($A16,' 6'!$B$10:$D$45,3,FALSE) -> 307.9 | I16: 309.3 | J16: =VLOOKUP(A16,Formelhilfe!$A$9:$H$44,8,FALSE) -> 6.0 | K16: 1,855.8 | L16: =VLOOKUP($A16,'7'!$B$10:$D$45,3,FALSE) -> 311.1 | M16: =VLOOKUP($A16,'8'!$B$10:$D$45,3,FALSE) -> 307.2 | N16: =VLOOKUP($A16,'9'!$B$10:$D$45,3,FALSE) -> 310.6 | O16: =VLOOKUP($A16,' 10'!$B$10:$D$45,3,FALSE) -> 309.7 | P16: =VLOOKUP($A16,'11'!$B$10:$D$45,3,FALSE) -> 310.1 | Q16: =VLOOKUP($A16,'12'!$B$10:$D$45,3,FALSE) -> 0.0 | R16: 309.7 | S16: =VLOOKUP(A16,Formelhilfe!$A$9:$O$44,15,FALSE) -> 5.0 | T16: 1,548.7 | U16: 309.5 | V16: =VLOOKUP(A16,Formelhilfe!$A$9:$P$44,16,FALSE) -> 11.0 | W16: 3,404.5
A17: Karl-Heinz Ortmann | B17: =VLOOKUP(A17,'Wettkampf 1'!$B$10:$C$45,2,FALSE) -> Börgermoor II | C17: =VLOOKUP(A17,'Wettkampf 1'!$B$10:$D$45,3,FALSE) -> 305.9 | D17: =VLOOKUP($A17,'2'!$B$10:$D$45,3,FALSE) -> 306.9 | E17: =VLOOKUP($A17,'3'!$B$10:$D$45,3,FALSE) -> 312.2 | F17: =VLOOKUP($A17,'4'!$B$10:$D$45,3,FALSE) -> 309.3 | G17: =VLOOKUP($A17,' 5'!$B$10:$D$45,3,FALSE) -> 307.7 | H17: =VLOOKUP($A17,' 6'!$B$10:$D$45,3,FALSE) -> 307.7 | I17: 308.3 | J17: =VLOOKUP(A17,Formelhilfe!$A$9:$H$44,8,FALSE) -> 6.0 | K17: 1,849.7 | L17: =VLOOKUP($A17,'7'!$B$10:$D$45,3,FALSE) -> 310.6 | M17: =VLOOKUP($A17,'8'!$B$10:$D$45,3,FALSE) -> 306.4 | N17: =VLOOKUP($A17,'9'!$B$10:$D$45,3,FALSE) -> 313.0 | O17: =VLOOKUP($A17,' 10'!$B$10:$D$45,3,FALSE) -> 310.2 | P17: =VLOOKUP($A17,'11'!$B$10:$D$45,3,FALSE) -> 310.0 | Q17: =VLOOKUP($A17,'12'!$B$10:$D$45,3,FALSE) -> 0.0 | R17: 310.0 | S17: =VLOOKUP(A17,Formelhilfe!$A$9:$O$44,15,FALSE) -> 5.0 | T17: 1,550.2 | U17: 309.1 | V17: =VLOOKUP(A17,Formelhilfe!$A$9:$P$44,16,FALSE) -> 11.0 | W17: 3,399.9
A18: Norbert Jansen | B18: =VLOOKUP(A18,'Wettkampf 1'!$B$10:$C$45,2,FALSE) -> Breddenb.-Heid. III | C18: =VLOOKUP(A18,'Wettkampf 1'!$B$10:$D$45,3,FALSE) -> 300.5 | D18: =VLOOKUP($A18,'2'!$B$10:$D$45,3,FALSE) -> 308.3 | E18: =VLOOKUP($A18,'3'!$B$10:$D$45,3,FALSE) -> 311.0 | F18: =VLOOKUP($A18,'4'!$B$10:$D$45,3,FALSE) -> 308.0 | G18: =VLOOKUP($A18,' 5'!$B$10:$D$45,3,FALSE) -> 310.3 | H18: =VLOOKUP($A18,' 6'!$B$10:$D$45,3,FALSE) -> 309.5 | I18: 307.9 | J18: =VLOOKUP(A18,Formelhilfe!$A$9:$H$44,8,FALSE) -> 6.0 | K18: 1,847.6 | L18: =VLOOKUP($A18,'7'!$B$10:$D$45,3,FALSE) -> 312.3 | M18: =VLOOKUP($A18,'8'!$B$10:$D$45,3,FALSE) -> 310.3 | N18: =VLOOKUP($A18,'9'!$B$10:$D$45,3,FALSE) -> 311.3 | O18: =VLOOKUP($A18,' 10'!$B$10:$D$45,3,FALSE) -> 303.6 | P18: =VLOOKUP($A18,'11'!$B$10:$D$45,3,FALSE) -> 309.7 | Q18: =VLOOKUP($A18,'12'!$B$10:$D$45,3,FALSE) -> 0.0 | R18: 309.4 | S18: =VLOOKUP(A18,Formelhilfe!$A$9:$O$44,15,FALSE) -> 5.0 | T18: 1,547.2 | U18: 308.6 | V18: =VLOOKUP(A18,Formelhilfe!$A$9:$P$44,16,FALSE) -> 11.0 | W18: 3,394.8
A19: Joachim Niermann | B19: =VLOOKUP(A19,'Wettkampf 1'!$B$10:$C$45,2,FALSE) -> Werlte III | C19: =VLOOKUP(A19,'Wettkampf 1'!$B$10:$D$45,3,FALSE) -> 305.0 | D19: =VLOOKUP($A19,'2'!$B$10:$D$45,3,FALSE) -> 307.9 | E19: =VLOOKUP($A19,'3'!$B$10:$D$45,3,FALSE) -> 305.3 | F19: =VLOOKUP($A19,'4'!$B$10:$D$45,3,FALSE) -> 313.4 | G19: =VLOOKUP($A19,' 5'!$B$10:$D$45,3,FALSE) -> 312.3 | H19: =VLOOKUP($A19,' 6'!$B$10:$D$45,3,FALSE) -> 307.9 | I19: 308.6 | J19: =VLOOKUP(A19,Formelhilfe!$A$9:$H$44,8,FALSE) -> 6.0 | K19: 1,851.8 | L19: =VLOOKUP($A19,'7'!$B$10:$D$45,3,FALSE) -> 310.5 | M19: =VLOOKUP($A19,'8'!$B$10:$D$45,3,FALSE) -> 306.6 | N19: =VLOOKUP($A19,'9'!$B$10:$D$45,3,FALSE) -> 306.2 | O19: =VLOOKUP($A19,' 10'!$B$10:$D$45,3,FALSE) -> 308.7 | P19: =VLOOKUP($A19,'11'!$B$10:$D$45,3,FALSE) -> 309.2 | Q19: =VLOOKUP($A19,'12'!$B$10:$D$45,3,FALSE) -> 0.0 | R19: 308.2 | S19: =VLOOKUP(A19,Formelhilfe!$A$9:$O$44,15,FALSE) -> 5.0 | T19: 1,541.2 | U19: 308.5 | V19: =VLOOKUP(A19,Formelhilfe!$A$9:$P$44,16,FALSE) -> 11.0 | W19: 3,393.0
A20: Heinz Engbers | B20: =VLOOKUP(A20,'Wettkampf 1'!$B$10:$C$45,2,FALSE) -> Breddenb.-Heid. I | C20: =VLOOKUP(A20,'Wettkampf 1'!$B$10:$D$45,3,FALSE) -> 308.1 | D20: =VLOOKUP($A20,'2'!$B$10:$D$45,3,FALSE) -> 309.5 | E20: =VLOOKUP($A20,'3'!$B$10:$D$45,3,FALSE) -> 305.4 | F20: =VLOOKUP($A20,'4'!$B$10:$D$45,3,FALSE) -> 307.8 | G20: =VLOOKUP($A20,' 5'!$B$10:$D$45,3,FALSE) -> 304.5 | H20: =VLOOKUP($A20,' 6'!$B$10:$D$45,3,FALSE) -> 308.3 | I20: 307.3 | J20: =VLOOKUP(A20,Formelhilfe!$A$9:$H$44,8,FALSE) -> 6.0 | K20: 1,843.6 | L20: =VLOOKUP($A20,'7'!$B$10:$D$45,3,FALSE) -> 307.9 | M20: =VLOOKUP($A20,'8'!$B$10:$D$45,3,FALSE) -> 311.8 | N20: =VLOOKUP($A20,'9'!$B$10:$D$45,3,FALSE) -> 308.8 | O20: =VLOOKUP($A20,' 10'!$B$10:$D$45,3,FALSE) -> 310.4 | P20: =VLOOKUP($A20,'11'!$B$10:$D$45,3,FALSE) -> 310.1 | Q20: =VLOOKUP($A20,'12'!$B$10:$D$45,3,FALSE) -> 0.0 | R20: 309.8 | S20: =VLOOKUP(A20,Formelhilfe!$A$9:$O$44,15,FALSE) -> 5.0 | T20: 1,549.0 | U20: 308.4 | V20: =VLOOKUP(A20,Formelhilfe!$A$9:$P$44,16,FALSE) -> 11.0 | W20: 3,392.6
A21: Josef Wübben | B21: =VLOOKUP(A21,'Wettkampf 1'!$B$10:$C$45,2,FALSE) -> Breddenb.-Heid. III | C21: =VLOOKUP(A21,'Wettkampf 1'!$B$10:$D$45,3,FALSE) -> 309.4 | D21: =VLOOKUP($A21,'2'!$B$10:$D$45,3,FALSE) -> 314.2 | E21: =VLOOKUP($A21,'3'!$B$10:$D$45,3,FALSE) -> 306.2 | F21: =VLOOKUP($A21,'4'!$B$10:$D$45,3,FALSE) -> 309.8 | G21: =VLOOKUP($A21,' 5'!$B$10:$D$45,3,FALSE) -> 309.4 | H21: =VLOOKUP($A21,' 6'!$B$10:$D$45,3,FALSE) -> 303.9 | I21: 308.8 | J21: =VLOOKUP(A21,Formelhilfe!$A$9:$H$44,8,FALSE) -> 6.0 | K21: 1,852.9 | L21: =VLOOKUP($A21,'7'!$B$10:$D$45,3,FALSE) -> 310.1 | M21: =VLOOKUP($A21,'8'!$B$10:$D$45,3,FALSE) -> 301.5 | N21: =VLOOKUP($A21,'9'!$B$10:$D$45,3,FALSE) -> 310.6 | O21: =VLOOKUP($A21,' 10'!$B$10:$D$45,3,FALSE) -> 308.8 | P21: =VLOOKUP($A21,'11'!$B$10:$D$45,3,FALSE) -> 305.8 | Q21: =VLOOKUP($A21,'12'!$B$10:$D$45,3,FALSE) -> 0.0 | R21: 307.4 | S21: =VLOOKUP(A21,Formelhilfe!$A$9:$O$44,15,FALSE) -> 5.0 | T21: 1,536.8 | U21: 308.2 | V21: =VLOOKUP(A21,Formelhilfe!$A$9:$P$44,16,FALSE) -> 11.0 | W21: 3,389.7
A22: Hermann Krone | B22: =VLOOKUP(A22,'Wettkampf 1'!$B$10:$C$45,2,FALSE) -> Werlte III | C22: =VLOOKUP(A22,'Wettkampf 1'!$B$10:$D$45,3,FALSE) -> 306.8 | D22: =VLOOKUP($A22,'2'!$B$10:$D$45,3,FALSE) -> 307.4 | E22: =VLOOKUP($A22,'3'!$B$10:$D$45,3,FALSE) -> 311.6 | F22: =VLOOKUP($A22,'4'!$B$10:$D$45,3,FALSE) -> 304.3 | G22: =VLOOKUP($A22,' 5'!$B$10:$D$45,3,FALSE) -> 312.2 | H22: =VLOOKUP($A22,' 6'!$B$10:$D$45,3,FALSE) -> 310.3 | I22: 308.8 | J22: =VLOOKUP(A22,Formelhilfe!$A$9:$H$44,8,FALSE) -> 6.0 | K22: 1,852.6 | L22: =VLOOKUP($A22,'7'!$B$10:$D$45,3,FALSE) -> 307.3 | M22: =VLOOKUP($A22,'8'!$B$10:$D$45,3,FALSE) -> 306.8 | N22: =VLOOKUP($A22,'9'!$B$10:$D$45,3,FALSE) -> 311.0 | O22: =VLOOKUP($A22,' 10'!$B$10:$D$45,3,FALSE) -> 307.9 | P22: =VLOOKUP($A22,'11'!$B$10:$D$45,3,FALSE) -> 303.8 | Q22: =VLOOKUP($A22,'12'!$B$10:$D$45,3,FALSE) -> 0.0 | R22: 307.4 | S22: =VLOOKUP(A22,Formelhilfe!$A$9:$O$44,15,FALSE) -> 5.0 | T22: 1,536.8 | U22: 308.1 | V22: =VLOOKUP(A22,Formelhilfe!$A$9:$P$44,16,FALSE) -> 11.0 | W22: 3,389.4
A23: Heinz Dirksen | B23: =VLOOKUP(A23,'Wettkampf 1'!$B$10:$C$45,2,FALSE) -> Börgermoor II | C23: =VLOOKUP(A23,'Wettkampf 1'!$B$10:$D$45,3,FALSE) -> 309.6 | D23: =VLOOKUP($A23,'2'!$B$10:$D$45,3,FALSE) -> 306.8 | E23: =VLOOKUP($A23,'3'!$B$10:$D$45,3,FALSE) -> 307.1 | F23: =VLOOKUP($A23,'4'!$B$10:$D$45,3,FALSE) -> 307.7 | G23: =VLOOKUP($A23,' 5'!$B$10:$D$45,3,FALSE) -> 304.4 | H23: =VLOOKUP($A23,' 6'!$B$10:$D$45,3,FALSE) -> 307.8 | I23: 307.2 | J23: =VLOOKUP(A23,Formelhilfe!$A$9:$H$44,8,FALSE) -> 6.0 | K23: 1,843.4 | L23: =VLOOKUP($A23,'7'!$B$10:$D$45,3,FALSE) -> 307.5 | M23: =VLOOKUP($A23,'8'!$B$10:$D$45,3,FALSE) -> 306.3 | N23: =VLOOKUP($A23,'9'!$B$10:$D$45,3,FALSE) -> 310.9 | O23: =VLOOKUP($A23,' 10'!$B$10:$D$45,3,FALSE) -> 306.9 | P23: =VLOOKUP($A23,'11'!$B$10:$D$45,3,FALSE) -> 308.5 | Q23: =VLOOKUP($A23,'12'!$B$10:$D$45,3,FALSE) -> 0.0 | R23: 308.0 | S23: =VLOOKUP(A23,Formelhilfe!$A$9:$O$44,15,FALSE) -> 5.0 | T23: 1,540.1 | U23: 307.6 | V23: =VLOOKUP(A23,Formelhilfe!$A$9:$P$44,16,FALSE) -> 11.0 | W23: 3,383.5
A24: Werner Jansen | B24: =VLOOKUP(A24,'Wettkampf 1'!$B$10:$C$45,2,FALSE) -> Breddenb.-Heid. III | C24: =VLOOKUP(A24,'Wettkampf 1'!$B$10:$D$45,3,FALSE) -> 304.3 | D24: =VLOOKUP($A24,'2'!$B$10:$D$45,3,FALSE) -> 309.7 | E24: =VLOOKUP($A24,'3'!$B$10:$D$45,3,FALSE) -> 309.4 | F24: =VLOOKUP($A24,'4'!$B$10:$D$45,3,FALSE) -> 305.8 | G24: =VLOOKUP($A24,' 5'!$B$10:$D$45,3,FALSE) -> 304.8 | H24: =VLOOKUP($A24,' 6'!$B$10:$D$45,3,FALSE) -> 306.7 | I24: 306.8 | J24: =VLOOKUP(A24,Formelhilfe!$A$9:$H$44,8,FALSE) -> 6.0 | K24: 1,840.7 | L24: =VLOOKUP($A24,'7'!$B$10:$D$45,3,FALSE) -> 308.5 | M24: =VLOOKUP($A24,'8'!$B$10:$D$45,3,FALSE) -> 309.0 | N24: =VLOOKUP($A24,'9'!$B$10:$D$45,3,FALSE) -> 312.6 | O24: =VLOOKUP($A24,' 10'!$B$10:$D$45,3,FALSE) -> 301.2 | P24: =VLOOKUP($A24,'11'!$B$10:$D$45,3,FALSE) -> 309.5 | Q24: =VLOOKUP($A24,'12'!$B$10:$D$45,3,FALSE) -> 0.0 | R24: 308.2 | S24: =VLOOKUP(A24,Formelhilfe!$A$9:$O$44,15,FALSE) -> 5.0 | T24: 1,540.8 | U24: 307.4 | V24: =VLOOKUP(A24,Formelhilfe!$A$9:$P$44,16,FALSE) -> 11.0 | W24: 3,381.5
A25: Gerd Vogel | B25: =VLOOKUP(A25,'Wettkampf 1'!$B$10:$C$45,2,FALSE) -> Breddenb.-Heid. I | C25: =VLOOKUP(A25,'Wettkampf 1'!$B$10:$D$45,3,FALSE) -> 263.8 | D25: =VLOOKUP($A25,'2'!$B$10:$D$45,3,FALSE) -> 310.9 | E25: =VLOOKUP($A25,'3'!$B$10:$D$45,3,FALSE) -> 313.1 | F25: =VLOOKUP($A25,'4'!$B$10:$D$45,3,FALSE) -> 312.6 | G25: =VLOOKUP($A25,' 5'!$B$10:$D$45,3,FALSE) -> 309.1 | H25: =VLOOKUP($A25,' 6'!$B$10:$D$45,3,FALSE) -> 313.0 | I25: 303.8 | J25: =VLOOKUP(A25,Formelhilfe!$A$9:$H$44,8,FALSE) -> 6.0 | K25: 1,822.5 | L25: =VLOOKUP($A25,'7'!$B$10:$D$45,3,FALSE) -> 312.1 | M25: =VLOOKUP($A25,'8'!$B$10:$D$45,3,FALSE) -> 308.6 | N25: =VLOOKUP($A25,'9'!$B$10:$D$45,3,FALSE) -> 313.2 | O25: =VLOOKUP($A25,' 10'!$B$10:$D$45,3,FALSE) -> 310.1 | P25: =VLOOKUP($A25,'11'!$B$10:$D$45,3,FALSE) -> 310.7 | Q25: =VLOOKUP($A25,'12'!$B$10:$D$45,3,FALSE) -> 0.0 | R25: 310.9 | S25: =VLOOKUP(A25,Formelhilfe!$A$9:$O$44,15,FALSE) -> 5.0 | T25: 1,554.7 | U25: 307.0 | V25: =VLOOKUP(A25,Formelhilfe!$A$9:$P$44,16,FALSE) -> 11.0 | W25: 3,377.2
A26: Helmut Benten | B26: =VLOOKUP(A26,'Wettkampf 1'!$B$10:$C$45,2,FALSE) -> Ostenwalde II | C26: =VLOOKUP(A26,'Wettkampf 1'!$B$10:$D$45,3,FALSE) -> 309.3 | D26: =VLOOKUP($A26,'2'!$B$10:$D$45,3,FALSE) -> 313.7 | E26: =VLOOKUP($A26,'3'!$B$10:$D$45,3,FALSE) -> 306.2 | F26: =VLOOKUP($A26,'4'!$B$10:$D$45,3,FALSE) -> 303.4 | G26: =VLOOKUP($A26,' 5'!$B$10:$D$45,3,FALSE) -> 304.8 | H26: =VLOOKUP($A26,' 6'!$B$10:$D$45,3,FALSE) -> 304.7 | I26: 307.0 | J26: =VLOOKUP(A26,Formelhilfe!$A$9:$H$44,8,FALSE) -> 6.0 | K26: 1,842.1 | L26: =VLOOKUP($A26,'7'!$B$10:$D$45,3,FALSE) -> 305.2 | M26: =VLOOKUP($A26,'8'!$B$10:$D$45,3,FALSE) -> 302.3 | N26: =VLOOKUP($A26,'9'!$B$10:$D$45,3,FALSE) -> 307.0 | O26: =VLOOKUP($A26,' 10'!$B$10:$D$45,3,FALSE) -> 307.1 | P26: =VLOOKUP($A26,'11'!$B$10:$D$45,3,FALSE) -> 309.8 | Q26: =VLOOKUP($A26,'12'!$B$10:$D$45,3,FALSE) -> 0.0 | R26: 306.3 | S26: =VLOOKUP(A26,Formelhilfe!$A$9:$O$44,15,FALSE) -> 5.0 | T26: 1,531.4 | U26: 306.7 | V26: =VLOOKUP(A26,Formelhilfe!$A$9:$P$44,16,FALSE) -> 11.0 | W26: 3,373.5
A27: Anton Oldiges | B27: =VLOOKUP(A27,'Wettkampf 1'!$B$10:$C$45,2,FALSE) -> Lorup III | C27: =VLOOKUP(A27,'Wettkampf 1'!$B$10:$D$45,3,FALSE) -> 301.6 | D27: =VLOOKUP($A27,'2'!$B$10:$D$45,3,FALSE) -> 302.5 | E27: =VLOOKUP($A27,'3'!$B$10:$D$45,3,FALSE) -> 311.0 | F27: =VLOOKUP($A27,'4'!$B$10:$D$45,3,FALSE) -> 306.7 | G27: =VLOOKUP($A27,' 5'!$B$10:$D$45,3,FALSE) -> 305.2 | H27: =VLOOKUP($A27,' 6'!$B$10:$D$45,3,FALSE) -> 307.3 | I27: 305.7 | J27: =VLOOKUP(A27,Formelhilfe!$A$9:$H$44,8,FALSE) -> 6.0 | K27: 1,834.3 | L27: =VLOOKUP($A27,'7'!$B$10:$D$45,3,FALSE) -> 306.3 | M27: =VLOOKUP($A27,'8'!$B$10:$D$45,3,FALSE) -> 309.2 | N27: =VLOOKUP($A27,'9'!$B$10:$D$45,3,FALSE) -> 308.8 | O27: =VLOOKUP($A27,' 10'!$B$10:$D$45,3,FALSE) -> 304.0 | P27: =VLOOKUP($A27,'11'!$B$10:$D$45,3,FALSE) -> 309.5 | Q27: =VLOOKUP($A27,'12'!$B$10:$D$45,3,FALSE) -> 0.0 | R27: 307.6 | S27: =VLOOKUP(A27,Formelhilfe!$A$9:$O$44,15,FALSE) -> 5.0 | T27: 1,537.8 | U27: 306.6 | V27: =VLOOKUP(A27,Formelhilfe!$A$9:$P$44,16,FALSE) -> 11.0 | W27: 3,372.1
A28: Hans Gebken 3 | B28: =VLOOKUP(A28,'Wettkampf 1'!$B$10:$C$45,2,FALSE) -> Breddenb.-Heid. I | C28: =VLOOKUP(A28,'Wettkampf 1'!$B$10:$D$45,3,FALSE) -> 306.3 | D28: =VLOOKUP($A28,'2'!$B$10:$D$45,3,FALSE) -> 300.7 | E28: =VLOOKUP($A28,'3'!$B$10:$D$45,3,FALSE) -> 304.1 | F28: =VLOOKUP($A28,'4'!$B$10:$D$45,3,FALSE) -> 304.5 | G28: =VLOOKUP($A28,' 5'!$B$10:$D$45,3,FALSE) -> 306.7 | H28: =VLOOKUP($A28,' 6'!$B$10:$D$45,3,FALSE) -> 307.9 | I28: 305.0 | J28: =VLOOKUP(A28,Formelhilfe!$A$9:$H$44,8,FALSE) -> 6.0 | K28: 1,830.2 | L28: =VLOOKUP($A28,'7'!$B$10:$D$45,3,FALSE) -> 303.6 | M28: =VLOOKUP($A28,'8'!$B$10:$D$45,3,FALSE) -> 306.4 | N28: =VLOOKUP($A28,'9'!$B$10:$D$45,3,FALSE) -> 310.5 | O28: =VLOOKUP($A28,' 10'!$B$10:$D$45,3,FALSE) -> 310.2 | P28: =VLOOKUP($A28,'11'!$B$10:$D$45,3,FALSE) -> 308.3 | Q28: =VLOOKUP($A28,'12'!$B$10:$D$45,3,FALSE) -> 0.0 | R28: 307.8 | S28: =VLOOKUP(A28,Formelhilfe!$A$9:$O$44,15,FALSE) -> 5.0 | T28: 1,539.0 | U28: 306.3 | V28: =VLOOKUP(A28,Formelhilfe!$A$9:$P$44,16,FALSE) -> 11.0 | W28: 3,369.2
A29: Johannes Oldiges | B29: =VLOOKUP(A29,'Wettkampf 1'!$B$10:$C$45,2,FALSE) -> Breddenb.-Heid. III | C29: =VLOOKUP(A29,'Wettkampf 1'!$B$10:$D$45,3,FALSE) -> 306.7 | D29: =VLOOKUP($A29,'2'!$B$10:$D$45,3,FALSE) -> 304.1 | E29: =VLOOKUP($A29,'3'!$B$10:$D$45,3,FALSE) -> 307.6 | F29: =VLOOKUP($A29,'4'!$B$10:$D$45,3,FALSE) -> 305.0 | G29: =VLOOKUP($A29,' 5'!$B$10:$D$45,3,FALSE) -> 308.9 | H29: =VLOOKUP($A29,' 6'!$B$10:$D$45,3,FALSE) -> 307.5 | I29: 306.6 | J29: =VLOOKUP(A29,Formelhilfe!$A$9:$H$44,8,FALSE) -> 6.0 | K29: 1,839.8 | L29: =VLOOKUP($A29,'7'!$B$10:$D$45,3,FALSE) -> 303.8 | M29: =VLOOKUP($A29,'8'!$B$10:$D$45,3,FALSE) -> 305.8 | N29: =VLOOKUP($A29,'9'!$B$10:$D$45,3,FALSE) -> 307.5 | O29: =VLOOKUP($A29,' 10'!$B$10:$D$45,3,FALSE) -> 306.1 | P29: =VLOOKUP($A29,'11'!$B$10:$D$45,3,FALSE) -> 302.6 | Q29: =VLOOKUP($A29,'12'!$B$10:$D$45,3,FALSE) -> 0.0 | R29: 305.2 | S29: =VLOOKUP(A29,Formelhilfe!$A$9:$O$44,15,FALSE) -> 5.0 | T29: 1,525.8 | U29: 306.0 | V29: =VLOOKUP(A29,Formelhilfe!$A$9:$P$44,16,FALSE) -> 11.0 | W29: 3,365.6
A30: Alfons Plüster | B30: =VLOOKUP(A30,'Wettkampf 1'!$B$10:$C$45,2,FALSE) -> Breddenb.-Heid. III | C30: =VLOOKUP(A30,'Wettkampf 1'!$B$10:$D$45,3,FALSE) -> 305.9 | D30: =VLOOKUP($A30,'2'!$B$10:$D$45,3,FALSE) -> 301.5 | E30: =VLOOKUP($A30,'3'!$B$10:$D$45,3,FALSE) -> 302.1 | F30: =VLOOKUP($A30,'4'!$B$10:$D$45,3,FALSE) -> 301.6 | G30: =VLOOKUP($A30,' 5'!$B$10:$D$45,3,FALSE) -> 308.0 | H30: =VLOOKUP($A30,' 6'!$B$10:$D$45,3,FALSE) -> 303.6 | I30: 303.8 | J30: =VLOOKUP(A30,Formelhilfe!$A$9:$H$44,8,FALSE) -> 6.0 | K30: 1,822.7 | L30: =VLOOKUP($A30,'7'!$B$10:$D$45,3,FALSE) -> 311.8 | M30: =VLOOKUP($A30,'8'!$B$10:$D$45,3,FALSE) -> 306.3 | N30: =VLOOKUP($A30,'9'!$B$10:$D$45,3,FALSE) -> 305.1 | O30: =VLOOKUP($A30,' 10'!$B$10:$D$45,3,FALSE) -> 304.7 | P30: =VLOOKUP($A30,'11'!$B$10:$D$45,3,FALSE) -> 305.1 | Q30: =VLOOKUP($A30,'12'!$B$10:$D$45,3,FALSE) -> 0.0 | R30: 306.6 | S30: =VLOOKUP(A30,Formelhilfe!$A$9:$O$44,15,FALSE) -> 5.0 | T30: 1,533.0 | U30: 305.1 | V30: =VLOOKUP(A30,Formelhilfe!$A$9:$P$44,16,FALSE) -> 11.0 | W30: 3,355.7
A31: Hans Gebken 1 | B31: =VLOOKUP(A31,'Wettkampf 1'!$B$10:$C$45,2,FALSE) -> Breddenb.-Heid. I | C31: =VLOOKUP(A31,'Wettkampf 1'!$B$10:$D$45,3,FALSE) -> 298.3 | D31: =VLOOKUP($A31,'2'!$B$10:$D$45,3,FALSE) -> 305.0 | E31: =VLOOKUP($A31,'3'!$B$10:$D$45,3,FALSE) -> 297.1 | F31: =VLOOKUP($A31,'4'!$B$10:$D$45,3,FALSE) -> 303.4 | G31: =VLOOKUP($A31,' 5'!$B$10:$D$45,3,FALSE) -> 303.6 | H31: =VLOOKUP($A31,' 6'!$B$10:$D$45,3,FALSE) -> 299.8 | I31: 301.2 | J31: =VLOOKUP(A31,Formelhilfe!$A$9:$H$44,8,FALSE) -> 6.0 | K31: 1,807.2 | L31: =VLOOKUP($A31,'7'!$B$10:$D$45,3,FALSE) -> 306.8 | M31: =VLOOKUP($A31,'8'!$B$10:$D$45,3,FALSE) -> 306.4 | N31: =VLOOKUP($A31,'9'!$B$10:$D$45,3,FALSE) -> 307.7 | O31: =VLOOKUP($A31,' 10'!$B$10:$D$45,3,FALSE) -> 306.2 | P31: =VLOOKUP($A31,'11'!$B$10:$D$45,3,FALSE) -> 305.7 | Q31: =VLOOKUP($A31,'12'!$B$10:$D$45,3,FALSE) -> 0.0 | R31: 306.6 | S31: =VLOOKUP(A31,Formelhilfe!$A$9:$O$44,15,FALSE) -> 5.0 | T31: 1,532.8 | U31: 303.6 | V31: =VLOOKUP(A31,Formelhilfe!$A$9:$P$44,16,FALSE) -> 11.0 | W31: 3,340.0
A32: Michael Freitag | B32: =VLOOKUP(A32,'Wettkampf 1'!$B$10:$C$45,2,FALSE) -> Werlte III | C32: =VLOOKUP(A32,'Wettkampf 1'!$B$10:$D$45,3,FALSE) -> 309.3 | D32: =VLOOKUP($A32,'2'!$B$10:$D$45,3,FALSE) -> 311.0 | E32: =VLOOKUP($A32,'3'!$B$10:$D$45,3,FALSE) -> 306.8 | F32: =VLOOKUP($A32,'4'!$B$10:$D$45,3,FALSE) -> 313.1 | G32: =VLOOKUP($A32,' 5'!$B$10:$D$45,3,FALSE) -> 314.6 | H32: =VLOOKUP($A32,' 6'!$B$10:$D$45,3,FALSE) -> 310.1 | I32: 310.8 | J32: =VLOOKUP(A32,Formelhilfe!$A$9:$H$44,8,FALSE) -> 6.0 | K32: 1,864.9 | L32: =VLOOKUP($A32,'7'!$B$10:$D$45,3,FALSE) -> 313.9 | M32: =VLOOKUP($A32,'8'!$B$10:$D$45,3,FALSE) -> 315.7 | N32: =VLOOKUP($A32,'9'!$B$10:$D$45,3,FALSE) -> 311.2 | O32: =VLOOKUP($A32,' 10'!$B$10:$D$45,3,FALSE) -> 0.0 | P32: =VLOOKUP($A32,'11'!$B$10:$D$45,3,FALSE) -> 308.6 | Q32: =VLOOKUP($A32,'12'!$B$10:$D$45,3,FALSE) -> 0.0 | R32: 312.4 | S32: =VLOOKUP(A32,Formelhilfe!$A$9:$O$44,15,FALSE) -> 4.0 | T32: 1,249.4 | U32: 311.4 | V32: =VLOOKUP(A32,Formelhilfe!$A$9:$P$44,16,FALSE) -> 10.0 | W32: 3,114.3
A33: Matthias Brinkmann | B33: =VLOOKUP(A33,'Wettkampf 1'!$B$10:$C$45,2,FALSE) -> Ostenwalde II | C33: =VLOOKUP(A33,'Wettkampf 1'!$B$10:$D$45,3,FALSE) -> 309.6 | D33: =VLOOKUP($A33,'2'!$B$10:$D$45,3,FALSE) -> 303.0 | E33: =VLOOKUP($A33,'3'!$B$10:$D$45,3,FALSE) -> 305.0 | F33: =VLOOKUP($A33,'4'!$B$10:$D$45,3,FALSE) -> 308.1 | G33: =VLOOKUP($A33,' 5'!$B$10:$D$45,3,FALSE) -> 0.0 | H33: =VLOOKUP($A33,' 6'!$B$10:$D$45,3,FALSE) -> 303.3 | I33: 305.8 | J33: =VLOOKUP(A33,Formelhilfe!$A$9:$H$44,8,FALSE) -> 5.0 | K33: 1,529.0 | L33: =VLOOKUP($A33,'7'!$B$10:$D$45,3,FALSE) -> 310.3 | M33: =VLOOKUP($A33,'8'!$B$10:$D$45,3,FALSE) -> 309.9 | N33: =VLOOKUP($A33,'9'!$B$10:$D$45,3,FALSE) -> 309.0 | O33: =VLOOKUP($A33,' 10'!$B$10:$D$45,3,FALSE) -> 309.8 | P33: =VLOOKUP($A33,'11'!$B$10:$D$45,3,FALSE) -> 304.1 | Q33: =VLOOKUP($A33,'12'!$B$10:$D$45,3,FALSE) -> 0.0 | R33: 308.6 | S33: =VLOOKUP(A33,Formelhilfe!$A$9:$O$44,15,FALSE) -> 5.0 | T33: 1,543.1 | U33: 307.2 | V33: =VLOOKUP(A33,Formelhilfe!$A$9:$P$44,16,FALSE) -> 10.0 | W33: 3,072.1
A34: Kevin Minnert | B34: =VLOOKUP(A34,'Wettkampf 1'!$B$10:$C$45,2,FALSE) -> Börgermoor II | C34: =VLOOKUP(A34,'Wettkampf 1'!$B$10:$D$45,3,FALSE) -> 306.5 | D34: =VLOOKUP($A34,'2'!$B$10:$D$45,3,FALSE) -> 302.7 | E34: =VLOOKUP($A34,'3'!$B$10:$D$45,3,FALSE) -> 305.3 | F34: =VLOOKUP($A34,'4'!$B$10:$D$45,3,FALSE) -> 294.0 | G34: =VLOOKUP($A34,' 5'!$B$10:$D$45,3,FALSE) -> 297.4 | H34: =VLOOKUP($A34,' 6'!$B$10:$D$45,3,FALSE) -> 294.9 | I34: 300.1 | J34: =VLOOKUP(A34,Formelhilfe!$A$9:$H$44,8,FALSE) -> 6.0 | K34: 1,800.8 | L34: =VLOOKUP($A34,'7'!$B$10:$D$45,3,FALSE) -> 305.1 | M34: =VLOOKUP($A34,'8'!$B$10:$D$45,3,FALSE) -> 305.1 | N34: =VLOOKUP($A34,'9'!$B$10:$D$45,3,FALSE) -> 0.0 | O34: =VLOOKUP($A34,' 10'!$B$10:$D$45,3,FALSE) -> 0.0 | P34: =VLOOKUP($A34,'11'!$B$10:$D$45,3,FALSE) -> 0.0 | Q34: =VLOOKUP($A34,'12'!$B$10:$D$45,3,FALSE) -> 0.0 | R34: 305.1 | S34: =VLOOKUP(A34,Formelhilfe!$A$9:$O$44,15,FALSE) -> 2.0 | T34: 610.2 | U34: 301.4 | V34: =VLOOKUP(A34,Formelhilfe!$A$9:$P$44,16,FALSE) -> 8.0 | W34: 2,411.0
A35: Daniel Schülke | B35: =VLOOKUP(A35,'Wettkampf 1'!$B$10:$C$45,2,FALSE) -> Börgermoor II | C35: =VLOOKUP(A35,'Wettkampf 1'!$B$10:$D$45,3,FALSE) -> 0.0 | D35: =VLOOKUP($A35,'2'!$B$10:$D$45,3,FALSE) -> 0.0 | E35: =VLOOKUP($A35,'3'!$B$10:$D$45,3,FALSE) -> 303.1 | F35: =VLOOKUP($A35,'4'!$B$10:$D$45,3,FALSE) -> 292.3 | G35: =VLOOKUP($A35,' 5'!$B$10:$D$45,3,FALSE) -> 306.6 | H35: =VLOOKUP($A35,' 6'!$B$10:$D$45,3,FALSE) -> 0.0 | I35: 300.7 | J35: =VLOOKUP(A35,Formelhilfe!$A$9:$H$44,8,FALSE) -> 3.0 | K35: 902.0 | L35: =VLOOKUP($A35,'7'!$B$10:$D$45,3,FALSE) -> 300.4 | M35: =VLOOKUP($A35,'8'!$B$10:$D$45,3,FALSE) -> 0.0 | N35: =VLOOKUP($A35,'9'!$B$10:$D$45,3,FALSE) -> 292.5 | O35: =VLOOKUP($A35,' 10'!$B$10:$D$45,3,FALSE) -> 301.0 | P35: =VLOOKUP($A35,'11'!$B$10:$D$45,3,FALSE) -> 299.4 | Q35: =VLOOKUP($A35,'12'!$B$10:$D$45,3,FALSE) -> 0.0 | R35: 298.3 | S35: =VLOOKUP(A35,Formelhilfe!$A$9:$O$44,15,FALSE) -> 4.0 | T35: 1,193.3 | U35: 299.3 | V35: =VLOOKUP(A35,Formelhilfe!$A$9:$P$44,16,FALSE) -> 7.0 | W35: 2,095.3
A36: Schütze 22 | B36: =VLOOKUP(A36,'Wettkampf 1'!$B$10:$C$45,2,FALSE) -> Lorup III | C36: =VLOOKUP(A36,'Wettkampf 1'!$B$10:$D$45,3,FALSE) -> 0.0 | D36: =VLOOKUP($A36,'2'!$B$10:$D$45,3,FALSE) -> 0.0 | E36: =VLOOKUP($A36,'3'!$B$10:$D$45,3,FALSE) -> 0.0 | F36: =VLOOKUP($A36,'4'!$B$10:$D$45,3,FALSE) -> 0.0 | G36: =VLOOKUP($A36,' 5'!$B$10:$D$45,3,FALSE) -> 0.0 | H36: =VLOOKUP($A36,' 6'!$B$10:$D$45,3,FALSE) -> 0.0 | J36: =VLOOKUP(A36,Formelhilfe!$A$9:$H$44,8,FALSE) -> 0.0 | K36: 0.0 | L36: =VLOOKUP($A36,'7'!$B$10:$D$45,3,FALSE) -> 0.0 | M36: =VLOOKUP($A36,'8'!$B$10:$D$45,3,FALSE) -> 0.0 | N36: =VLOOKUP($A36,'9'!$B$10:$D$45,3,FALSE) -> 0.0 | O36: =VLOOKUP($A36,' 10'!$B$10:$D$45,3,FALSE) -> 0.0 | P36: =VLOOKUP($A36,'11'!$B$10:$D$45,3,FALSE) -> 0.0 | Q36: =VLOOKUP($A36,'12'!$B$10:$D$45,3,FALSE) -> 0.0 | S36: =VLOOKUP(A36,Formelhilfe!$A$9:$O$44,15,FALSE) -> 0.0 | T36: 0.0 | V36: =VLOOKUP(A36,Formelhilfe!$A$9:$P$44,16,FALSE) -> 0.0 | W36: 0.0
A37: Schütze 23 | B37: =VLOOKUP(A37,'Wettkampf 1'!$B$10:$C$45,2,FALSE) -> Lorup III | C37: =VLOOKUP(A37,'Wettkampf 1'!$B$10:$D$45,3,FALSE) -> 0.0 | D37: =VLOOKUP($A37,'2'!$B$10:$D$45,3,FALSE) -> 0.0 | E37: =VLOOKUP($A37,'3'!$B$10:$D$45,3,FALSE) -> 0.0 | F37: =VLOOKUP($A37,'4'!$B$10:$D$45,3,FALSE) -> 0.0 | G37: =VLOOKUP($A37,' 5'!$B$10:$D$45,3,FALSE) -> 0.0 | H37: =VLOOKUP($A37,' 6'!$B$10:$D$45,3,FALSE) -> 0.0 | J37: =VLOOKUP(A37,Formelhilfe!$A$9:$H$44,8,FALSE) -> 0.0 | K37: 0.0 | L37: =VLOOKUP($A37,'7'!$B$10:$D$45,3,FALSE) -> 0.0 | M37: =VLOOKUP($A37,'8'!$B$10:$D$45,3,FALSE) -> 0.0 | N37: =VLOOKUP($A37,'9'!$B$10:$D$45,3,FALSE) -> 0.0 | O37: =VLOOKUP($A37,' 10'!$B$10:$D$45,3,FALSE) -> 0.0 | P37: =VLOOKUP($A37,'11'!$B$10:$D$45,3,FALSE) -> 0.0 | Q37: =VLOOKUP($A37,'12'!$B$10:$D$45,3,FALSE) -> 0.0 | S37: =VLOOKUP(A37,Formelhilfe!$A$9:$O$44,15,FALSE) -> 0.0 | T37: 0.0 | V37: =VLOOKUP(A37,Formelhilfe!$A$9:$P$44,16,FALSE) -> 0.0 | W37: 0.0

Sheet Formelhilfe (hidden)
B1: 1 | C1: 2 | D1: 3 | E1: 4 | F1: 5 | G1: 6 | H1: Hinrunde Schnitt | I1: 7 | J1: 8 | K1: 9 | L1: 10 | M1: 11 | N1: 12 | O1: Rückrunde Schnitt | P1: Gesamt Schnitt | S1: Kreisoberliga | T1: Schützen | U1: 2019/2020
A2: ='Wettkampf 1'!B2 -> Breddenb.-Heid. I | B2: =IF('Wettkampf 1'!D2>0,1,0) -> 1 | C2: =IF('2'!$D2>0,1,0) -> 1 | D2: =IF('3'!$D2>0,1,0) -> 1 | E2: =IF('4'!$D2>0,1,0) -> 1 | F2: =IF(' 5'!$D2>0,1,0) -> 1 | G2: =IF(' 6'!$D2>0,1,0) -> 1 | H2: =B2+C2+D2+E2+F2+G2 -> 6 | I2: =IF('7'!$D2>0,1,0) -> 1 | J2: =IF('8'!$D2>0,1,0) -> 1 | K2: =IF('9'!$D2>0,1,0) -> 1 | L2: =IF(' 10'!$D2>0,1,0) -> 1 | M2: =IF('11'!$D2>0,1,0) -> 1 | N2: =IF('12'!$D2>0,1,0) -> 0 | O2: =I2+J2+K2+L2+M2+N2 -> 5 | P2: =O2+H2 -> 11 | S2: 1. Kreisliga | T2: Damen | U2: 2020/2021
A3: ='Wettkampf 1'!B3 -> Ostenwalde II | B3: =IF('Wettkampf 1'!D3>0,1,0) -> 1 | C3: =IF('2'!$D3>0,1,0) -> 1 | D3: =IF('3'!$D3>0,1,0) -> 1 | E3: =IF('4'!$D3>0,1,0) -> 1 | F3: =IF(' 5'!$D3>0,1,0) -> 1 | G3: =IF(' 6'!$D3>0,1,0) -> 1 | H3: 6 | I3: =IF('7'!$D3>0,1,0) -> 1 | J3: =IF('8'!$D3>0,1,0) -> 1 | K3: =IF('9'!$D3>0,1,0) -> 1 | L3: =IF(' 10'!$D3>0,1,0) -> 1 | M3: =IF('11'!$D3>0,1,0) -> 1 | N3: =IF('12'!$D3>0,1,0) -> 0 | O3: 5 | P3: 11 | S3: 2. Kreisliga | T3: Altersgruppe | U3: 2021/2022
A4: ='Wettkampf 1'!B4 -> Börgermoor II | B4: =IF('Wettkampf 1'!D4>0,1,0) -> 1 | C4: =IF('2'!$D4>0,1,0) -> 1 | D4: =IF('3'!$D4>0,1,0) -> 1 | E4: =IF('4'!$D4>0,1,0) -> 1 | F4: =IF(' 5'!$D4>0,1,0) -> 1 | G4: =IF(' 6'!$D4>0,1,0) -> 1 | H4: 6 | I4: =IF('7'!$D4>0,1,0) -> 1 | J4: =IF('8'!$D4>0,1,0) -> 1 | K4: =IF('9'!$D4>0,1,0) -> 1 | L4: =IF(' 10'!$D4>0,1,0) -> 1 | M4: =IF('11'!$D4>0,1,0) -> 1 | N4: =IF('12'!$D4>0,1,0) -> 0 | O4: 5 | P4: 11 | S4: 1. Kreisklasse | T4: Senioren | U4: 2022/2023
A5: ='Wettkampf 1'!B5 -> Lorup III | B5: =IF('Wettkampf 1'!D5>0,1,0) -> 1 | C5: =IF('2'!$D5>0,1,0) -> 1 | D5: =IF('3'!$D5>0,1,0) -> 1 | E5: =IF('4'!$D5>0,1,0) -> 1 | F5: =IF(' 5'!$D5>0,1,0) -> 1 | G5: =IF(' 6'!$D5>0,1,0) -> 1 | H5: 6 | I5: =IF('7'!$D5>0,1,0) -> 1 | J5: =IF('8'!$D5>0,1,0) -> 1 | K5: =IF('9'!$D5>0,1,0) -> 1 | L5: =IF(' 10'!$D5>0,1,0) -> 1 | M5: =IF('11'!$D5>0,1,0) -> 1 | N5: =IF('12'!$D5>0,1,0) -> 0 | O5: 5 | P5: 11 | S5: 2. Kreisklasse | U5: 2023/2024
A6: ='Wettkampf 1'!B6 -> Breddenb.-Heid. III | B6: =IF('Wettkampf 1'!D6>0,1,0) -> 1 | C6: =IF('2'!$D6>0,1,0) -> 1 | D6: =IF('3'!$D6>0,1,0) -> 1 | E6: =IF('4'!$D6>0,1,0) -> 1 | F6: =IF(' 5'!$D6>0,1,0) -> 1 | G6: =IF(' 6'!$D6>0,1,0) -> 1 | H6: 6 | I6: =IF('7'!$D6>0,1,0) -> 1 | J6: =IF('8'!$D6>0,1,0) -> 1 | K6: =IF('9'!$D6>0,1,0) -> 1 | L6: =IF(' 10'!$D6>0,1,0) -> 1 | M6: =IF('11'!$D6>0,1,0) -> 1 | N6: =IF('12'!$D6>0,1,0) -> 0 | O6: 5 | P6: 11 | S6: 3. Kreisklasse
A7: ='Wettkampf 1'!B7 -> Werlte III | B7: =IF('Wettkampf 1'!D7>0,1,0) -> 1 | C7: =IF('2'!$D7>0,1,0) -> 1 | D7: =IF('3'!$D7>0,1,0) -> 1 | E7: =IF('4'!$D7>0,1,0) -> 1 | F7: =IF(' 5'!$D7>0,1,0) -> 1 | G7: =IF(' 6'!$D7>0,1,0) -> 1 | H7: 6 | I7: =IF('7'!$D7>0,1,0) -> 1 | J7: =IF('8'!$D7>0,1,0) -> 1 | K7: =IF('9'!$D7>0,1,0) -> 1 | L7: =IF(' 10'!$D7>0,1,0) -> 1 | M7: =IF('11'!$D7>0,1,0) -> 1 | N7: =IF('12'!$D7>0,1,0) -> 0 | O7: 5 | P7: 11 | S7: 4. Kreisklasse
S8: 5. Kreisklasse
A9: Hans Gebken 3 | B9: =IF('Wettkampf 1'!D10>0,1,0) -> 1 | C9: =IF('2'!$D10>0,1,0) -> 1 | D9: =IF('3'!$D10>0,1,0) -> 1 | E9: =IF('4'!$D10>0,1,0) -> 1 | F9: =IF(' 5'!$D10>0,1,0) -> 1 | G9: =IF(' 6'!$D10>0,1,0) -> 1 | H9: =B9+C9+D9+E9+F9+G9 -> 6 | I9: =IF('7'!$D10>0,1,0) -> 1 | J9: =IF('8'!$D10>0,1,0) -> 1 | K9: =IF('9'!$D10>0,1,0) -> 1 | L9: =IF(' 10'!$D10>0,1,0) -> 1 | M9: =IF('11'!$D10>0,1,0) -> 1 | N9: =IF('12'!$D10>0,1,0) -> 0 | O9: =I9+J9+K9+L9+M9+N9 -> 5 | P9: =O9+H9 -> 11 | S9: 6. Kreisklasse
A10: Gerd Vogel | B10: =IF('Wettkampf 1'!D11>0,1,0) -> 1 | C10: =IF('2'!$D11>0,1,0) -> 1 | D10: =IF('3'!$D11>0,1,0) -> 1 | E10: =IF('4'!$D11>0,1,0) -> 1 | F10: =IF(' 5'!$D11>0,1,0) -> 1 | G10: =IF(' 6'!$D11>0,1,0) -> 1 | H10: =B10+C10+D10+E10+F10+G10 -> 6 | I10: =IF('7'!$D11>0,1,0) -> 1 | J10: =IF('8'!$D11>0,1,0) -> 1 | K10: =IF('9'!$D11>0,1,0) -> 1 | L10: =IF(' 10'!$D11>0,1,0) -> 1 | M10: =IF('11'!$D11>0,1,0) -> 1 | N10: =IF('12'!$D11>0,1,0) -> 0 | O10: =I10+J10+K10+L10+M10+N10 -> 5 | P10: =O10+H10 -> 11 | S10: 7. Kreisklasse
A11: Heinz Engbers | B11: =IF('Wettkampf 1'!D12>0,1,0) -> 1 | C11: =IF('2'!$D12>0,1,0) -> 1 | D11: =IF('3'!$D12>0,1,0) -> 1 | E11: =IF('4'!$D12>0,1,0) -> 1 | F11: =IF(' 5'!$D12>0,1,0) -> 1 | G11: =IF(' 6'!$D12>0,1,0) -> 1 | H11: 6 | I11: =IF('7'!$D12>0,1,0) -> 1 | J11: =IF('8'!$D12>0,1,0) -> 1 | K11: =IF('9'!$D12>0,1,0) -> 1 | L11: =IF(' 10'!$D12>0,1,0) -> 1 | M11: =IF('11'!$D12>0,1,0) -> 1 | N11: =IF('12'!$D12>0,1,0) -> 0 | O11: 5 | P11: 11
A12: Willi Engbers | B12: =IF('Wettkampf 1'!D13>0,1,0) -> 1 | C12: =IF('2'!$D13>0,1,0) -> 1 | D12: =IF('3'!$D13>0,1,0) -> 1 | E12: =IF('4'!$D13>0,1,0) -> 1 | F12: =IF(' 5'!$D13>0,1,0) -> 1 | G12: =IF(' 6'!$D13>0,1,0) -> 1 | H12: 6 | I12: =IF('7'!$D13>0,1,0) -> 1 | J12: =IF('8'!$D13>0,1,0) -> 1 | K12: =IF('9'!$D13>0,1,0) -> 1 | L12: =IF(' 10'!$D13>0,1,0) -> 1 | M12: =IF('11'!$D13>0,1,0) -> 1 | N12: =IF('12'!$D13>0,1,0) -> 0 | O12: 5 | P12: 11
A13: Hans Gebken 1 | B13: =IF('Wettkampf 1'!D14>0,1,0) -> 1 | C13: =IF('2'!$D14>0,1,0) -> 1 | D13: =IF('3'!$D14>0,1,0) -> 1 | E13: =IF('4'!$D14>0,1,0) -> 1 | F13: =IF(' 5'!$D14>0,1,0) -> 1 | G13: =IF(' 6'!$D14>0,1,0) -> 1 | H13: 6 | I13: =IF('7'!$D14>0,1,0) -> 1 | J13: =IF('8'!$D14>0,1,0) -> 1 | K13: =IF('9'!$D14>0,1,0) -> 1 | L13: =IF(' 10'!$D14>0,1,0) -> 1 | M13: =IF('11'!$D14>0,1,0) -> 1 | N13: =IF('12'!$D14>0,1,0) -> 0 | O13: 5 | P13: 11
A14: Philipp Schmidt | B14: =IF('Wettkampf 1'!D15>0,1,0) -> 1 | C14: =IF('2'!$D15>0,1,0) -> 1 | D14: =IF('3'!$D15>0,1,0) -> 1 | E14: =IF('4'!$D15>0,1,0) -> 1 | F14: =IF(' 5'!$D15>0,1,0) -> 1 | G14: =IF(' 6'!$D15>0,1,0) -> 1 | H14: 6 | I14: =IF('7'!$D15>0,1,0) -> 1 | J14: =IF('8'!$D15>0,1,0) -> 1 | K14: =IF('9'!$D15>0,1,0) -> 1 | L14: =IF(' 10'!$D15>0,1,0) -> 1 | M14: =IF('11'!$D15>0,1,0) -> 1 | N14: =IF('12'!$D15>0,1,0) -> 0 | O14: 5 | P14: 11
A15: Philipp Scholübbers | B15: =IF('Wettkampf 1'!D16>0,1,0) -> 1 | C15: =IF('2'!$D16>0,1,0) -> 1 | D15: =IF('3'!$D16>0,1,0) -> 1 | E15: =IF('4'!$D16>0,1,0) -> 1 | F15: =IF(' 5'!$D16>0,1,0) -> 1 | G15: =IF(' 6'!$D16>0,1,0) -> 1 | H15: 6 | I15: =IF('7'!$D16>0,1,0) -> 1 | J15: =IF('8'!$D16>0,1,0) -> 1 | K15: =IF('9'!$D16>0,1,0) -> 1 | L15: =IF(' 10'!$D16>0,1,0) -> 1 | M15: =IF('11'!$D16>0,1,0) -> 1 | N15: =IF('12'!$D16>0,1,0) -> 0 | O15: 5 | P15: 11
A16: Matthias Brinkmann | B16: =IF('Wettkampf 1'!D17>0,1,0) -> 1 | C16: =IF('2'!$D17>0,1,0) -> 1 | D16: =IF('3'!$D17>0,1,0) -> 1 | E16: =IF('4'!$D17>0,1,0) -> 1 | F16: =IF(' 5'!$D17>0,1,0) -> 0 | G16: =IF(' 6'!$D17>0,1,0) -> 1 | H16: 5 | I16: =IF('7'!$D17>0,1,0) -> 1 | J16: =IF('8'!$D17>0,1,0) -> 1 | K16: =IF('9'!$D17>0,1,0) -> 1 | L16: =IF(' 10'!$D17>0,1,0) -> 1 | M16: =IF('11'!$D17>0,1,0) -> 1 | N16: =IF('12'!$D17>0,1,0) -> 0 | O16: 5 | P16: 10
A17: Patrik Krüßel | B17: =IF('Wettkampf 1'!D18>0,1,0) -> 1 | C17: =IF('2'!$D18>0,1,0) -> 1 | D17: =IF('3'!$D18>0,1,0) -> 1 | E17: =IF('4'!$D18>0,1,0) -> 1 | F17: =IF(' 5'!$D18>0,1,0) -> 1 | G17: =IF(' 6'!$D18>0,1,0) -> 1 | H17: 6 | I17: =IF('7'!$D18>0,1,0) -> 1 | J17: =IF('8'!$D18>0,1,0) -> 1 | K17: =IF('9'!$D18>0,1,0) -> 1 | L17: =IF(' 10'!$D18>0,1,0) -> 1 | M17: =IF('11'!$D18>0,1,0) -> 1 | N17: =IF('12'!$D18>0,1,0) -> 0 | O17: 5 | P17: 11
A18: Markus Jansen | B18: =IF('Wettkampf 1'!D19>0,1,0) -> 1 | C18: =IF('2'!$D19>0,1,0) -> 1 | D18: =IF('3'!$D19>0,1,0) -> 1 | E18: =IF('4'!$D19>0,1,0) -> 1 | F18: =IF(' 5'!$D19>0,1,0) -> 1 | G18: =IF(' 6'!$D19>0,1,0) -> 1 | H18: 6 | I18: =IF('7'!$D19>0,1,0) -> 1 | J18: =IF('8'!$D19>0,1,0) -> 1 | K18: =IF('9'!$D19>0,1,0) -> 1 | L18: =IF(' 10'!$D19>0,1,0) -> 1 | M18: =IF('11'!$D19>0,1,0) -> 1 | N18: =IF('12'!$D19>0,1,0) -> 0 | O18: 5 | P18: 11
A19: Helmut Benten | B19: =IF('Wettkampf 1'!D20>0,1,0) -> 1 | C19: =IF('2'!$D20>0,1,0) -> 1 | D19: =IF('3'!$D20>0,1,0) -> 1 | E19: =IF('4'!$D20>0,1,0) -> 1 | F19: =IF(' 5'!$D20>0,1,0) -> 1 | G19: =IF(' 6'!$D20>0,1,0) -> 1 | H19: 6 | I19: =IF('7'!$D20>0,1,0) -> 1 | J19: =IF('8'!$D20>0,1,0) -> 1 | K19: =IF('9'!$D20>0,1,0) -> 1 | L19: =IF(' 10'!$D20>0,1,0) -> 1 | M19: =IF('11'!$D20>0,1,0) -> 1 | N19: =IF('12'!$D20>0,1,0) -> 0 | O19: 5 | P19: 11
A20: Heinz Dirksen | B20: =IF('Wettkampf 1'!D21>0,1,0) -> 1 | C20: =IF('2'!$D21>0,1,0) -> 1 | D20: =IF('3'!$D21>0,1,0) -> 1 | E20: =IF('4'!$D21>0,1,0) -> 1 | F20: =IF(' 5'!$D21>0,1,0) -> 1 | G20: =IF(' 6'!$D21>0,1,0) -> 1 | H20: 6 | I20: =IF('7'!$D21>0,1,0) -> 1 | J20: =IF('8'!$D21>0,1,0) -> 1 | K20: =IF('9'!$D21>0,1,0) -> 1 | L20: =IF(' 10'!$D21>0,1,0) -> 1 | M20: =IF('11'!$D21>0,1,0) -> 1 | N20: =IF('12'!$D21>0,1,0) -> 0 | O20: 5 | P20: 11
A21: Hans Ortmann | B21: =IF('Wettkampf 1'!D22>0,1,0) -> 1 | C21: =IF('2'!$D22>0,1,0) -> 1 | D21: =IF('3'!$D22>0,1,0) -> 1 | E21: =IF('4'!$D22>0,1,0) -> 1 | F21: =IF(' 5'!$D22>0,1,0) -> 1 | G21: =IF(' 6'!$D22>0,1,0) -> 1 | H21: 6 | I21: =IF('7'!$D22>0,1,0) -> 1 | J21: =IF('8'!$D22>0,1,0) -> 1 | K21: =IF('9'!$D22>0,1,0) -> 1 | L21: =IF(' 10'!$D22>0,1,0) -> 1 | M21: =IF('11'!$D22>0,1,0) -> 1 | N21: =IF('12'!$D22>0,1,0) -> 0 | O21: 5 | P21: 11
A22: Karl-Heinz Ortmann | B22: =IF('Wettkampf 1'!D23>0,1,0) -> 1 | C22: =IF('2'!$D23>0,1,0) -> 1 | D22: =IF('3'!$D23>0,1,0) -> 1 | E22: =IF('4'!$D23>0,1,0) -> 1 | F22: =IF(' 5'!$D23>0,1,0) -> 1 | G22: =IF(' 6'!$D23>0,1,0) -> 1 | H22: 6 | I22: =IF('7'!$D23>0,1,0) -> 1 | J22: =IF('8'!$D23>0,1,0) -> 1 | K22: =IF('9'!$D23>0,1,0) -> 1 | L22: =IF(' 10'!$D23>0,1,0) -> 1 | M22: =IF('11'!$D23>0,1,0) -> 1 | N22: =IF('12'!$D23>0,1,0) -> 0 | O22: 5 | P22: 11
A23: Johannes Jansen | B23: =IF('Wettkampf 1'!D24>0,1,0) -> 1 | C23: =IF('2'!$D24>0,1,0) -> 1 | D23: =IF('3'!$D24>0,1,0) -> 1 | E23: =IF('4'!$D24>0,1,0) -> 1 | F23: =IF(' 5'!$D24>0,1,0) -> 1 | G23: =IF(' 6'!$D24>0,1,0) -> 1 | H23: 6 | I23: =IF('7'!$D24>0,1,0) -> 1 | J23: =IF('8'!$D24>0,1,0) -> 1 | K23: =IF('9'!$D24>0,1,0) -> 1 | L23: =IF(' 10'!$D24>0,1,0) -> 1 | M23: =IF('11'!$D24>0,1,0) -> 1 | N23: =IF('12'!$D24>0,1,0) -> 0 | O23: 5 | P23: 11
A24: Kevin Minnert | B24: =IF('Wettkampf 1'!D25>0,1,0) -> 1 | C24: =IF('2'!$D25>0,1,0) -> 1 | D24: =IF('3'!$D25>0,1,0) -> 1 | E24: =IF('4'!$D25>0,1,0) -> 1 | F24: =IF(' 5'!$D25>0,1,0) -> 1 | G24: =IF(' 6'!$D25>0,1,0) -> 1 | H24: 6 | I24: =IF('7'!$D25>0,1,0) -> 1 | J24: =IF('8'!$D25>0,1,0) -> 1 | K24: =IF('9'!$D25>0,1,0) -> 0 | L24: =IF(' 10'!$D25>0,1,0) -> 0 | M24: =IF('11'!$D25>0,1,0) -> 0 | N24: =IF('12'!$D25>0,1,0) -> 0 | O24: 2 | P24: 8
A25: Daniel Schülke | B25: =IF('Wettkampf 1'!D26>0,1,0) -> 0 | C25: =IF('2'!$D26>0,1,0) -> 0 | D25: =IF('3'!$D26>0,1,0) -> 1 | E25: =IF('4'!$D26>0,1,0) -> 1 | F25: =IF(' 5'!$D26>0,1,0) -> 1 | G25: =IF(' 6'!$D26>0,1,0) -> 0 | H25: 3 | I25: =IF('7'!$D26>0,1,0) -> 1 | J25: =IF('8'!$D26>0,1,0) -> 0 | K25: =IF('9'!$D26>0,1,0) -> 1 | L25: =IF(' 10'!$D26>0,1,0) -> 1 | M25: =IF('11'!$D26>0,1,0) -> 1 | N25: =IF('12'!$D26>0,1,0) -> 0 | O25: 4 | P25: 7
A26: Frank Wotte | B26: =IF('Wettkampf 1'!D27>0,1,0) -> 1 | C26: =IF('2'!$D27>0,1,0) -> 1 | D26: =IF('3'!$D27>0,1,0) -> 1 | E26: =IF('4'!$D27>0,1,0) -> 1 | F26: =IF(' 5'!$D27>0,1,0) -> 1 | G26: =IF(' 6'!$D27>0,1,0) -> 1 | H26: 6 | I26: =IF('7'!$D27>0,1,0) -> 1 | J26: =IF('8'!$D27>0,1,0) -> 1 | K26: =IF('9'!$D27>0,1,0) -> 1 | L26: =IF(' 10'!$D27>0,1,0) -> 1 | M26: =IF('11'!$D27>0,1,0) -> 1 | N26: =IF('12'!$D27>0,1,0) -> 0 | O26: 5 | P26: 11
A27: Johannes Wesseln | B27: =IF('Wettkampf 1'!D28>0,1,0) -> 1 | C27: =IF('2'!$D28>0,1,0) -> 1 | D27: =IF('3'!$D28>0,1,0) -> 1 | E27: =IF('4'!$D28>0,1,0) -> 1 | F27: =IF(' 5'!$D28>0,1,0) -> 1 | G27: =IF(' 6'!$D28>0,1,0) -> 1 | H27: 6 | I27: =IF('7'!$D28>0,1,0) -> 1 | J27: =IF('8'!$D28>0,1,0) -> 1 | K27: =IF('9'!$D28>0,1,0) -> 1 | L27: =IF(' 10'!$D28>0,1,0) -> 1 | M27: =IF('11'!$D28>0,1,0) -> 1 | N27: =IF('12'!$D28>0,1,0) -> 0 | O27: 5 | P27: 11
A28: Anton Oldiges | B28: =IF('Wettkampf 1'!D29>0,1,0) -> 1 | C28: =IF('2'!$D29>0,1,0) -> 1 | D28: =IF('3'!$D29>0,1,0) -> 1 | E28: =IF('4'!$D29>0,1,0) -> 1 | F28: =IF(' 5'!$D29>0,1,0) -> 1 | G28: =IF(' 6'!$D29>0,1,0) -> 1 | H28: 6 | I28: =IF('7'!$D29>0,1,0) -> 1 | J28: =IF('8'!$D29>0,1,0) -> 1 | K28: =IF('9'!$D29>0,1,0) -> 1 | L28: =IF(' 10'!$D29>0,1,0) -> 1 | M28: =IF('11'!$D29>0,1,0) -> 1 | N28: =IF('12'!$D29>0,1,0) -> 0 | O28: 5 | P28: 11
A29: Jürgen Will | B29: =IF('Wettkampf 1'!D30>0,1,0) -> 1 | C29: =IF('2'!$D30>0,1,0) -> 1 | D29: =IF('3'!$D30>0,1,0) -> 1 | E29: =IF('4'!$D30>0,1,0) -> 1 | F29: =IF(' 5'!$D30>0,1,0) -> 1 | G29: =IF(' 6'!$D30>0,1,0) -> 1 | H29: 6 | I29: =IF('7'!$D30>0,1,0) -> 1 | J29: =IF('8'!$D30>0,1,0) -> 1 | K29: =IF('9'!$D30>0,1,0) -> 1 | L29: =IF(' 10'!$D30>0,1,0) -> 1 | M29: =IF('11'!$D30>0,1,0) -> 1 | N29: =IF('12'!$D30>0,1,0) -> 0 | O29: 5 | P29: 11
A30: Schütze 22 | B30: =IF('Wettkampf 1'!D31>0,1,0) -> 0 | C30: =IF('2'!$D31>0,1,0) -> 0 | D30: =IF('3'!$D31>0,1,0) -> 0 | E30: =IF('4'!$D31>0,1,0) -> 0 | F30: =IF(' 5'!$D31>0,1,0) -> 0 | G30: =IF(' 6'!$D31>0,1,0) -> 0 | H30: 0 | I30: =IF('7'!$D31>0,1,0) -> 0 | J30: =IF('8'!$D31>0,1,0) -> 0 | K30: =IF('9'!$D31>0,1,0) -> 0 | L30: =IF(' 10'!$D31>0,1,0) -> 0 | M30: =IF('11'!$D31>0,1,0) -> 0 | N30: =IF('12'!$D31>0,1,0) -> 0 | O30: 0 | P30: 0
A31: Schütze 23 | B31: =IF('Wettkampf 1'!D32>0,1,0) -> 0 | C31: =IF('2'!$D32>0,1,0) -> 0 | D31: =IF('3'!$D32>0,1,0) -> 0 | E31: =IF('4'!$D32>0,1,0) -> 0 | F31: =IF(' 5'!$D32>0,1,0) -> 0 | G31: =IF(' 6'!$D32>0,1,0) -> 0 | H31: 0 | I31: =IF('7'!$D32>0,1,0) -> 0 | J31: =IF('8'!$D32>0,1,0) -> 0 | K31: =IF('9'!$D32>0,1,0) -> 0 | L31: =IF(' 10'!$D32>0,1,0) -> 0 | M31: =IF('11'!$D32>0,1,0) -> 0 | N31: =IF('12'!$D32>0,1,0) -> 0 | O31: 0 | P31: 0
A32: Norbert Jansen | B32: =IF('Wettkampf 1'!D33>0,1,0) -> 1 | C32: =IF('2'!$D33>0,1,0) -> 1 | D32: =IF('3'!$D33>0,1,0) -> 1 | E32: =IF('4'!$D33>0,1,0) -> 1 | F32: =IF(' 5'!$D33>0,1,0) -> 1 | G32: =IF(' 6'!$D33>0,1,0) -> 1 | H32: 6 | I32: =IF('7'!$D33>0,1,0) -> 1 | J32: =IF('8'!$D33>0,1,0) -> 1 | K32: =IF('9'!$D33>0,1,0) -> 1 | L32: =IF(' 10'!$D33>0,1,0) -> 1 | M32: =IF('11'!$D33>0,1,0) -> 1 | N32: =IF('12'!$D33>0,1,0) -> 0 | O32: 5 | P32: 11
A33: Werner Jansen | B33: =IF('Wettkampf 1'!D34>0,1,0) -> 1 | C33: =IF('2'!$D34>0,1,0) -> 1 | D33: =IF('3'!$D34>0,1,0) -> 1 | E33: =IF('4'!$D34>0,1,0) -> 1 | F33: =IF(' 5'!$D34>0,1,0) -> 1 | G33: =IF(' 6'!$D34>0,1,0) -> 1 | H33: 6 | I33: =IF('7'!$D34>0,1,0) -> 1 | J33: =IF('8'!$D34>0,1,0) -> 1 | K33: =IF('9'!$D34>0,1,0) -> 1 | L33: =IF(' 10'!$D34>0,1,0) -> 1 | M33: =IF('11'!$D34>0,1,0) -> 1 | N33: =IF('12'!$D34>0,1,0) -> 0 | O33: 5 | P33: 11
A34: Alfons Plüster | B34: =IF('Wettkampf 1'!D35>0,1,0) -> 1 | C34: =IF('2'!$D35>0,1,0) -> 1 | D34: =IF('3'!$D35>0,1,0) -> 1 | E34: =IF('4'!$D35>0,1,0) -> 1 | F34: =IF(' 5'!$D35>0,1,0) -> 1 | G34: =IF(' 6'!$D35>0,1,0) -> 1 | H34: 6 | I34: =IF('7'!$D35>0,1,0) -> 1 | J34: =IF('8'!$D35>0,1,0) -> 1 | K34: =IF('9'!$D35>0,1,0) -> 1 | L34: =IF(' 10'!$D35>0,1,0) -> 1 | M34: =IF('11'!$D35>0,1,0) -> 1 | N34: =IF('12'!$D35>0,1,0) -> 0 | O34: 5 | P34: 11
A35: Johannes Oldiges | B35: =IF('Wettkampf 1'!D36>0,1,0) -> 1 | C35: =IF('2'!$D36>0,1,0) -> 1 | D35: =IF('3'!$D36>0,1,0) -> 1 | E35: =IF('4'!$D36>0,1,0) -> 1 | F35: =IF(' 5'!$D36>0,1,0) -> 1 | G35: =IF(' 6'!$D36>0,1,0) -> 1 | H35: 6 | I35: =IF('7'!$D36>0,1,0) -> 1 | J35: =IF('8'!$D36>0,1,0) -> 1 | K35: =IF('9'!$D36>0,1,0) -> 1 | L35: =IF(' 10'!$D36>0,1,0) -> 1 | M35: =IF('11'!$D36>0,1,0) -> 1 | N35: =IF('12'!$D36>0,1,0) -> 0 | O35: 5 | P35: 11
A36: Hans Plüster | B36: =IF('Wettkampf 1'!D37>0,1,0) -> 1 | C36: =IF('2'!$D37>0,1,0) -> 1 | D36: =IF('3'!$D37>0,1,0) -> 1 | E36: =IF('4'!$D37>0,1,0) -> 1 | F36: =IF(' 5'!$D37>0,1,0) -> 1 | G36: =IF(' 6'!$D37>0,1,0) -> 1 | H36: 6 | I36: =IF('7'!$D37>0,1,0) -> 1 | J36: =IF('8'!$D37>0,1,0) -> 1 | K36: =IF('9'!$D37>0,1,0) -> 1 | L36: =IF(' 10'!$D37>0,1,0) -> 1 | M36: =IF('11'!$D37>0,1,0) -> 1 | N36: =IF('12'!$D37>0,1,0) -> 0 | O36: 5 | P36: 11
A37: Josef Wübben | B37: =IF('Wettkampf 1'!D38>0,1,0) -> 1 | C37: =IF('2'!$D38>0,1,0) -> 1 | D37: =IF('3'!$D38>0,1,0) -> 1 | E37: =IF('4'!$D38>0,1,0) -> 1 | F37: =IF(' 5'!$D38>0,1,0) -> 1 | G37: =IF(' 6'!$D38>0,1,0) -> 1 | H37: 6 | I37: =IF('7'!$D38>0,1,0) -> 1 | J37: =IF('8'!$D38>0,1,0) -> 1 | K37: =IF('9'!$D38>0,1,0) -> 1 | L37: =IF(' 10'!$D38>0,1,0) -> 1 | M37: =IF('11'!$D38>0,1,0) -> 1 | N37: =IF('12'!$D38>0,1,0) -> 0 | O37: 5 | P37: 11
A38: Thomas Niermann | B38: =IF('Wettkampf 1'!D39>0,1,0) -> 1 | C38: =IF('2'!$D39>0,1,0) -> 1 | D38: =IF('3'!$D39>0,1,0) -> 1 | E38: =IF('4'!$D39>0,1,0) -> 1 | F38: =IF(' 5'!$D39>0,1,0) -> 1 | G38: =IF(' 6'!$D39>0,1,0) -> 1 | H38: 6 | I38: =IF('7'!$D39>0,1,0) -> 1 | J38: =IF('8'!$D39>0,1,0) -> 1 | K38: =IF('9'!$D39>0,1,0) -> 1 | L38: =IF(' 10'!$D39>0,1,0) -> 1 | M38: =IF('11'!$D39>0,1,0) -> 1 | N38: =IF('12'!$D39>0,1,0) -> 0 | O38: 5 | P38: 11
A39: Bernd Thien | B39: =IF('Wettkampf 1'!D40>0,1,0) -> 1 | C39: =IF('2'!$D40>0,1,0) -> 1 | D39: =IF('3'!$D40>0,1,0) -> 1 | E39: =IF('4'!$D40>0,1,0) -> 1 | F39: =IF(' 5'!$D40>0,1,0) -> 1 | G39: =IF(' 6'!$D40>0,1,0) -> 1 | H39: =B39+C39+D39+E39+F39+G39 -> 6 | I39: =IF('7'!$D40>0,1,0) -> 1 | J39: =IF('8'!$D40>0,1,0) -> 1 | K39: =IF('9'!$D40>0,1,0) -> 1 | L39: =IF(' 10'!$D40>0,1,0) -> 1 | M39: =IF('11'!$D40>0,1,0) -> 1 | N39: =IF('12'!$D40>0,1,0) -> 0 | O39: =I39+J39+K39+L39+M39+N39 -> 5 | P39: =O39+H39 -> 11
A40: Norbert Grünloh | B40: =IF('Wettkampf 1'!D41>0,1,0) -> 1 | C40: =IF('2'!$D41>0,1,0) -> 1 | D40: =IF('3'!$D41>0,1,0) -> 1 | E40: =IF('4'!$D41>0,1,0) -> 1 | F40: =IF(' 5'!$D41>0,1,0) -> 1 | G40: =IF(' 6'!$D41>0,1,0) -> 1 | H40: 6 | I40: =IF('7'!$D41>0,1,0) -> 1 | J40: =IF('8'!$D41>0,1,0) -> 1 | K40: =IF('9'!$D41>0,1,0) -> 1 | L40: =IF(' 10'!$D41>0,1,0) -> 1 | M40: =IF('11'!$D41>0,1,0) -> 1 | N40: =IF('12'!$D41>0,1,0) -> 0 | O40: 5 | P40: 11
A41: Andreas Thoben | B41: =IF('Wettkampf 1'!D42>0,1,0) -> 1 | C41: =IF('2'!$D42>0,1,0) -> 1 | D41: =IF('3'!$D42>0,1,0) -> 1 | E41: =IF('4'!$D42>0,1,0) -> 1 | F41: =IF(' 5'!$D42>0,1,0) -> 1 | G41: =IF(' 6'!$D42>0,1,0) -> 1 | H41: 6 | I41: =IF('7'!$D42>0,1,0) -> 1 | J41: =IF('8'!$D42>0,1,0) -> 1 | K41: =IF('9'!$D42>0,1,0) -> 1 | L41: =IF(' 10'!$D42>0,1,0) -> 1 | M41: =IF('11'!$D42>0,1,0) -> 1 | N41: =IF('12'!$D42>0,1,0) -> 0 | O41: 5 | P41: 11
A42: Hermann Krone | B42: =IF('Wettkampf 1'!D43>0,1,0) -> 1 | C42: =IF('2'!$D43>0,1,0) -> 1 | D42: =IF('3'!$D43>0,1,0) -> 1 | E42: =IF('4'!$D43>0,1,0) -> 1 | F42: =IF(' 5'!$D43>0,1,0) -> 1 | G42: =IF(' 6'!$D43>0,1,0) -> 1 | H42: 6 | I42: =IF('7'!$D43>0,1,0) -> 1 | J42: =IF('8'!$D43>0,1,0) -> 1 | K42: =IF('9'!$D43>0,1,0) -> 1 | L42: =IF(' 10'!$D43>0,1,0) -> 1 | M42: =IF('11'!$D43>0,1,0) -> 1 | N42: =IF('12'!$D43>0,1,0) -> 0 | O42: 5 | P42: 11
A43: Michael Freitag | B43: =IF('Wettkampf 1'!D44>0,1,0) -> 1 | C43: =IF('2'!$D44>0,1,0) -> 1 | D43: =IF('3'!$D44>0,1,0) -> 1 | E43: =IF('4'!$D44>0,1,0) -> 1 | F43: =IF(' 5'!$D44>0,1,0) -> 1 | G43: =IF(' 6'!$D44>0,1,0) -> 1 | H43: 6 | I43: =IF('7'!$D44>0,1,0) -> 1 | J43: =IF('8'!$D44>0,1,0) -> 1 | K43: =IF('9'!$D44>0,1,0) -> 1 | L43: =IF(' 10'!$D44>0,1,0) -> 0 | M43: =IF('11'!$D44>0,1,0) -> 1 | N43: =IF('12'!$D44>0,1,0) -> 0 | O43: 4 | P43: 10
A44: Joachim Niermann | B44: =IF('Wettkampf 1'!D45>0,1,0) -> 1 | C44: =IF('2'!$D45>0,1,0) -> 1 | D44: =IF('3'!$D45>0,1,0) -> 1 | E44: =IF('4'!$D45>0,1,0) -> 1 | F44: =IF(' 5'!$D45>0,1,0) -> 1 | G44: =IF(' 6'!$D45>0,1,0) -> 1 | H44: 6 | I44: =IF('7'!$D45>0,1,0) -> 1 | J44: =IF('8'!$D45>0,1,0) -> 1 | K44: =IF('9'!$D45>0,1,0) -> 1 | L44: =IF(' 10'!$D45>0,1,0) -> 1 | M44: =IF('11'!$D45>0,1,0) -> 1 | N44: =IF('12'!$D45>0,1,0) -> 0 | O44: 5 | P44: 11
B45: =SUM(B9:B44) -> 33.00 | C45: =SUM(C9:C44) -> 33.00 | D45: 34.00 | E45: 34.00 | F45: 33.00 | G45: 33.00 | H45: =SUM(H9:H38) -> 164.00 | I45: =SUM(I9:I44) -> 34.00 | J45: =SUM(J9:J44) -> 33.00 | K45: 33.00 | L45: 32.00 | M45: 33.00 | N45: 0.00 | O45: =SUM(O9:O44) -> 165.00 | P45: =SUM(P9:P44) -> 365.00

Sheet Übersicht Gruppen (hidden)
B2: Ostenwalde II | C2: =VLOOKUP($B$2:$B$7,'Wettkampf 1'!$B$2:$D$7,3,FALSE) -> 937.2 | D2: =VLOOKUP($B$2:$B$7,'2'!$B$2:$D$7,3,FALSE) -> 942.8 | E2: =VLOOKUP($B$2:$B$7,'3'!$B$2:$D$7,3,FALSE) -> 945.1 | F2: =VLOOKUP($B$2:$B$7,'4'!$B$2:$D$7,3,FALSE) -> 933.7 | G2: =VLOOKUP($B$2:$B$7,' 5'!$B$2:$D$7,3,FALSE) -> 946.5 | H2: =VLOOKUP($B$2:$B$7,' 6'!$B$2:$D$7,3,FALSE) -> 941.0 | I2: =J2/Formelhilfe!H7 -> 941.1 | J2: =SUM(C2:H2) -> 5,646.3 | K2: =VLOOKUP($B$2:$B$7,'7'!$B$2:$D$7,3,FALSE) -> 938.8 | L2: =VLOOKUP($B$2:$B$7,'8'!$B$2:$D$7,3,FALSE) -> 938.7 | M2: =VLOOKUP($B$2:$B$7,'9'!$B$2:$D$7,3,FALSE) -> 943.5 | N2: =VLOOKUP($B$2:$B$7,' 10'!$B$2:$D$7,3,FALSE) -> 934.3 | O2: =VLOOKUP($B$2:$B$7,'11'!$B$2:$D$7,3,FALSE) -> 940.4 | P2: =VLOOKUP($B$2:$B$7,'12'!$B$2:$D$7,3,FALSE) -> 0.0 | Q2: =R2/Formelhilfe!O7 -> 939.1 | R2: =SUM(K2:P2) -> 4,695.7 | S2: =T2/Formelhilfe!P7 -> 940.2 | T2: =SUM(C2:H2,K2:P2) -> 10,342.0
B3: Werlte III | C3: =VLOOKUP($B$2:$B$7,'Wettkampf 1'!$B$2:$D$7,3,FALSE) -> 938.3 | D3: =VLOOKUP($B$2:$B$7,'2'!$B$2:$D$7,3,FALSE) -> 938.1 | E3: =VLOOKUP($B$2:$B$7,'3'!$B$2:$D$7,3,FALSE) -> 943.1 | F3: =VLOOKUP($B$2:$B$7,'4'!$B$2:$D$7,3,FALSE) -> 938.8 | G3: =VLOOKUP($B$2:$B$7,' 5'!$B$2:$D$7,3,FALSE) -> 938.9 | H3: =VLOOKUP($B$2:$B$7,' 6'!$B$2:$D$7,3,FALSE) -> 935.6 | I3: =J3/Formelhilfe!H3 -> 938.8 | J3: 5,632.8 | K3: =VLOOKUP($B$2:$B$7,'7'!$B$2:$D$7,3,FALSE) -> 937.2 | L3: =VLOOKUP($B$2:$B$7,'8'!$B$2:$D$7,3,FALSE) -> 942.1 | M3: =VLOOKUP($B$2:$B$7,'9'!$B$2:$D$7,3,FALSE) -> 940.5 | N3: =VLOOKUP($B$2:$B$7,' 10'!$B$2:$D$7,3,FALSE) -> 932.3 | O3: =VLOOKUP($B$2:$B$7,'11'!$B$2:$D$7,3,FALSE) -> 936.3 | P3: =VLOOKUP($B$2:$B$7,'12'!$B$2:$D$7,3,FALSE) -> 0.0 | Q3: =R3/Formelhilfe!O3 -> 937.7 | R3: 4,688.4 | S3: =T3/Formelhilfe!P3 -> 938.3 | T3: 10,321.2
B4: Lorup III | C4: =VLOOKUP($B$2:$B$7,'Wettkampf 1'!$B$2:$D$7,3,FALSE) -> 936.1 | D4: =VLOOKUP($B$2:$B$7,'2'!$B$2:$D$7,3,FALSE) -> 933.3 | E4: =VLOOKUP($B$2:$B$7,'3'!$B$2:$D$7,3,FALSE) -> 938.5 | F4: =VLOOKUP($B$2:$B$7,'4'!$B$2:$D$7,3,FALSE) -> 937.2 | G4: =VLOOKUP($B$2:$B$7,' 5'!$B$2:$D$7,3,FALSE) -> 931.3 | H4: =VLOOKUP($B$2:$B$7,' 6'!$B$2:$D$7,3,FALSE) -> 932.1 | I4: =J4/Formelhilfe!H5 -> 934.8 | J4: 5,608.5 | K4: =VLOOKUP($B$2:$B$7,'7'!$B$2:$D$7,3,FALSE) -> 937.0 | L4: =VLOOKUP($B$2:$B$7,'8'!$B$2:$D$7,3,FALSE) -> 932.8 | M4: =VLOOKUP($B$2:$B$7,'9'!$B$2:$D$7,3,FALSE) -> 933.9 | N4: =VLOOKUP($B$2:$B$7,' 10'!$B$2:$D$7,3,FALSE) -> 936.7 | O4: =VLOOKUP($B$2:$B$7,'11'!$B$2:$D$7,3,FALSE) -> 936.0 | P4: =VLOOKUP($B$2:$B$7,'12'!$B$2:$D$7,3,FALSE) -> 0.0 | Q4: =R4/Formelhilfe!O5 -> 935.3 | R4: 4,676.4 | S4: =T4/Formelhilfe!P5 -> 935.0 | T4: 10,284.9
B5: Breddenb.-Heid. III | C5: =VLOOKUP($B$2:$B$7,'Wettkampf 1'!$B$2:$D$7,3,FALSE) -> 924.6 | D5: =VLOOKUP($B$2:$B$7,'2'!$B$2:$D$7,3,FALSE) -> 933.5 | E5: =VLOOKUP($B$2:$B$7,'3'!$B$2:$D$7,3,FALSE) -> 935.2 | F5: =VLOOKUP($B$2:$B$7,'4'!$B$2:$D$7,3,FALSE) -> 930.0 | G5: =VLOOKUP($B$2:$B$7,' 5'!$B$2:$D$7,3,FALSE) -> 932.5 | H5: =VLOOKUP($B$2:$B$7,' 6'!$B$2:$D$7,3,FALSE) -> 927.6 | I5: =J5/Formelhilfe!H2 -> 930.6 | J5: 5,583.4 | K5: =VLOOKUP($B$2:$B$7,'7'!$B$2:$D$7,3,FALSE) -> 938.0 | L5: =VLOOKUP($B$2:$B$7,'8'!$B$2:$D$7,3,FALSE) -> 930.0 | M5: =VLOOKUP($B$2:$B$7,'9'!$B$2:$D$7,3,FALSE) -> 938.2 | N5: =VLOOKUP($B$2:$B$7,' 10'!$B$2:$D$7,3,FALSE) -> 924.9 | O5: =VLOOKUP($B$2:$B$7,'11'!$B$2:$D$7,3,FALSE) -> 934.4 | P5: =VLOOKUP($B$2:$B$7,'12'!$B$2:$D$7,3,FALSE) -> 0.0 | Q5: =R5/Formelhilfe!O2 -> 933.1 | R5: 4,665.5 | S5: =T5/Formelhilfe!P2 -> 931.7 | T5: 10,248.9
B6: Börgermoor II | C6: =VLOOKUP($B$2:$B$7,'Wettkampf 1'!$B$2:$D$7,3,FALSE) -> 931.7 | D6: =VLOOKUP($B$2:$B$7,'2'!$B$2:$D$7,3,FALSE) -> 926.2 | E6: =VLOOKUP($B$2:$B$7,'3'!$B$2:$D$7,3,FALSE) -> 936.0 | F6: =VLOOKUP($B$2:$B$7,'4'!$B$2:$D$7,3,FALSE) -> 929.4 | G6: =VLOOKUP($B$2:$B$7,' 5'!$B$2:$D$7,3,FALSE) -> 927.9 | H6: =VLOOKUP($B$2:$B$7,' 6'!$B$2:$D$7,3,FALSE) -> 929.0 | I6: =J6/Formelhilfe!H6 -> 930.0 | J6: 5,580.2 | K6: =VLOOKUP($B$2:$B$7,'7'!$B$2:$D$7,3,FALSE) -> 933.2 | L6: =VLOOKUP($B$2:$B$7,'8'!$B$2:$D$7,3,FALSE) -> 927.3 | M6: =VLOOKUP($B$2:$B$7,'9'!$B$2:$D$7,3,FALSE) -> 934.4 | N6: =VLOOKUP($B$2:$B$7,' 10'!$B$2:$D$7,3,FALSE) -> 932.2 | O6: =VLOOKUP($B$2:$B$7,'11'!$B$2:$D$7,3,FALSE) -> 932.3 | P6: =VLOOKUP($B$2:$B$7,'12'!$B$2:$D$7,3,FALSE) -> 0.0 | Q6: =R6/Formelhilfe!O6 -> 931.9 | R6: 4,659.4 | S6: =T6/Formelhilfe!P6 -> 930.9 | T6: 10,239.6
B7: Breddenb.-Heid. I | C7: =VLOOKUP($B$2:$B$7,'Wettkampf 1'!$B$2:$D$7,3,FALSE) -> 926.7 | D7: =VLOOKUP($B$2:$B$7,'2'!$B$2:$D$7,3,FALSE) -> 928.4 | E7: =VLOOKUP($B$2:$B$7,'3'!$B$2:$D$7,3,FALSE) -> 927.7 | F7: =VLOOKUP($B$2:$B$7,'4'!$B$2:$D$7,3,FALSE) -> 929.8 | G7: =VLOOKUP($B$2:$B$7,' 5'!$B$2:$D$7,3,FALSE) -> 924.8 | H7: =VLOOKUP($B$2:$B$7,' 6'!$B$2:$D$7,3,FALSE) -> 929.2 | I7: =J7/Formelhilfe!H4 -> 927.8 | J7: 5,566.6 | K7: =VLOOKUP($B$2:$B$7,'7'!$B$2:$D$7,3,FALSE) -> 931.1 | L7: =VLOOKUP($B$2:$B$7,'8'!$B$2:$D$7,3,FALSE) -> 927.6 | M7: =VLOOKUP($B$2:$B$7,'9'!$B$2:$D$7,3,FALSE) -> 934.3 | N7: =VLOOKUP($B$2:$B$7,' 10'!$B$2:$D$7,3,FALSE) -> 930.7 | O7: =VLOOKUP($B$2:$B$7,'11'!$B$2:$D$7,3,FALSE) -> 930.9 | P7: =VLOOKUP($B$2:$B$7,'12'!$B$2:$D$7,3,FALSE) -> 0.0 | Q7: =R7/Formelhilfe!O4 -> 930.9 | R7: 4,654.6 | S7: =T7/Formelhilfe!P4 -> 929.2 | T7: 10,221.2
